Workbook

Sheet Intro
A3: Financial Plan for Professional Services
A5: You can customize this template by filling in a simple form, without editing a spreadsheet.
A6: This is a small and somewhat simplified working sample of the template.
A8: A customized template is a flexible model that you can adapt to your situation by filling in a simple form, without editing a spreadsheet or its formulas. For example, you can specify time range and time grain; number and names of items in a dimension (such as your products and product families); and include or exclude major features. The resulting spreadsheet matches your needs better than any standard template.
A9: Get a customized version of this template on our website.
A11: ModelSheet provides you with customized templates in three ways.
A13: 1. Order a customized version of this template.
A14: Click "+" for more information.
A15: • You can specify custom features by filling out a simple form. (Click on "+" for more information.)
A16: Precise customizations vary from template to template. Examples:
A17: − Specify the starting time, time range, time grain and rollup time grains (such as annual sums).
A18: − Specify the items in a dimension and levels of hierarchy (such as product families and products).
A19: − Include or exclude entire sub-models in the template.
A20: − These features address the most serious problem with conventional spreadsheet templates: You can customize a template in many ways without having to interpret and edit numerous cell formulas.
A22: • You can edit many aspects of your Excel template after receiving it. (Click on "+" for more information.)
A23: − Edit input data in clearly marked input cells.
A24: − Edit the model start date of a template, so your template is not out of date when the start date changes.
A25: − Edit names of dimension items in once place (such as products, departments, expense accounts).
A27: • ModelSheet Excel templates are easier to understand. (Click on "+" for more information.)
A28: − Each table has an Excel comment that provides a variable name and explains the variable.
A29: − Worksheet "Formulas" expresses the entire model with named variables and symbolic formulas. Although the symbolic formulas are not executable in Excel, they are what the model is made from in ModelSheet.
A30: − You never need to read inscrutable cell formulas to understand a ModelSheet customized template.
A32: Explore our customized templates.
A34: 2. If you want more customizations, retain ModelSheet Software to build them for you.
A35: Click "+" for more information.
A36: • Our staff has extensive experience in many areas of business and engineering analysis.
A37: • ModelSheet technology enables us to offer you more value for your consulting dollar.
A39: Learn more about consulting services.
A41: 3. Use the ModelSheet Authoring Environment to build and customize your spreadsheet models.
A43: The ModelSheet Authoring Environment is a SaaS application for developing and maintaining business models and delivering them in conventional spreadsheets.
A44: Click "+" to learn more about ModelSheet technology that makes customized template possible.
A46: This Excel workbook was generated using ModelSheet, a revolutionary new spreadsheet technology. ModelSheet allows you to develop business models using readable formulas, while avoiding the details of cell addresses and hard-to-change sheet layouts. The end result is a conventional Excel workbook just like this one. We built ModelSheet because we believe that spreadsheets are a great way of communicating results but we think it's just too hard to use them to develop reliable, maintainable, expressive and collaborative models.
A48: You'll get a glimpse of ModelSheet's advantages when you take a look at the "Formulas" tab and realize how few separate, readable formulas are needed to produce all of the other worksheets. In addition to formulas, ModelSheet knows about the "dimensions" in your model (e.g., products, locations, departments) as well as the time series that you're using (e.g., 5 years in quarters.) ModelSheet raises the level of thinking and acting from individual cells to natural modeling concepts. It enhances model reliabilty, auditability and maintainability; it enables you to build models that better reflect your intentions; it allows easier collaboration between modelers, developers, and report users; and it improves productivity, especially when making changes to a model.
A50: The ModelSheet authoring environment raises the level of thinking and acting from individual cells to natural modeling concepts like variables, dimensions, time series and accounting types. It enhances model reliabilty, auditability and maintainability; it enables you to build models that better reflect your intentions; it allows easier collaboration between modelers, developers, and report users; and it improves productivity, especially when making changes to a model.
A52: We have more to tell you about ModelSheet and we'd like to hear about your needs for templates and models.
A53: Please visit our website at www.modelsheetsoft.com
A54: or contact us at info@modelsheetsoft.com.
A58: Description of the Financial Plan for Professional Services
A60: This workbook contains a financial plan for a business. The main reports are four financial statements: income statement, balance sheet, cash flow statement, and financial ratio report.
A62: The model contains detailed backup information in many sectors. Not all of these options are available in the Standard version.
A64: • Client engagement model of sales: tracks client engagements by practice area and sales channel, including billable hours and revenue by professional staff type.
A65: − Tracks large engagements individually, with start date, duration, total billed hours by professional staff type, practice area, sales channel.
A66: − Optional sales funnel tracks smaller engagements in aggregate: Includes qualified leads of varying quality, order backlog, and conversion rates, segmented by professional staff type and sales channel.
A67: • Staffing model: Tracks professional staff and support staff with separate models.
A68: − Professsional staff: Tracks staff headcount, available hours, applied hours, billed hours, and utilzation, by Professional staff type. Includes benefits, payroll taxes, bonuses.
A69: − Support staff: Tracks support staff headcount and expense by job level and department with benefits, payroll taxes, bonuses.
A70: • Operating expense model: tracks indirect labor expense, facilities expense, admin and other expenses. You explicitly specify expenses in the early quarters.
A71: • Financial expense and tax model: short and long-term debt and interest rates, interest on cash balances, income tax rates and tax loss carried forward.
A72: • Asset model: includes cash, accounts receivable, supplies inventory,debt, asset purchases and depreciation.
A73: • Liability model: includes accounts payable, short-term debt, leases, long-term loans, and bonds.
A74: • Equity model: includes paid-in capital, retained earnings, dividends, and internal rate of return.
A75: • Valuation model: values the business based on the present value of future net income, including a simple income model after the end of model time.
A77: The model includes these software features.
A79: • Time grains in most reports change over time: quarters with annual sums at early times and years later.
A80: • Excel graphs of key variables. These graphs are integrated into the ModelSheet model from which they get their source data. You can add more graphs, and optionally import them into ModelSheet.
A85: Technical Notes
A87: Depreciation of long-term assets
A88: The model includes three kinds of long-term assets.
A89: • Tagged assets are major assets that are individually tracked for depreciation purposes. Each asset has a name, initial value, purchase date, depreciation life, salvage value, and its own depreciation schedule.
A90: • Untagged assets are smaller more numerous assets, such as a personal computer or desk for each employee. These assets are grouped into asset types (hardware, software and equipment/furniture). Depreciation is computed for each asset type using a continuous declining balance formula that goes to zero in the last time period of asset life.
A91: • Capitalized product development.
A93: Internal rate of return
A94: The internal rate of return is computed using the adjusted cash flow, augmented by the negative of equity value at the start of the model time range, and optionally including the tail valuation beyond the end of the model time range.
A97: If this Spreadsheet Solution lacks some of the features you need…
A99: We offer custom development services to add features you want to our spreadsheet solutions, and to build new solutions from scratch. For more information about our consulting services, see:
A100: http://www.modelsheetsoft.com/consulting-business-analysis.aspx
A101: To discuss your specific needs, please contact us at:
A102: info@modelsheetsoft.com.
A105: This Excel workbook was generated by ModelSheet on December 2, 2010, except for this worksheet of comments.
A107: Copyright © 2009, 2010 ModelSheet Software, LLC
A108: ModelSheet and the ModelSheet logo are registered trademarks of ModelSheet Software, LLC.

Sheet Graphs

Sheet Inputs
A1: =F7 -> 
A2: =TEXT('(FnCalls 1)'!A41,"m/d/yyyy")&" to "&TEXT('(FnCalls 1)'!A59-1,"m/d/yyyy") -> 1/1/2010 to 6/30/2011
A3: ="Input Data" -> Input Data
A4: ="" -> 
A5: ="Shaded cells are input cells. You can enter data in them." -> Shaded cells are input cells. You can enter data in them.
A6: ="Formulas in shaded cells are starting suggestions. You can overwrite them." -> Formulas in shaded cells are starting suggestions. You can overwrite them.
A7: =Labels!B41 -> Company Name
A10: ="Major Engagements" -> Major Engagements
A11: ="" -> 
F12: =Labels!B149 -> Practice Area | G12: =Labels!B68 -> Sales Channel | H12: =Labels!B88 -> Start Time Period
A13: =Labels!B345 -> Engage 1 | F13: ="Practice 1" -> Practice 1 | G13: ='(Tables)'!B5 -> Channels 1 | H13: =ROUND(MAX(2,'(Tables)'!T9*1/6),0) -> 3
A14: =Labels!B346 -> Engage 2 | F14: ="Practice 1" -> Practice 1 | G14: ='(Tables)'!B5 -> Channels 1 | H14: =ROUND(MAX(2,'(Tables)'!T9*2/6),0) -> 6
A16: ="Engagement Attributes"&"" -> Engagement Attributes
A17: =" " -> 
A18: ="" -> 
F19: =Labels!B87 -> Size (Hrs) | G19: =Labels!B73 -> Duration
A20: =Labels!B345 -> Engage 1 | F20: =1000+100*1 -> 1,100 | G20: =1+1 -> 2.00
A21: =Labels!B346 -> Engage 2 | F21: =1000+100*2 -> 1,200 | G21: =2+1 -> 3.00
F23: =Labels!B84 -> Labor Share % | G23: =Labels!B85 -> Labor Ramp
A24: =Labels!B345 -> Engage 1 | B24: =Labels!B385 -> Prof Level 1 | F24: =1/MAX(1,2) -> 50% | G24: =0 -> 0.00
B25: =Labels!B386 -> Prof Level 2 | F25: =1/MAX(1,2) -> 50% | G25: =0 -> 0.00
A26: =Labels!B346 -> Engage 2 | B26: =Labels!B385 -> Prof Level 1 | F26: =1/MAX(1,2) -> 50% | G26: =0 -> 0.00
B27: =Labels!B386 -> Prof Level 2 | F27: =1/MAX(1,2) -> 50% | G27: =0 -> 0.00
A29: ="Variables 'Engagement Labor Share %' and 'Engagement Labor Slope' set labor hours over time for each Engagement." -> Variables 'Engagement Labor Share %' and 'Engagement Labor Slope' set labor hours over time for each Engagement.
A30: ="You can enter values here that override the model for labor hours over time." -> You can enter values here that override the model for labor hours over time.
F31: =Labels!B335 -> Period 1 | G31: =Labels!B336 -> Period 2 | H31: =Labels!B337 -> Period 3 | I31: =Labels!B338 -> Period 4
A32: =Labels!B77 -> Staff Hrs Applied | B32: =Labels!B345 -> Engage 1 | C32: =Labels!B385 -> Prof Level 1 | F32: =IF('(Tables)'!B42<=G20,F24*F20*1/G20+F24*F20*MIN(1,MAX(-1,G24))*2*'(Tables)'!B42/G20/G20+F24*F20*MIN(1,MAX(-1,G24))*(-1)/G20/G20+F24*F20*MIN(1,MAX(-1,G24))*(-1)/G20,0*F20/G20) -> 275.0 | G32: =IF('(Tables)'!B43<=G20,F24*F20*1/G20+F24*F20*MIN(1,MAX(-1,G24))*2*'(Tables)'!B43/G20/G20+F24*F20*MIN(1,MAX(-1,G24))*(-1)/G20/G20+F24*F20*MIN(1,MAX(-1,G24))*(-1)/G20,0*F20/G20) -> 275.0 | H32: =IF('(Tables)'!B44<=G20,F24*F20*1/G20+F24*F20*MIN(1,MAX(-1,G24))*2*'(Tables)'!B44/G20/G20+F24*F20*MIN(1,MAX(-1,G24))*(-1)/G20/G20+F24*F20*MIN(1,MAX(-1,G24))*(-1)/G20,0*F20/G20) -> 0.0 | I32: =IF('(Tables)'!B45<=G20,F24*F20*1/G20+F24*F20*MIN(1,MAX(-1,G24))*2*'(Tables)'!B45/G20/G20+F24*F20*MIN(1,MAX(-1,G24))*(-1)/G20/G20+F24*F20*MIN(1,MAX(-1,G24))*(-1)/G20,0*F20/G20) -> 0.0
C33: =Labels!B386 -> Prof Level 2 | F33: =IF('(Tables)'!B42<=G20,F25*F20*1/G20+F25*F20*MIN(1,MAX(-1,G25))*2*'(Tables)'!B42/G20/G20+F25*F20*MIN(1,MAX(-1,G25))*(-1)/G20/G20+F25*F20*MIN(1,MAX(-1,G25))*(-1)/G20,0*F20/G20) -> 275.0 | G33: =IF('(Tables)'!B43<=G20,F25*F20*1/G20+F25*F20*MIN(1,MAX(-1,G25))*2*'(Tables)'!B43/G20/G20+F25*F20*MIN(1,MAX(-1,G25))*(-1)/G20/G20+F25*F20*MIN(1,MAX(-1,G25))*(-1)/G20,0*F20/G20) -> 275.0 | H33: =IF('(Tables)'!B44<=G20,F25*F20*1/G20+F25*F20*MIN(1,MAX(-1,G25))*2*'(Tables)'!B44/G20/G20+F25*F20*MIN(1,MAX(-1,G25))*(-1)/G20/G20+F25*F20*MIN(1,MAX(-1,G25))*(-1)/G20,0*F20/G20) -> 0.0 | I33: =IF('(Tables)'!B45<=G20,F25*F20*1/G20+F25*F20*MIN(1,MAX(-1,G25))*2*'(Tables)'!B45/G20/G20+F25*F20*MIN(1,MAX(-1,G25))*(-1)/G20/G20+F25*F20*MIN(1,MAX(-1,G25))*(-1)/G20,0*F20/G20) -> 0.0
B34: =Labels!B346 -> Engage 2 | C34: =Labels!B385 -> Prof Level 1 | F34: =IF('(Tables)'!B42<=G21,F26*F21*1/G21+F26*F21*MIN(1,MAX(-1,G26))*2*'(Tables)'!B42/G21/G21+F26*F21*MIN(1,MAX(-1,G26))*(-1)/G21/G21+F26*F21*MIN(1,MAX(-1,G26))*(-1)/G21,0*F21/G21) -> 200.0 | G34: =IF('(Tables)'!B43<=G21,F26*F21*1/G21+F26*F21*MIN(1,MAX(-1,G26))*2*'(Tables)'!B43/G21/G21+F26*F21*MIN(1,MAX(-1,G26))*(-1)/G21/G21+F26*F21*MIN(1,MAX(-1,G26))*(-1)/G21,0*F21/G21) -> 200.0 | H34: =IF('(Tables)'!B44<=G21,F26*F21*1/G21+F26*F21*MIN(1,MAX(-1,G26))*2*'(Tables)'!B44/G21/G21+F26*F21*MIN(1,MAX(-1,G26))*(-1)/G21/G21+F26*F21*MIN(1,MAX(-1,G26))*(-1)/G21,0*F21/G21) -> 200.0 | I34: =IF('(Tables)'!B45<=G21,F26*F21*1/G21+F26*F21*MIN(1,MAX(-1,G26))*2*'(Tables)'!B45/G21/G21+F26*F21*MIN(1,MAX(-1,G26))*(-1)/G21/G21+F26*F21*MIN(1,MAX(-1,G26))*(-1)/G21,0*F21/G21) -> 0.0
C35: =Labels!B386 -> Prof Level 2 | F35: =IF('(Tables)'!B42<=G21,F27*F21*1/G21+F27*F21*MIN(1,MAX(-1,G27))*2*'(Tables)'!B42/G21/G21+F27*F21*MIN(1,MAX(-1,G27))*(-1)/G21/G21+F27*F21*MIN(1,MAX(-1,G27))*(-1)/G21,0*F21/G21) -> 200.0 | G35: =IF('(Tables)'!B43<=G21,F27*F21*1/G21+F27*F21*MIN(1,MAX(-1,G27))*2*'(Tables)'!B43/G21/G21+F27*F21*MIN(1,MAX(-1,G27))*(-1)/G21/G21+F27*F21*MIN(1,MAX(-1,G27))*(-1)/G21,0*F21/G21) -> 200.0 | H35: =IF('(Tables)'!B44<=G21,F27*F21*1/G21+F27*F21*MIN(1,MAX(-1,G27))*2*'(Tables)'!B44/G21/G21+F27*F21*MIN(1,MAX(-1,G27))*(-1)/G21/G21+F27*F21*MIN(1,MAX(-1,G27))*(-1)/G21,0*F21/G21) -> 200.0 | I35: =IF('(Tables)'!B45<=G21,F27*F21*1/G21+F27*F21*MIN(1,MAX(-1,G27))*2*'(Tables)'!B45/G21/G21+F27*F21*MIN(1,MAX(-1,G27))*(-1)/G21/G21+F27*F21*MIN(1,MAX(-1,G27))*(-1)/G21,0*F21/G21) -> 0.0
A38: ="Billing Practices" -> Billing Practices
A39: =" " -> 
F40: =Labels!B335 -> Period 1 | G40: =Labels!B336 -> Period 2 | H40: =Labels!B337 -> Period 3 | I40: =Labels!B338 -> Period 4
A41: =Labels!B82 -> Applied Hours % Billed | B41: =Labels!B345 -> Engage 1 | C41: =Labels!B385 -> Prof Level 1 | F41: =1 -> 100.0% | G41: =1 -> 100.0% | H41: =1 -> 100.0% | I41: =1 -> 100.0%
C42: =Labels!B386 -> Prof Level 2 | F42: =1 -> 100.0% | G42: =1 -> 100.0% | H42: =1 -> 100.0% | I42: =1 -> 100.0%
B43: =Labels!B346 -> Engage 2 | C43: =Labels!B385 -> Prof Level 1 | F43: =1 -> 100.0% | G43: =1 -> 100.0% | H43: =1 -> 100.0% | I43: =1 -> 100.0%
C44: =Labels!B386 -> Prof Level 2 | F44: =1 -> 100.0% | G44: =1 -> 100.0% | H44: =1 -> 100.0% | I44: =1 -> 100.0%
A46: =Labels!B189 -> Billed Hours Round? | F46: =FALSE -> FALSE
A51: ="Minor Engagements - Sales Funnel" -> Minor Engagements - Sales Funnel
A52: =" " -> 
A53: ="Initial Leads" -> Initial Leads
A54: =" " -> 
F55: =Labels!B389 -> Lead Qual 1 | G55: =Labels!B390 -> Lead Qual 2 | I55: =Labels!B140 -> Backlog (Hrs) | J55: =Labels!B381 -> Practice 1 | K55: =Labels!B385 -> Prof Level 1 | L55: =Labels!B317 -> Channels 1 | M55: =0 -> 0
A56: =Labels!B239 -> Leads (Hrs) | B56: =Labels!B381 -> Practice 1 | C56: =Labels!B385 -> Prof Level 1 | D56: =Labels!B317 -> Channels 1 | F56: =0 -> 0 | G56: =0 -> 0 | L56: =Labels!B318 -> Channels 2 | M56: =M55 -> 0
D57: =Labels!B318 -> Channels 2 | F57: =F56 -> 0 | G57: =G56 -> 0 | K57: =Labels!B386 -> Prof Level 2 | L57: =Labels!B317 -> Channels 1 | M57: =M55 -> 0
C58: =Labels!B386 -> Prof Level 2 | D58: =Labels!B317 -> Channels 1 | F58: =0 -> 0 | G58: =0 -> 0 | L58: =Labels!B318 -> Channels 2 | M58: =M57 -> 0
D59: =Labels!B318 -> Channels 2 | F59: =F58 -> 0 | G59: =G58 -> 0 | J59: =Labels!B382 -> Practice 2 | K59: =Labels!B385 -> Prof Level 1 | L59: =Labels!B317 -> Channels 1 | M59: =0 -> 0
B60: =Labels!B382 -> Practice 2 | C60: =Labels!B385 -> Prof Level 1 | D60: =Labels!B317 -> Channels 1 | F60: =F56 -> 0 | G60: =G56 -> 0 | L60: =Labels!B318 -> Channels 2 | M60: =M59 -> 0
D61: =Labels!B318 -> Channels 2 | F61: =F60 -> 0 | G61: =G60 -> 0 | K61: =Labels!B386 -> Prof Level 2 | L61: =Labels!B317 -> Channels 1 | M61: =M59 -> 0
C62: =Labels!B386 -> Prof Level 2 | D62: =Labels!B317 -> Channels 1 | F62: =F58 -> 0 | G62: =G58 -> 0 | L62: =Labels!B318 -> Channels 2 | M62: =M61 -> 0
D63: =Labels!B318 -> Channels 2 | F63: =F62 -> 0 | G63: =G62 -> 0
A65: ="New Leads" -> New Leads
A66: =" " -> 
F67: ='(FnCalls 1)'!F41 -> Jan 2010 | G67: ='(FnCalls 1)'!F42 -> Feb 2010 | H67: ='(FnCalls 1)'!F43 -> Mar 2010 | I67: ='(FnCalls 1)'!F44 -> Apr 2010 | J67: ='(FnCalls 1)'!F45 -> May 2010 | K67: ='(FnCalls 1)'!F46 -> Jun 2010 | L67: ='(FnCalls 1)'!F47 -> Jul 2010 | M67: ='(FnCalls 1)'!F48 -> Aug 2010 | N67: ='(FnCalls 1)'!F49 -> Sep 2010 | O67: ='(FnCalls 1)'!F50 -> Oct 2010 | P67: ='(FnCalls 1)'!F51 -> Nov 2010 | Q67: ='(FnCalls 1)'!F52 -> Dec 2010 | R67: ='(FnCalls 1)'!F53 -> Jan 2011 | S67: ='(FnCalls 1)'!F54 -> Feb 2011 | T67: ='(FnCalls 1)'!F55 -> Mar 2011 | U67: ='(FnCalls 1)'!F56 -> Apr 2011 | V67: ='(FnCalls 1)'!F57 -> May 2011 | W67: ='(FnCalls 1)'!F58 -> Jun 2011
A68: =Labels!B240 -> New Sales Leads (Hrs) | B68: =Labels!B389 -> Lead Qual 1 | C68: =Labels!B381 -> Practice 1 | D68: =Labels!B385 -> Prof Level 1 | E68: =Labels!B317 -> Channels 1 | F68: =2*0-0 -> 0 | G68: =2*F68-F68 -> 0 | H68: =2*G68-F68 -> 0 | I68: =2*H68-G68 -> 0 | J68: =2*I68-H68 -> 0 | K68: =2*J68-I68 -> 0 | L68: =2*K68-J68 -> 0 | M68: =2*L68-K68 -> 0 | N68: =2*M68-L68 -> 0 | O68: =2*N68-M68 -> 0 | P68: =2*O68-N68 -> 0 | Q68: =2*P68-O68 -> 0 | R68: =2*Q68-P68 -> 0 | S68: =2*R68-Q68 -> 0 | T68: =2*S68-R68 -> 0 | U68: =2*T68-S68 -> 0 | V68: =2*U68-T68 -> 0 | W68: =2*V68-U68 -> 0
E69: =Labels!B318 -> Channels 2 | F69: 0 | G69: 0 | H69: 0 | I69: 0 | J69: 0 | K69: 0 | L69: 0 | M69: 0 | N69: 0 | O69: 0 | P69: 0 | Q69: 0 | R69: 0 | S69: 0 | T69: 0 | U69: 0 | V69: 0 | W69: 0
D70: =Labels!B386 -> Prof Level 2 | E70: =Labels!B317 -> Channels 1 | F70: 0 | G70: 0 | H70: 0 | I70: 0 | J70: 0 | K70: 0 | L70: 0 | M70: 0 | N70: 0 | O70: 0 | P70: 0 | Q70: 0 | R70: 0 | S70: 0 | T70: 0 | U70: 0 | V70: 0 | W70: 0
E71: =Labels!B318 -> Channels 2 | F71: 0 | G71: 0 | H71: 0 | I71: 0 | J71: 0 | K71: 0 | L71: 0 | M71: 0 | N71: 0 | O71: 0 | P71: 0 | Q71: 0 | R71: 0 | S71: 0 | T71: 0 | U71: 0 | V71: 0 | W71: 0
C72: =Labels!B382 -> Practice 2 | D72: =Labels!B385 -> Prof Level 1 | E72: =Labels!B317 -> Channels 1 | F72: 0 | G72: 0 | H72: 0 | I72: 0 | J72: 0 | K72: 0 | L72: 0 | M72: 0 | N72: 0 | O72: 0 | P72: 0 | Q72: 0 | R72: 0 | S72: 0 | T72: 0 | U72: 0 | V72: 0 | W72: 0
E73: =Labels!B318 -> Channels 2 | F73: 0 | G73: 0 | H73: 0 | I73: 0 | J73: 0 | K73: 0 | L73: 0 | M73: 0 | N73: 0 | O73: 0 | P73: 0 | Q73: 0 | R73: 0 | S73: 0 | T73: 0 | U73: 0 | V73: 0 | W73: 0
D74: =Labels!B386 -> Prof Level 2 | E74: =Labels!B317 -> Channels 1 | F74: 0 | G74: 0 | H74: 0 | I74: 0 | J74: 0 | K74: 0 | L74: 0 | M74: 0 | N74: 0 | O74: 0 | P74: 0 | Q74: 0 | R74: 0 | S74: 0 | T74: 0 | U74: 0 | V74: 0 | W74: 0
E75: =Labels!B318 -> Channels 2 | F75: 0 | G75: 0 | H75: 0 | I75: 0 | J75: 0 | K75: 0 | L75: 0 | M75: 0 | N75: 0 | O75: 0 | P75: 0 | Q75: 0 | R75: 0 | S75: 0 | T75: 0 | U75: 0 | V75: 0 | W75: 0
B76: =Labels!B390 -> Lead Qual 2 | C76: =Labels!B381 -> Practice 1 | D76: =Labels!B385 -> Prof Level 1 | E76: =Labels!B317 -> Channels 1 | F76: 0 | G76: 0 | H76: 0 | I76: 0 | J76: 0 | K76: 0 | L76: 0 | M76: 0 | N76: 0 | O76: 0 | P76: 0 | Q76: 0 | R76: 0 | S76: 0 | T76: 0 | U76: 0 | V76: 0 | W76: 0
E77: =Labels!B318 -> Channels 2 | F77: 0 | G77: 0 | H77: 0 | I77: 0 | J77: 0 | K77: 0 | L77: 0 | M77: 0 | N77: 0 | O77: 0 | P77: 0 | Q77: 0 | R77: 0 | S77: 0 | T77: 0 | U77: 0 | V77: 0 | W77: 0
D78: =Labels!B386 -> Prof Level 2 | E78: =Labels!B317 -> Channels 1 | F78: 0 | G78: 0 | H78: 0 | I78: 0 | J78: 0 | K78: 0 | L78: 0 | M78: 0 | N78: 0 | O78: 0 | P78: 0 | Q78: 0 | R78: 0 | S78: 0 | T78: 0 | U78: 0 | V78: 0 | W78: 0
E79: =Labels!B318 -> Channels 2 | F79: 0 | G79: 0 | H79: 0 | I79: 0 | J79: 0 | K79: 0 | L79: 0 | M79: 0 | N79: 0 | O79: 0 | P79: 0 | Q79: 0 | R79: 0 | S79: 0 | T79: 0 | U79: 0 | V79: 0 | W79: 0
C80: =Labels!B382 -> Practice 2 | D80: =Labels!B385 -> Prof Level 1 | E80: =Labels!B317 -> Channels 1 | F80: 0 | G80: 0 | H80: 0 | I80: 0 | J80: 0 | K80: 0 | L80: 0 | M80: 0 | N80: 0 | O80: 0 | P80: 0 | Q80: 0 | R80: 0 | S80: 0 | T80: 0 | U80: 0 | V80: 0 | W80: 0
E81: =Labels!B318 -> Channels 2 | F81: 0 | G81: 0 | H81: 0 | I81: 0 | J81: 0 | K81: 0 | L81: 0 | M81: 0 | N81: 0 | O81: 0 | P81: 0 | Q81: 0 | R81: 0 | S81: 0 | T81: 0 | U81: 0 | V81: 0 | W81: 0
D82: =Labels!B386 -> Prof Level 2 | E82: =Labels!B317 -> Channels 1 | F82: 0 | G82: 0 | H82: 0 | I82: 0 | J82: 0 | K82: 0 | L82: 0 | M82: 0 | N82: 0 | O82: 0 | P82: 0 | Q82: 0 | R82: 0 | S82: 0 | T82: 0 | U82: 0 | V82: 0 | W82: 0
E83: =Labels!B318 -> Channels 2 | F83: 0 | G83: 0 | H83: 0 | I83: 0 | J83: 0 | K83: 0 | L83: 0 | M83: 0 | N83: 0 | O83: 0 | P83: 0 | Q83: 0 | R83: 0 | S83: 0 | T83: 0 | U83: 0 | V83: 0 | W83: 0
A85: ="Lead Promotion Rates" -> Lead Promotion Rates
A86: =" " -> 
F87: ='(FnCalls 1)'!F41 -> Jan 2010 | G87: ='(FnCalls 1)'!F42 -> Feb 2010 | H87: ='(FnCalls 1)'!F43 -> Mar 2010 | I87: ='(FnCalls 1)'!F44 -> Apr 2010 | J87: ='(FnCalls 1)'!F45 -> May 2010 | K87: ='(FnCalls 1)'!F46 -> Jun 2010 | L87: ='(FnCalls 1)'!F47 -> Jul 2010 | M87: ='(FnCalls 1)'!F48 -> Aug 2010 | N87: ='(FnCalls 1)'!F49 -> Sep 2010 | O87: ='(FnCalls 1)'!F50 -> Oct 2010 | P87: ='(FnCalls 1)'!F51 -> Nov 2010 | Q87: ='(FnCalls 1)'!F52 -> Dec 2010 | R87: ='(FnCalls 1)'!F53 -> Jan 2011 | S87: ='(FnCalls 1)'!F54 -> Feb 2011 | T87: ='(FnCalls 1)'!F55 -> Mar 2011 | U87: ='(FnCalls 1)'!F56 -> Apr 2011 | V87: ='(FnCalls 1)'!F57 -> May 2011 | W87: ='(FnCalls 1)'!F58 -> Jun 2011
A88: =Labels!B236 -> Sales Lead Hrs Conv % (Yr) | B88: =Labels!B389 -> Lead Qual 1 | C88: =Labels!B381 -> Practice 1 | D88: =Labels!B385 -> Prof Level 1 | E88: =Labels!B317 -> Channels 1 | F88: =0.5 -> 50% | G88: =F88 -> 50% | H88: 50% | I88: 50% | J88: 50% | K88: 50% | L88: 50% | M88: 50% | N88: 50% | O88: 50% | P88: 50% | Q88: 50% | R88: 50% | S88: 50% | T88: 50% | U88: 50% | V88: 50% | W88: 50%
E89: =Labels!B318 -> Channels 2 | F89: 50% | G89: =F89 -> 50% | H89: 50% | I89: 50% | J89: 50% | K89: 50% | L89: 50% | M89: 50% | N89: 50% | O89: 50% | P89: 50% | Q89: 50% | R89: 50% | S89: 50% | T89: 50% | U89: 50% | V89: 50% | W89: 50%
D90: =Labels!B386 -> Prof Level 2 | E90: =Labels!B317 -> Channels 1 | F90: 50% | G90: =F90 -> 50% | H90: 50% | I90: 50% | J90: 50% | K90: 50% | L90: 50% | M90: 50% | N90: 50% | O90: 50% | P90: 50% | Q90: 50% | R90: 50% | S90: 50% | T90: 50% | U90: 50% | V90: 50% | W90: 50%
E91: =Labels!B318 -> Channels 2 | F91: 50% | G91: =F91 -> 50% | H91: 50% | I91: 50% | J91: 50% | K91: 50% | L91: 50% | M91: 50% | N91: 50% | O91: 50% | P91: 50% | Q91: 50% | R91: 50% | S91: 50% | T91: 50% | U91: 50% | V91: 50% | W91: 50%
C92: =Labels!B382 -> Practice 2 | D92: =Labels!B385 -> Prof Level 1 | E92: =Labels!B317 -> Channels 1 | F92: 50% | G92: =F92 -> 50% | H92: 50% | I92: 50% | J92: 50% | K92: 50% | L92: 50% | M92: 50% | N92: 50% | O92: 50% | P92: 50% | Q92: 50% | R92: 50% | S92: 50% | T92: 50% | U92: 50% | V92: 50% | W92: 50%
E93: =Labels!B318 -> Channels 2 | F93: 50% | G93: =F93 -> 50% | H93: 50% | I93: 50% | J93: 50% | K93: 50% | L93: 50% | M93: 50% | N93: 50% | O93: 50% | P93: 50% | Q93: 50% | R93: 50% | S93: 50% | T93: 50% | U93: 50% | V93: 50% | W93: 50%
D94: =Labels!B386 -> Prof Level 2 | E94: =Labels!B317 -> Channels 1 | F94: 50% | G94: =F94 -> 50% | H94: 50% | I94: 50% | J94: 50% | K94: 50% | L94: 50% | M94: 50% | N94: 50% | O94: 50% | P94: 50% | Q94: 50% | R94: 50% | S94: 50% | T94: 50% | U94: 50% | V94: 50% | W94: 50%
E95: =Labels!B318 -> Channels 2 | F95: 50% | G95: =F95 -> 50% | H95: 50% | I95: 50% | J95: 50% | K95: 50% | L95: 50% | M95: 50% | N95: 50% | O95: 50% | P95: 50% | Q95: 50% | R95: 50% | S95: 50% | T95: 50% | U95: 50% | V95: 50% | W95: 50%
B96: =Labels!B390 -> Lead Qual 2 | C96: =Labels!B381 -> Practice 1 | D96: =Labels!B385 -> Prof Level 1 | E96: =Labels!B317 -> Channels 1 | F96: 50% | G96: =F96 -> 50% | H96: 50% | I96: 50% | J96: 50% | K96: 50% | L96: 50% | M96: 50% | N96: 50% | O96: 50% | P96: 50% | Q96: 50% | R96: 50% | S96: 50% | T96: 50% | U96: 50% | V96: 50% | W96: 50%
E97: =Labels!B318 -> Channels 2 | F97: 50% | G97: =F97 -> 50% | H97: 50% | I97: 50% | J97: 50% | K97: 50% | L97: 50% | M97: 50% | N97: 50% | O97: 50% | P97: 50% | Q97: 50% | R97: 50% | S97: 50% | T97: 50% | U97: 50% | V97: 50% | W97: 50%
D98: =Labels!B386 -> Prof Level 2 | E98: =Labels!B317 -> Channels 1 | F98: 50% | G98: =F98 -> 50% | H98: 50% | I98: 50% | J98: 50% | K98: 50% | L98: 50% | M98: 50% | N98: 50% | O98: 50% | P98: 50% | Q98: 50% | R98: 50% | S98: 50% | T98: 50% | U98: 50% | V98: 50% | W98: 50%
E99: =Labels!B318 -> Channels 2 | F99: 50% | G99: =F99 -> 50% | H99: 50% | I99: 50% | J99: 50% | K99: 50% | L99: 50% | M99: 50% | N99: 50% | O99: 50% | P99: 50% | Q99: 50% | R99: 50% | S99: 50% | T99: 50% | U99: 50% | V99: 50% | W99: 50%
C100: =Labels!B382 -> Practice 2 | D100: =Labels!B385 -> Prof Level 1 | E100: =Labels!B317 -> Channels 1 | F100: 50% | G100: =F100 -> 50% | H100: 50% | I100: 50% | J100: 50% | K100: 50% | L100: 50% | M100: 50% | N100: 50% | O100: 50% | P100: 50% | Q100: 50% | R100: 50% | S100: 50% | T100: 50% | U100: 50% | V100: 50% | W100: 50%
E101: =Labels!B318 -> Channels 2 | F101: 50% | G101: =F101 -> 50% | H101: 50% | I101: 50% | J101: 50% | K101: 50% | L101: 50% | M101: 50% | N101: 50% | O101: 50% | P101: 50% | Q101: 50% | R101: 50% | S101: 50% | T101: 50% | U101: 50% | V101: 50% | W101: 50%
D102: =Labels!B386 -> Prof Level 2 | E102: =Labels!B317 -> Channels 1 | F102: 50% | G102: =F102 -> 50% | H102: 50% | I102: 50% | J102: 50% | K102: 50% | L102: 50% | M102: 50% | N102: 50% | O102: 50% | P102: 50% | Q102: 50% | R102: 50% | S102: 50% | T102: 50% | U102: 50% | V102: 50% | W102: 50%
E103: =Labels!B318 -> Channels 2 | F103: 50% | G103: =F103 -> 50% | H103: 50% | I103: 50% | J103: 50% | K103: 50% | L103: 50% | M103: 50% | N103: 50% | O103: 50% | P103: 50% | Q103: 50% | R103: 50% | S103: 50% | T103: 50% | U103: 50% | V103: 50% | W103: 50%
A105: =Labels!B238 -> Sales Lead Expire Hrs% (Yr) | B105: =Labels!B389 -> Lead Qual 1 | C105: =Labels!B381 -> Practice 1 | D105: =Labels!B385 -> Prof Level 1 | E105: =Labels!B317 -> Channels 1 | F105: =0.3 -> 30% | G105: =F105 -> 30% | H105: 30% | I105: 30% | J105: 30% | K105: 30% | L105: 30% | M105: 30% | N105: 30% | O105: 30% | P105: 30% | Q105: 30% | R105: 30% | S105: 30% | T105: 30% | U105: 30% | V105: 30% | W105: 30%
E106: =Labels!B318 -> Channels 2 | F106: 30% | G106: =F106 -> 30% | H106: 30% | I106: 30% | J106: 30% | K106: 30% | L106: 30% | M106: 30% | N106: 30% | O106: 30% | P106: 30% | Q106: 30% | R106: 30% | S106: 30% | T106: 30% | U106: 30% | V106: 30% | W106: 30%
D107: =Labels!B386 -> Prof Level 2 | E107: =Labels!B317 -> Channels 1 | F107: 30% | G107: =F107 -> 30% | H107: 30% | I107: 30% | J107: 30% | K107: 30% | L107: 30% | M107: 30% | N107: 30% | O107: 30% | P107: 30% | Q107: 30% | R107: 30% | S107: 30% | T107: 30% | U107: 30% | V107: 30% | W107: 30%
E108: =Labels!B318 -> Channels 2 | F108: 30% | G108: =F108 -> 30% | H108: 30% | I108: 30% | J108: 30% | K108: 30% | L108: 30% | M108: 30% | N108: 30% | O108: 30% | P108: 30% | Q108: 30% | R108: 30% | S108: 30% | T108: 30% | U108: 30% | V108: 30% | W108: 30%
C109: =Labels!B382 -> Practice 2 | D109: =Labels!B385 -> Prof Level 1 | E109: =Labels!B317 -> Channels 1 | F109: 30% | G109: =F109 -> 30% | H109: 30% | I109: 30% | J109: 30% | K109: 30% | L109: 30% | M109: 30% | N109: 30% | O109: 30% | P109: 30% | Q109: 30% | R109: 30% | S109: 30% | T109: 30% | U109: 30% | V109: 30% | W109: 30%
E110: =Labels!B318 -> Channels 2 | F110: 30% | G110: =F110 -> 30% | H110: 30% | I110: 30% | J110: 30% | K110: 30% | L110: 30% | M110: 30% | N110: 30% | O110: 30% | P110: 30% | Q110: 30% | R110: 30% | S110: 30% | T110: 30% | U110: 30% | V110: 30% | W110: 30%
D111: =Labels!B386 -> Prof Level 2 | E111: =Labels!B317 -> Channels 1 | F111: 30% | G111: =F111 -> 30% | H111: 30% | I111: 30% | J111: 30% | K111: 30% | L111: 30% | M111: 30% | N111: 30% | O111: 30% | P111: 30% | Q111: 30% | R111: 30% | S111: 30% | T111: 30% | U111: 30% | V111: 30% | W111: 30%
E112: =Labels!B318 -> Channels 2 | F112: 30% | G112: =F112 -> 30% | H112: 30% | I112: 30% | J112: 30% | K112: 30% | L112: 30% | M112: 30% | N112: 30% | O112: 30% | P112: 30% | Q112: 30% | R112: 30% | S112: 30% | T112: 30% | U112: 30% | V112: 30% | W112: 30%
B113: =Labels!B390 -> Lead Qual 2 | C113: =Labels!B381 -> Practice 1 | D113: =Labels!B385 -> Prof Level 1 | E113: =Labels!B317 -> Channels 1 | F113: 30% | G113: =F113 -> 30% | H113: 30% | I113: 30% | J113: 30% | K113: 30% | L113: 30% | M113: 30% | N113: 30% | O113: 30% | P113: 30% | Q113: 30% | R113: 30% | S113: 30% | T113: 30% | U113: 30% | V113: 30% | W113: 30%
E114: =Labels!B318 -> Channels 2 | F114: 30% | G114: =F114 -> 30% | H114: 30% | I114: 30% | J114: 30% | K114: 30% | L114: 30% | M114: 30% | N114: 30% | O114: 30% | P114: 30% | Q114: 30% | R114: 30% | S114: 30% | T114: 30% | U114: 30% | V114: 30% | W114: 30%
D115: =Labels!B386 -> Prof Level 2 | E115: =Labels!B317 -> Channels 1 | F115: 30% | G115: =F115 -> 30% | H115: 30% | I115: 30% | J115: 30% | K115: 30% | L115: 30% | M115: 30% | N115: 30% | O115: 30% | P115: 30% | Q115: 30% | R115: 30% | S115: 30% | T115: 30% | U115: 30% | V115: 30% | W115: 30%
E116: =Labels!B318 -> Channels 2 | F116: 30% | G116: =F116 -> 30% | H116: 30% | I116: 30% | J116: 30% | K116: 30% | L116: 30% | M116: 30% | N116: 30% | O116: 30% | P116: 30% | Q116: 30% | R116: 30% | S116: 30% | T116: 30% | U116: 30% | V116: 30% | W116: 30%
C117: =Labels!B382 -> Practice 2 | D117: =Labels!B385 -> Prof Level 1 | E117: =Labels!B317 -> Channels 1 | F117: 30% | G117: =F117 -> 30% | H117: 30% | I117: 30% | J117: 30% | K117: 30% | L117: 30% | M117: 30% | N117: 30% | O117: 30% | P117: 30% | Q117: 30% | R117: 30% | S117: 30% | T117: 30% | U117: 30% | V117: 30% | W117: 30%
E118: =Labels!B318 -> Channels 2 | F118: 30% | G118: =F118 -> 30% | H118: 30% | I118: 30% | J118: 30% | K118: 30% | L118: 30% | M118: 30% | N118: 30% | O118: 30% | P118: 30% | Q118: 30% | R118: 30% | S118: 30% | T118: 30% | U118: 30% | V118: 30% | W118: 30%
D119: =Labels!B386 -> Prof Level 2 | E119: =Labels!B317 -> Channels 1 | F119: 30% | G119: =F119 -> 30% | H119: 30% | I119: 30% | J119: 30% | K119: 30% | L119: 30% | M119: 30% | N119: 30% | O119: 30% | P119: 30% | Q119: 30% | R119: 30% | S119: 30% | T119: 30% | U119: 30% | V119: 30% | W119: 30%
E120: =Labels!B318 -> Channels 2 | F120: 30% | G120: =F120 -> 30% | H120: 30% | I120: 30% | J120: 30% | K120: 30% | L120: 30% | M120: 30% | N120: 30% | O120: 30% | P120: 30% | Q120: 30% | R120: 30% | S120: 30% | T120: 30% | U120: 30% | V120: 30% | W120: 30%
A122: =Labels!B143 -> Backlog Filled Hrs% | B122: =Labels!B381 -> Practice 1 | C122: =Labels!B385 -> Prof Level 1 | D122: =Labels!B317 -> Channels 1 | F122: =0.5 -> 50% | G122: =F122 -> 50% | H122: 50% | I122: 50% | J122: 50% | K122: 50% | L122: 50% | M122: 50% | N122: 50% | O122: 50% | P122: 50% | Q122: 50% | R122: 50% | S122: 50% | T122: 50% | U122: 50% | V122: 50% | W122: 50%
D123: =Labels!B318 -> Channels 2 | F123: 50% | G123: =F123 -> 50% | H123: 50% | I123: 50% | J123: 50% | K123: 50% | L123: 50% | M123: 50% | N123: 50% | O123: 50% | P123: 50% | Q123: 50% | R123: 50% | S123: 50% | T123: 50% | U123: 50% | V123: 50% | W123: 50%
C124: =Labels!B386 -> Prof Level 2 | D124: =Labels!B317 -> Channels 1 | F124: 50% | G124: =F124 -> 50% | H124: 50% | I124: 50% | J124: 50% | K124: 50% | L124: 50% | M124: 50% | N124: 50% | O124: 50% | P124: 50% | Q124: 50% | R124: 50% | S124: 50% | T124: 50% | U124: 50% | V124: 50% | W124: 50%
D125: =Labels!B318 -> Channels 2 | F125: 50% | G125: =F125 -> 50% | H125: 50% | I125: 50% | J125: 50% | K125: 50% | L125: 50% | M125: 50% | N125: 50% | O125: 50% | P125: 50% | Q125: 50% | R125: 50% | S125: 50% | T125: 50% | U125: 50% | V125: 50% | W125: 50%
B126: =Labels!B382 -> Practice 2 | C126: =Labels!B385 -> Prof Level 1 | D126: =Labels!B317 -> Channels 1 | F126: 50% | G126: =F126 -> 50% | H126: 50% | I126: 50% | J126: 50% | K126: 50% | L126: 50% | M126: 50% | N126: 50% | O126: 50% | P126: 50% | Q126: 50% | R126: 50% | S126: 50% | T126: 50% | U126: 50% | V126: 50% | W126: 50%
D127: =Labels!B318 -> Channels 2 | F127: 50% | G127: =F127 -> 50% | H127: 50% | I127: 50% | J127: 50% | K127: 50% | L127: 50% | M127: 50% | N127: 50% | O127: 50% | P127: 50% | Q127: 50% | R127: 50% | S127: 50% | T127: 50% | U127: 50% | V127: 50% | W127: 50%
C128: =Labels!B386 -> Prof Level 2 | D128: =Labels!B317 -> Channels 1 | F128: 50% | G128: =F128 -> 50% | H128: 50% | I128: 50% | J128: 50% | K128: 50% | L128: 50% | M128: 50% | N128: 50% | O128: 50% | P128: 50% | Q128: 50% | R128: 50% | S128: 50% | T128: 50% | U128: 50% | V128: 50% | W128: 50%
D129: =Labels!B318 -> Channels 2 | F129: 50% | G129: =F129 -> 50% | H129: 50% | I129: 50% | J129: 50% | K129: 50% | L129: 50% | M129: 50% | N129: 50% | O129: 50% | P129: 50% | Q129: 50% | R129: 50% | S129: 50% | T129: 50% | U129: 50% | V129: 50% | W129: 50%
A133: ="Billing Rates and Non-Labor Cost of Services" -> Billing Rates and Non-Labor Cost of Services
A134: ="" -> 
A135: ="Billing Rates" -> Billing Rates
A136: ="" -> 
F137: ='(FnCalls 1)'!F41 -> Jan 2010 | G137: ='(FnCalls 1)'!F42 -> Feb 2010 | H137: ='(FnCalls 1)'!F43 -> Mar 2010 | I137: ='(FnCalls 1)'!F44 -> Apr 2010 | J137: ='(FnCalls 1)'!F45 -> May 2010 | K137: ='(FnCalls 1)'!F46 -> Jun 2010 | L137: ='(FnCalls 1)'!F47 -> Jul 2010 | M137: ='(FnCalls 1)'!F48 -> Aug 2010 | N137: ='(FnCalls 1)'!F49 -> Sep 2010 | O137: ='(FnCalls 1)'!F50 -> Oct 2010 | P137: ='(FnCalls 1)'!F51 -> Nov 2010 | Q137: ='(FnCalls 1)'!F52 -> Dec 2010 | R137: ='(FnCalls 1)'!F53 -> Jan 2011 | S137: ='(FnCalls 1)'!F54 -> Feb 2011 | T137: ='(FnCalls 1)'!F55 -> Mar 2011 | U137: ='(FnCalls 1)'!F56 -> Apr 2011 | V137: ='(FnCalls 1)'!F57 -> May 2011 | W137: ='(FnCalls 1)'!F58 -> Jun 2011
A138: =Labels!B163 -> Billing Rates (Nominal ) | B138: =Labels!B381 -> Practice 1 | C138: =Labels!B385 -> Prof Level 1 | F138: =200 -> $200 | G138: =F138 -> $200 | H138: $200 | I138: $200 | J138: $200 | K138: $200 | L138: $200 | M138: $200 | N138: $200 | O138: $200 | P138: $200 | Q138: $200 | R138: $200 | S138: $200 | T138: $200 | U138: $200 | V138: $200 | W138: $200
C139: =Labels!B386 -> Prof Level 2 | F139: =200 -> $200 | G139: =F139 -> $200 | H139: $200 | I139: $200 | J139: $200 | K139: $200 | L139: $200 | M139: $200 | N139: $200 | O139: $200 | P139: $200 | Q139: $200 | R139: $200 | S139: $200 | T139: $200 | U139: $200 | V139: $200 | W139: $200
B140: =Labels!B382 -> Practice 2 | C140: =Labels!B385 -> Prof Level 1 | F140: =200 -> $200 | G140: =F140 -> $200 | H140: $200 | I140: $200 | J140: $200 | K140: $200 | L140: $200 | M140: $200 | N140: $200 | O140: $200 | P140: $200 | Q140: $200 | R140: $200 | S140: $200 | T140: $200 | U140: $200 | V140: $200 | W140: $200
C141: =Labels!B386 -> Prof Level 2 | F141: =200 -> $200 | G141: =F141 -> $200 | H141: $200 | I141: $200 | J141: $200 | K141: $200 | L141: $200 | M141: $200 | N141: $200 | O141: $200 | P141: $200 | Q141: $200 | R141: $200 | S141: $200 | T141: $200 | U141: $200 | V141: $200 | W141: $200
A143: =Labels!B161 -> Billing Rate Discount % | B143: =Labels!B381 -> Practice 1 | C143: =Labels!B385 -> Prof Level 1 | F143: =0 -> 0.0% | G143: =F143 -> 0.0% | H143: 0.0% | I143: 0.0% | J143: 0.0% | K143: 0.0% | L143: 0.0% | M143: 0.0% | N143: 0.0% | O143: 0.0% | P143: 0.0% | Q143: 0.0% | R143: 0.0% | S143: 0.0% | T143: 0.0% | U143: 0.0% | V143: 0.0% | W143: 0.0%
C144: =Labels!B386 -> Prof Level 2 | F144: =0 -> 0.0% | G144: =F144 -> 0.0% | H144: 0.0% | I144: 0.0% | J144: 0.0% | K144: 0.0% | L144: 0.0% | M144: 0.0% | N144: 0.0% | O144: 0.0% | P144: 0.0% | Q144: 0.0% | R144: 0.0% | S144: 0.0% | T144: 0.0% | U144: 0.0% | V144: 0.0% | W144: 0.0%
B145: =Labels!B382 -> Practice 2 | C145: =Labels!B385 -> Prof Level 1 | F145: =0 -> 0.0% | G145: =F145 -> 0.0% | H145: 0.0% | I145: 0.0% | J145: 0.0% | K145: 0.0% | L145: 0.0% | M145: 0.0% | N145: 0.0% | O145: 0.0% | P145: 0.0% | Q145: 0.0% | R145: 0.0% | S145: 0.0% | T145: 0.0% | U145: 0.0% | V145: 0.0% | W145: 0.0%
C146: =Labels!B386 -> Prof Level 2 | F146: =0 -> 0.0% | G146: =F146 -> 0.0% | H146: 0.0% | I146: 0.0% | J146: 0.0% | K146: 0.0% | L146: 0.0% | M146: 0.0% | N146: 0.0% | O146: 0.0% | P146: 0.0% | Q146: 0.0% | R146: 0.0% | S146: 0.0% | T146: 0.0% | U146: 0.0% | V146: 0.0% | W146: 0.0%
A148: =Labels!B72 -> Engage Discount % | B148: =Labels!B345 -> Engage 1 | F148: =0 -> 0.0% | G148: =F148 -> 0.0% | H148: 0.0% | I148: 0.0% | J148: 0.0% | K148: 0.0% | L148: 0.0% | M148: 0.0% | N148: 0.0% | O148: 0.0% | P148: 0.0% | Q148: 0.0% | R148: 0.0% | S148: 0.0% | T148: 0.0% | U148: 0.0% | V148: 0.0% | W148: 0.0%
B149: =Labels!B346 -> Engage 2 | F149: =0 -> 0.0% | G149: =F149 -> 0.0% | H149: 0.0% | I149: 0.0% | J149: 0.0% | K149: 0.0% | L149: 0.0% | M149: 0.0% | N149: 0.0% | O149: 0.0% | P149: 0.0% | Q149: 0.0% | R149: 0.0% | S149: 0.0% | T149: 0.0% | U149: 0.0% | V149: 0.0% | W149: 0.0%
A151: ="Non-Labor Cost of Services" -> Non-Labor Cost of Services
F152: ='(FnCalls 1)'!F41 -> Jan 2010 | G152: ='(FnCalls 1)'!F42 -> Feb 2010 | H152: ='(FnCalls 1)'!F43 -> Mar 2010 | I152: ='(FnCalls 1)'!F44 -> Apr 2010 | J152: ='(FnCalls 1)'!F45 -> May 2010 | K152: ='(FnCalls 1)'!F46 -> Jun 2010 | L152: ='(FnCalls 1)'!F47 -> Jul 2010 | M152: ='(FnCalls 1)'!F48 -> Aug 2010 | N152: ='(FnCalls 1)'!F49 -> Sep 2010 | O152: ='(FnCalls 1)'!F50 -> Oct 2010 | P152: ='(FnCalls 1)'!F51 -> Nov 2010 | Q152: ='(FnCalls 1)'!F52 -> Dec 2010 | R152: ='(FnCalls 1)'!F53 -> Jan 2011 | S152: ='(FnCalls 1)'!F54 -> Feb 2011 | T152: ='(FnCalls 1)'!F55 -> Mar 2011 | U152: ='(FnCalls 1)'!F56 -> Apr 2011 | V152: ='(FnCalls 1)'!F57 -> May 2011 | W152: ='(FnCalls 1)'!F58 -> Jun 2011
A153: =Labels!B51 -> Travel & Entertainment / Hr | B153: =Labels!B381 -> Practice 1 | C153: =Labels!B385 -> Prof Level 1 | D153: =Labels!B317 -> Channels 1 | F153: =5 -> $5.00 | G153: =F153 -> $5.00 | H153: $5.00 | I153: $5.00 | J153: $5.00 | K153: $5.00 | L153: $5.00 | M153: $5.00 | N153: $5.00 | O153: $5.00 | P153: $5.00 | Q153: $5.00 | R153: $5.00 | S153: $5.00 | T153: $5.00 | U153: $5.00 | V153: $5.00 | W153: $5.00
D154: =Labels!B318 -> Channels 2 | F154: =5 -> $5.00 | G154: =F154 -> $5.00 | H154: $5.00 | I154: $5.00 | J154: $5.00 | K154: $5.00 | L154: $5.00 | M154: $5.00 | N154: $5.00 | O154: $5.00 | P154: $5.00 | Q154: $5.00 | R154: $5.00 | S154: $5.00 | T154: $5.00 | U154: $5.00 | V154: $5.00 | W154: $5.00
C155: =Labels!B386 -> Prof Level 2 | D155: =Labels!B317 -> Channels 1 | F155: =5 -> $5.00 | G155: =F155 -> $5.00 | H155: $5.00 | I155: $5.00 | J155: $5.00 | K155: $5.00 | L155: $5.00 | M155: $5.00 | N155: $5.00 | O155: $5.00 | P155: $5.00 | Q155: $5.00 | R155: $5.00 | S155: $5.00 | T155: $5.00 | U155: $5.00 | V155: $5.00 | W155: $5.00
D156: =Labels!B318 -> Channels 2 | F156: =5 -> $5.00 | G156: =F156 -> $5.00 | H156: $5.00 | I156: $5.00 | J156: $5.00 | K156: $5.00 | L156: $5.00 | M156: $5.00 | N156: $5.00 | O156: $5.00 | P156: $5.00 | Q156: $5.00 | R156: $5.00 | S156: $5.00 | T156: $5.00 | U156: $5.00 | V156: $5.00 | W156: $5.00
B157: =Labels!B382 -> Practice 2 | C157: =Labels!B385 -> Prof Level 1 | D157: =Labels!B317 -> Channels 1 | F157: =5 -> $5.00 | G157: =F157 -> $5.00 | H157: $5.00 | I157: $5.00 | J157: $5.00 | K157: $5.00 | L157: $5.00 | M157: $5.00 | N157: $5.00 | O157: $5.00 | P157: $5.00 | Q157: $5.00 | R157: $5.00 | S157: $5.00 | T157: $5.00 | U157: $5.00 | V157: $5.00 | W157: $5.00
D158: =Labels!B318 -> Channels 2 | F158: =5 -> $5.00 | G158: =F158 -> $5.00 | H158: $5.00 | I158: $5.00 | J158: $5.00 | K158: $5.00 | L158: $5.00 | M158: $5.00 | N158: $5.00 | O158: $5.00 | P158: $5.00 | Q158: $5.00 | R158: $5.00 | S158: $5.00 | T158: $5.00 | U158: $5.00 | V158: $5.00 | W158: $5.00
C159: =Labels!B386 -> Prof Level 2 | D159: =Labels!B317 -> Channels 1 | F159: =5 -> $5.00 | G159: =F159 -> $5.00 | H159: $5.00 | I159: $5.00 | J159: $5.00 | K159: $5.00 | L159: $5.00 | M159: $5.00 | N159: $5.00 | O159: $5.00 | P159: $5.00 | Q159: $5.00 | R159: $5.00 | S159: $5.00 | T159: $5.00 | U159: $5.00 | V159: $5.00 | W159: $5.00
D160: =Labels!B318 -> Channels 2 | F160: =5 -> $5.00 | G160: =F160 -> $5.00 | H160: $5.00 | I160: $5.00 | J160: $5.00 | K160: $5.00 | L160: $5.00 | M160: $5.00 | N160: $5.00 | O160: $5.00 | P160: $5.00 | Q160: $5.00 | R160: $5.00 | S160: $5.00 | T160: $5.00 | U160: $5.00 | V160: $5.00 | W160: $5.00
A161: =Labels!B48 -> Cost of Supplies / Hr | B161: =Labels!B381 -> Practice 1 | C161: =Labels!B385 -> Prof Level 1 | D161: =Labels!B397 -> Supply Type 1 | E161: =Labels!B317 -> Channels 1 | F161: =0 -> $0.00 | G161: =F161 -> $0.00 | H161: $0.00 | I161: $0.00 | J161: $0.00 | K161: $0.00 | L161: $0.00 | M161: $0.00 | N161: $0.00 | O161: $0.00 | P161: $0.00 | Q161: $0.00 | R161: $0.00 | S161: $0.00 | T161: $0.00 | U161: $0.00 | V161: $0.00 | W161: $0.00
E162: =Labels!B318 -> Channels 2 | F162: =0 -> $0.00 | G162: =F162 -> $0.00 | H162: $0.00 | I162: $0.00 | J162: $0.00 | K162: $0.00 | L162: $0.00 | M162: $0.00 | N162: $0.00 | O162: $0.00 | P162: $0.00 | Q162: $0.00 | R162: $0.00 | S162: $0.00 | T162: $0.00 | U162: $0.00 | V162: $0.00 | W162: $0.00
D163: =Labels!B398 -> Supply Type 2 | E163: =Labels!B317 -> Channels 1 | F163: =0 -> $0.00 | G163: =F163 -> $0.00 | H163: $0.00 | I163: $0.00 | J163: $0.00 | K163: $0.00 | L163: $0.00 | M163: $0.00 | N163: $0.00 | O163: $0.00 | P163: $0.00 | Q163: $0.00 | R163: $0.00 | S163: $0.00 | T163: $0.00 | U163: $0.00 | V163: $0.00 | W163: $0.00
E164: =Labels!B318 -> Channels 2 | F164: =0 -> $0.00 | G164: =F164 -> $0.00 | H164: $0.00 | I164: $0.00 | J164: $0.00 | K164: $0.00 | L164: $0.00 | M164: $0.00 | N164: $0.00 | O164: $0.00 | P164: $0.00 | Q164: $0.00 | R164: $0.00 | S164: $0.00 | T164: $0.00 | U164: $0.00 | V164: $0.00 | W164: $0.00
C165: =Labels!B386 -> Prof Level 2 | D165: =Labels!B397 -> Supply Type 1 | E165: =Labels!B317 -> Channels 1 | F165: =0 -> $0.00 | G165: =F165 -> $0.00 | H165: $0.00 | I165: $0.00 | J165: $0.00 | K165: $0.00 | L165: $0.00 | M165: $0.00 | N165: $0.00 | O165: $0.00 | P165: $0.00 | Q165: $0.00 | R165: $0.00 | S165: $0.00 | T165: $0.00 | U165: $0.00 | V165: $0.00 | W165: $0.00
E166: =Labels!B318 -> Channels 2 | F166: =0 -> $0.00 | G166: =F166 -> $0.00 | H166: $0.00 | I166: $0.00 | J166: $0.00 | K166: $0.00 | L166: $0.00 | M166: $0.00 | N166: $0.00 | O166: $0.00 | P166: $0.00 | Q166: $0.00 | R166: $0.00 | S166: $0.00 | T166: $0.00 | U166: $0.00 | V166: $0.00 | W166: $0.00
D167: =Labels!B398 -> Supply Type 2 | E167: =Labels!B317 -> Channels 1 | F167: =0 -> $0.00 | G167: =F167 -> $0.00 | H167: $0.00 | I167: $0.00 | J167: $0.00 | K167: $0.00 | L167: $0.00 | M167: $0.00 | N167: $0.00 | O167: $0.00 | P167: $0.00 | Q167: $0.00 | R167: $0.00 | S167: $0.00 | T167: $0.00 | U167: $0.00 | V167: $0.00 | W167: $0.00
E168: =Labels!B318 -> Channels 2 | F168: =0 -> $0.00 | G168: =F168 -> $0.00 | H168: $0.00 | I168: $0.00 | J168: $0.00 | K168: $0.00 | L168: $0.00 | M168: $0.00 | N168: $0.00 | O168: $0.00 | P168: $0.00 | Q168: $0.00 | R168: $0.00 | S168: $0.00 | T168: $0.00 | U168: $0.00 | V168: $0.00 | W168: $0.00
B169: =Labels!B382 -> Practice 2 | C169: =Labels!B385 -> Prof Level 1 | D169: =Labels!B397 -> Supply Type 1 | E169: =Labels!B317 -> Channels 1 | F169: =0 -> $0.00 | G169: =F169 -> $0.00 | H169: $0.00 | I169: $0.00 | J169: $0.00 | K169: $0.00 | L169: $0.00 | M169: $0.00 | N169: $0.00 | O169: $0.00 | P169: $0.00 | Q169: $0.00 | R169: $0.00 | S169: $0.00 | T169: $0.00 | U169: $0.00 | V169: $0.00 | W169: $0.00
E170: =Labels!B318 -> Channels 2 | F170: =0 -> $0.00 | G170: =F170 -> $0.00 | H170: $0.00 | I170: $0.00 | J170: $0.00 | K170: $0.00 | L170: $0.00 | M170: $0.00 | N170: $0.00 | O170: $0.00 | P170: $0.00 | Q170: $0.00 | R170: $0.00 | S170: $0.00 | T170: $0.00 | U170: $0.00 | V170: $0.00 | W170: $0.00
D171: =Labels!B398 -> Supply Type 2 | E171: =Labels!B317 -> Channels 1 | F171: =0 -> $0.00 | G171: =F171 -> $0.00 | H171: $0.00 | I171: $0.00 | J171: $0.00 | K171: $0.00 | L171: $0.00 | M171: $0.00 | N171: $0.00 | O171: $0.00 | P171: $0.00 | Q171: $0.00 | R171: $0.00 | S171: $0.00 | T171: $0.00 | U171: $0.00 | V171: $0.00 | W171: $0.00
E172: =Labels!B318 -> Channels 2 | F172: =0 -> $0.00 | G172: =F172 -> $0.00 | H172: $0.00 | I172: $0.00 | J172: $0.00 | K172: $0.00 | L172: $0.00 | M172: $0.00 | N172: $0.00 | O172: $0.00 | P172: $0.00 | Q172: $0.00 | R172: $0.00 | S172: $0.00 | T172: $0.00 | U172: $0.00 | V172: $0.00 | W172: $0.00
C173: =Labels!B386 -> Prof Level 2 | D173: =Labels!B397 -> Supply Type 1 | E173: =Labels!B317 -> Channels 1 | F173: =0 -> $0.00 | G173: =F173 -> $0.00 | H173: $0.00 | I173: $0.00 | J173: $0.00 | K173: $0.00 | L173: $0.00 | M173: $0.00 | N173: $0.00 | O173: $0.00 | P173: $0.00 | Q173: $0.00 | R173: $0.00 | S173: $0.00 | T173: $0.00 | U173: $0.00 | V173: $0.00 | W173: $0.00
E174: =Labels!B318 -> Channels 2 | F174: =0 -> $0.00 | G174: =F174 -> $0.00 | H174: $0.00 | I174: $0.00 | J174: $0.00 | K174: $0.00 | L174: $0.00 | M174: $0.00 | N174: $0.00 | O174: $0.00 | P174: $0.00 | Q174: $0.00 | R174: $0.00 | S174: $0.00 | T174: $0.00 | U174: $0.00 | V174: $0.00 | W174: $0.00
D175: =Labels!B398 -> Supply Type 2 | E175: =Labels!B317 -> Channels 1 | F175: =0 -> $0.00 | G175: =F175 -> $0.00 | H175: $0.00 | I175: $0.00 | J175: $0.00 | K175: $0.00 | L175: $0.00 | M175: $0.00 | N175: $0.00 | O175: $0.00 | P175: $0.00 | Q175: $0.00 | R175: $0.00 | S175: $0.00 | T175: $0.00 | U175: $0.00 | V175: $0.00 | W175: $0.00
E176: =Labels!B318 -> Channels 2 | F176: =0 -> $0.00 | G176: =F176 -> $0.00 | H176: $0.00 | I176: $0.00 | J176: $0.00 | K176: $0.00 | L176: $0.00 | M176: $0.00 | N176: $0.00 | O176: $0.00 | P176: $0.00 | Q176: $0.00 | R176: $0.00 | S176: $0.00 | T176: $0.00 | U176: $0.00 | V176: $0.00 | W176: $0.00
A180: ="Employment Input Data" -> Employment Input Data
A181: =" " -> 
A182: ="Professional Staff Count" -> Professional Staff Count
F183: ='(FnCalls 1)'!F41 -> Jan 2010 | G183: ='(FnCalls 1)'!F42 -> Feb 2010 | H183: ='(FnCalls 1)'!F43 -> Mar 2010 | I183: ='(FnCalls 1)'!F44 -> Apr 2010 | J183: ='(FnCalls 1)'!F45 -> May 2010 | K183: ='(FnCalls 1)'!F46 -> Jun 2010 | L183: ='(FnCalls 1)'!F47 -> Jul 2010 | M183: ='(FnCalls 1)'!F48 -> Aug 2010 | N183: ='(FnCalls 1)'!F49 -> Sep 2010 | O183: ='(FnCalls 1)'!F50 -> Oct 2010 | P183: ='(FnCalls 1)'!F51 -> Nov 2010 | Q183: ='(FnCalls 1)'!F52 -> Dec 2010 | R183: ='(FnCalls 1)'!F53 -> Jan 2011 | S183: ='(FnCalls 1)'!F54 -> Feb 2011 | T183: ='(FnCalls 1)'!F55 -> Mar 2011 | U183: ='(FnCalls 1)'!F56 -> Apr 2011 | V183: ='(FnCalls 1)'!F57 -> May 2011 | W183: ='(FnCalls 1)'!F58 -> Jun 2011 | Y183: =Labels!B176 -> Prof Staff Count Cutover | Z183: =ROUND(12/2,0) -> 6
A184: =Labels!B177 -> Prof_Staff Count Early | B184: =Labels!B381 -> Practice 1 | C184: =Labels!B385 -> Prof Level 1 | F184: =0 -> 0.0 | G184: =F184 -> 0.0 | H184: 0.0 | I184: 0.0 | J184: 0.0 | K184: 0.0 | L184: 0.0 | M184: 0.0 | N184: 0.0 | O184: 0.0 | P184: 0.0 | Q184: 0.0 | R184: 0.0 | S184: 0.0 | T184: 0.0 | U184: 0.0 | V184: 0.0 | W184: 0.0
C185: =Labels!B386 -> Prof Level 2 | F185: =0 -> 0.0 | G185: =F185 -> 0.0 | H185: 0.0 | I185: 0.0 | J185: 0.0 | K185: 0.0 | L185: 0.0 | M185: 0.0 | N185: 0.0 | O185: 0.0 | P185: 0.0 | Q185: 0.0 | R185: 0.0 | S185: 0.0 | T185: 0.0 | U185: 0.0 | V185: 0.0 | W185: 0.0
B186: =Labels!B382 -> Practice 2 | C186: =Labels!B385 -> Prof Level 1 | F186: =0 -> 0.0 | G186: =F186 -> 0.0 | H186: 0.0 | I186: 0.0 | J186: 0.0 | K186: 0.0 | L186: 0.0 | M186: 0.0 | N186: 0.0 | O186: 0.0 | P186: 0.0 | Q186: 0.0 | R186: 0.0 | S186: 0.0 | T186: 0.0 | U186: 0.0 | V186: 0.0 | W186: 0.0
C187: =Labels!B386 -> Prof Level 2 | F187: =0 -> 0.0 | G187: =F187 -> 0.0 | H187: 0.0 | I187: 0.0 | J187: 0.0 | K187: 0.0 | L187: 0.0 | M187: 0.0 | N187: 0.0 | O187: 0.0 | P187: 0.0 | Q187: 0.0 | R187: 0.0 | S187: 0.0 | T187: 0.0 | U187: 0.0 | V187: 0.0 | W187: 0.0
A189: =Labels!B206 -> Prof Staff Target Util % | B189: =Labels!B381 -> Practice 1 | C189: =Labels!B385 -> Prof Level 1 | F189: =0.8 -> 80% | G189: =F189 -> 80% | H189: 80% | I189: 80% | J189: 80% | K189: 80% | L189: 80% | M189: 80% | N189: 80% | O189: 80% | P189: 80% | Q189: 80% | R189: 80% | S189: 80% | T189: 80% | U189: 80% | V189: 80% | W189: 80%
C190: =Labels!B386 -> Prof Level 2 | F190: =0.8 -> 80% | G190: =F190 -> 80% | H190: 80% | I190: 80% | J190: 80% | K190: 80% | L190: 80% | M190: 80% | N190: 80% | O190: 80% | P190: 80% | Q190: 80% | R190: 80% | S190: 80% | T190: 80% | U190: 80% | V190: 80% | W190: 80%
B191: =Labels!B382 -> Practice 2 | C191: =Labels!B385 -> Prof Level 1 | F191: =0.8 -> 80% | G191: =F191 -> 80% | H191: 80% | I191: 80% | J191: 80% | K191: 80% | L191: 80% | M191: 80% | N191: 80% | O191: 80% | P191: 80% | Q191: 80% | R191: 80% | S191: 80% | T191: 80% | U191: 80% | V191: 80% | W191: 80%
C192: =Labels!B386 -> Prof Level 2 | F192: =0.8 -> 80% | G192: =F192 -> 80% | H192: 80% | I192: 80% | J192: 80% | K192: 80% | L192: 80% | M192: 80% | N192: 80% | O192: 80% | P192: 80% | Q192: 80% | R192: 80% | S192: 80% | T192: 80% | U192: 80% | V192: 80% | W192: 80%
A193: ="The model uses Professional Staff Early Count for first "&Z183&" time periods; later it determines staff size based on billable hours and target staff utilization." -> The model uses Professional Staff Early Count for first 6 time periods; later it determines staff size based on billable hours and target staff utilization.
A195: ="Support Staff Count" -> Support Staff Count
F196: ='(FnCalls 1)'!F41 -> Jan 2010 | G196: ='(FnCalls 1)'!F42 -> Feb 2010 | H196: ='(FnCalls 1)'!F43 -> Mar 2010 | I196: ='(FnCalls 1)'!F44 -> Apr 2010 | J196: ='(FnCalls 1)'!F45 -> May 2010 | K196: ='(FnCalls 1)'!F46 -> Jun 2010 | L196: ='(FnCalls 1)'!F47 -> Jul 2010 | M196: ='(FnCalls 1)'!F48 -> Aug 2010 | N196: ='(FnCalls 1)'!F49 -> Sep 2010 | O196: ='(FnCalls 1)'!F50 -> Oct 2010 | P196: ='(FnCalls 1)'!F51 -> Nov 2010 | Q196: ='(FnCalls 1)'!F52 -> Dec 2010 | R196: ='(FnCalls 1)'!F53 -> Jan 2011 | S196: ='(FnCalls 1)'!F54 -> Feb 2011 | T196: ='(FnCalls 1)'!F55 -> Mar 2011 | U196: ='(FnCalls 1)'!F56 -> Apr 2011 | V196: ='(FnCalls 1)'!F57 -> May 2011 | W196: ='(FnCalls 1)'!F58 -> Jun 2011 | AB196: =Labels!B356 -> K0 | AC196: =Labels!B357 -> K1 | AD196: =Labels!B358 -> K2
A197: =Labels!B251 -> Support Staff Count Early | B197: =Labels!B321 -> Marketing | C197: =Labels!B393 -> Manager | F197: =0 -> 0.0 | G197: =F197 -> 0.0 | H197: 0.0 | I197: 0.0 | J197: 0.0 | K197: 0.0 | L197: 0.0 | M197: 0.0 | N197: 0.0 | O197: 0.0 | P197: 0.0 | Q197: 0.0 | R197: 0.0 | S197: 0.0 | T197: 0.0 | U197: 0.0 | V197: 0.0 | W197: 0.0 | Y197: =Labels!B252 -> Support Staff Constants | Z197: =Labels!B321 -> Marketing | AA197: =Labels!B393 -> Manager | AB197: =0 -> 0.00 | AC197: =0 -> 0.00 | AD197: =1 -> 1.00
C198: =Labels!B394 -> Contributor | F198: =0 -> 0.0 | G198: =F198 -> 0.0 | H198: 0.0 | I198: 0.0 | J198: 0.0 | K198: 0.0 | L198: 0.0 | M198: 0.0 | N198: 0.0 | O198: 0.0 | P198: 0.0 | Q198: 0.0 | R198: 0.0 | S198: 0.0 | T198: 0.0 | U198: 0.0 | V198: 0.0 | W198: 0.0 | AA198: =Labels!B394 -> Contributor | AB198: =0 -> 0.00 | AC198: =0 -> 0.00 | AD198: =1 -> 1.00
B199: =Labels!B322 -> Sales | C199: =Labels!B393 -> Manager | F199: =0 -> 0.0 | G199: =F199 -> 0.0 | H199: 0.0 | I199: 0.0 | J199: 0.0 | K199: 0.0 | L199: 0.0 | M199: 0.0 | N199: 0.0 | O199: 0.0 | P199: 0.0 | Q199: 0.0 | R199: 0.0 | S199: 0.0 | T199: 0.0 | U199: 0.0 | V199: 0.0 | W199: 0.0 | Z199: =Labels!B322 -> Sales | AA199: =Labels!B393 -> Manager | AB199: =0 -> 0.00 | AC199: =0 -> 0.00 | AD199: =1 -> 1.00
C200: =Labels!B394 -> Contributor | F200: =0 -> 0.0 | G200: =F200 -> 0.0 | H200: 0.0 | I200: 0.0 | J200: 0.0 | K200: 0.0 | L200: 0.0 | M200: 0.0 | N200: 0.0 | O200: 0.0 | P200: 0.0 | Q200: 0.0 | R200: 0.0 | S200: 0.0 | T200: 0.0 | U200: 0.0 | V200: 0.0 | W200: 0.0 | AA200: =Labels!B394 -> Contributor | AB200: =0 -> 0.00 | AC200: =0 -> 0.00 | AD200: =1 -> 1.00
A201: ="The model uses Support Staff Early Count for first "&AB202&" time periods, then transitions to revenue-based formula with scale economies." -> The model uses Support Staff Early Count for first 6 time periods, then transitions to revenue-based formula with scale economies.
Y202: =Labels!B250 -> Support Staff Count Cutover | AB202: =ROUND(12/2,0) -> 6
A204: ="Employee Compensation" -> Employee Compensation
A205: =" " -> 
A206: ="Professional Staff Compensation" -> Professional Staff Compensation
F207: =Labels!B381 -> Practice 1 | G207: =Labels!B382 -> Practice 2
A208: =Labels!B200 -> Initial Avg Prof Staff Salary (Yr) | B208: =Labels!B385 -> Prof Level 1 | F208: =100000 -> $100,000 | G208: =100000 -> $100,000
B209: =Labels!B386 -> Prof Level 2 | F209: =100000 -> $100,000 | G209: =100000 -> $100,000
F211: ='(FnCalls 1)'!F41 -> Jan 2010 | G211: ='(FnCalls 1)'!F42 -> Feb 2010 | H211: ='(FnCalls 1)'!F43 -> Mar 2010 | I211: ='(FnCalls 1)'!F44 -> Apr 2010 | J211: ='(FnCalls 1)'!F45 -> May 2010 | K211: ='(FnCalls 1)'!F46 -> Jun 2010 | L211: ='(FnCalls 1)'!F47 -> Jul 2010 | M211: ='(FnCalls 1)'!F48 -> Aug 2010 | N211: ='(FnCalls 1)'!F49 -> Sep 2010 | O211: ='(FnCalls 1)'!F50 -> Oct 2010 | P211: ='(FnCalls 1)'!F51 -> Nov 2010 | Q211: ='(FnCalls 1)'!F52 -> Dec 2010 | R211: ='(FnCalls 1)'!F53 -> Jan 2011 | S211: ='(FnCalls 1)'!F54 -> Feb 2011 | T211: ='(FnCalls 1)'!F55 -> Mar 2011 | U211: ='(FnCalls 1)'!F56 -> Apr 2011 | V211: ='(FnCalls 1)'!F57 -> May 2011 | W211: ='(FnCalls 1)'!F58 -> Jun 2011
A212: =Labels!B203 -> Prof Salary increase % | B212: =Labels!B385 -> Prof Level 1 | F212: =0.03 -> 3.0% | G212: =F212 -> 3.0% | H212: 3.0% | I212: 3.0% | J212: 3.0% | K212: 3.0% | L212: 3.0% | M212: 3.0% | N212: 3.0% | O212: 3.0% | P212: 3.0% | Q212: 3.0% | R212: 3.0% | S212: 3.0% | T212: 3.0% | U212: 3.0% | V212: 3.0% | W212: 3.0%
B213: =Labels!B386 -> Prof Level 2 | F213: =0.03 -> 3.0% | G213: =F213 -> 3.0% | H213: 3.0% | I213: 3.0% | J213: 3.0% | K213: 3.0% | L213: 3.0% | M213: 3.0% | N213: 3.0% | O213: 3.0% | P213: 3.0% | Q213: 3.0% | R213: 3.0% | S213: 3.0% | T213: 3.0% | U213: 3.0% | V213: 3.0% | W213: 3.0%
A215: =Labels!B168 -> Prof Staff Bonus % | B215: =Labels!B381 -> Practice 1 | C215: =Labels!B385 -> Prof Level 1 | F215: =0 -> 0.0% | G215: =F215 -> 0.0% | H215: 0.0% | I215: 0.0% | J215: 0.0% | K215: 0.0% | L215: 0.0% | M215: 0.0% | N215: 0.0% | O215: 0.0% | P215: 0.0% | Q215: 0.0% | R215: 0.0% | S215: 0.0% | T215: 0.0% | U215: 0.0% | V215: 0.0% | W215: 0.0%
C216: =Labels!B386 -> Prof Level 2 | F216: =0 -> 0.0% | G216: =F216 -> 0.0% | H216: 0.0% | I216: 0.0% | J216: 0.0% | K216: 0.0% | L216: 0.0% | M216: 0.0% | N216: 0.0% | O216: 0.0% | P216: 0.0% | Q216: 0.0% | R216: 0.0% | S216: 0.0% | T216: 0.0% | U216: 0.0% | V216: 0.0% | W216: 0.0%
B217: =Labels!B382 -> Practice 2 | C217: =Labels!B385 -> Prof Level 1 | F217: =0 -> 0.0% | G217: =F217 -> 0.0% | H217: 0.0% | I217: 0.0% | J217: 0.0% | K217: 0.0% | L217: 0.0% | M217: 0.0% | N217: 0.0% | O217: 0.0% | P217: 0.0% | Q217: 0.0% | R217: 0.0% | S217: 0.0% | T217: 0.0% | U217: 0.0% | V217: 0.0% | W217: 0.0%
C218: =Labels!B386 -> Prof Level 2 | F218: =0 -> 0.0% | G218: =F218 -> 0.0% | H218: 0.0% | I218: 0.0% | J218: 0.0% | K218: 0.0% | L218: 0.0% | M218: 0.0% | N218: 0.0% | O218: 0.0% | P218: 0.0% | Q218: 0.0% | R218: 0.0% | S218: 0.0% | T218: 0.0% | U218: 0.0% | V218: 0.0% | W218: 0.0%
A220: =Labels!B164 -> Prof Staff Benefits % | B220: =Labels!B385 -> Prof Level 1 | F220: =0.15 -> 15.0% | G220: =F220 -> 15.0% | H220: 15.0% | I220: 15.0% | J220: 15.0% | K220: 15.0% | L220: 15.0% | M220: 15.0% | N220: 15.0% | O220: 15.0% | P220: 15.0% | Q220: 15.0% | R220: 15.0% | S220: 15.0% | T220: 15.0% | U220: 15.0% | V220: 15.0% | W220: 15.0%
B221: =Labels!B386 -> Prof Level 2 | F221: =0.15 -> 15.0% | G221: =F221 -> 15.0% | H221: 15.0% | I221: 15.0% | J221: 15.0% | K221: 15.0% | L221: 15.0% | M221: 15.0% | N221: 15.0% | O221: 15.0% | P221: 15.0% | Q221: 15.0% | R221: 15.0% | S221: 15.0% | T221: 15.0% | U221: 15.0% | V221: 15.0% | W221: 15.0%
A224: ="Support Staff Compensation" -> Support Staff Compensation
F225: =Labels!B321 -> Marketing | G225: =Labels!B322 -> Sales
A226: =Labels!B262 -> Initial Avg Support Staff Wage (Yr) | B226: =Labels!B393 -> Manager | F226: =80000 -> $80,000 | G226: =80000 -> $80,000
B227: =Labels!B394 -> Contributor | F227: =80000 -> $80,000 | G227: =80000 -> $80,000
F229: ='(FnCalls 1)'!F41 -> Jan 2010 | G229: ='(FnCalls 1)'!F42 -> Feb 2010 | H229: ='(FnCalls 1)'!F43 -> Mar 2010 | I229: ='(FnCalls 1)'!F44 -> Apr 2010 | J229: ='(FnCalls 1)'!F45 -> May 2010 | K229: ='(FnCalls 1)'!F46 -> Jun 2010 | L229: ='(FnCalls 1)'!F47 -> Jul 2010 | M229: ='(FnCalls 1)'!F48 -> Aug 2010 | N229: ='(FnCalls 1)'!F49 -> Sep 2010 | O229: ='(FnCalls 1)'!F50 -> Oct 2010 | P229: ='(FnCalls 1)'!F51 -> Nov 2010 | Q229: ='(FnCalls 1)'!F52 -> Dec 2010 | R229: ='(FnCalls 1)'!F53 -> Jan 2011 | S229: ='(FnCalls 1)'!F54 -> Feb 2011 | T229: ='(FnCalls 1)'!F55 -> Mar 2011 | U229: ='(FnCalls 1)'!F56 -> Apr 2011 | V229: ='(FnCalls 1)'!F57 -> May 2011 | W229: ='(FnCalls 1)'!F58 -> Jun 2011
A230: =Labels!B264 -> Wage increase % | B230: =Labels!B393 -> Manager | F230: =0.03 -> 3.0% | G230: =F230 -> 3.0% | H230: 3.0% | I230: 3.0% | J230: 3.0% | K230: 3.0% | L230: 3.0% | M230: 3.0% | N230: 3.0% | O230: 3.0% | P230: 3.0% | Q230: 3.0% | R230: 3.0% | S230: 3.0% | T230: 3.0% | U230: 3.0% | V230: 3.0% | W230: 3.0%
B231: =Labels!B394 -> Contributor | F231: =0.03 -> 3.0% | G231: =F231 -> 3.0% | H231: 3.0% | I231: 3.0% | J231: 3.0% | K231: 3.0% | L231: 3.0% | M231: 3.0% | N231: 3.0% | O231: 3.0% | P231: 3.0% | Q231: 3.0% | R231: 3.0% | S231: 3.0% | T231: 3.0% | U231: 3.0% | V231: 3.0% | W231: 3.0%
A233: =Labels!B248 -> Support Staff Bonus % | B233: =Labels!B321 -> Marketing | C233: =Labels!B393 -> Manager | F233: =0 -> 0.0% | G233: =F233 -> 0.0% | H233: 0.0% | I233: 0.0% | J233: 0.0% | K233: 0.0% | L233: 0.0% | M233: 0.0% | N233: 0.0% | O233: 0.0% | P233: 0.0% | Q233: 0.0% | R233: 0.0% | S233: 0.0% | T233: 0.0% | U233: 0.0% | V233: 0.0% | W233: 0.0%
C234: =Labels!B394 -> Contributor | F234: =0 -> 0.0% | G234: =F234 -> 0.0% | H234: 0.0% | I234: 0.0% | J234: 0.0% | K234: 0.0% | L234: 0.0% | M234: 0.0% | N234: 0.0% | O234: 0.0% | P234: 0.0% | Q234: 0.0% | R234: 0.0% | S234: 0.0% | T234: 0.0% | U234: 0.0% | V234: 0.0% | W234: 0.0%
B235: =Labels!B322 -> Sales | C235: =Labels!B393 -> Manager | F235: =0 -> 0.0% | G235: =F235 -> 0.0% | H235: 0.0% | I235: 0.0% | J235: 0.0% | K235: 0.0% | L235: 0.0% | M235: 0.0% | N235: 0.0% | O235: 0.0% | P235: 0.0% | Q235: 0.0% | R235: 0.0% | S235: 0.0% | T235: 0.0% | U235: 0.0% | V235: 0.0% | W235: 0.0%
... 156 more rows

Sheet IncStmt
A1: =Inputs!F7 -> 
A2: =TEXT('(FnCalls 1)'!A41,"m/d/yyyy")&" to "&TEXT('(FnCalls 1)'!A59-1,"m/d/yyyy") -> 1/1/2010 to 6/30/2011
A3: ="Income Statement" -> Income Statement
A4: ="" -> 
B5: ='(FnCalls 1)'!F41 -> Jan 2010 | C5: ='(FnCalls 1)'!F42 -> Feb 2010 | D5: ='(FnCalls 1)'!F43 -> Mar 2010 | E5: ='(FnCalls 1)'!G41 -> Q1 2010 | F5: ='(FnCalls 1)'!F44 -> Apr 2010 | G5: ='(FnCalls 1)'!F45 -> May 2010 | H5: ='(FnCalls 1)'!F46 -> Jun 2010 | I5: ='(FnCalls 1)'!G44 -> Q2 2010 | J5: ='(FnCalls 1)'!F47 -> Jul 2010 | K5: ='(FnCalls 1)'!F48 -> Aug 2010 | L5: ='(FnCalls 1)'!F49 -> Sep 2010 | M5: ='(FnCalls 1)'!G47 -> Q3 2010 | N5: ='(FnCalls 1)'!F50 -> Oct 2010 | O5: ='(FnCalls 1)'!F51 -> Nov 2010 | P5: ='(FnCalls 1)'!F52 -> Dec 2010 | Q5: ='(FnCalls 1)'!G50 -> Q4 2010 | R5: ='(FnCalls 1)'!F53 -> Jan 2011 | S5: ='(FnCalls 1)'!F54 -> Feb 2011 | T5: ='(FnCalls 1)'!F55 -> Mar 2011 | U5: ='(FnCalls 1)'!G53 -> Q1 2011 | V5: ='(FnCalls 1)'!F56 -> Apr 2011 | W5: ='(FnCalls 1)'!F57 -> May 2011 | X5: ='(FnCalls 1)'!F58 -> Jun 2011 | Y5: ='(FnCalls 1)'!G56 -> Q2 2011
A6: =Labels!B226 -> Revenue | B6: =SUM(Practices!B9:B10) -> $0 | C6: =SUM(Practices!C9:C10) -> $0 | D6: =SUM(Practices!D9:D10) -> $112,750 | E6: =SUM(B6:D6) -> $112,750 | F6: =SUM(Practices!F9:F10) -> $112,750 | G6: =SUM(Practices!G9:G10) -> $0 | H6: =SUM(Practices!H9:H10) -> $82,000 | I6: =SUM(F6:H6) -> $194,750 | J6: =SUM(Practices!J9:J10) -> $82,000 | K6: =SUM(Practices!K9:K10) -> $82,000 | L6: =SUM(Practices!L9:L10) -> $0 | M6: =SUM(J6:L6) -> $164,000 | N6: =SUM(Practices!N9:N10) -> $0 | O6: =SUM(Practices!O9:O10) -> $0 | P6: =SUM(Practices!P9:P10) -> $0 | Q6: =SUM(N6:P6) -> $0 | R6: =SUM(Practices!R9:R10) -> $0 | S6: =SUM(Practices!S9:S10) -> $0 | T6: =SUM(Practices!T9:T10) -> $0 | U6: =SUM(R6:T6) -> $0 | V6: =SUM(Practices!V9:V10) -> $0 | W6: =SUM(Practices!W9:W10) -> $0 | X6: =SUM(Practices!X9:X10) -> $0 | Y6: =SUM(V6:X6) -> $0
A7: =Labels!B229 -> Revenue Growth | C7: =IF(B6=0,0,C6/B6-1) -> 0.0% | D7: =IF(C6=0,0,D6/C6-1) -> 0.0% | E7: =(1+C7)^1*(1+D7)^1-1 -> 0.0% | F7: =IF(D6=0,0,F6/D6-1) -> 0.0% | G7: =IF(F6=0,0,G6/F6-1) -> -100.0% | H7: =IF(G6=0,0,H6/G6-1) -> 0.0% | I7: =(1+F7)^1*(1+G7)^1*(1+H7)^1-1 -> -100.0% | J7: =IF(H6=0,0,J6/H6-1) -> 0.0% | K7: =IF(J6=0,0,K6/J6-1) -> 0.0% | L7: =IF(K6=0,0,L6/K6-1) -> -100.0% | M7: =(1+J7)^1*(1+K7)^1*(1+L7)^1-1 -> -100.0% | N7: =IF(L6=0,0,N6/L6-1) -> 0.0% | O7: =IF(N6=0,0,O6/N6-1) -> 0.0% | P7: =IF(O6=0,0,P6/O6-1) -> 0.0% | Q7: =(1+N7)^1*(1+O7)^1*(1+P7)^1-1 -> 0.0% | R7: =IF(P6=0,0,R6/P6-1) -> 0.0% | S7: =IF(R6=0,0,S6/R6-1) -> 0.0% | T7: =IF(S6=0,0,T6/S6-1) -> 0.0% | U7: =(1+R7)^1*(1+S7)^1*(1+T7)^1-1 -> 0.0% | V7: =IF(T6=0,0,V6/T6-1) -> 0.0% | W7: =IF(V6=0,0,W6/V6-1) -> 0.0% | X7: =IF(W6=0,0,X6/W6-1) -> 0.0% | Y7: =(1+V7)^1*(1+W7)^1*(1+X7)^1-1 -> 0.0%
A9: =Labels!B42 -> Cost of Services
A10: =" "&Labels!B325 -> Direct Labor | B10: =SUM(Practices!B73,Practices!B89) -> $0 | C10: =SUM(Practices!C73,Practices!C89) -> $0 | D10: =SUM(Practices!D73,Practices!D89) -> $0 | E10: =SUM(B10:D10) -> $0 | F10: =SUM(Practices!F73,Practices!F89) -> $0 | G10: =SUM(Practices!G73,Practices!G89) -> $0 | H10: =SUM(Practices!H73,Practices!H89) -> $0 | I10: =SUM(F10:H10) -> $0 | J10: =SUM(Practices!J73,Practices!J89) -> $28,261 | K10: =SUM(Practices!K73,Practices!K89) -> $28,331 | L10: =SUM(Practices!L73,Practices!L89) -> $0 | M10: =SUM(J10:L10) -> $56,591 | N10: =SUM(Practices!N73,Practices!N89) -> $0 | O10: =SUM(Practices!O73,Practices!O89) -> $0 | P10: =SUM(Practices!P73,Practices!P89) -> $0 | Q10: =SUM(N10:P10) -> $0 | R10: =SUM(Practices!R73,Practices!R89) -> $0 | S10: =SUM(Practices!S73,Practices!S89) -> $0 | T10: =SUM(Practices!T73,Practices!T89) -> $0 | U10: =SUM(R10:T10) -> $0 | V10: =SUM(Practices!V73,Practices!V89) -> $0 | W10: =SUM(Practices!W73,Practices!W89) -> $0 | X10: =SUM(Practices!X73,Practices!X89) -> $0 | Y10: =SUM(V10:X10) -> $0
A11: =" "&Labels!B326 -> Travel & Entertain | B11: =SUM(Practices!B74,Practices!B90) -> $0 | C11: =SUM(Practices!C74,Practices!C90) -> $0 | D11: =SUM(Practices!D74,Practices!D90) -> $2,750 | E11: =SUM(B11:D11) -> $2,750 | F11: =SUM(Practices!F74,Practices!F90) -> $2,750 | G11: =SUM(Practices!G74,Practices!G90) -> $0 | H11: =SUM(Practices!H74,Practices!H90) -> $2,000 | I11: =SUM(F11:H11) -> $4,750 | J11: =SUM(Practices!J74,Practices!J90) -> $2,000 | K11: =SUM(Practices!K74,Practices!K90) -> $2,000 | L11: =SUM(Practices!L74,Practices!L90) -> $0 | M11: =SUM(J11:L11) -> $4,000 | N11: =SUM(Practices!N74,Practices!N90) -> $0 | O11: =SUM(Practices!O74,Practices!O90) -> $0 | P11: =SUM(Practices!P74,Practices!P90) -> $0 | Q11: =SUM(N11:P11) -> $0 | R11: =SUM(Practices!R74,Practices!R90) -> $0 | S11: =SUM(Practices!S74,Practices!S90) -> $0 | T11: =SUM(Practices!T74,Practices!T90) -> $0 | U11: =SUM(R11:T11) -> $0 | V11: =SUM(Practices!V74,Practices!V90) -> $0 | W11: =SUM(Practices!W74,Practices!W90) -> $0 | X11: =SUM(Practices!X74,Practices!X90) -> $0 | Y11: =SUM(V11:X11) -> $0
A12: =" "&Labels!B327 -> Direct Supplies | B12: =SUM(Practices!B75,Practices!B91) -> $0 | C12: =SUM(Practices!C75,Practices!C91) -> $0 | D12: =SUM(Practices!D75,Practices!D91) -> $0 | E12: =SUM(B12:D12) -> $0 | F12: =SUM(Practices!F75,Practices!F91) -> $0 | G12: =SUM(Practices!G75,Practices!G91) -> $0 | H12: =SUM(Practices!H75,Practices!H91) -> $0 | I12: =SUM(F12:H12) -> $0 | J12: =SUM(Practices!J75,Practices!J91) -> $0 | K12: =SUM(Practices!K75,Practices!K91) -> $0 | L12: =SUM(Practices!L75,Practices!L91) -> $0 | M12: =SUM(J12:L12) -> $0 | N12: =SUM(Practices!N75,Practices!N91) -> $0 | O12: =SUM(Practices!O75,Practices!O91) -> $0 | P12: =SUM(Practices!P75,Practices!P91) -> $0 | Q12: =SUM(N12:P12) -> $0 | R12: =SUM(Practices!R75,Practices!R91) -> $0 | S12: =SUM(Practices!S75,Practices!S91) -> $0 | T12: =SUM(Practices!T75,Practices!T91) -> $0 | U12: =SUM(R12:T12) -> $0 | V12: =SUM(Practices!V75,Practices!V91) -> $0 | W12: =SUM(Practices!W75,Practices!W91) -> $0 | X12: =SUM(Practices!X75,Practices!X91) -> $0 | Y12: =SUM(V12:X12) -> $0
A13: =" "&Labels!C324 -> Total | B13: =SUM(Practices!B14:B15) -> $0 | C13: =SUM(Practices!C14:C15) -> $0 | D13: =SUM(Practices!D14:D15) -> $2,750 | E13: =SUM(B13:D13) -> $2,750 | F13: =SUM(Practices!F14:F15) -> $2,750 | G13: =SUM(Practices!G14:G15) -> $0 | H13: =SUM(Practices!H14:H15) -> $2,000 | I13: =SUM(F13:H13) -> $4,750 | J13: =SUM(Practices!J14:J15) -> $30,261 | K13: =SUM(Practices!K14:K15) -> $30,331 | L13: =SUM(Practices!L14:L15) -> $0 | M13: =SUM(J13:L13) -> $60,591 | N13: =SUM(Practices!N14:N15) -> $0 | O13: =SUM(Practices!O14:O15) -> $0 | P13: =SUM(Practices!P14:P15) -> $0 | Q13: =SUM(N13:P13) -> $0 | R13: =SUM(Practices!R14:R15) -> $0 | S13: =SUM(Practices!S14:S15) -> $0 | T13: =SUM(Practices!T14:T15) -> $0 | U13: =SUM(R13:T13) -> $0 | V13: =SUM(Practices!V14:V15) -> $0 | W13: =SUM(Practices!W14:W15) -> $0 | X13: =SUM(Practices!X14:X15) -> $0 | Y13: =SUM(V13:X13) -> $0
A14: =Labels!B173 -> Prof Staff Cost Unapplied | B14: =SUM('GM CostSvcs'!B392,'GM CostSvcs'!B396) -> $0 | C14: =SUM('GM CostSvcs'!C392,'GM CostSvcs'!C396) -> $0 | D14: =SUM('GM CostSvcs'!D392,'GM CostSvcs'!D396) -> $0 | E14: =SUM(B14:D14) -> $0 | F14: =SUM('GM CostSvcs'!F392,'GM CostSvcs'!F396) -> $0 | G14: =SUM('GM CostSvcs'!G392,'GM CostSvcs'!G396) -> $0 | H14: =SUM('GM CostSvcs'!H392,'GM CostSvcs'!H396) -> $0 | I14: =SUM(F14:H14) -> $0 | J14: =SUM('GM CostSvcs'!J392,'GM CostSvcs'!J396) -> $0 | K14: =SUM('GM CostSvcs'!K392,'GM CostSvcs'!K396) -> $14,165 | L14: =SUM('GM CostSvcs'!L392,'GM CostSvcs'!L396) -> $0 | M14: =SUM(J14:L14) -> $14,165 | N14: =SUM('GM CostSvcs'!N392,'GM CostSvcs'!N396) -> $0 | O14: =SUM('GM CostSvcs'!O392,'GM CostSvcs'!O396) -> $0 | P14: =SUM('GM CostSvcs'!P392,'GM CostSvcs'!P396) -> $0 | Q14: =SUM(N14:P14) -> $0 | R14: =SUM('GM CostSvcs'!R392,'GM CostSvcs'!R396) -> $0 | S14: =SUM('GM CostSvcs'!S392,'GM CostSvcs'!S396) -> $0 | T14: =SUM('GM CostSvcs'!T392,'GM CostSvcs'!T396) -> $0 | U14: =SUM(R14:T14) -> $0 | V14: =SUM('GM CostSvcs'!V392,'GM CostSvcs'!V396) -> $0 | W14: =SUM('GM CostSvcs'!W392,'GM CostSvcs'!W396) -> $0 | X14: =SUM('GM CostSvcs'!X392,'GM CostSvcs'!X396) -> $0 | Y14: =SUM(V14:X14) -> $0
A16: =Labels!B98 -> Gross Margin | B16: =SUM(Practices!B19,Practices!B22) -> $0 | C16: =SUM(Practices!C19,Practices!C22) -> $0 | D16: =SUM(Practices!D19,Practices!D22) -> $110,000 | E16: =SUM(B16:D16) -> $110,000 | F16: =SUM(Practices!F19,Practices!F22) -> $110,000 | G16: =SUM(Practices!G19,Practices!G22) -> $0 | H16: =SUM(Practices!H19,Practices!H22) -> $80,000 | I16: =SUM(F16:H16) -> $190,000 | J16: =SUM(Practices!J19,Practices!J22) -> $51,739 | K16: =SUM(Practices!K19,Practices!K22) -> $37,504 | L16: =SUM(Practices!L19,Practices!L22) -> $0 | M16: =SUM(J16:L16) -> $89,243 | N16: =SUM(Practices!N19,Practices!N22) -> $0 | O16: =SUM(Practices!O19,Practices!O22) -> $0 | P16: =SUM(Practices!P19,Practices!P22) -> $0 | Q16: =SUM(N16:P16) -> $0 | R16: =SUM(Practices!R19,Practices!R22) -> $0 | S16: =SUM(Practices!S19,Practices!S22) -> $0 | T16: =SUM(Practices!T19,Practices!T22) -> $0 | U16: =SUM(R16:T16) -> $0 | V16: =SUM(Practices!V19,Practices!V22) -> $0 | W16: =SUM(Practices!W19,Practices!W22) -> $0 | X16: =SUM(Practices!X19,Practices!X22) -> $0 | Y16: =SUM(V16:X16) -> $0
A17: =Labels!B100 -> Gross Margin % | B17: =IF(B6=0,0,B16/B6) -> 0.0% | C17: =IF(C6=0,0,C16/C6) -> 0.0% | D17: =IF(D6=0,0,D16/D6) -> 97.6% | E17: =IF(SUM(B6:D6)=0,0,SUM(B16:D16)/SUM(B6:D6)) -> 97.6% | F17: =IF(F6=0,0,F16/F6) -> 97.6% | G17: =IF(G6=0,0,G16/G6) -> 0.0% | H17: =IF(H6=0,0,H16/H6) -> 97.6% | I17: =IF(SUM(F6:H6)=0,0,SUM(F16:H16)/SUM(F6:H6)) -> 97.6% | J17: =IF(J6=0,0,J16/J6) -> 63.1% | K17: =IF(K6=0,0,K16/K6) -> 45.7% | L17: =IF(L6=0,0,L16/L6) -> 0.0% | M17: =IF(SUM(J6:L6)=0,0,SUM(J16:L16)/SUM(J6:L6)) -> 54.4% | N17: =IF(N6=0,0,N16/N6) -> 0.0% | O17: =IF(O6=0,0,O16/O6) -> 0.0% | P17: =IF(P6=0,0,P16/P6) -> 0.0% | Q17: =IF(SUM(N6:P6)=0,0,SUM(N16:P16)/SUM(N6:P6)) -> 0.0% | R17: =IF(R6=0,0,R16/R6) -> 0.0% | S17: =IF(S6=0,0,S16/S6) -> 0.0% | T17: =IF(T6=0,0,T16/T6) -> 0.0% | U17: =IF(SUM(R6:T6)=0,0,SUM(R16:T16)/SUM(R6:T6)) -> 0.0% | V17: =IF(V6=0,0,V16/V6) -> 0.0% | W17: =IF(W6=0,0,W16/W6) -> 0.0% | X17: =IF(X6=0,0,X16/X6) -> 0.0% | Y17: =IF(SUM(V6:X6)=0,0,SUM(V16:X16)/SUM(V6:X6)) -> 0.0%
A19: =Labels!B135 -> Operating Expense | B19: =SUM(OpExp!B8:B9) -> $0 | C19: =SUM(OpExp!C8:C9) -> $0 | D19: =SUM(OpExp!D8:D9) -> $0 | E19: =SUM(B19:D19) -> $0 | F19: =SUM(OpExp!F8:F9) -> $0 | G19: =SUM(OpExp!G8:G9) -> $0 | H19: =SUM(OpExp!H8:H9) -> $0 | I19: =SUM(F19:H19) -> $0 | J19: =SUM(OpExp!J8:J9) -> $0 | K19: =SUM(OpExp!K8:K9) -> $0 | L19: =SUM(OpExp!L8:L9) -> $0 | M19: =SUM(J19:L19) -> $0 | N19: =SUM(OpExp!N8:N9) -> $0 | O19: =SUM(OpExp!O8:O9) -> $0 | P19: =SUM(OpExp!P8:P9) -> $0 | Q19: =SUM(N19:P19) -> $0 | R19: =SUM(OpExp!R8:R9) -> $0 | S19: =SUM(OpExp!S8:S9) -> $0 | T19: =SUM(OpExp!T8:T9) -> $0 | U19: =SUM(R19:T19) -> $0 | V19: =SUM(OpExp!V8:V9) -> $0 | W19: =SUM(OpExp!W8:W9) -> $0 | X19: =SUM(OpExp!X8:X9) -> $0 | Y19: =SUM(V19:X19) -> $0
A20: =Labels!B136 -> Operating Margin | B20: =B16-B19 -> $0 | C20: =C16-C19 -> $0 | D20: =D16-D19 -> $110,000 | E20: =SUM(B20:D20) -> $110,000 | F20: =F16-F19 -> $110,000 | G20: =G16-G19 -> $0 | H20: =H16-H19 -> $80,000 | I20: =SUM(F20:H20) -> $190,000 | J20: =J16-J19 -> $51,739 | K20: =K16-K19 -> $37,504 | L20: =L16-L19 -> $0 | M20: =SUM(J20:L20) -> $89,243 | N20: =N16-N19 -> $0 | O20: =O16-O19 -> $0 | P20: =P16-P19 -> $0 | Q20: =SUM(N20:P20) -> $0 | R20: =R16-R19 -> $0 | S20: =S16-S19 -> $0 | T20: =T16-T19 -> $0 | U20: =SUM(R20:T20) -> $0 | V20: =V16-V19 -> $0 | W20: =W16-W19 -> $0 | X20: =X16-X19 -> $0 | Y20: =SUM(V20:X20) -> $0
A21: =Labels!B137 -> Operating Margin % | B21: =IF(B6=0,0,B20/B6) -> 0.0% | C21: =IF(C6=0,0,C20/C6) -> 0.0% | D21: =IF(D6=0,0,D20/D6) -> 97.6% | E21: =IF(SUM(B6:D6)=0,0,SUM(B20:D20)/SUM(B6:D6)) -> 97.6% | F21: =IF(F6=0,0,F20/F6) -> 97.6% | G21: =IF(G6=0,0,G20/G6) -> 0.0% | H21: =IF(H6=0,0,H20/H6) -> 97.6% | I21: =IF(SUM(F6:H6)=0,0,SUM(F20:H20)/SUM(F6:H6)) -> 97.6% | J21: =IF(J6=0,0,J20/J6) -> 63.1% | K21: =IF(K6=0,0,K20/K6) -> 45.7% | L21: =IF(L6=0,0,L20/L6) -> 0.0% | M21: =IF(SUM(J6:L6)=0,0,SUM(J20:L20)/SUM(J6:L6)) -> 54.4% | N21: =IF(N6=0,0,N20/N6) -> 0.0% | O21: =IF(O6=0,0,O20/O6) -> 0.0% | P21: =IF(P6=0,0,P20/P6) -> 0.0% | Q21: =IF(SUM(N6:P6)=0,0,SUM(N20:P20)/SUM(N6:P6)) -> 0.0% | R21: =IF(R6=0,0,R20/R6) -> 0.0% | S21: =IF(S6=0,0,S20/S6) -> 0.0% | T21: =IF(T6=0,0,T20/T6) -> 0.0% | U21: =IF(SUM(R6:T6)=0,0,SUM(R20:T20)/SUM(R6:T6)) -> 0.0% | V21: =IF(V6=0,0,V20/V6) -> 0.0% | W21: =IF(W6=0,0,W20/W6) -> 0.0% | X21: =IF(X6=0,0,X20/X6) -> 0.0% | Y21: =IF(SUM(V6:X6)=0,0,SUM(V20:X20)/SUM(V6:X6)) -> 0.0%
A23: =Labels!B94 -> Financial Exp | B23: =FinTax!B10+FinTax!B13 -> $0 | C23: =FinTax!C10+FinTax!C13 -> $0 | D23: =FinTax!D10+FinTax!D13 -> $0 | E23: =SUM(B23:D23) -> $0 | F23: =FinTax!F10+FinTax!F13 -> $0 | G23: =FinTax!G10+FinTax!G13 -> $0 | H23: =FinTax!H10+FinTax!H13 -> $0 | I23: =SUM(F23:H23) -> $0 | J23: =FinTax!J10+FinTax!J13 -> $0 | K23: =FinTax!K10+FinTax!K13 -> $0 | L23: =FinTax!L10+FinTax!L13 -> $0 | M23: =SUM(J23:L23) -> $0 | N23: =FinTax!N10+FinTax!N13 -> $0 | O23: =FinTax!O10+FinTax!O13 -> $0 | P23: =FinTax!P10+FinTax!P13 -> $0 | Q23: =SUM(N23:P23) -> $0 | R23: =FinTax!R10+FinTax!R13 -> $0 | S23: =FinTax!S10+FinTax!S13 -> $0 | T23: =FinTax!T10+FinTax!T13 -> $0 | U23: =SUM(R23:T23) -> $0 | V23: =FinTax!V10+FinTax!V13 -> $0 | W23: =FinTax!W10+FinTax!W13 -> $0 | X23: =FinTax!X10+FinTax!X13 -> $0 | Y23: =SUM(V23:X23) -> $0
A24: =Labels!B54 -> Depreciation | B24: =Assets!C71+Assets!C43+Assets!C91 -> $0 | C24: =Assets!D71+Assets!D43+Assets!D91 -> $0 | D24: =Assets!E71+Assets!E43+Assets!E91 -> $0 | E24: =SUM(B24:D24) -> $0 | F24: =Assets!G71+Assets!G43+Assets!G91 -> $0 | G24: =Assets!H71+Assets!H43+Assets!H91 -> $0 | H24: =Assets!I71+Assets!I43+Assets!I91 -> $0 | I24: =SUM(F24:H24) -> $0 | J24: =Assets!K71+Assets!K43+Assets!K91 -> $0 | K24: =Assets!L71+Assets!L43+Assets!L91 -> $0 | L24: =Assets!M71+Assets!M43+Assets!M91 -> $0 | M24: =SUM(J24:L24) -> $0 | N24: =Assets!O71+Assets!O43+Assets!O91 -> $0 | O24: =Assets!P71+Assets!P43+Assets!P91 -> $0 | P24: =Assets!Q71+Assets!Q43+Assets!Q91 -> $0 | Q24: =SUM(N24:P24) -> $0 | R24: =Assets!S71+Assets!S43+Assets!S91 -> $0 | S24: =Assets!T71+Assets!T43+Assets!T91 -> $0 | T24: =Assets!U71+Assets!U43+Assets!U91 -> $0 | U24: =SUM(R24:T24) -> $0 | V24: =Assets!W71+Assets!W43+Assets!W91 -> $0 | W24: =Assets!X71+Assets!X43+Assets!X91 -> $0 | X24: =Assets!Y71+Assets!Y43+Assets!Y91 -> $0 | Y24: =SUM(V24:X24) -> $0
A25: =Labels!B104 -> Income Tax | B25: =Inputs!F345*FinTax!B22 -> $0 | C25: =Inputs!G345*FinTax!C22 -> $0 | D25: =Inputs!H345*FinTax!D22 -> $0 | E25: =SUM(B25:D25) -> $0 | F25: =Inputs!I345*FinTax!F22 -> $0 | G25: =Inputs!J345*FinTax!G22 -> $0 | H25: =Inputs!K345*FinTax!H22 -> $0 | I25: =SUM(F25:H25) -> $0 | J25: =Inputs!L345*FinTax!J22 -> $0 | K25: =Inputs!M345*FinTax!K22 -> $0 | L25: =Inputs!N345*FinTax!L22 -> $0 | M25: =SUM(J25:L25) -> $0 | N25: =Inputs!O345*FinTax!N22 -> $0 | O25: =Inputs!P345*FinTax!O22 -> $0 | P25: =Inputs!Q345*FinTax!P22 -> $0 | Q25: =SUM(N25:P25) -> $0 | R25: =Inputs!R345*FinTax!R22 -> $0 | S25: =Inputs!S345*FinTax!S22 -> $0 | T25: =Inputs!T345*FinTax!T22 -> $0 | U25: =SUM(R25:T25) -> $0 | V25: =Inputs!U345*FinTax!V22 -> $0 | W25: =Inputs!V345*FinTax!W22 -> $0 | X25: =Inputs!W345*FinTax!X22 -> $0 | Y25: =SUM(V25:X25) -> $0
A26: =Labels!B127 -> Net Income | B26: =B20-B24-B23-B25 -> $0 | C26: =C20-C24-C23-C25 -> $0 | D26: =D20-D24-D23-D25 -> $110,000 | E26: =SUM(B26:D26) -> $110,000 | F26: =F20-F24-F23-F25 -> $110,000 | G26: =G20-G24-G23-G25 -> $0 | H26: =H20-H24-H23-H25 -> $80,000 | I26: =SUM(F26:H26) -> $190,000 | J26: =J20-J24-J23-J25 -> $51,739 | K26: =K20-K24-K23-K25 -> $37,504 | L26: =L20-L24-L23-L25 -> $0 | M26: =SUM(J26:L26) -> $89,243 | N26: =N20-N24-N23-N25 -> $0 | O26: =O20-O24-O23-O25 -> $0 | P26: =P20-P24-P23-P25 -> $0 | Q26: =SUM(N26:P26) -> $0 | R26: =R20-R24-R23-R25 -> $0 | S26: =S20-S24-S23-S25 -> $0 | T26: =T20-T24-T23-T25 -> $0 | U26: =SUM(R26:T26) -> $0 | V26: =V20-V24-V23-V25 -> $0 | W26: =W20-W24-W23-W25 -> $0 | X26: =X20-X24-X23-X25 -> $0 | Y26: =SUM(V26:X26) -> $0
A27: =Labels!B225 -> Return on Sales % | B27: =IF(B6=0,0,B26/B6) -> 0.0% | C27: =IF(C6=0,0,C26/C6) -> 0.0% | D27: =IF(D6=0,0,D26/D6) -> 97.6% | E27: =IF(SUM(B6:D6)=0,0,SUM(B26:D26)/SUM(B6:D6)) -> 97.6% | F27: =IF(F6=0,0,F26/F6) -> 97.6% | G27: =IF(G6=0,0,G26/G6) -> 0.0% | H27: =IF(H6=0,0,H26/H6) -> 97.6% | I27: =IF(SUM(F6:H6)=0,0,SUM(F26:H26)/SUM(F6:H6)) -> 97.6% | J27: =IF(J6=0,0,J26/J6) -> 63.1% | K27: =IF(K6=0,0,K26/K6) -> 45.7% | L27: =IF(L6=0,0,L26/L6) -> 0.0% | M27: =IF(SUM(J6:L6)=0,0,SUM(J26:L26)/SUM(J6:L6)) -> 54.4% | N27: =IF(N6=0,0,N26/N6) -> 0.0% | O27: =IF(O6=0,0,O26/O6) -> 0.0% | P27: =IF(P6=0,0,P26/P6) -> 0.0% | Q27: =IF(SUM(N6:P6)=0,0,SUM(N26:P26)/SUM(N6:P6)) -> 0.0% | R27: =IF(R6=0,0,R26/R6) -> 0.0% | S27: =IF(S6=0,0,S26/S6) -> 0.0% | T27: =IF(T6=0,0,T26/T6) -> 0.0% | U27: =IF(SUM(R6:T6)=0,0,SUM(R26:T26)/SUM(R6:T6)) -> 0.0% | V27: =IF(V6=0,0,V26/V6) -> 0.0% | W27: =IF(W6=0,0,W26/W6) -> 0.0% | X27: =IF(X6=0,0,X26/X6) -> 0.0% | Y27: =IF(SUM(V6:X6)=0,0,SUM(V26:X26)/SUM(V6:X6)) -> 0.0%
A29: =Labels!B64 -> Dividend | B29: =Inputs!G432 -> $0 | C29: =Inputs!H432 -> $0 | D29: =Inputs!I432 -> $0 | E29: =SUM(B29:D29) -> $0 | F29: =Inputs!J432 -> $0 | G29: =Inputs!K432 -> $0 | H29: =Inputs!L432 -> $0 | I29: =SUM(F29:H29) -> $0 | J29: =Inputs!M432 -> $0 | K29: =Inputs!N432 -> $0 | L29: =Inputs!O432 -> $0 | M29: =SUM(J29:L29) -> $0 | N29: =Inputs!P432 -> $0 | O29: =Inputs!Q432 -> $0 | P29: =Inputs!R432 -> $0 | Q29: =SUM(N29:P29) -> $0 | R29: =Inputs!S432 -> $0 | S29: =Inputs!T432 -> $0 | T29: =Inputs!U432 -> $0 | U29: =SUM(R29:T29) -> $0 | V29: =Inputs!V432 -> $0 | W29: =Inputs!W432 -> $0 | X29: =Inputs!X432 -> $0 | Y29: =SUM(V29:X29) -> $0

Sheet BalSht
A1: =Inputs!F7 -> 
A2: =TEXT('(FnCalls 1)'!A41,"m/d/yyyy")&" to "&TEXT('(FnCalls 1)'!A59-1,"m/d/yyyy") -> 1/1/2010 to 6/30/2011
A3: ="Balance Sheet" -> Balance Sheet
A4: ="" -> 
B5: ='(FnCalls 1)'!F40 -> Dec 2009 | C5: ='(FnCalls 1)'!F41 -> Jan 2010 | D5: ='(FnCalls 1)'!F42 -> Feb 2010 | E5: ='(FnCalls 1)'!F43 -> Mar 2010 | F5: ='(FnCalls 1)'!G41 -> Q1 2010 | G5: ='(FnCalls 1)'!F44 -> Apr 2010 | H5: ='(FnCalls 1)'!F45 -> May 2010 | I5: ='(FnCalls 1)'!F46 -> Jun 2010 | J5: ='(FnCalls 1)'!G44 -> Q2 2010 | K5: ='(FnCalls 1)'!F47 -> Jul 2010 | L5: ='(FnCalls 1)'!F48 -> Aug 2010 | M5: ='(FnCalls 1)'!F49 -> Sep 2010 | N5: ='(FnCalls 1)'!G47 -> Q3 2010 | O5: ='(FnCalls 1)'!F50 -> Oct 2010 | P5: ='(FnCalls 1)'!F51 -> Nov 2010 | Q5: ='(FnCalls 1)'!F52 -> Dec 2010 | R5: ='(FnCalls 1)'!G50 -> Q4 2010 | S5: ='(FnCalls 1)'!F53 -> Jan 2011 | T5: ='(FnCalls 1)'!F54 -> Feb 2011 | U5: ='(FnCalls 1)'!F55 -> Mar 2011 | V5: ='(FnCalls 1)'!G53 -> Q1 2011 | W5: ='(FnCalls 1)'!F56 -> Apr 2011 | X5: ='(FnCalls 1)'!F57 -> May 2011 | Y5: ='(FnCalls 1)'!F58 -> Jun 2011 | Z5: ='(FnCalls 1)'!G56 -> Q2 2011
A6: =Labels!B14 -> Assets
A7: =" "&Labels!B310 -> Short Term Assets
A8: =" "&Labels!B311 -> Cash | B8: =Assets!B9 -> $0 | C8: =CFStmt!B26 -> $0 | D8: =CFStmt!C26 -> $0 | E8: =CFStmt!D26 -> $109,113 | F8: =E8 -> $109,113 | G8: =CFStmt!F26 -> $112,750 | H8: =CFStmt!G26 -> $220,000 | I8: =CFStmt!H26 -> $136,000 | J8: =I8 -> $136,000 | K8: =CFStmt!J26 -> $193,029 | L8: =CFStmt!K26 -> $230,534 | M8: =CFStmt!L26 -> $389,243 | N8: =M8 -> $389,243 | O8: =CFStmt!N26 -> $389,243 | P8: =CFStmt!O26 -> $389,243 | Q8: =CFStmt!P26 -> $389,243 | R8: =Q8 -> $389,243 | S8: =CFStmt!R26 -> $389,243 | T8: =CFStmt!S26 -> $389,243 | U8: =CFStmt!T26 -> $389,243 | V8: =U8 -> $389,243 | W8: =CFStmt!V26 -> $389,243 | X8: =CFStmt!W26 -> $389,243 | Y8: =CFStmt!X26 -> $389,243 | Z8: =Y8 -> $389,243
A9: =" "&Labels!B312 -> Accounts Receivable | B9: =Assets!B12 -> $0 | C9: =Assets!C12 -> $0 | D9: =Assets!D12 -> $0 | E9: =Assets!E12 -> $218,226 | F9: =E9 -> $218,226 | G9: =Assets!G12 -> $225,500 | H9: =Assets!H12 -> $0 | I9: =Assets!I12 -> $164,000 | J9: =I9 -> $164,000 | K9: =Assets!K12 -> $158,710 | L9: =Assets!L12 -> $158,710 | M9: =Assets!M12 -> $0 | N9: =M9 -> $0 | O9: =Assets!O12 -> $0 | P9: =Assets!P12 -> $0 | Q9: =Assets!Q12 -> $0 | R9: =Q9 -> $0 | S9: =Assets!S12 -> $0 | T9: =Assets!T12 -> $0 | U9: =Assets!U12 -> $0 | V9: =U9 -> $0 | W9: =Assets!W12 -> $0 | X9: =Assets!X12 -> $0 | Y9: =Assets!Y12 -> $0 | Z9: =Y9 -> $0
A10: =" "&Labels!B313 -> Inventory | B10: =0 -> $0 | C10: =0 -> $0 | D10: =0 -> $0 | E10: =0 -> $0 | F10: =E10 -> $0 | G10: =0 -> $0 | H10: =0 -> $0 | I10: =0 -> $0 | J10: =I10 -> $0 | K10: =0 -> $0 | L10: =0 -> $0 | M10: =0 -> $0 | N10: =M10 -> $0 | O10: =0 -> $0 | P10: =0 -> $0 | Q10: =0 -> $0 | R10: =Q10 -> $0 | S10: =0 -> $0 | T10: =0 -> $0 | U10: =0 -> $0 | V10: =U10 -> $0 | W10: =0 -> $0 | X10: =0 -> $0 | Y10: =0 -> $0 | Z10: =Y10 -> $0
A11: =" "&Labels!C310 -> Subtotal | B11: =SUM(B8:B10) -> $0 | C11: =SUM(C8:C10) -> $0 | D11: =SUM(D8:D10) -> $0 | E11: =SUM(E8:E10) -> $327,339 | F11: =SUM(E8:E10) -> $327,339 | G11: =SUM(G8:G10) -> $338,250 | H11: =SUM(H8:H10) -> $220,000 | I11: =SUM(I8:I10) -> $300,000 | J11: =SUM(I8:I10) -> $300,000 | K11: =SUM(K8:K10) -> $351,739 | L11: =SUM(L8:L10) -> $389,243 | M11: =SUM(M8:M10) -> $389,243 | N11: =SUM(M8:M10) -> $389,243 | O11: =SUM(O8:O10) -> $389,243 | P11: =SUM(P8:P10) -> $389,243 | Q11: =SUM(Q8:Q10) -> $389,243 | R11: =SUM(Q8:Q10) -> $389,243 | S11: =SUM(S8:S10) -> $389,243 | T11: =SUM(T8:T10) -> $389,243 | U11: =SUM(U8:U10) -> $389,243 | V11: =SUM(U8:U10) -> $389,243 | W11: =SUM(W8:W10) -> $389,243 | X11: =SUM(X8:X10) -> $389,243 | Y11: =SUM(Y8:Y10) -> $389,243 | Z11: =SUM(Y8:Y10) -> $389,243
A12: =" "&Labels!B314 -> Long Term Assets | B12: =Assets!B20 -> $0 | C12: =Assets!C20 -> $0 | D12: =Assets!D20 -> $0 | E12: =Assets!E20 -> $0 | F12: =E12 -> $0 | G12: =Assets!G20 -> $0 | H12: =Assets!H20 -> $0 | I12: =Assets!I20 -> $0 | J12: =I12 -> $0 | K12: =Assets!K20 -> $0 | L12: =Assets!L20 -> $0 | M12: =Assets!M20 -> $0 | N12: =M12 -> $0 | O12: =Assets!O20 -> $0 | P12: =Assets!P20 -> $0 | Q12: =Assets!Q20 -> $0 | R12: =Q12 -> $0 | S12: =Assets!S20 -> $0 | T12: =Assets!T20 -> $0 | U12: =Assets!U20 -> $0 | V12: =U12 -> $0 | W12: =Assets!W20 -> $0 | X12: =Assets!X20 -> $0 | Y12: =Assets!Y20 -> $0 | Z12: =Y12 -> $0
A13: =" "&Labels!C309 -> Total | B13: =SUM(B11:B12) -> $0 | C13: =SUM(C11:C12) -> $0 | D13: =SUM(D11:D12) -> $0 | E13: =SUM(E11:E12) -> $327,339 | F13: =SUM(E11:E12) -> $327,339 | G13: =SUM(G11:G12) -> $338,250 | H13: =SUM(H11:H12) -> $220,000 | I13: =SUM(I11:I12) -> $300,000 | J13: =SUM(I11:I12) -> $300,000 | K13: =SUM(K11:K12) -> $351,739 | L13: =SUM(L11:L12) -> $389,243 | M13: =SUM(M11:M12) -> $389,243 | N13: =SUM(M11:M12) -> $389,243 | O13: =SUM(O11:O12) -> $389,243 | P13: =SUM(P11:P12) -> $389,243 | Q13: =SUM(Q11:Q12) -> $389,243 | R13: =SUM(Q11:Q12) -> $389,243 | S13: =SUM(S11:S12) -> $389,243 | T13: =SUM(T11:T12) -> $389,243 | U13: =SUM(U11:U12) -> $389,243 | V13: =SUM(U11:U12) -> $389,243 | W13: =SUM(W11:W12) -> $389,243 | X13: =SUM(X11:X12) -> $389,243 | Y13: =SUM(Y11:Y12) -> $389,243 | Z13: =SUM(Y11:Y12) -> $389,243
A15: =Labels!B116 -> Liabilities
A16: =" "&Labels!B361 -> Short Liabilities
A17: =" "&Labels!B362 -> Accounts Payable | B17: =Liab!B12 -> $0 | C17: =Liab!C12 -> $0 | D17: =Liab!D12 -> $0 | E17: =Liab!E12 -> $0 | F17: =E17 -> $0 | G17: =Liab!G12 -> $0 | H17: =Liab!H12 -> $0 | I17: =Liab!I12 -> $0 | J17: =I17 -> $0 | K17: =Liab!K12 -> $0 | L17: =Liab!L12 -> $0 | M17: =Liab!M12 -> $0 | N17: =M17 -> $0 | O17: =Liab!O12 -> $0 | P17: =Liab!P12 -> $0 | Q17: =Liab!Q12 -> $0 | R17: =Q17 -> $0 | S17: =Liab!S12 -> $0 | T17: =Liab!T12 -> $0 | U17: =Liab!U12 -> $0 | V17: =U17 -> $0 | W17: =Liab!W12 -> $0 | X17: =Liab!X12 -> $0 | Y17: =Liab!Y12 -> $0 | Z17: =Y17 -> $0
A18: =" "&Labels!B363 -> Short Term Debt | B18: =Inputs!F414 -> $0 | C18: =Inputs!G414 -> $0 | D18: =Inputs!H414 -> $0 | E18: =Inputs!I414 -> $217,339 | F18: =E18 -> $217,339 | G18: =Inputs!J414 -> $118,250 | H18: =Inputs!K414 -> $0 | I18: =Inputs!L414 -> $0 | J18: =I18 -> $0 | K18: =Inputs!M414 -> $0 | L18: =Inputs!N414 -> $0 | M18: =Inputs!O414 -> $0 | N18: =M18 -> $0 | O18: =Inputs!P414 -> $0 | P18: =Inputs!Q414 -> $0 | Q18: =Inputs!R414 -> $0 | R18: =Q18 -> $0 | S18: =Inputs!S414 -> $0 | T18: =Inputs!T414 -> $0 | U18: =Inputs!U414 -> $0 | V18: =U18 -> $0 | W18: =Inputs!V414 -> $0 | X18: =Inputs!W414 -> $0 | Y18: =Inputs!X414 -> $0 | Z18: =Y18 -> $0
A19: =" "&Labels!C361 -> Subtotal | B19: =SUM(B17:B18) -> $0 | C19: =SUM(C17:C18) -> $0 | D19: =SUM(D17:D18) -> $0 | E19: =SUM(E17:E18) -> $217,339 | F19: =SUM(E17:E18) -> $217,339 | G19: =SUM(G17:G18) -> $118,250 | H19: =SUM(H17:H18) -> $0 | I19: =SUM(I17:I18) -> $0 | J19: =SUM(I17:I18) -> $0 | K19: =SUM(K17:K18) -> $0 | L19: =SUM(L17:L18) -> $0 | M19: =SUM(M17:M18) -> $0 | N19: =SUM(M17:M18) -> $0 | O19: =SUM(O17:O18) -> $0 | P19: =SUM(P17:P18) -> $0 | Q19: =SUM(Q17:Q18) -> $0 | R19: =SUM(Q17:Q18) -> $0 | S19: =SUM(S17:S18) -> $0 | T19: =SUM(T17:T18) -> $0 | U19: =SUM(U17:U18) -> $0 | V19: =SUM(U17:U18) -> $0 | W19: =SUM(W17:W18) -> $0 | X19: =SUM(X17:X18) -> $0 | Y19: =SUM(Y17:Y18) -> $0 | Z19: =SUM(Y17:Y18) -> $0
A20: =" "&Labels!B364 -> Long Liabilities
A21: =" "&Labels!B365 -> Long Term Loans | B21: =Inputs!F421 -> $0 | C21: =Inputs!G421 -> $0 | D21: =Inputs!H421 -> $0 | E21: =Inputs!I421 -> $0 | F21: =E21 -> $0 | G21: =Inputs!J421 -> $0 | H21: =Inputs!K421 -> $0 | I21: =Inputs!L421 -> $0 | J21: =I21 -> $0 | K21: =Inputs!M421 -> $0 | L21: =Inputs!N421 -> $0 | M21: =Inputs!O421 -> $0 | N21: =M21 -> $0 | O21: =Inputs!P421 -> $0 | P21: =Inputs!Q421 -> $0 | Q21: =Inputs!R421 -> $0 | R21: =Q21 -> $0 | S21: =Inputs!S421 -> $0 | T21: =Inputs!T421 -> $0 | U21: =Inputs!U421 -> $0 | V21: =U21 -> $0 | W21: =Inputs!V421 -> $0 | X21: =Inputs!W421 -> $0 | Y21: =Inputs!X421 -> $0 | Z21: =Y21 -> $0
A22: =" "&Labels!B366 -> Bonds | B22: =0 -> $0 | C22: =0 -> $0 | D22: =0 -> $0 | E22: =0 -> $0 | F22: =E22 -> $0 | G22: =0 -> $0 | H22: =0 -> $0 | I22: =0 -> $0 | J22: =I22 -> $0 | K22: =0 -> $0 | L22: =0 -> $0 | M22: =0 -> $0 | N22: =M22 -> $0 | O22: =0 -> $0 | P22: =0 -> $0 | Q22: =0 -> $0 | R22: =Q22 -> $0 | S22: =0 -> $0 | T22: =0 -> $0 | U22: =0 -> $0 | V22: =U22 -> $0 | W22: =0 -> $0 | X22: =0 -> $0 | Y22: =0 -> $0 | Z22: =Y22 -> $0
A23: =" "&Labels!C364 -> Subtotal | B23: =SUM(B21:B22) -> $0 | C23: =SUM(C21:C22) -> $0 | D23: =SUM(D21:D22) -> $0 | E23: =SUM(E21:E22) -> $0 | F23: =SUM(E21:E22) -> $0 | G23: =SUM(G21:G22) -> $0 | H23: =SUM(H21:H22) -> $0 | I23: =SUM(I21:I22) -> $0 | J23: =SUM(I21:I22) -> $0 | K23: =SUM(K21:K22) -> $0 | L23: =SUM(L21:L22) -> $0 | M23: =SUM(M21:M22) -> $0 | N23: =SUM(M21:M22) -> $0 | O23: =SUM(O21:O22) -> $0 | P23: =SUM(P21:P22) -> $0 | Q23: =SUM(Q21:Q22) -> $0 | R23: =SUM(Q21:Q22) -> $0 | S23: =SUM(S21:S22) -> $0 | T23: =SUM(T21:T22) -> $0 | U23: =SUM(U21:U22) -> $0 | V23: =SUM(U21:U22) -> $0 | W23: =SUM(W21:W22) -> $0 | X23: =SUM(X21:X22) -> $0 | Y23: =SUM(Y21:Y22) -> $0 | Z23: =SUM(Y21:Y22) -> $0
A24: =" "&Labels!C360 -> Total | B24: =SUM(B19,B23) -> $0 | C24: =SUM(C19,C23) -> $0 | D24: =SUM(D19,D23) -> $0 | E24: =SUM(E19,E23) -> $217,339 | F24: =SUM(E19,E23) -> $217,339 | G24: =SUM(G19,G23) -> $118,250 | H24: =SUM(H19,H23) -> $0 | I24: =SUM(I19,I23) -> $0 | J24: =SUM(I19,I23) -> $0 | K24: =SUM(K19,K23) -> $0 | L24: =SUM(L19,L23) -> $0 | M24: =SUM(M19,M23) -> $0 | N24: =SUM(M19,M23) -> $0 | O24: =SUM(O19,O23) -> $0 | P24: =SUM(P19,P23) -> $0 | Q24: =SUM(Q19,Q23) -> $0 | R24: =SUM(Q19,Q23) -> $0 | S24: =SUM(S19,S23) -> $0 | T24: =SUM(T19,T23) -> $0 | U24: =SUM(U19,U23) -> $0 | V24: =SUM(U19,U23) -> $0 | W24: =SUM(W19,W23) -> $0 | X24: =SUM(X19,X23) -> $0 | Y24: =SUM(Y19,Y23) -> $0 | Z24: =SUM(Y19,Y23) -> $0
A26: =Labels!B91 -> Equity
A27: =" "&Labels!B349 -> Paid in Capital | B27: ='(Tables)'!B1438 -> $0 | C27: ='(Tables)'!C1438 -> $0 | D27: ='(Tables)'!D1438 -> $0 | E27: ='(Tables)'!E1438 -> $0 | F27: =E27 -> $0 | G27: ='(Tables)'!F1438 -> $0 | H27: ='(Tables)'!G1438 -> $0 | I27: ='(Tables)'!H1438 -> $0 | J27: =I27 -> $0 | K27: ='(Tables)'!I1438 -> $0 | L27: ='(Tables)'!J1438 -> $0 | M27: ='(Tables)'!K1438 -> $0 | N27: =M27 -> $0 | O27: ='(Tables)'!L1438 -> $0 | P27: ='(Tables)'!M1438 -> $0 | Q27: ='(Tables)'!N1438 -> $0 | R27: =Q27 -> $0 | S27: ='(Tables)'!O1438 -> $0 | T27: ='(Tables)'!P1438 -> $0 | U27: ='(Tables)'!Q1438 -> $0 | V27: =U27 -> $0 | W27: ='(Tables)'!R1438 -> $0 | X27: ='(Tables)'!S1438 -> $0 | Y27: ='(Tables)'!T1438 -> $0 | Z27: =Y27 -> $0
A28: =" "&Labels!B350 -> Retained Earnings | B28: ='(Tables)'!B1435 -> $0 | C28: ='(Tables)'!C1435 -> $0 | D28: ='(Tables)'!D1435 -> $0 | E28: ='(Tables)'!E1435 -> $110,000 | F28: =E28 -> $110,000 | G28: ='(Tables)'!F1435 -> $220,000 | H28: ='(Tables)'!G1435 -> $220,000 | I28: ='(Tables)'!H1435 -> $300,000 | J28: =I28 -> $300,000 | K28: ='(Tables)'!I1435 -> $351,739 | L28: ='(Tables)'!J1435 -> $389,243 | M28: ='(Tables)'!K1435 -> $389,243 | N28: =M28 -> $389,243 | O28: ='(Tables)'!L1435 -> $389,243 | P28: ='(Tables)'!M1435 -> $389,243 | Q28: ='(Tables)'!N1435 -> $389,243 | R28: =Q28 -> $389,243 | S28: ='(Tables)'!O1435 -> $389,243 | T28: ='(Tables)'!P1435 -> $389,243 | U28: ='(Tables)'!Q1435 -> $389,243 | V28: =U28 -> $389,243 | W28: ='(Tables)'!R1435 -> $389,243 | X28: ='(Tables)'!S1435 -> $389,243 | Y28: ='(Tables)'!T1435 -> $389,243 | Z28: =Y28 -> $389,243
A29: =" "&Labels!C348 -> Total | B29: =SUM(B27:B28) -> $0 | C29: =SUM(C27:C28) -> $0 | D29: =SUM(D27:D28) -> $0 | E29: =SUM(E27:E28) -> $110,000 | F29: =SUM(E27:E28) -> $110,000 | G29: =SUM(G27:G28) -> $220,000 | H29: =SUM(H27:H28) -> $220,000 | I29: =SUM(I27:I28) -> $300,000 | J29: =SUM(I27:I28) -> $300,000 | K29: =SUM(K27:K28) -> $351,739 | L29: =SUM(L27:L28) -> $389,243 | M29: =SUM(M27:M28) -> $389,243 | N29: =SUM(M27:M28) -> $389,243 | O29: =SUM(O27:O28) -> $389,243 | P29: =SUM(P27:P28) -> $389,243 | Q29: =SUM(Q27:Q28) -> $389,243 | R29: =SUM(Q27:Q28) -> $389,243 | S29: =SUM(S27:S28) -> $389,243 | T29: =SUM(T27:T28) -> $389,243 | U29: =SUM(U27:U28) -> $389,243 | V29: =SUM(U27:U28) -> $389,243 | W29: =SUM(W27:W28) -> $389,243 | X29: =SUM(X27:X28) -> $389,243 | Y29: =SUM(Y27:Y28) -> $389,243 | Z29: =SUM(Y27:Y28) -> $389,243
A31: =" " -> 
B32: ='(FnCalls 1)'!F40 -> Dec 2009 | C32: ='(FnCalls 1)'!F41 -> Jan 2010 | D32: ='(FnCalls 1)'!F42 -> Feb 2010 | E32: ='(FnCalls 1)'!F43 -> Mar 2010 | F32: ='(FnCalls 1)'!G41 -> Q1 2010 | G32: ='(FnCalls 1)'!F44 -> Apr 2010 | H32: ='(FnCalls 1)'!F45 -> May 2010 | I32: ='(FnCalls 1)'!F46 -> Jun 2010 | J32: ='(FnCalls 1)'!G44 -> Q2 2010 | K32: ='(FnCalls 1)'!F47 -> Jul 2010 | L32: ='(FnCalls 1)'!F48 -> Aug 2010 | M32: ='(FnCalls 1)'!F49 -> Sep 2010 | N32: ='(FnCalls 1)'!G47 -> Q3 2010 | O32: ='(FnCalls 1)'!F50 -> Oct 2010 | P32: ='(FnCalls 1)'!F51 -> Nov 2010 | Q32: ='(FnCalls 1)'!F52 -> Dec 2010 | R32: ='(FnCalls 1)'!G50 -> Q4 2010 | S32: ='(FnCalls 1)'!F53 -> Jan 2011 | T32: ='(FnCalls 1)'!F54 -> Feb 2011 | U32: ='(FnCalls 1)'!F55 -> Mar 2011 | V32: ='(FnCalls 1)'!G53 -> Q1 2011 | W32: ='(FnCalls 1)'!F56 -> Apr 2011 | X32: ='(FnCalls 1)'!F57 -> May 2011 | Y32: ='(FnCalls 1)'!F58 -> Jun 2011 | Z32: ='(FnCalls 1)'!G56 -> Q2 2011
A33: =Labels!B17 -> Balance Check | B33: =B13-B24-B29 -> $0.00 | C33: =C13-C24-C29 -> $0.00 | D33: =D13-D24-D29 -> $0.00 | E33: =E13-E24-E29 -> $0.00 | F33: =E33 -> $0.00 | G33: =G13-G24-G29 -> $0.00 | H33: =H13-H24-H29 -> $0.00 | I33: =I13-I24-I29 -> $0.00 | J33: =I33 -> $0.00 | K33: =K13-K24-K29 -> $0.00 | L33: =L13-L24-L29 -> $0.00 | M33: =M13-M24-M29 -> $0.00 | N33: =M33 -> $0.00 | O33: =O13-O24-O29 -> $0.00 | P33: =P13-P24-P29 -> $0.00 | Q33: =Q13-Q24-Q29 -> $0.00 | R33: =Q33 -> $0.00 | S33: =S13-S24-S29 -> $0.00 | T33: =T13-T24-T29 -> $0.00 | U33: =U13-U24-U29 -> $0.00 | V33: =U33 -> $0.00 | W33: =W13-W24-W29 -> $0.00 | X33: =X13-X24-X29 -> $0.00 | Y33: =Y13-Y24-Y29 -> $0.00 | Z33: =Y33 -> $0.00

Sheet CFStmt
A1: =Inputs!F7 -> 
A2: =TEXT('(FnCalls 1)'!A41,"m/d/yyyy")&" to "&TEXT('(FnCalls 1)'!A59-1,"m/d/yyyy") -> 1/1/2010 to 6/30/2011
A3: ="Cash Flow Statement" -> Cash Flow Statement
A4: ="" -> 
B5: ='(FnCalls 1)'!F41 -> Jan 2010 | C5: ='(FnCalls 1)'!F42 -> Feb 2010 | D5: ='(FnCalls 1)'!F43 -> Mar 2010 | E5: ='(FnCalls 1)'!G41 -> Q1 2010 | F5: ='(FnCalls 1)'!F44 -> Apr 2010 | G5: ='(FnCalls 1)'!F45 -> May 2010 | H5: ='(FnCalls 1)'!F46 -> Jun 2010 | I5: ='(FnCalls 1)'!G44 -> Q2 2010 | J5: ='(FnCalls 1)'!F47 -> Jul 2010 | K5: ='(FnCalls 1)'!F48 -> Aug 2010 | L5: ='(FnCalls 1)'!F49 -> Sep 2010 | M5: ='(FnCalls 1)'!G47 -> Q3 2010 | N5: ='(FnCalls 1)'!F50 -> Oct 2010 | O5: ='(FnCalls 1)'!F51 -> Nov 2010 | P5: ='(FnCalls 1)'!F52 -> Dec 2010 | Q5: ='(FnCalls 1)'!G50 -> Q4 2010 | R5: ='(FnCalls 1)'!F53 -> Jan 2011 | S5: ='(FnCalls 1)'!F54 -> Feb 2011 | T5: ='(FnCalls 1)'!F55 -> Mar 2011 | U5: ='(FnCalls 1)'!G53 -> Q1 2011 | V5: ='(FnCalls 1)'!F56 -> Apr 2011 | W5: ='(FnCalls 1)'!F57 -> May 2011 | X5: ='(FnCalls 1)'!F58 -> Jun 2011 | Y5: ='(FnCalls 1)'!G56 -> Q2 2011
A6: =Labels!B30 -> Starting Cash | B6: =Assets!B9 -> $0 | C6: =B26 -> $0 | D6: =C26 -> $0 | E6: =B6 -> $0 | F6: =D26 -> $109,113 | G6: =F26 -> $112,750 | H6: =G26 -> $220,000 | I6: =F6 -> $109,113 | J6: =H26 -> $136,000 | K6: =J26 -> $193,029 | L6: =K26 -> $230,534 | M6: =J6 -> $136,000 | N6: =L26 -> $389,243 | O6: =N26 -> $389,243 | P6: =O26 -> $389,243 | Q6: =N6 -> $389,243 | R6: =P26 -> $389,243 | S6: =R26 -> $389,243 | T6: =S26 -> $389,243 | U6: =R6 -> $389,243 | V6: =T26 -> $389,243 | W6: =V26 -> $389,243 | X6: =W26 -> $389,243 | Y6: =V6 -> $389,243
A8: ="Sources of Cash" -> Sources of Cash
A9: =Labels!B127 -> Net Income | B9: =IncStmt!B26 -> $0 | C9: =IncStmt!C26 -> $0 | D9: =IncStmt!D26 -> $110,000 | E9: =SUM(B9:D9) -> $110,000 | F9: =IncStmt!F26 -> $110,000 | G9: =IncStmt!G26 -> $0 | H9: =IncStmt!H26 -> $80,000 | I9: =SUM(F9:H9) -> $190,000 | J9: =IncStmt!J26 -> $51,739 | K9: =IncStmt!K26 -> $37,504 | L9: =IncStmt!L26 -> $0 | M9: =SUM(J9:L9) -> $89,243 | N9: =IncStmt!N26 -> $0 | O9: =IncStmt!O26 -> $0 | P9: =IncStmt!P26 -> $0 | Q9: =SUM(N9:P9) -> $0 | R9: =IncStmt!R26 -> $0 | S9: =IncStmt!S26 -> $0 | T9: =IncStmt!T26 -> $0 | U9: =SUM(R9:T9) -> $0 | V9: =IncStmt!V26 -> $0 | W9: =IncStmt!W26 -> $0 | X9: =IncStmt!X26 -> $0 | Y9: =SUM(V9:X9) -> $0
A10: =Labels!B34 -> Chg Accts Pay | B10: =Liab!C12-'(Compute)'!B717 -> $0 | C10: =Liab!D12-'(Compute)'!C717 -> $0 | D10: =Liab!E12-'(Compute)'!D717 -> $0 | E10: $0 | F10: =Liab!G12-'(Compute)'!E717 -> $0 | G10: =Liab!H12-'(Compute)'!F717 -> $0 | H10: =Liab!I12-'(Compute)'!G717 -> $0 | I10: $0 | J10: =Liab!K12-'(Compute)'!H717 -> $0 | K10: =Liab!L12-'(Compute)'!I717 -> $0 | L10: =Liab!M12-'(Compute)'!J717 -> $0 | M10: $0 | N10: =Liab!O12-'(Compute)'!K717 -> $0 | O10: =Liab!P12-'(Compute)'!L717 -> $0 | P10: =Liab!Q12-'(Compute)'!M717 -> $0 | Q10: $0 | R10: =Liab!S12-'(Compute)'!N717 -> $0 | S10: =Liab!T12-'(Compute)'!O717 -> $0 | T10: =Liab!U12-'(Compute)'!P717 -> $0 | U10: $0 | V10: =Liab!W12-'(Compute)'!Q717 -> $0 | W10: =Liab!X12-'(Compute)'!R717 -> $0 | X10: =Liab!Y12-'(Compute)'!S717 -> $0 | Y10: $0
A11: =Labels!B40 -> Chg Short Debt | B11: =Inputs!G414-Inputs!F414 -> $0 | C11: =Inputs!H414-Inputs!G414 -> $0 | D11: =Inputs!I414-Inputs!H414 -> $217,339 | E11: $217,339 | F11: =Inputs!J414-Inputs!I414 -> ($99,089) | G11: =Inputs!K414-Inputs!J414 -> ($118,250) | H11: =Inputs!L414-Inputs!K414 -> $0 | I11: ($217,339) | J11: =Inputs!M414-Inputs!L414 -> $0 | K11: =Inputs!N414-Inputs!M414 -> $0 | L11: =Inputs!O414-Inputs!N414 -> $0 | M11: $0 | N11: =Inputs!P414-Inputs!O414 -> $0 | O11: =Inputs!Q414-Inputs!P414 -> $0 | P11: =Inputs!R414-Inputs!Q414 -> $0 | Q11: $0 | R11: =Inputs!S414-Inputs!R414 -> $0 | S11: =Inputs!T414-Inputs!S414 -> $0 | T11: =Inputs!U414-Inputs!T414 -> $0 | U11: $0 | V11: =Inputs!V414-Inputs!U414 -> $0 | W11: =Inputs!W414-Inputs!V414 -> $0 | X11: =Inputs!X414-Inputs!W414 -> $0 | Y11: $0
A12: =Labels!B54 -> Depreciation | B12: =IncStmt!B24 -> $0 | C12: =IncStmt!C24 -> $0 | D12: =IncStmt!D24 -> $0 | E12: $0 | F12: =IncStmt!F24 -> $0 | G12: =IncStmt!G24 -> $0 | H12: =IncStmt!H24 -> $0 | I12: $0 | J12: =IncStmt!J24 -> $0 | K12: =IncStmt!K24 -> $0 | L12: =IncStmt!L24 -> $0 | M12: $0 | N12: =IncStmt!N24 -> $0 | O12: =IncStmt!O24 -> $0 | P12: =IncStmt!P24 -> $0 | Q12: $0 | R12: =IncStmt!R24 -> $0 | S12: =IncStmt!S24 -> $0 | T12: =IncStmt!T24 -> $0 | U12: $0 | V12: =IncStmt!V24 -> $0 | W12: =IncStmt!W24 -> $0 | X12: =IncStmt!X24 -> $0 | Y12: $0
A13: =Labels!B39 -> Chg Long Debt | B13: =Inputs!G421-Inputs!F421 -> $0 | C13: =Inputs!H421-Inputs!G421 -> $0 | D13: =Inputs!I421-Inputs!H421 -> $0 | E13: $0 | F13: =Inputs!J421-Inputs!I421 -> $0 | G13: =Inputs!K421-Inputs!J421 -> $0 | H13: =Inputs!L421-Inputs!K421 -> $0 | I13: $0 | J13: =Inputs!M421-Inputs!L421 -> $0 | K13: =Inputs!N421-Inputs!M421 -> $0 | L13: =Inputs!O421-Inputs!N421 -> $0 | M13: $0 | N13: =Inputs!P421-Inputs!O421 -> $0 | O13: =Inputs!Q421-Inputs!P421 -> $0 | P13: =Inputs!R421-Inputs!Q421 -> $0 | Q13: $0 | R13: =Inputs!S421-Inputs!R421 -> $0 | S13: =Inputs!T421-Inputs!S421 -> $0 | T13: =Inputs!U421-Inputs!T421 -> $0 | U13: $0 | V13: =Inputs!V421-Inputs!U421 -> $0 | W13: =Inputs!W421-Inputs!V421 -> $0 | X13: =Inputs!X421-Inputs!W421 -> $0 | Y13: $0
A14: =Labels!B37 -> Chg Bond Principal | B14: ='(Tables)'!AL1441 -> $0 | C14: ='(Tables)'!AM1441 -> $0 | D14: ='(Tables)'!AN1441 -> $0 | E14: $0 | F14: ='(Tables)'!AO1441 -> $0 | G14: ='(Tables)'!AP1441 -> $0 | H14: ='(Tables)'!AQ1441 -> $0 | I14: $0 | J14: ='(Tables)'!AR1441 -> $0 | K14: ='(Tables)'!AS1441 -> $0 | L14: ='(Tables)'!AT1441 -> $0 | M14: $0 | N14: ='(Tables)'!AU1441 -> $0 | O14: ='(Tables)'!AV1441 -> $0 | P14: ='(Tables)'!AW1441 -> $0 | Q14: $0 | R14: ='(Tables)'!AX1441 -> $0 | S14: ='(Tables)'!AY1441 -> $0 | T14: ='(Tables)'!AZ1441 -> $0 | U14: $0 | V14: ='(Tables)'!BA1441 -> $0 | W14: ='(Tables)'!BB1441 -> $0 | X14: ='(Tables)'!BC1441 -> $0 | Y14: $0
A15: =Labels!B129 -> Net Stock Issue | B15: =Inputs!G430 -> $0 | C15: =Inputs!H430 -> $0 | D15: =Inputs!I430 -> $0 | E15: $0 | F15: =Inputs!J430 -> $0 | G15: =Inputs!K430 -> $0 | H15: =Inputs!L430 -> $0 | I15: $0 | J15: =Inputs!M430 -> $0 | K15: =Inputs!N430 -> $0 | L15: =Inputs!O430 -> $0 | M15: $0 | N15: =Inputs!P430 -> $0 | O15: =Inputs!Q430 -> $0 | P15: =Inputs!R430 -> $0 | Q15: $0 | R15: =Inputs!S430 -> $0 | S15: =Inputs!T430 -> $0 | T15: =Inputs!U430 -> $0 | U15: $0 | V15: =Inputs!V430 -> $0 | W15: =Inputs!W430 -> $0 | X15: =Inputs!X430 -> $0 | Y15: $0
A16: =Labels!B29 -> Total Sources of Cash | B16: =B9+B10+B11+B12+Assets!C48+B13+'(Tables)'!AL1441+Inputs!G430 -> $0 | C16: =C9+C10+C11+C12+Assets!D48+C13+'(Tables)'!AM1441+Inputs!H430 -> $0 | D16: =D9+D10+D11+D12+Assets!E48+D13+'(Tables)'!AN1441+Inputs!I430 -> $327,339 | E16: $327,339 | F16: =F9+F10+F11+F12+Assets!G48+F13+'(Tables)'!AO1441+Inputs!J430 -> $10,911 | G16: =G9+G10+G11+G12+Assets!H48+G13+'(Tables)'!AP1441+Inputs!K430 -> ($118,250) | H16: =H9+H10+H11+H12+Assets!I48+H13+'(Tables)'!AQ1441+Inputs!L430 -> $80,000 | I16: ($27,339) | J16: =J9+J10+J11+J12+Assets!K48+J13+'(Tables)'!AR1441+Inputs!M430 -> $51,739 | K16: =K9+K10+K11+K12+Assets!L48+K13+'(Tables)'!AS1441+Inputs!N430 -> $37,504 | L16: =L9+L10+L11+L12+Assets!M48+L13+'(Tables)'!AT1441+Inputs!O430 -> $0 | M16: $89,243 | N16: =N9+N10+N11+N12+Assets!O48+N13+'(Tables)'!AU1441+Inputs!P430 -> $0 | O16: =O9+O10+O11+O12+Assets!P48+O13+'(Tables)'!AV1441+Inputs!Q430 -> $0 | P16: =P9+P10+P11+P12+Assets!Q48+P13+'(Tables)'!AW1441+Inputs!R430 -> $0 | Q16: $0 | R16: =R9+R10+R11+R12+Assets!S48+R13+'(Tables)'!AX1441+Inputs!S430 -> $0 | S16: =S9+S10+S11+S12+Assets!T48+S13+'(Tables)'!AY1441+Inputs!T430 -> $0 | T16: =T9+T10+T11+T12+Assets!U48+T13+'(Tables)'!AZ1441+Inputs!U430 -> $0 | U16: $0 | V16: =V9+V10+V11+V12+Assets!W48+V13+'(Tables)'!BA1441+Inputs!V430 -> $0 | W16: =W9+W10+W11+W12+Assets!X48+W13+'(Tables)'!BB1441+Inputs!W430 -> $0 | X16: =X9+X10+X11+X12+Assets!Y48+X13+'(Tables)'!BC1441+Inputs!X430 -> $0 | Y16: $0
A18: ="Uses of Cash" -> Uses of Cash
A19: =Labels!B35 -> Chg Accts Rec | B19: =Assets!C12-Assets!B12 -> $0 | C19: =Assets!D12-Assets!C12 -> $0 | D19: =Assets!E12-Assets!D12 -> $218,226 | E19: =SUM(B19:D19) -> $218,226 | F19: =Assets!G12-Assets!E12 -> $7,274 | G19: =Assets!H12-Assets!G12 -> ($225,500) | H19: =Assets!I12-Assets!H12 -> $164,000 | I19: =SUM(F19:H19) -> ($54,226) | J19: =Assets!K12-Assets!I12 -> ($5,290) | K19: =Assets!L12-Assets!K12 -> $0 | L19: =Assets!M12-Assets!L12 -> ($158,710) | M19: =SUM(J19:L19) -> ($164,000) | N19: =Assets!O12-Assets!M12 -> $0 | O19: =Assets!P12-Assets!O12 -> $0 | P19: =Assets!Q12-Assets!P12 -> $0 | Q19: =SUM(N19:P19) -> $0 | R19: =Assets!S12-Assets!Q12 -> $0 | S19: =Assets!T12-Assets!S12 -> $0 | T19: =Assets!U12-Assets!T12 -> $0 | U19: =SUM(R19:T19) -> $0 | V19: =Assets!W12-Assets!U12 -> $0 | W19: =Assets!X12-Assets!W12 -> $0 | X19: =Assets!Y12-Assets!X12 -> $0 | Y19: =SUM(V19:X19) -> $0
A20: =Labels!B38 -> Chg Supplies Inventory | B20: =0-'(Compute)'!B725 -> $0 | C20: =0-'(Compute)'!C725 -> $0 | D20: =0-'(Compute)'!D725 -> $0 | E20: $0 | F20: =0-'(Compute)'!E725 -> $0 | G20: =0-'(Compute)'!F725 -> $0 | H20: =0-'(Compute)'!G725 -> $0 | I20: $0 | J20: =0-'(Compute)'!H725 -> $0 | K20: =0-'(Compute)'!I725 -> $0 | L20: =0-'(Compute)'!J725 -> $0 | M20: $0 | N20: =0-'(Compute)'!K725 -> $0 | O20: =0-'(Compute)'!L725 -> $0 | P20: =0-'(Compute)'!M725 -> $0 | Q20: $0 | R20: =0-'(Compute)'!N725 -> $0 | S20: =0-'(Compute)'!O725 -> $0 | T20: =0-'(Compute)'!P725 -> $0 | U20: $0 | V20: =0-'(Compute)'!Q725 -> $0 | W20: =0-'(Compute)'!R725 -> $0 | X20: =0-'(Compute)'!S725 -> $0 | Y20: $0
A21: =Labels!B117 -> Long Asset Purch | B21: =Assets!C66+Assets!C38 -> $0 | C21: =Assets!D66+Assets!D38 -> $0 | D21: =Assets!E66+Assets!E38 -> $0 | E21: $0 | F21: =Assets!G66+Assets!G38 -> $0 | G21: =Assets!H66+Assets!H38 -> $0 | H21: =Assets!I66+Assets!I38 -> $0 | I21: $0 | J21: =Assets!K66+Assets!K38 -> $0 | K21: =Assets!L66+Assets!L38 -> $0 | L21: =Assets!M66+Assets!M38 -> $0 | M21: $0 | N21: =Assets!O66+Assets!O38 -> $0 | O21: =Assets!P66+Assets!P38 -> $0 | P21: =Assets!Q66+Assets!Q38 -> $0 | Q21: $0 | R21: =Assets!S66+Assets!S38 -> $0 | S21: =Assets!T66+Assets!T38 -> $0 | T21: =Assets!U66+Assets!U38 -> $0 | U21: $0 | V21: =Assets!W66+Assets!W38 -> $0 | W21: =Assets!X66+Assets!X38 -> $0 | X21: =Assets!Y66+Assets!Y38 -> $0 | Y21: $0
A22: =Labels!B59 -> New Cap'd Development | B22: =SUM(OpExp!B69:B70) -> $0.0 | C22: =SUM(OpExp!C69:C70) -> $0.0 | D22: =SUM(OpExp!D69:D70) -> $0.0 | E22: $0.0 | F22: =SUM(OpExp!F69:F70) -> $0.0 | G22: =SUM(OpExp!G69:G70) -> $0.0 | H22: =SUM(OpExp!H69:H70) -> $0.0 | I22: $0.0 | J22: =SUM(OpExp!J69:J70) -> $0.0 | K22: =SUM(OpExp!K69:K70) -> $0.0 | L22: =SUM(OpExp!L69:L70) -> $0.0 | M22: $0.0 | N22: =SUM(OpExp!N69:N70) -> $0.0 | O22: =SUM(OpExp!O69:O70) -> $0.0 | P22: =SUM(OpExp!P69:P70) -> $0.0 | Q22: $0.0 | R22: =SUM(OpExp!R69:R70) -> $0.0 | S22: =SUM(OpExp!S69:S70) -> $0.0 | T22: =SUM(OpExp!T69:T70) -> $0.0 | U22: $0.0 | V22: =SUM(OpExp!V69:V70) -> $0.0 | W22: =SUM(OpExp!W69:W70) -> $0.0 | X22: =SUM(OpExp!X69:X70) -> $0.0 | Y22: $0.0
A23: =Labels!B64 -> Dividend | B23: =Inputs!G432 -> $0 | C23: =Inputs!H432 -> $0 | D23: =Inputs!I432 -> $0 | E23: $0 | F23: =Inputs!J432 -> $0 | G23: =Inputs!K432 -> $0 | H23: =Inputs!L432 -> $0 | I23: $0 | J23: =Inputs!M432 -> $0 | K23: =Inputs!N432 -> $0 | L23: =Inputs!O432 -> $0 | M23: $0 | N23: =Inputs!P432 -> $0 | O23: =Inputs!Q432 -> $0 | P23: =Inputs!R432 -> $0 | Q23: $0 | R23: =Inputs!S432 -> $0 | S23: =Inputs!T432 -> $0 | T23: =Inputs!U432 -> $0 | U23: $0 | V23: =Inputs!V432 -> $0 | W23: =Inputs!W432 -> $0 | X23: =Inputs!X432 -> $0 | Y23: $0
A24: =Labels!B32 -> Total Uses of Cash | B24: =B19+B20+B21+B22+B23 -> $0 | C24: =C19+C20+C21+C22+C23 -> $0 | D24: =D19+D20+D21+D22+D23 -> $218,226 | E24: $218,226 | F24: =F19+F20+F21+F22+F23 -> $7,274 | G24: =G19+G20+G21+G22+G23 -> ($225,500) | H24: =H19+H20+H21+H22+H23 -> $164,000 | I24: ($54,226) | J24: =J19+J20+J21+J22+J23 -> ($5,290) | K24: =K19+K20+K21+K22+K23 -> $0 | L24: =L19+L20+L21+L22+L23 -> ($158,710) | M24: ($164,000) | N24: =N19+N20+N21+N22+N23 -> $0 | O24: =O19+O20+O21+O22+O23 -> $0 | P24: =P19+P20+P21+P22+P23 -> $0 | Q24: $0 | R24: =R19+R20+R21+R22+R23 -> $0 | S24: =S19+S20+S21+S22+S23 -> $0 | T24: =T19+T20+T21+T22+T23 -> $0 | U24: $0 | V24: =V19+V20+V21+V22+V23 -> $0 | W24: =W19+W20+W21+W22+W23 -> $0 | X24: =X19+X20+X21+X22+X23 -> $0 | Y24: $0
A26: =Labels!B18 -> Ending Cash | B26: ='(Tables)'!C1367+Inputs!G414 -> $0 | C26: ='(Tables)'!D1367+Inputs!H414 -> $0 | D26: ='(Tables)'!E1367+Inputs!I414 -> $109,113 | E26: =D26 -> $109,113 | F26: ='(Tables)'!F1367+Inputs!J414 -> $112,750 | G26: ='(Tables)'!G1367+Inputs!K414 -> $220,000 | H26: ='(Tables)'!H1367+Inputs!L414 -> $136,000 | I26: =H26 -> $136,000 | J26: ='(Tables)'!I1367+Inputs!M414 -> $193,029 | K26: ='(Tables)'!J1367+Inputs!N414 -> $230,534 | L26: ='(Tables)'!K1367+Inputs!O414 -> $389,243 | M26: =L26 -> $389,243 | N26: ='(Tables)'!L1367+Inputs!P414 -> $389,243 | O26: ='(Tables)'!M1367+Inputs!Q414 -> $389,243 | P26: ='(Tables)'!N1367+Inputs!R414 -> $389,243 | Q26: =P26 -> $389,243 | R26: ='(Tables)'!O1367+Inputs!S414 -> $389,243 | S26: ='(Tables)'!P1367+Inputs!T414 -> $389,243 | T26: ='(Tables)'!Q1367+Inputs!U414 -> $389,243 | U26: =T26 -> $389,243 | V26: ='(Tables)'!R1367+Inputs!V414 -> $389,243 | W26: ='(Tables)'!S1367+Inputs!W414 -> $389,243 | X26: ='(Tables)'!T1367+Inputs!X414 -> $389,243 | Y26: =X26 -> $389,243
A28: =Labels!B19 -> Cash Flow | B28: =B26-B6 -> $0 | C28: =C26-C6 -> $0 | D28: =D26-D6 -> $109,113 | E28: =SUM(B28:D28) -> $109,113 | F28: =F26-F6 -> $3,637 | G28: =G26-G6 -> $107,250 | H28: =H26-H6 -> ($84,000) | I28: =SUM(F28:H28) -> $26,887 | J28: =J26-J6 -> $57,029 | K28: =K26-K6 -> $37,504 | L28: =L26-L6 -> $158,710 | M28: =SUM(J28:L28) -> $253,243 | N28: =N26-N6 -> $0 | O28: =O26-O6 -> $0 | P28: =P26-P6 -> $0 | Q28: =SUM(N28:P28) -> $0 | R28: =R26-R6 -> $0 | S28: =S26-S6 -> $0 | T28: =T26-T6 -> $0 | U28: =SUM(R28:T28) -> $0 | V28: =V26-V6 -> $0 | W28: =W26-W6 -> $0 | X28: =X26-X6 -> $0 | Y28: =SUM(V28:X28) -> $0
A29: =Labels!B25 -> Operating Cash Flow | B29: =B28+B23+'(Compute)'!B728-Inputs!G430-B11-B13-0 -> $0 | C29: =C28+C23+'(Compute)'!C728-Inputs!H430-C11-C13-0 -> $0 | D29: =D28+D23+'(Compute)'!D728-Inputs!I430-D11-D13-0 -> ($108,226) | E29: =SUM(B29:D29) -> ($108,226) | F29: =F28+F23+'(Compute)'!E728-Inputs!J430-F11-F13-0 -> $102,726 | G29: =G28+G23+'(Compute)'!F728-Inputs!K430-G11-G13-0 -> $225,500 | H29: =H28+H23+'(Compute)'!G728-Inputs!L430-H11-H13-0 -> ($84,000) | I29: =SUM(F29:H29) -> $244,226 | J29: =J28+J23+'(Compute)'!H728-Inputs!M430-J11-J13-0 -> $57,029 | K29: =K28+K23+'(Compute)'!I728-Inputs!N430-K11-K13-0 -> $37,504 | L29: =L28+L23+'(Compute)'!J728-Inputs!O430-L11-L13-0 -> $158,710 | M29: =SUM(J29:L29) -> $253,243 | N29: =N28+N23+'(Compute)'!K728-Inputs!P430-N11-N13-0 -> $0 | O29: =O28+O23+'(Compute)'!L728-Inputs!Q430-O11-O13-0 -> $0 | P29: =P28+P23+'(Compute)'!M728-Inputs!R430-P11-P13-0 -> $0 | Q29: =SUM(N29:P29) -> $0 | R29: =R28+R23+'(Compute)'!N728-Inputs!S430-R11-R13-0 -> $0 | S29: =S28+S23+'(Compute)'!O728-Inputs!T430-S11-S13-0 -> $0 | T29: =T28+T23+'(Compute)'!P728-Inputs!U430-T11-T13-0 -> $0 | U29: =SUM(R29:T29) -> $0 | V29: =V28+V23+'(Compute)'!Q728-Inputs!V430-V11-V13-0 -> $0 | W29: =W28+W23+'(Compute)'!R728-Inputs!W430-W11-W13-0 -> $0 | X29: =X28+X23+'(Compute)'!S728-Inputs!X430-X11-X13-0 -> $0 | Y29: =SUM(V29:X29) -> $0
A31: =" " -> 
B32: ='(FnCalls 1)'!F41 -> Jan 2010 | C32: ='(FnCalls 1)'!F42 -> Feb 2010 | D32: ='(FnCalls 1)'!F43 -> Mar 2010 | E32: ='(FnCalls 1)'!G41 -> Q1 2010 | F32: ='(FnCalls 1)'!F44 -> Apr 2010 | G32: ='(FnCalls 1)'!F45 -> May 2010 | H32: ='(FnCalls 1)'!F46 -> Jun 2010 | I32: ='(FnCalls 1)'!G44 -> Q2 2010 | J32: ='(FnCalls 1)'!F47 -> Jul 2010 | K32: ='(FnCalls 1)'!F48 -> Aug 2010 | L32: ='(FnCalls 1)'!F49 -> Sep 2010 | M32: ='(FnCalls 1)'!G47 -> Q3 2010 | N32: ='(FnCalls 1)'!F50 -> Oct 2010 | O32: ='(FnCalls 1)'!F51 -> Nov 2010 | P32: ='(FnCalls 1)'!F52 -> Dec 2010 | Q32: ='(FnCalls 1)'!G50 -> Q4 2010 | R32: ='(FnCalls 1)'!F53 -> Jan 2011 | S32: ='(FnCalls 1)'!F54 -> Feb 2011 | T32: ='(FnCalls 1)'!F55 -> Mar 2011 | U32: ='(FnCalls 1)'!G53 -> Q1 2011 | V32: ='(FnCalls 1)'!F56 -> Apr 2011 | W32: ='(FnCalls 1)'!F57 -> May 2011 | X32: ='(FnCalls 1)'!F58 -> Jun 2011 | Y32: ='(FnCalls 1)'!G56 -> Q2 2011
A33: =Labels!B20 -> Cash Flow Check | B33: =B6+B16-B24-B26 -> $0.00 | C33: =C6+C16-C24-C26 -> $0.00 | D33: =D6+D16-D24-D26 -> $0.00 | E33: =SUM(B33:D33) -> $0.00 | F33: =F6+F16-F24-F26 -> $0.00 | G33: =G6+G16-G24-G26 -> $0.00 | H33: =H6+H16-H24-H26 -> $0.00 | I33: =SUM(F33:H33) -> $0.00 | J33: =J6+J16-J24-J26 -> $0.00 | K33: =K6+K16-K24-K26 -> $0.00 | L33: =L6+L16-L24-L26 -> $0.00 | M33: =SUM(J33:L33) -> $0.00 | N33: =N6+N16-N24-N26 -> $0.00 | O33: =O6+O16-O24-O26 -> $0.00 | P33: =P6+P16-P24-P26 -> $0.00 | Q33: =SUM(N33:P33) -> $0.00 | R33: =R6+R16-R24-R26 -> $0.00 | S33: =S6+S16-S24-S26 -> $0.00 | T33: =T6+T16-T24-T26 -> $0.00 | U33: =SUM(R33:T33) -> $0.00 | V33: =V6+V16-V24-V26 -> $0.00 | W33: =W6+W16-W24-W26 -> $0.00 | X33: =X6+X16-X24-X26 -> $0.00 | Y33: =SUM(V33:X33) -> $0.00

Sheet RatioRpt
A1: =Inputs!F7 -> 
A2: =TEXT('(FnCalls 1)'!A41,"m/d/yyyy")&" to "&TEXT('(FnCalls 1)'!A59-1,"m/d/yyyy") -> 1/1/2010 to 6/30/2011
A3: ="Ratio Report" -> Ratio Report
A4: ="" -> 
A5: ="Margin Ratios" -> Margin Ratios
B6: ='(FnCalls 1)'!F41 -> Jan 2010 | C6: ='(FnCalls 1)'!F42 -> Feb 2010 | D6: ='(FnCalls 1)'!F43 -> Mar 2010 | E6: ='(FnCalls 1)'!G41 -> Q1 2010 | F6: ='(FnCalls 1)'!F44 -> Apr 2010 | G6: ='(FnCalls 1)'!F45 -> May 2010 | H6: ='(FnCalls 1)'!F46 -> Jun 2010 | I6: ='(FnCalls 1)'!G44 -> Q2 2010 | J6: ='(FnCalls 1)'!F47 -> Jul 2010 | K6: ='(FnCalls 1)'!F48 -> Aug 2010 | L6: ='(FnCalls 1)'!F49 -> Sep 2010 | M6: ='(FnCalls 1)'!G47 -> Q3 2010 | N6: ='(FnCalls 1)'!F50 -> Oct 2010 | O6: ='(FnCalls 1)'!F51 -> Nov 2010 | P6: ='(FnCalls 1)'!F52 -> Dec 2010 | Q6: ='(FnCalls 1)'!G50 -> Q4 2010 | R6: ='(FnCalls 1)'!F53 -> Jan 2011 | S6: ='(FnCalls 1)'!F54 -> Feb 2011 | T6: ='(FnCalls 1)'!F55 -> Mar 2011 | U6: ='(FnCalls 1)'!G53 -> Q1 2011 | V6: ='(FnCalls 1)'!F56 -> Apr 2011 | W6: ='(FnCalls 1)'!F57 -> May 2011 | X6: ='(FnCalls 1)'!F58 -> Jun 2011 | Y6: ='(FnCalls 1)'!G56 -> Q2 2011
A7: =Labels!B100 -> Gross Margin %
A8: =" "&Labels!B381 -> Practice 1 | B8: =IF(Practices!B9=0,0,Practices!B19/Practices!B9) -> 0.0% | C8: =IF(Practices!C9=0,0,Practices!C19/Practices!C9) -> 0.0% | D8: =IF(Practices!D9=0,0,Practices!D19/Practices!D9) -> 97.6% | E8: =IF(SUM(Practices!B9:D9)=0,0,SUM(Practices!B19:D19)/SUM(Practices!B9:D9)) -> 97.6% | F8: =IF(Practices!F9=0,0,Practices!F19/Practices!F9) -> 97.6% | G8: =IF(Practices!G9=0,0,Practices!G19/Practices!G9) -> 0.0% | H8: =IF(Practices!H9=0,0,Practices!H19/Practices!H9) -> 97.6% | I8: =IF(SUM(Practices!F9:H9)=0,0,SUM(Practices!F19:H19)/SUM(Practices!F9:H9)) -> 97.6% | J8: =IF(Practices!J9=0,0,Practices!J19/Practices!J9) -> 63.1% | K8: =IF(Practices!K9=0,0,Practices!K19/Practices!K9) -> 45.7% | L8: =IF(Practices!L9=0,0,Practices!L19/Practices!L9) -> 0.0% | M8: =IF(SUM(Practices!J9:L9)=0,0,SUM(Practices!J19:L19)/SUM(Practices!J9:L9)) -> 54.4% | N8: =IF(Practices!N9=0,0,Practices!N19/Practices!N9) -> 0.0% | O8: =IF(Practices!O9=0,0,Practices!O19/Practices!O9) -> 0.0% | P8: =IF(Practices!P9=0,0,Practices!P19/Practices!P9) -> 0.0% | Q8: =IF(SUM(Practices!N9:P9)=0,0,SUM(Practices!N19:P19)/SUM(Practices!N9:P9)) -> 0.0% | R8: =IF(Practices!R9=0,0,Practices!R19/Practices!R9) -> 0.0% | S8: =IF(Practices!S9=0,0,Practices!S19/Practices!S9) -> 0.0% | T8: =IF(Practices!T9=0,0,Practices!T19/Practices!T9) -> 0.0% | U8: =IF(SUM(Practices!R9:T9)=0,0,SUM(Practices!R19:T19)/SUM(Practices!R9:T9)) -> 0.0% | V8: =IF(Practices!V9=0,0,Practices!V19/Practices!V9) -> 0.0% | W8: =IF(Practices!W9=0,0,Practices!W19/Practices!W9) -> 0.0% | X8: =IF(Practices!X9=0,0,Practices!X19/Practices!X9) -> 0.0% | Y8: =IF(SUM(Practices!V9:X9)=0,0,SUM(Practices!V19:X19)/SUM(Practices!V9:X9)) -> 0.0%
A9: =" "&Labels!B382 -> Practice 2 | B9: =IF(Practices!B10=0,0,Practices!B22/Practices!B10) -> 0.0% | C9: =IF(Practices!C10=0,0,Practices!C22/Practices!C10) -> 0.0% | D9: =IF(Practices!D10=0,0,Practices!D22/Practices!D10) -> 0.0% | E9: =IF(SUM(Practices!B10:D10)=0,0,SUM(Practices!B22:D22)/SUM(Practices!B10:D10)) -> 0.0% | F9: =IF(Practices!F10=0,0,Practices!F22/Practices!F10) -> 0.0% | G9: =IF(Practices!G10=0,0,Practices!G22/Practices!G10) -> 0.0% | H9: =IF(Practices!H10=0,0,Practices!H22/Practices!H10) -> 0.0% | I9: =IF(SUM(Practices!F10:H10)=0,0,SUM(Practices!F22:H22)/SUM(Practices!F10:H10)) -> 0.0% | J9: =IF(Practices!J10=0,0,Practices!J22/Practices!J10) -> 0.0% | K9: =IF(Practices!K10=0,0,Practices!K22/Practices!K10) -> 0.0% | L9: =IF(Practices!L10=0,0,Practices!L22/Practices!L10) -> 0.0% | M9: =IF(SUM(Practices!J10:L10)=0,0,SUM(Practices!J22:L22)/SUM(Practices!J10:L10)) -> 0.0% | N9: =IF(Practices!N10=0,0,Practices!N22/Practices!N10) -> 0.0% | O9: =IF(Practices!O10=0,0,Practices!O22/Practices!O10) -> 0.0% | P9: =IF(Practices!P10=0,0,Practices!P22/Practices!P10) -> 0.0% | Q9: =IF(SUM(Practices!N10:P10)=0,0,SUM(Practices!N22:P22)/SUM(Practices!N10:P10)) -> 0.0% | R9: =IF(Practices!R10=0,0,Practices!R22/Practices!R10) -> 0.0% | S9: =IF(Practices!S10=0,0,Practices!S22/Practices!S10) -> 0.0% | T9: =IF(Practices!T10=0,0,Practices!T22/Practices!T10) -> 0.0% | U9: =IF(SUM(Practices!R10:T10)=0,0,SUM(Practices!R22:T22)/SUM(Practices!R10:T10)) -> 0.0% | V9: =IF(Practices!V10=0,0,Practices!V22/Practices!V10) -> 0.0% | W9: =IF(Practices!W10=0,0,Practices!W22/Practices!W10) -> 0.0% | X9: =IF(Practices!X10=0,0,Practices!X22/Practices!X10) -> 0.0% | Y9: =IF(SUM(Practices!V10:X10)=0,0,SUM(Practices!V22:X22)/SUM(Practices!V10:X10)) -> 0.0%
A10: =" "&Labels!C380 -> Total | B10: =IF(IncStmt!B6=0,0,IncStmt!B16/IncStmt!B6) -> 0.0% | C10: =IF(IncStmt!C6=0,0,IncStmt!C16/IncStmt!C6) -> 0.0% | D10: =IF(IncStmt!D6=0,0,IncStmt!D16/IncStmt!D6) -> 97.6% | E10: =IF(SUM(IncStmt!B6:D6)=0,0,SUM(IncStmt!B16:D16)/SUM(IncStmt!B6:D6)) -> 97.6% | F10: =IF(IncStmt!F6=0,0,IncStmt!F16/IncStmt!F6) -> 97.6% | G10: =IF(IncStmt!G6=0,0,IncStmt!G16/IncStmt!G6) -> 0.0% | H10: =IF(IncStmt!H6=0,0,IncStmt!H16/IncStmt!H6) -> 97.6% | I10: =IF(SUM(IncStmt!F6:H6)=0,0,SUM(IncStmt!F16:H16)/SUM(IncStmt!F6:H6)) -> 97.6% | J10: =IF(IncStmt!J6=0,0,IncStmt!J16/IncStmt!J6) -> 63.1% | K10: =IF(IncStmt!K6=0,0,IncStmt!K16/IncStmt!K6) -> 45.7% | L10: =IF(IncStmt!L6=0,0,IncStmt!L16/IncStmt!L6) -> 0.0% | M10: =IF(SUM(IncStmt!J6:L6)=0,0,SUM(IncStmt!J16:L16)/SUM(IncStmt!J6:L6)) -> 54.4% | N10: =IF(IncStmt!N6=0,0,IncStmt!N16/IncStmt!N6) -> 0.0% | O10: =IF(IncStmt!O6=0,0,IncStmt!O16/IncStmt!O6) -> 0.0% | P10: =IF(IncStmt!P6=0,0,IncStmt!P16/IncStmt!P6) -> 0.0% | Q10: =IF(SUM(IncStmt!N6:P6)=0,0,SUM(IncStmt!N16:P16)/SUM(IncStmt!N6:P6)) -> 0.0% | R10: =IF(IncStmt!R6=0,0,IncStmt!R16/IncStmt!R6) -> 0.0% | S10: =IF(IncStmt!S6=0,0,IncStmt!S16/IncStmt!S6) -> 0.0% | T10: =IF(IncStmt!T6=0,0,IncStmt!T16/IncStmt!T6) -> 0.0% | U10: =IF(SUM(IncStmt!R6:T6)=0,0,SUM(IncStmt!R16:T16)/SUM(IncStmt!R6:T6)) -> 0.0% | V10: =IF(IncStmt!V6=0,0,IncStmt!V16/IncStmt!V6) -> 0.0% | W10: =IF(IncStmt!W6=0,0,IncStmt!W16/IncStmt!W6) -> 0.0% | X10: =IF(IncStmt!X6=0,0,IncStmt!X16/IncStmt!X6) -> 0.0% | Y10: =IF(SUM(IncStmt!V6:X6)=0,0,SUM(IncStmt!V16:X16)/SUM(IncStmt!V6:X6)) -> 0.0%
A11: =Labels!B137 -> Operating Margin % | B11: =IncStmt!B21 -> 0.0% | C11: =IncStmt!C21 -> 0.0% | D11: =IncStmt!D21 -> 97.6% | E11: =IF(SUM(IncStmt!B6:D6)=0,0,SUM(IncStmt!B20:D20)/SUM(IncStmt!B6:D6)) -> 97.6% | F11: =IncStmt!F21 -> 97.6% | G11: =IncStmt!G21 -> 0.0% | H11: =IncStmt!H21 -> 97.6% | I11: =IF(SUM(IncStmt!F6:H6)=0,0,SUM(IncStmt!F20:H20)/SUM(IncStmt!F6:H6)) -> 97.6% | J11: =IncStmt!J21 -> 63.1% | K11: =IncStmt!K21 -> 45.7% | L11: =IncStmt!L21 -> 0.0% | M11: =IF(SUM(IncStmt!J6:L6)=0,0,SUM(IncStmt!J20:L20)/SUM(IncStmt!J6:L6)) -> 54.4% | N11: =IncStmt!N21 -> 0.0% | O11: =IncStmt!O21 -> 0.0% | P11: =IncStmt!P21 -> 0.0% | Q11: =IF(SUM(IncStmt!N6:P6)=0,0,SUM(IncStmt!N20:P20)/SUM(IncStmt!N6:P6)) -> 0.0% | R11: =IncStmt!R21 -> 0.0% | S11: =IncStmt!S21 -> 0.0% | T11: =IncStmt!T21 -> 0.0% | U11: =IF(SUM(IncStmt!R6:T6)=0,0,SUM(IncStmt!R20:T20)/SUM(IncStmt!R6:T6)) -> 0.0% | V11: =IncStmt!V21 -> 0.0% | W11: =IncStmt!W21 -> 0.0% | X11: =IncStmt!X21 -> 0.0% | Y11: =IF(SUM(IncStmt!V6:X6)=0,0,SUM(IncStmt!V20:X20)/SUM(IncStmt!V6:X6)) -> 0.0%
A12: =Labels!B225 -> Return on Sales % | B12: =IncStmt!B27 -> 0.0% | C12: =IncStmt!C27 -> 0.0% | D12: =IncStmt!D27 -> 97.6% | E12: =IF(SUM(IncStmt!B6:D6)=0,0,SUM(IncStmt!B26:D26)/SUM(IncStmt!B6:D6)) -> 97.6% | F12: =IncStmt!F27 -> 97.6% | G12: =IncStmt!G27 -> 0.0% | H12: =IncStmt!H27 -> 97.6% | I12: =IF(SUM(IncStmt!F6:H6)=0,0,SUM(IncStmt!F26:H26)/SUM(IncStmt!F6:H6)) -> 97.6% | J12: =IncStmt!J27 -> 63.1% | K12: =IncStmt!K27 -> 45.7% | L12: =IncStmt!L27 -> 0.0% | M12: =IF(SUM(IncStmt!J6:L6)=0,0,SUM(IncStmt!J26:L26)/SUM(IncStmt!J6:L6)) -> 54.4% | N12: =IncStmt!N27 -> 0.0% | O12: =IncStmt!O27 -> 0.0% | P12: =IncStmt!P27 -> 0.0% | Q12: =IF(SUM(IncStmt!N6:P6)=0,0,SUM(IncStmt!N26:P26)/SUM(IncStmt!N6:P6)) -> 0.0% | R12: =IncStmt!R27 -> 0.0% | S12: =IncStmt!S27 -> 0.0% | T12: =IncStmt!T27 -> 0.0% | U12: =IF(SUM(IncStmt!R6:T6)=0,0,SUM(IncStmt!R26:T26)/SUM(IncStmt!R6:T6)) -> 0.0% | V12: =IncStmt!V27 -> 0.0% | W12: =IncStmt!W27 -> 0.0% | X12: =IncStmt!X27 -> 0.0% | Y12: =IF(SUM(IncStmt!V6:X6)=0,0,SUM(IncStmt!V26:X26)/SUM(IncStmt!V6:X6)) -> 0.0%
A13: ="Expense Ratios" -> Expense Ratios
A14: =Labels!B121 -> Mktg Exp Ratio | B14: =IF(IncStmt!B6=0,0,OpExp!B8/IncStmt!B6) -> 0.0% | C14: =IF(IncStmt!C6=0,0,OpExp!C8/IncStmt!C6) -> 0.0% | D14: =IF(IncStmt!D6=0,0,OpExp!D8/IncStmt!D6) -> 0.0% | E14: =AVERAGE(B14:D14) -> 0.0% | F14: =IF(IncStmt!F6=0,0,OpExp!F8/IncStmt!F6) -> 0.0% | G14: =IF(IncStmt!G6=0,0,OpExp!G8/IncStmt!G6) -> 0.0% | H14: =IF(IncStmt!H6=0,0,OpExp!H8/IncStmt!H6) -> 0.0% | I14: =AVERAGE(F14:H14) -> 0.0% | J14: =IF(IncStmt!J6=0,0,OpExp!J8/IncStmt!J6) -> 0.0% | K14: =IF(IncStmt!K6=0,0,OpExp!K8/IncStmt!K6) -> 0.0% | L14: =IF(IncStmt!L6=0,0,OpExp!L8/IncStmt!L6) -> 0.0% | M14: =AVERAGE(J14:L14) -> 0.0% | N14: =IF(IncStmt!N6=0,0,OpExp!N8/IncStmt!N6) -> 0.0% | O14: =IF(IncStmt!O6=0,0,OpExp!O8/IncStmt!O6) -> 0.0% | P14: =IF(IncStmt!P6=0,0,OpExp!P8/IncStmt!P6) -> 0.0% | Q14: =AVERAGE(N14:P14) -> 0.0% | R14: =IF(IncStmt!R6=0,0,OpExp!R8/IncStmt!R6) -> 0.0% | S14: =IF(IncStmt!S6=0,0,OpExp!S8/IncStmt!S6) -> 0.0% | T14: =IF(IncStmt!T6=0,0,OpExp!T8/IncStmt!T6) -> 0.0% | U14: =AVERAGE(R14:T14) -> 0.0% | V14: =IF(IncStmt!V6=0,0,OpExp!V8/IncStmt!V6) -> 0.0% | W14: =IF(IncStmt!W6=0,0,OpExp!W8/IncStmt!W6) -> 0.0% | X14: =IF(IncStmt!X6=0,0,OpExp!X8/IncStmt!X6) -> 0.0% | Y14: =AVERAGE(V14:X14) -> 0.0%
A15: =Labels!B244 -> Selling Exp Ratio | B15: =IF(IncStmt!B6=0,0,OpExp!B9/IncStmt!B6) -> 0.0% | C15: =IF(IncStmt!C6=0,0,OpExp!C9/IncStmt!C6) -> 0.0% | D15: =IF(IncStmt!D6=0,0,OpExp!D9/IncStmt!D6) -> 0.0% | E15: =AVERAGE(B15:D15) -> 0.0% | F15: =IF(IncStmt!F6=0,0,OpExp!F9/IncStmt!F6) -> 0.0% | G15: =IF(IncStmt!G6=0,0,OpExp!G9/IncStmt!G6) -> 0.0% | H15: =IF(IncStmt!H6=0,0,OpExp!H9/IncStmt!H6) -> 0.0% | I15: =AVERAGE(F15:H15) -> 0.0% | J15: =IF(IncStmt!J6=0,0,OpExp!J9/IncStmt!J6) -> 0.0% | K15: =IF(IncStmt!K6=0,0,OpExp!K9/IncStmt!K6) -> 0.0% | L15: =IF(IncStmt!L6=0,0,OpExp!L9/IncStmt!L6) -> 0.0% | M15: =AVERAGE(J15:L15) -> 0.0% | N15: =IF(IncStmt!N6=0,0,OpExp!N9/IncStmt!N6) -> 0.0% | O15: =IF(IncStmt!O6=0,0,OpExp!O9/IncStmt!O6) -> 0.0% | P15: =IF(IncStmt!P6=0,0,OpExp!P9/IncStmt!P6) -> 0.0% | Q15: =AVERAGE(N15:P15) -> 0.0% | R15: =IF(IncStmt!R6=0,0,OpExp!R9/IncStmt!R6) -> 0.0% | S15: =IF(IncStmt!S6=0,0,OpExp!S9/IncStmt!S6) -> 0.0% | T15: =IF(IncStmt!T6=0,0,OpExp!T9/IncStmt!T6) -> 0.0% | U15: =AVERAGE(R15:T15) -> 0.0% | V15: =IF(IncStmt!V6=0,0,OpExp!V9/IncStmt!V6) -> 0.0% | W15: =IF(IncStmt!W6=0,0,OpExp!W9/IncStmt!W6) -> 0.0% | X15: =IF(IncStmt!X6=0,0,OpExp!X9/IncStmt!X6) -> 0.0% | Y15: =AVERAGE(V15:X15) -> 0.0%
A16: =Labels!B151 -> Practice Dev % Rev
A17: =" "&Labels!B381 -> Practice 1 | B17: =IF(Practices!B9=0,0,Practices!B329/Practices!B9) -> 0.0% | C17: =IF(Practices!C9=0,0,Practices!C329/Practices!C9) -> 0.0% | D17: =IF(Practices!D9=0,0,Practices!D329/Practices!D9) -> 0.0% | E17: =AVERAGE(B17:D17) -> 0.0% | F17: =IF(Practices!F9=0,0,Practices!F329/Practices!F9) -> 0.0% | G17: =IF(Practices!G9=0,0,Practices!G329/Practices!G9) -> 0.0% | H17: =IF(Practices!H9=0,0,Practices!H329/Practices!H9) -> 0.0% | I17: =AVERAGE(F17:H17) -> 0.0% | J17: =IF(Practices!J9=0,0,Practices!J329/Practices!J9) -> 0.0% | K17: =IF(Practices!K9=0,0,Practices!K329/Practices!K9) -> 0.0% | L17: =IF(Practices!L9=0,0,Practices!L329/Practices!L9) -> 0.0% | M17: =AVERAGE(J17:L17) -> 0.0% | N17: =IF(Practices!N9=0,0,Practices!N329/Practices!N9) -> 0.0% | O17: =IF(Practices!O9=0,0,Practices!O329/Practices!O9) -> 0.0% | P17: =IF(Practices!P9=0,0,Practices!P329/Practices!P9) -> 0.0% | Q17: =AVERAGE(N17:P17) -> 0.0% | R17: =IF(Practices!R9=0,0,Practices!R329/Practices!R9) -> 0.0% | S17: =IF(Practices!S9=0,0,Practices!S329/Practices!S9) -> 0.0% | T17: =IF(Practices!T9=0,0,Practices!T329/Practices!T9) -> 0.0% | U17: =AVERAGE(R17:T17) -> 0.0% | V17: =IF(Practices!V9=0,0,Practices!V329/Practices!V9) -> 0.0% | W17: =IF(Practices!W9=0,0,Practices!W329/Practices!W9) -> 0.0% | X17: =IF(Practices!X9=0,0,Practices!X329/Practices!X9) -> 0.0% | Y17: =AVERAGE(V17:X17) -> 0.0%
A18: =" "&Labels!B382 -> Practice 2 | B18: =IF(Practices!B10=0,0,Practices!B330/Practices!B10) -> 0.0% | C18: =IF(Practices!C10=0,0,Practices!C330/Practices!C10) -> 0.0% | D18: =IF(Practices!D10=0,0,Practices!D330/Practices!D10) -> 0.0% | E18: =AVERAGE(B18:D18) -> 0.0% | F18: =IF(Practices!F10=0,0,Practices!F330/Practices!F10) -> 0.0% | G18: =IF(Practices!G10=0,0,Practices!G330/Practices!G10) -> 0.0% | H18: =IF(Practices!H10=0,0,Practices!H330/Practices!H10) -> 0.0% | I18: =AVERAGE(F18:H18) -> 0.0% | J18: =IF(Practices!J10=0,0,Practices!J330/Practices!J10) -> 0.0% | K18: =IF(Practices!K10=0,0,Practices!K330/Practices!K10) -> 0.0% | L18: =IF(Practices!L10=0,0,Practices!L330/Practices!L10) -> 0.0% | M18: =AVERAGE(J18:L18) -> 0.0% | N18: =IF(Practices!N10=0,0,Practices!N330/Practices!N10) -> 0.0% | O18: =IF(Practices!O10=0,0,Practices!O330/Practices!O10) -> 0.0% | P18: =IF(Practices!P10=0,0,Practices!P330/Practices!P10) -> 0.0% | Q18: =AVERAGE(N18:P18) -> 0.0% | R18: =IF(Practices!R10=0,0,Practices!R330/Practices!R10) -> 0.0% | S18: =IF(Practices!S10=0,0,Practices!S330/Practices!S10) -> 0.0% | T18: =IF(Practices!T10=0,0,Practices!T330/Practices!T10) -> 0.0% | U18: =AVERAGE(R18:T18) -> 0.0% | V18: =IF(Practices!V10=0,0,Practices!V330/Practices!V10) -> 0.0% | W18: =IF(Practices!W10=0,0,Practices!W330/Practices!W10) -> 0.0% | X18: =IF(Practices!X10=0,0,Practices!X330/Practices!X10) -> 0.0% | Y18: =AVERAGE(V18:X18) -> 0.0%
A19: =" "&Labels!C380 -> Total | B19: =AVERAGE(B17:B18) -> 0.0% | C19: =AVERAGE(C17:C18) -> 0.0% | D19: =AVERAGE(D17:D18) -> 0.0% | E19: =AVERAGE(B19:D19) -> 0.0% | F19: =AVERAGE(F17:F18) -> 0.0% | G19: =AVERAGE(G17:G18) -> 0.0% | H19: =AVERAGE(H17:H18) -> 0.0% | I19: =AVERAGE(F19:H19) -> 0.0% | J19: =AVERAGE(J17:J18) -> 0.0% | K19: =AVERAGE(K17:K18) -> 0.0% | L19: =AVERAGE(L17:L18) -> 0.0% | M19: =AVERAGE(J19:L19) -> 0.0% | N19: =AVERAGE(N17:N18) -> 0.0% | O19: =AVERAGE(O17:O18) -> 0.0% | P19: =AVERAGE(P17:P18) -> 0.0% | Q19: =AVERAGE(N19:P19) -> 0.0% | R19: =AVERAGE(R17:R18) -> 0.0% | S19: =AVERAGE(S17:S18) -> 0.0% | T19: =AVERAGE(T17:T18) -> 0.0% | U19: =AVERAGE(R19:T19) -> 0.0% | V19: =AVERAGE(V17:V18) -> 0.0% | W19: =AVERAGE(W17:W18) -> 0.0% | X19: =AVERAGE(X17:X18) -> 0.0% | Y19: =AVERAGE(V19:X19) -> 0.0%
A20: =Labels!B96 -> G&A Exp Ratio | B20: =IF(IncStmt!B6=0,0,OpExp!B170/IncStmt!B6) -> 0.0% | C20: =IF(IncStmt!C6=0,0,OpExp!C170/IncStmt!C6) -> 0.0% | D20: =IF(IncStmt!D6=0,0,OpExp!D170/IncStmt!D6) -> 0.0% | E20: =AVERAGE(B20:D20) -> 0.0% | F20: =IF(IncStmt!F6=0,0,OpExp!F170/IncStmt!F6) -> 0.0% | G20: =IF(IncStmt!G6=0,0,OpExp!G170/IncStmt!G6) -> 0.0% | H20: =IF(IncStmt!H6=0,0,OpExp!H170/IncStmt!H6) -> 0.0% | I20: =AVERAGE(F20:H20) -> 0.0% | J20: =IF(IncStmt!J6=0,0,OpExp!J170/IncStmt!J6) -> 0.0% | K20: =IF(IncStmt!K6=0,0,OpExp!K170/IncStmt!K6) -> 0.0% | L20: =IF(IncStmt!L6=0,0,OpExp!L170/IncStmt!L6) -> 0.0% | M20: =AVERAGE(J20:L20) -> 0.0% | N20: =IF(IncStmt!N6=0,0,OpExp!N170/IncStmt!N6) -> 0.0% | O20: =IF(IncStmt!O6=0,0,OpExp!O170/IncStmt!O6) -> 0.0% | P20: =IF(IncStmt!P6=0,0,OpExp!P170/IncStmt!P6) -> 0.0% | Q20: =AVERAGE(N20:P20) -> 0.0% | R20: =IF(IncStmt!R6=0,0,OpExp!R170/IncStmt!R6) -> 0.0% | S20: =IF(IncStmt!S6=0,0,OpExp!S170/IncStmt!S6) -> 0.0% | T20: =IF(IncStmt!T6=0,0,OpExp!T170/IncStmt!T6) -> 0.0% | U20: =AVERAGE(R20:T20) -> 0.0% | V20: =IF(IncStmt!V6=0,0,OpExp!V170/IncStmt!V6) -> 0.0% | W20: =IF(IncStmt!W6=0,0,OpExp!W170/IncStmt!W6) -> 0.0% | X20: =IF(IncStmt!X6=0,0,OpExp!X170/IncStmt!X6) -> 0.0% | Y20: =AVERAGE(V20:X20) -> 0.0%
A21: ="Liquidity Ratios" -> Liquidity Ratios
A22: =Labels!B52 -> Current Ratio | B22: =IF(BalSht!C19=0,0,BalSht!C11/BalSht!C19) -> 0.00 | C22: =IF(BalSht!D19=0,0,BalSht!D11/BalSht!D19) -> 0.00 | D22: =IF(BalSht!E19=0,0,BalSht!E11/BalSht!E19) -> 1.51 | E22: =IF(BalSht!E19=0,0,BalSht!E11/BalSht!E19) -> 1.51 | F22: =IF(BalSht!G19=0,0,BalSht!G11/BalSht!G19) -> 2.86 | G22: =IF(BalSht!H19=0,0,BalSht!H11/BalSht!H19) -> 0.00 | H22: =IF(BalSht!I19=0,0,BalSht!I11/BalSht!I19) -> 0.00 | I22: =IF(BalSht!I19=0,0,BalSht!I11/BalSht!I19) -> 0.00 | J22: =IF(BalSht!K19=0,0,BalSht!K11/BalSht!K19) -> 0.00 | K22: =IF(BalSht!L19=0,0,BalSht!L11/BalSht!L19) -> 0.00 | L22: =IF(BalSht!M19=0,0,BalSht!M11/BalSht!M19) -> 0.00 | M22: =IF(BalSht!M19=0,0,BalSht!M11/BalSht!M19) -> 0.00 | N22: =IF(BalSht!O19=0,0,BalSht!O11/BalSht!O19) -> 0.00 | O22: =IF(BalSht!P19=0,0,BalSht!P11/BalSht!P19) -> 0.00 | P22: =IF(BalSht!Q19=0,0,BalSht!Q11/BalSht!Q19) -> 0.00 | Q22: =IF(BalSht!Q19=0,0,BalSht!Q11/BalSht!Q19) -> 0.00 | R22: =IF(BalSht!S19=0,0,BalSht!S11/BalSht!S19) -> 0.00 | S22: =IF(BalSht!T19=0,0,BalSht!T11/BalSht!T19) -> 0.00 | T22: =IF(BalSht!U19=0,0,BalSht!U11/BalSht!U19) -> 0.00 | U22: =IF(BalSht!U19=0,0,BalSht!U11/BalSht!U19) -> 0.00 | V22: =IF(BalSht!W19=0,0,BalSht!W11/BalSht!W19) -> 0.00 | W22: =IF(BalSht!X19=0,0,BalSht!X11/BalSht!X19) -> 0.00 | X22: =IF(BalSht!Y19=0,0,BalSht!Y11/BalSht!Y19) -> 0.00 | Y22: =IF(BalSht!Y19=0,0,BalSht!Y11/BalSht!Y19) -> 0.00
A23: =Labels!B212 -> Quick Ratio | B23: =IF(BalSht!C19=0,0,(BalSht!C11-BalSht!C10)/BalSht!C19) -> 0.00 | C23: =IF(BalSht!D19=0,0,(BalSht!D11-BalSht!D10)/BalSht!D19) -> 0.00 | D23: =IF(BalSht!E19=0,0,(BalSht!E11-BalSht!E10)/BalSht!E19) -> 1.51 | E23: =IF(BalSht!E19=0,0,(BalSht!E11-BalSht!E10)/BalSht!E19) -> 1.51 | F23: =IF(BalSht!G19=0,0,(BalSht!G11-BalSht!G10)/BalSht!G19) -> 2.86 | G23: =IF(BalSht!H19=0,0,(BalSht!H11-BalSht!H10)/BalSht!H19) -> 0.00 | H23: =IF(BalSht!I19=0,0,(BalSht!I11-BalSht!I10)/BalSht!I19) -> 0.00 | I23: =IF(BalSht!I19=0,0,(BalSht!I11-BalSht!I10)/BalSht!I19) -> 0.00 | J23: =IF(BalSht!K19=0,0,(BalSht!K11-BalSht!K10)/BalSht!K19) -> 0.00 | K23: =IF(BalSht!L19=0,0,(BalSht!L11-BalSht!L10)/BalSht!L19) -> 0.00 | L23: =IF(BalSht!M19=0,0,(BalSht!M11-BalSht!M10)/BalSht!M19) -> 0.00 | M23: =IF(BalSht!M19=0,0,(BalSht!M11-BalSht!M10)/BalSht!M19) -> 0.00 | N23: =IF(BalSht!O19=0,0,(BalSht!O11-BalSht!O10)/BalSht!O19) -> 0.00 | O23: =IF(BalSht!P19=0,0,(BalSht!P11-BalSht!P10)/BalSht!P19) -> 0.00 | P23: =IF(BalSht!Q19=0,0,(BalSht!Q11-BalSht!Q10)/BalSht!Q19) -> 0.00 | Q23: =IF(BalSht!Q19=0,0,(BalSht!Q11-BalSht!Q10)/BalSht!Q19) -> 0.00 | R23: =IF(BalSht!S19=0,0,(BalSht!S11-BalSht!S10)/BalSht!S19) -> 0.00 | S23: =IF(BalSht!T19=0,0,(BalSht!T11-BalSht!T10)/BalSht!T19) -> 0.00 | T23: =IF(BalSht!U19=0,0,(BalSht!U11-BalSht!U10)/BalSht!U19) -> 0.00 | U23: =IF(BalSht!U19=0,0,(BalSht!U11-BalSht!U10)/BalSht!U19) -> 0.00 | V23: =IF(BalSht!W19=0,0,(BalSht!W11-BalSht!W10)/BalSht!W19) -> 0.00 | W23: =IF(BalSht!X19=0,0,(BalSht!X11-BalSht!X10)/BalSht!X19) -> 0.00 | X23: =IF(BalSht!Y19=0,0,(BalSht!Y11-BalSht!Y10)/BalSht!Y19) -> 0.00 | Y23: =IF(BalSht!Y19=0,0,(BalSht!Y11-BalSht!Y10)/BalSht!Y19) -> 0.00
A24: ="Turnover Ratios" -> Turnover Ratios
A25: =Labels!B231 -> Revenue / Prof Staff | B25: =IF('GM CostSvcs'!B486=0,0,12*'(Tables)'!B794/'GM CostSvcs'!B486) -> $0 | C25: =IF('GM CostSvcs'!C486=0,0,12*'(Tables)'!C794/'GM CostSvcs'!C486) -> $0 | D25: =IF('GM CostSvcs'!D486=0,0,12*'(Tables)'!D794/'GM CostSvcs'!D486) -> $0 | E25: =IF('GM CostSvcs'!D486=0,0,4*SUM('(Tables)'!B794:D794)/'GM CostSvcs'!D486) -> $0 | F25: =IF('GM CostSvcs'!F486=0,0,12*'(Tables)'!E794/'GM CostSvcs'!F486) -> $0 | G25: =IF('GM CostSvcs'!G486=0,0,12*'(Tables)'!F794/'GM CostSvcs'!G486) -> $0 | H25: =IF('GM CostSvcs'!H486=0,0,12*'(Tables)'!G794/'GM CostSvcs'!H486) -> $0 | I25: =IF('GM CostSvcs'!H486=0,0,4*SUM('(Tables)'!E794:G794)/'GM CostSvcs'!H486) -> $0 | J25: =IF('GM CostSvcs'!J486=0,0,12*'(Tables)'!H794/'GM CostSvcs'!J486) -> $480,000 | K25: =IF('GM CostSvcs'!K486=0,0,12*'(Tables)'!I794/'GM CostSvcs'!K486) -> $240,000 | L25: =IF('GM CostSvcs'!L486=0,0,12*'(Tables)'!J794/'GM CostSvcs'!L486) -> $0 | M25: =IF('GM CostSvcs'!L486=0,0,4*SUM('(Tables)'!H794:J794)/'GM CostSvcs'!L486) -> $0 | N25: =IF('GM CostSvcs'!N486=0,0,12*'(Tables)'!K794/'GM CostSvcs'!N486) -> $0 | O25: =IF('GM CostSvcs'!O486=0,0,12*'(Tables)'!L794/'GM CostSvcs'!O486) -> $0 | P25: =IF('GM CostSvcs'!P486=0,0,12*'(Tables)'!M794/'GM CostSvcs'!P486) -> $0 | Q25: =IF('GM CostSvcs'!P486=0,0,4*SUM('(Tables)'!K794:M794)/'GM CostSvcs'!P486) -> $0 | R25: =IF('GM CostSvcs'!R486=0,0,12*'(Tables)'!N794/'GM CostSvcs'!R486) -> $0 | S25: =IF('GM CostSvcs'!S486=0,0,12*'(Tables)'!O794/'GM CostSvcs'!S486) -> $0 | T25: =IF('GM CostSvcs'!T486=0,0,12*'(Tables)'!P794/'GM CostSvcs'!T486) -> $0 | U25: =IF('GM CostSvcs'!T486=0,0,4*SUM('(Tables)'!N794:P794)/'GM CostSvcs'!T486) -> $0 | V25: =IF('GM CostSvcs'!V486=0,0,12*'(Tables)'!Q794/'GM CostSvcs'!V486) -> $0 | W25: =IF('GM CostSvcs'!W486=0,0,12*'(Tables)'!R794/'GM CostSvcs'!W486) -> $0 | X25: =IF('GM CostSvcs'!X486=0,0,12*'(Tables)'!S794/'GM CostSvcs'!X486) -> $0 | Y25: =IF('GM CostSvcs'!X486=0,0,4*SUM('(Tables)'!Q794:S794)/'GM CostSvcs'!X486) -> $0
A26: =Labels!B13 -> Asset Turnover | B26: =IF(BalSht!C13=0,0,IncStmt!B6/BalSht!C13) -> 0.00 | C26: =IF(BalSht!D13=0,0,IncStmt!C6/BalSht!D13) -> 0.00 | D26: =IF(BalSht!E13=0,0,IncStmt!D6/BalSht!E13) -> 0.34 | E26: =IF(BalSht!E13=0,0,SUM(IncStmt!B6:D6)/BalSht!E13) -> 0.34 | F26: =IF(BalSht!G13=0,0,IncStmt!F6/BalSht!G13) -> 0.33 | G26: =IF(BalSht!H13=0,0,IncStmt!G6/BalSht!H13) -> 0.00 | H26: =IF(BalSht!I13=0,0,IncStmt!H6/BalSht!I13) -> 0.27 | I26: =IF(BalSht!I13=0,0,SUM(IncStmt!F6:H6)/BalSht!I13) -> 0.65 | J26: =IF(BalSht!K13=0,0,IncStmt!J6/BalSht!K13) -> 0.23 | K26: =IF(BalSht!L13=0,0,IncStmt!K6/BalSht!L13) -> 0.21 | L26: =IF(BalSht!M13=0,0,IncStmt!L6/BalSht!M13) -> 0.00 | M26: =IF(BalSht!M13=0,0,SUM(IncStmt!J6:L6)/BalSht!M13) -> 0.42 | N26: =IF(BalSht!O13=0,0,IncStmt!N6/BalSht!O13) -> 0.00 | O26: =IF(BalSht!P13=0,0,IncStmt!O6/BalSht!P13) -> 0.00 | P26: =IF(BalSht!Q13=0,0,IncStmt!P6/BalSht!Q13) -> 0.00 | Q26: =IF(BalSht!Q13=0,0,SUM(IncStmt!N6:P6)/BalSht!Q13) -> 0.00 | R26: =IF(BalSht!S13=0,0,IncStmt!R6/BalSht!S13) -> 0.00 | S26: =IF(BalSht!T13=0,0,IncStmt!S6/BalSht!T13) -> 0.00 | T26: =IF(BalSht!U13=0,0,IncStmt!T6/BalSht!U13) -> 0.00 | U26: =IF(BalSht!U13=0,0,SUM(IncStmt!R6:T6)/BalSht!U13) -> 0.00 | V26: =IF(BalSht!W13=0,0,IncStmt!V6/BalSht!W13) -> 0.00 | W26: =IF(BalSht!X13=0,0,IncStmt!W6/BalSht!X13) -> 0.00 | X26: =IF(BalSht!Y13=0,0,IncStmt!X6/BalSht!Y13) -> 0.00 | Y26: =IF(BalSht!Y13=0,0,SUM(IncStmt!V6:X6)/BalSht!Y13) -> 0.00
A27: ="Capital Ratios" -> Capital Ratios
A28: =Labels!B223 -> Return on Assets | B28: =0 -> 0.0% | C28: =0 -> 0.0% | D28: =0 -> 0.0% | E28: =AVERAGE(B28:D28) -> 0.0% | F28: =0 -> 0.0% | G28: =0 -> 0.0% | H28: =0 -> 0.0% | I28: =AVERAGE(F28:H28) -> 0.0% | J28: =0 -> 0.0% | K28: =0 -> 0.0% | L28: =0 -> 0.0% | M28: =AVERAGE(J28:L28) -> 0.0% | N28: =0 -> 0.0% | O28: =0 -> 0.0% | P28: =IF(BalSht!Q13=0,0,SUM(IncStmt!B26:D26,IncStmt!F26:H26,IncStmt!J26:L26,IncStmt!N26:P26)/BalSht!Q13) -> 100.0% | Q28: =AVERAGE(N28:P28) -> 33.3% | R28: =IF(BalSht!S13=0,0,SUM(IncStmt!C26:D26,IncStmt!F26:H26,IncStmt!J26:L26,IncStmt!N26:P26,IncStmt!R26)/BalSht!S13) -> 100.0% | S28: =IF(BalSht!T13=0,0,SUM(IncStmt!D26,IncStmt!F26:H26,IncStmt!J26:L26,IncStmt!N26:P26,IncStmt!R26:S26)/BalSht!T13) -> 100.0% | T28: =IF(BalSht!U13=0,0,SUM(IncStmt!F26:H26,IncStmt!J26:L26,IncStmt!N26:P26,IncStmt!R26:T26)/BalSht!U13) -> 71.7% | U28: =AVERAGE(R28:T28) -> 90.6% | V28: =IF(BalSht!W13=0,0,SUM(IncStmt!G26:H26,IncStmt!J26:L26,IncStmt!N26:P26,IncStmt!R26:T26,IncStmt!V26)/BalSht!W13) -> 43.5% | W28: =IF(BalSht!X13=0,0,SUM(IncStmt!H26,IncStmt!J26:L26,IncStmt!N26:P26,IncStmt!R26:T26,IncStmt!V26:W26)/BalSht!X13) -> 43.5% | X28: =IF(BalSht!Y13=0,0,SUM(IncStmt!J26:L26,IncStmt!N26:P26,IncStmt!R26:T26,IncStmt!V26:X26)/BalSht!Y13) -> 22.9% | Y28: =AVERAGE(V28:X28) -> 36.6%
A29: =Labels!B224 -> Return on Equity | B29: =0 -> 0.0% | C29: =0 -> 0.0% | D29: =0 -> 0.0% | E29: =AVERAGE(B29:D29) -> 0.0% | F29: =0 -> 0.0% | G29: =0 -> 0.0% | H29: =0 -> 0.0% | I29: =AVERAGE(F29:H29) -> 0.0% | J29: =0 -> 0.0% | K29: =0 -> 0.0% | L29: =0 -> 0.0% | M29: =AVERAGE(J29:L29) -> 0.0% | N29: =0 -> 0.0% | O29: =0 -> 0.0% | P29: =IF(BalSht!Q29=0,0,SUM(IncStmt!B26:D26,IncStmt!F26:H26,IncStmt!J26:L26,IncStmt!N26:P26)/BalSht!Q29) -> 100.0% | Q29: =AVERAGE(N29:P29) -> 33.3% | R29: =IF(BalSht!S29=0,0,SUM(IncStmt!C26:D26,IncStmt!F26:H26,IncStmt!J26:L26,IncStmt!N26:P26,IncStmt!R26)/BalSht!S29) -> 100.0% | S29: =IF(BalSht!T29=0,0,SUM(IncStmt!D26,IncStmt!F26:H26,IncStmt!J26:L26,IncStmt!N26:P26,IncStmt!R26:S26)/BalSht!T29) -> 100.0% | T29: =IF(BalSht!U29=0,0,SUM(IncStmt!F26:H26,IncStmt!J26:L26,IncStmt!N26:P26,IncStmt!R26:T26)/BalSht!U29) -> 71.7% | U29: =AVERAGE(R29:T29) -> 90.6% | V29: =IF(BalSht!W29=0,0,SUM(IncStmt!G26:H26,IncStmt!J26:L26,IncStmt!N26:P26,IncStmt!R26:T26,IncStmt!V26)/BalSht!W29) -> 43.5% | W29: =IF(BalSht!X29=0,0,SUM(IncStmt!H26,IncStmt!J26:L26,IncStmt!N26:P26,IncStmt!R26:T26,IncStmt!V26:W26)/BalSht!X29) -> 43.5% | X29: =IF(BalSht!Y29=0,0,SUM(IncStmt!J26:L26,IncStmt!N26:P26,IncStmt!R26:T26,IncStmt!V26:X26)/BalSht!Y29) -> 22.9% | Y29: =AVERAGE(V29:X29) -> 36.6%
A30: =Labels!B159 -> Price Earnings Ratio | B30: =0 -> 0.0 | C30: =0 -> 0.0 | D30: =0 -> 0.0 | E30: =D30 -> 0.0 | F30: =0 -> 0.0 | G30: =0 -> 0.0 | H30: =0 -> 0.0 | I30: =H30 -> 0.0 | J30: =0 -> 0.0 | K30: =0 -> 0.0 | L30: =0 -> 0.0 | M30: =L30 -> 0.0 | N30: =0 -> 0.0 | O30: =0 -> 0.0 | P30: =IF(SUM(IncStmt!B26:D26,IncStmt!F26:H26,IncStmt!J26:L26,IncStmt!N26:P26)=0,0,Value!P6/SUM(IncStmt!B26:D26,IncStmt!F26:H26,IncStmt!J26:L26,IncStmt!N26:P26)) -> 0.0 | Q30: =P30 -> 0.0 | R30: =IF(SUM(IncStmt!C26:D26,IncStmt!F26:H26,IncStmt!J26:L26,IncStmt!N26:P26,IncStmt!R26)=0,0,Value!R6/SUM(IncStmt!C26:D26,IncStmt!F26:H26,IncStmt!J26:L26,IncStmt!N26:P26,IncStmt!R26)) -> 0.0 | S30: =IF(SUM(IncStmt!D26,IncStmt!F26:H26,IncStmt!J26:L26,IncStmt!N26:P26,IncStmt!R26:S26)=0,0,Value!S6/SUM(IncStmt!D26,IncStmt!F26:H26,IncStmt!J26:L26,IncStmt!N26:P26,IncStmt!R26:S26)) -> 0.0 | T30: =IF(SUM(IncStmt!F26:H26,IncStmt!J26:L26,IncStmt!N26:P26,IncStmt!R26:T26)=0,0,Value!T6/SUM(IncStmt!F26:H26,IncStmt!J26:L26,IncStmt!N26:P26,IncStmt!R26:T26)) -> 0.0 | U30: =T30 -> 0.0 | V30: =IF(SUM(IncStmt!G26:H26,IncStmt!J26:L26,IncStmt!N26:P26,IncStmt!R26:T26,IncStmt!V26)=0,0,Value!V6/SUM(IncStmt!G26:H26,IncStmt!J26:L26,IncStmt!N26:P26,IncStmt!R26:T26,IncStmt!V26)) -> 0.0 | W30: =IF(SUM(IncStmt!H26,IncStmt!J26:L26,IncStmt!N26:P26,IncStmt!R26:T26,IncStmt!V26:W26)=0,0,Value!W6/SUM(IncStmt!H26,IncStmt!J26:L26,IncStmt!N26:P26,IncStmt!R26:T26,IncStmt!V26:W26)) -> 0.0 | X30: =IF(SUM(IncStmt!J26:L26,IncStmt!N26:P26,IncStmt!R26:T26,IncStmt!V26:X26)=0,0,Value!X6/SUM(IncStmt!J26:L26,IncStmt!N26:P26,IncStmt!R26:T26,IncStmt!V26:X26)) -> 0.0 | Y30: =X30 -> 0.0
A31: =Labels!B160 -> Price/Sales Ratio | B31: =0 -> 0.0 | C31: =0 -> 0.0 | D31: =0 -> 0.0 | E31: =D31 -> 0.0 | F31: =0 -> 0.0 | G31: =0 -> 0.0 | H31: =0 -> 0.0 | I31: =H31 -> 0.0 | J31: =0 -> 0.0 | K31: =0 -> 0.0 | L31: =0 -> 0.0 | M31: =L31 -> 0.0 | N31: =0 -> 0.0 | O31: =0 -> 0.0 | P31: =IF(SUM(IncStmt!B6:D6,IncStmt!F6:H6,IncStmt!J6:L6,IncStmt!N6:P6)=0,0,Value!P6/SUM(IncStmt!B6:D6,IncStmt!F6:H6,IncStmt!J6:L6,IncStmt!N6:P6)) -> 0.0 | Q31: =P31 -> 0.0 | R31: =IF(SUM(IncStmt!C6:D6,IncStmt!F6:H6,IncStmt!J6:L6,IncStmt!N6:P6,IncStmt!R6)=0,0,Value!R6/SUM(IncStmt!C6:D6,IncStmt!F6:H6,IncStmt!J6:L6,IncStmt!N6:P6,IncStmt!R6)) -> 0.0 | S31: =IF(SUM(IncStmt!D6,IncStmt!F6:H6,IncStmt!J6:L6,IncStmt!N6:P6,IncStmt!R6:S6)=0,0,Value!S6/SUM(IncStmt!D6,IncStmt!F6:H6,IncStmt!J6:L6,IncStmt!N6:P6,IncStmt!R6:S6)) -> 0.0 | T31: =IF(SUM(IncStmt!F6:H6,IncStmt!J6:L6,IncStmt!N6:P6,IncStmt!R6:T6)=0,0,Value!T6/SUM(IncStmt!F6:H6,IncStmt!J6:L6,IncStmt!N6:P6,IncStmt!R6:T6)) -> 0.0 | U31: =T31 -> 0.0 | V31: =IF(SUM(IncStmt!G6:H6,IncStmt!J6:L6,IncStmt!N6:P6,IncStmt!R6:T6,IncStmt!V6)=0,0,Value!V6/SUM(IncStmt!G6:H6,IncStmt!J6:L6,IncStmt!N6:P6,IncStmt!R6:T6,IncStmt!V6)) -> 0.0 | W31: =IF(SUM(IncStmt!H6,IncStmt!J6:L6,IncStmt!N6:P6,IncStmt!R6:T6,IncStmt!V6:W6)=0,0,Value!W6/SUM(IncStmt!H6,IncStmt!J6:L6,IncStmt!N6:P6,IncStmt!R6:T6,IncStmt!V6:W6)) -> 0.0 | X31: =IF(SUM(IncStmt!J6:L6,IncStmt!N6:P6,IncStmt!R6:T6,IncStmt!V6:X6)=0,0,Value!X6/SUM(IncStmt!J6:L6,IncStmt!N6:P6,IncStmt!R6:T6,IncStmt!V6:X6)) -> 0.0 | Y31: =X31 -> 0.0
A32: =Labels!B158 -> Price Book Multiple | B32: =IF(BalSht!C29=0,0,Value!B6/BalSht!C29) -> 0.0 | C32: =IF(BalSht!D29=0,0,Value!C6/BalSht!D29) -> 0.0 | D32: =IF(BalSht!E29=0,0,Value!D6/BalSht!E29) -> 2.5 | E32: =IF(BalSht!E29=0,0,Value!D6/BalSht!E29) -> 2.5 | F32: =IF(BalSht!G29=0,0,Value!F6/BalSht!G29) -> 1.3 | G32: =IF(BalSht!H29=0,0,Value!G6/BalSht!H29) -> 0.8 | H32: =IF(BalSht!I29=0,0,Value!H6/BalSht!I29) -> 0.8 | I32: =IF(BalSht!I29=0,0,Value!H6/BalSht!I29) -> 0.8 | J32: =IF(BalSht!K29=0,0,Value!J6/BalSht!K29) -> 0.6 | K32: =IF(BalSht!L29=0,0,Value!K6/BalSht!L29) -> 0.4 | L32: =IF(BalSht!M29=0,0,Value!L6/BalSht!M29) -> 0.0 | M32: =IF(BalSht!M29=0,0,Value!L6/BalSht!M29) -> 0.0 | N32: =IF(BalSht!O29=0,0,Value!N6/BalSht!O29) -> 0.0 | O32: =IF(BalSht!P29=0,0,Value!O6/BalSht!P29) -> 0.0 | P32: =IF(BalSht!Q29=0,0,Value!P6/BalSht!Q29) -> 0.0 | Q32: =IF(BalSht!Q29=0,0,Value!P6/BalSht!Q29) -> 0.0 | R32: =IF(BalSht!S29=0,0,Value!R6/BalSht!S29) -> 0.0 | S32: =IF(BalSht!T29=0,0,Value!S6/BalSht!T29) -> 0.0 | T32: =IF(BalSht!U29=0,0,Value!T6/BalSht!U29) -> 0.0 | U32: =IF(BalSht!U29=0,0,Value!T6/BalSht!U29) -> 0.0 | V32: =IF(BalSht!W29=0,0,Value!V6/BalSht!W29) -> 0.0 | W32: =IF(BalSht!X29=0,0,Value!W6/BalSht!X29) -> 0.0 | X32: =IF(BalSht!Y29=0,0,Value!X6/BalSht!Y29) -> 0.0 | Y32: =IF(BalSht!Y29=0,0,Value!X6/BalSht!Y29) -> 0.0
A33: =Labels!B65 -> Dividend Yield | B33: =0 -> 0.0% | C33: =0 -> 0.0% | D33: =0 -> 0.0% | E33: =0 -> 0.0% | F33: =0 -> 0.0% | G33: =0 -> 0.0% | H33: =0 -> 0.0% | I33: =0 -> 0.0% | J33: =0 -> 0.0% | K33: =0 -> 0.0% | L33: =0 -> 0.0% | M33: =0 -> 0.0% | N33: =0 -> 0.0% | O33: =0 -> 0.0% | P33: =IF(ISERROR(Inputs!R432/Value!P6)," ",Inputs!R432/Value!P6) ->  | Q33: =IF(ISERROR(SUM(Inputs!P432:R432)/Value!P6)," ",SUM(Inputs!P432:R432)/Value!P6) ->  | R33: =IF(ISERROR(Inputs!S432/Value!R6)," ",Inputs!S432/Value!R6) ->  | S33: =IF(ISERROR(Inputs!T432/Value!S6)," ",Inputs!T432/Value!S6) ->  | T33: =IF(ISERROR(Inputs!U432/Value!T6)," ",Inputs!U432/Value!T6) ->  | U33: =IF(ISERROR(SUM(Inputs!S432:U432)/Value!T6)," ",SUM(Inputs!S432:U432)/Value!T6) ->  | V33: =IF(ISERROR(Inputs!V432/Value!V6)," ",Inputs!V432/Value!V6) ->  | W33: =IF(ISERROR(Inputs!W432/Value!W6)," ",Inputs!W432/Value!W6) ->  | X33: =IF(ISERROR(Inputs!X432/Value!X6)," ",Inputs!X432/Value!X6) ->  | Y33: =IF(ISERROR(SUM(Inputs!V432:X432)/Value!X6)," ",SUM(Inputs!V432:X432)/Value!X6) -> 
A34: =Labels!B53 -> Debt Ratio | B34: =IF(BalSht!C13=0,0,BalSht!C24/BalSht!C13) -> 0.0% | C34: =IF(BalSht!D13=0,0,BalSht!D24/BalSht!D13) -> 0.0% | D34: =IF(BalSht!E13=0,0,BalSht!E24/BalSht!E13) -> 66.4% | E34: =D34 -> 66.4% | F34: =IF(BalSht!G13=0,0,BalSht!G24/BalSht!G13) -> 35.0% | G34: =IF(BalSht!H13=0,0,BalSht!H24/BalSht!H13) -> 0.0% | H34: =IF(BalSht!I13=0,0,BalSht!I24/BalSht!I13) -> 0.0% | I34: =H34 -> 0.0% | J34: =IF(BalSht!K13=0,0,BalSht!K24/BalSht!K13) -> 0.0% | K34: =IF(BalSht!L13=0,0,BalSht!L24/BalSht!L13) -> 0.0% | L34: =IF(BalSht!M13=0,0,BalSht!M24/BalSht!M13) -> 0.0% | M34: =L34 -> 0.0% | N34: =IF(BalSht!O13=0,0,BalSht!O24/BalSht!O13) -> 0.0% | O34: =IF(BalSht!P13=0,0,BalSht!P24/BalSht!P13) -> 0.0% | P34: =IF(BalSht!Q13=0,0,BalSht!Q24/BalSht!Q13) -> 0.0% | Q34: =P34 -> 0.0% | R34: =IF(BalSht!S13=0,0,BalSht!S24/BalSht!S13) -> 0.0% | S34: =IF(BalSht!T13=0,0,BalSht!T24/BalSht!T13) -> 0.0% | T34: =IF(BalSht!U13=0,0,BalSht!U24/BalSht!U13) -> 0.0% | U34: =T34 -> 0.0% | V34: =IF(BalSht!W13=0,0,BalSht!W24/BalSht!W13) -> 0.0% | W34: =IF(BalSht!X13=0,0,BalSht!X24/BalSht!X13) -> 0.0% | X34: =IF(BalSht!Y13=0,0,BalSht!Y24/BalSht!Y13) -> 0.0% | Y34: =X34 -> 0.0%
A35: =Labels!B114 -> IRR Model Time (Yr) | B35: =IF(ISERROR(IRR('(Tables)'!B1462:T1462,(1+Inputs!F443)^(1/12)-1))," ",(1+IRR('(Tables)'!B1462:T1462,(1+Inputs!F443)^(1/12)-1))^12-1) -> 314,555.7%
A36: =Labels!B115 -> IRR with Tail (Yr) | B36: =IF(ISERROR(IRR('(Tables)'!B1465:T1465,(1+Inputs!F444)^(1/12)-1))," ",(1+IRR('(Tables)'!B1465:T1465,(1+Inputs!F444)^(1/12)-1))^12-1) -> 314,555.7%

Sheet Practices
A1: =Inputs!F7 -> 
A2: =TEXT('(FnCalls 1)'!A41,"m/d/yyyy")&" to "&TEXT('(FnCalls 1)'!A59-1,"m/d/yyyy") -> 1/1/2010 to 6/30/2011
A3: ="Practice Areas" -> Practice Areas
A4: =" " -> 
A5: ="Summary" -> Summary
A6: =" " -> 
B7: ='(FnCalls 1)'!F41 -> Jan 2010 | C7: ='(FnCalls 1)'!F42 -> Feb 2010 | D7: ='(FnCalls 1)'!F43 -> Mar 2010 | E7: ='(FnCalls 1)'!G41 -> Q1 2010 | F7: ='(FnCalls 1)'!F44 -> Apr 2010 | G7: ='(FnCalls 1)'!F45 -> May 2010 | H7: ='(FnCalls 1)'!F46 -> Jun 2010 | I7: ='(FnCalls 1)'!G44 -> Q2 2010 | J7: ='(FnCalls 1)'!F47 -> Jul 2010 | K7: ='(FnCalls 1)'!F48 -> Aug 2010 | L7: ='(FnCalls 1)'!F49 -> Sep 2010 | M7: ='(FnCalls 1)'!G47 -> Q3 2010 | N7: ='(FnCalls 1)'!F50 -> Oct 2010 | O7: ='(FnCalls 1)'!F51 -> Nov 2010 | P7: ='(FnCalls 1)'!F52 -> Dec 2010 | Q7: ='(FnCalls 1)'!G50 -> Q4 2010 | R7: ='(FnCalls 1)'!F53 -> Jan 2011 | S7: ='(FnCalls 1)'!F54 -> Feb 2011 | T7: ='(FnCalls 1)'!F55 -> Mar 2011 | U7: ='(FnCalls 1)'!G53 -> Q1 2011 | V7: ='(FnCalls 1)'!F56 -> Apr 2011 | W7: ='(FnCalls 1)'!F57 -> May 2011 | X7: ='(FnCalls 1)'!F58 -> Jun 2011 | Y7: ='(FnCalls 1)'!G56 -> Q2 2011
A8: =Labels!B226 -> Revenue
A9: =" "&Labels!B381 -> Practice 1 | B9: =SUM(B179:B180) -> $0 | C9: =SUM(C179:C180) -> $0 | D9: =SUM(D179:D180) -> $112,750 | E9: =SUM(B9:D9) -> $112,750 | F9: =SUM(F179:F180) -> $112,750 | G9: =SUM(G179:G180) -> $0 | H9: =SUM(H179:H180) -> $82,000 | I9: =SUM(F9:H9) -> $194,750 | J9: =SUM(J179:J180) -> $82,000 | K9: =SUM(K179:K180) -> $82,000 | L9: =SUM(L179:L180) -> $0 | M9: =SUM(J9:L9) -> $164,000 | N9: =SUM(N179:N180) -> $0 | O9: =SUM(O179:O180) -> $0 | P9: =SUM(P179:P180) -> $0 | Q9: =SUM(N9:P9) -> $0 | R9: =SUM(R179:R180) -> $0 | S9: =SUM(S179:S180) -> $0 | T9: =SUM(T179:T180) -> $0 | U9: =SUM(R9:T9) -> $0 | V9: =SUM(V179:V180) -> $0 | W9: =SUM(W179:W180) -> $0 | X9: =SUM(X179:X180) -> $0 | Y9: =SUM(V9:X9) -> $0
A10: =" "&Labels!B382 -> Practice 2 | B10: =SUM(B183:B184) -> $0 | C10: =SUM(C183:C184) -> $0 | D10: =SUM(D183:D184) -> $0 | E10: =SUM(B10:D10) -> $0 | F10: =SUM(F183:F184) -> $0 | G10: =SUM(G183:G184) -> $0 | H10: =SUM(H183:H184) -> $0 | I10: =SUM(F10:H10) -> $0 | J10: =SUM(J183:J184) -> $0 | K10: =SUM(K183:K184) -> $0 | L10: =SUM(L183:L184) -> $0 | M10: =SUM(J10:L10) -> $0 | N10: =SUM(N183:N184) -> $0 | O10: =SUM(O183:O184) -> $0 | P10: =SUM(P183:P184) -> $0 | Q10: =SUM(N10:P10) -> $0 | R10: =SUM(R183:R184) -> $0 | S10: =SUM(S183:S184) -> $0 | T10: =SUM(T183:T184) -> $0 | U10: =SUM(R10:T10) -> $0 | V10: =SUM(V183:V184) -> $0 | W10: =SUM(W183:W184) -> $0 | X10: =SUM(X183:X184) -> $0 | Y10: =SUM(V10:X10) -> $0
A11: =" "&Labels!C380 -> Total | B11: =SUM(B9:B10) -> $0 | C11: =SUM(C9:C10) -> $0 | D11: =SUM(D9:D10) -> $112,750 | E11: =SUM(B11:D11) -> $112,750 | F11: =SUM(F9:F10) -> $112,750 | G11: =SUM(G9:G10) -> $0 | H11: =SUM(H9:H10) -> $82,000 | I11: =SUM(F11:H11) -> $194,750 | J11: =SUM(J9:J10) -> $82,000 | K11: =SUM(K9:K10) -> $82,000 | L11: =SUM(L9:L10) -> $0 | M11: =SUM(J11:L11) -> $164,000 | N11: =SUM(N9:N10) -> $0 | O11: =SUM(O9:O10) -> $0 | P11: =SUM(P9:P10) -> $0 | Q11: =SUM(N11:P11) -> $0 | R11: =SUM(R9:R10) -> $0 | S11: =SUM(S9:S10) -> $0 | T11: =SUM(T9:T10) -> $0 | U11: =SUM(R11:T11) -> $0 | V11: =SUM(V9:V10) -> $0 | W11: =SUM(W9:W10) -> $0 | X11: =SUM(X9:X10) -> $0 | Y11: =SUM(V11:X11) -> $0
A13: =Labels!B42 -> Cost of Services
A14: =" "&Labels!B381 -> Practice 1 | B14: =SUM(B66,B71) -> $0 | C14: =SUM(C66,C71) -> $0 | D14: =SUM(D66,D71) -> $2,750 | E14: =SUM(B14:D14) -> $2,750 | F14: =SUM(F66,F71) -> $2,750 | G14: =SUM(G66,G71) -> $0 | H14: =SUM(H66,H71) -> $2,000 | I14: =SUM(F14:H14) -> $4,750 | J14: =SUM(J66,J71) -> $30,261 | K14: =SUM(K66,K71) -> $30,331 | L14: =SUM(L66,L71) -> $0 | M14: =SUM(J14:L14) -> $60,591 | N14: =SUM(N66,N71) -> $0 | O14: =SUM(O66,O71) -> $0 | P14: =SUM(P66,P71) -> $0 | Q14: =SUM(N14:P14) -> $0 | R14: =SUM(R66,R71) -> $0 | S14: =SUM(S66,S71) -> $0 | T14: =SUM(T66,T71) -> $0 | U14: =SUM(R14:T14) -> $0 | V14: =SUM(V66,V71) -> $0 | W14: =SUM(W66,W71) -> $0 | X14: =SUM(X66,X71) -> $0 | Y14: =SUM(V14:X14) -> $0
A15: =" "&Labels!B382 -> Practice 2 | B15: =SUM(B82,B87) -> $0 | C15: =SUM(C82,C87) -> $0 | D15: =SUM(D82,D87) -> $0 | E15: =SUM(B15:D15) -> $0 | F15: =SUM(F82,F87) -> $0 | G15: =SUM(G82,G87) -> $0 | H15: =SUM(H82,H87) -> $0 | I15: =SUM(F15:H15) -> $0 | J15: =SUM(J82,J87) -> $0 | K15: =SUM(K82,K87) -> $0 | L15: =SUM(L82,L87) -> $0 | M15: =SUM(J15:L15) -> $0 | N15: =SUM(N82,N87) -> $0 | O15: =SUM(O82,O87) -> $0 | P15: =SUM(P82,P87) -> $0 | Q15: =SUM(N15:P15) -> $0 | R15: =SUM(R82,R87) -> $0 | S15: =SUM(S82,S87) -> $0 | T15: =SUM(T82,T87) -> $0 | U15: =SUM(R15:T15) -> $0 | V15: =SUM(V82,V87) -> $0 | W15: =SUM(W82,W87) -> $0 | X15: =SUM(X82,X87) -> $0 | Y15: =SUM(V15:X15) -> $0
A16: =" "&Labels!C380 -> Total | B16: =SUM(B105:B107) -> $0 | C16: =SUM(C105:C107) -> $0 | D16: =SUM(D105:D107) -> $2,750 | E16: =SUM(B16:D16) -> $2,750 | F16: =SUM(F105:F107) -> $2,750 | G16: =SUM(G105:G107) -> $0 | H16: =SUM(H105:H107) -> $2,000 | I16: =SUM(F16:H16) -> $4,750 | J16: =SUM(J105:J107) -> $30,261 | K16: =SUM(K105:K107) -> $30,331 | L16: =SUM(L105:L107) -> $0 | M16: =SUM(J16:L16) -> $60,591 | N16: =SUM(N105:N107) -> $0 | O16: =SUM(O105:O107) -> $0 | P16: =SUM(P105:P107) -> $0 | Q16: =SUM(N16:P16) -> $0 | R16: =SUM(R105:R107) -> $0 | S16: =SUM(S105:S107) -> $0 | T16: =SUM(T105:T107) -> $0 | U16: =SUM(R16:T16) -> $0 | V16: =SUM(V105:V107) -> $0 | W16: =SUM(W105:W107) -> $0 | X16: =SUM(X105:X107) -> $0 | Y16: =SUM(V16:X16) -> $0
A18: =Labels!B381 -> Practice 1
A19: =" "&Labels!B98 -> Gross Margin | B19: =SUM(B262,B265) -> $0 | C19: =SUM(C262,C265) -> $0 | D19: =SUM(D262,D265) -> $110,000 | E19: =SUM(B19:D19) -> $110,000 | F19: =SUM(F262,F265) -> $110,000 | G19: =SUM(G262,G265) -> $0 | H19: =SUM(H262,H265) -> $80,000 | I19: =SUM(F19:H19) -> $190,000 | J19: =SUM(J262,J265) -> $51,739 | K19: =SUM(K262,K265) -> $37,504 | L19: =SUM(L262,L265) -> $0 | M19: =SUM(J19:L19) -> $89,243 | N19: =SUM(N262,N265) -> $0 | O19: =SUM(O262,O265) -> $0 | P19: =SUM(P262,P265) -> $0 | Q19: =SUM(N19:P19) -> $0 | R19: =SUM(R262,R265) -> $0 | S19: =SUM(S262,S265) -> $0 | T19: =SUM(T262,T265) -> $0 | U19: =SUM(R19:T19) -> $0 | V19: =SUM(V262,V265) -> $0 | W19: =SUM(W262,W265) -> $0 | X19: =SUM(X262,X265) -> $0 | Y19: =SUM(V19:X19) -> $0
A20: =" "&Labels!B100 -> Gross Margin % | B20: =IF(B9=0,0,B19/B9) -> 0.0% | C20: =IF(C9=0,0,C19/C9) -> 0.0% | D20: =IF(D9=0,0,D19/D9) -> 97.6% | E20: =IF(SUM(B9:D9)=0,0,SUM(B19:D19)/SUM(B9:D9)) -> 97.6% | F20: =IF(F9=0,0,F19/F9) -> 97.6% | G20: =IF(G9=0,0,G19/G9) -> 0.0% | H20: =IF(H9=0,0,H19/H9) -> 97.6% | I20: =IF(SUM(F9:H9)=0,0,SUM(F19:H19)/SUM(F9:H9)) -> 97.6% | J20: =IF(J9=0,0,J19/J9) -> 63.1% | K20: =IF(K9=0,0,K19/K9) -> 45.7% | L20: =IF(L9=0,0,L19/L9) -> 0.0% | M20: =IF(SUM(J9:L9)=0,0,SUM(J19:L19)/SUM(J9:L9)) -> 54.4% | N20: =IF(N9=0,0,N19/N9) -> 0.0% | O20: =IF(O9=0,0,O19/O9) -> 0.0% | P20: =IF(P9=0,0,P19/P9) -> 0.0% | Q20: =IF(SUM(N9:P9)=0,0,SUM(N19:P19)/SUM(N9:P9)) -> 0.0% | R20: =IF(R9=0,0,R19/R9) -> 0.0% | S20: =IF(S9=0,0,S19/S9) -> 0.0% | T20: =IF(T9=0,0,T19/T9) -> 0.0% | U20: =IF(SUM(R9:T9)=0,0,SUM(R19:T19)/SUM(R9:T9)) -> 0.0% | V20: =IF(V9=0,0,V19/V9) -> 0.0% | W20: =IF(W9=0,0,W19/W9) -> 0.0% | X20: =IF(X9=0,0,X19/X9) -> 0.0% | Y20: =IF(SUM(V9:X9)=0,0,SUM(V19:X19)/SUM(V9:X9)) -> 0.0%
A21: =Labels!B382 -> Practice 2
A22: =" "&Labels!B98 -> Gross Margin | B22: =SUM(B272,B275) -> $0 | C22: =SUM(C272,C275) -> $0 | D22: =SUM(D272,D275) -> $0 | E22: =SUM(B22:D22) -> $0 | F22: =SUM(F272,F275) -> $0 | G22: =SUM(G272,G275) -> $0 | H22: =SUM(H272,H275) -> $0 | I22: =SUM(F22:H22) -> $0 | J22: =SUM(J272,J275) -> $0 | K22: =SUM(K272,K275) -> $0 | L22: =SUM(L272,L275) -> $0 | M22: =SUM(J22:L22) -> $0 | N22: =SUM(N272,N275) -> $0 | O22: =SUM(O272,O275) -> $0 | P22: =SUM(P272,P275) -> $0 | Q22: =SUM(N22:P22) -> $0 | R22: =SUM(R272,R275) -> $0 | S22: =SUM(S272,S275) -> $0 | T22: =SUM(T272,T275) -> $0 | U22: =SUM(R22:T22) -> $0 | V22: =SUM(V272,V275) -> $0 | W22: =SUM(W272,W275) -> $0 | X22: =SUM(X272,X275) -> $0 | Y22: =SUM(V22:X22) -> $0
A23: =" "&Labels!B100 -> Gross Margin % | B23: =IF(B10=0,0,B22/B10) -> 0.0% | C23: =IF(C10=0,0,C22/C10) -> 0.0% | D23: =IF(D10=0,0,D22/D10) -> 0.0% | E23: =IF(SUM(B10:D10)=0,0,SUM(B22:D22)/SUM(B10:D10)) -> 0.0% | F23: =IF(F10=0,0,F22/F10) -> 0.0% | G23: =IF(G10=0,0,G22/G10) -> 0.0% | H23: =IF(H10=0,0,H22/H10) -> 0.0% | I23: =IF(SUM(F10:H10)=0,0,SUM(F22:H22)/SUM(F10:H10)) -> 0.0% | J23: =IF(J10=0,0,J22/J10) -> 0.0% | K23: =IF(K10=0,0,K22/K10) -> 0.0% | L23: =IF(L10=0,0,L22/L10) -> 0.0% | M23: =IF(SUM(J10:L10)=0,0,SUM(J22:L22)/SUM(J10:L10)) -> 0.0% | N23: =IF(N10=0,0,N22/N10) -> 0.0% | O23: =IF(O10=0,0,O22/O10) -> 0.0% | P23: =IF(P10=0,0,P22/P10) -> 0.0% | Q23: =IF(SUM(N10:P10)=0,0,SUM(N22:P22)/SUM(N10:P10)) -> 0.0% | R23: =IF(R10=0,0,R22/R10) -> 0.0% | S23: =IF(S10=0,0,S22/S10) -> 0.0% | T23: =IF(T10=0,0,T22/T10) -> 0.0% | U23: =IF(SUM(R10:T10)=0,0,SUM(R22:T22)/SUM(R10:T10)) -> 0.0% | V23: =IF(V10=0,0,V22/V10) -> 0.0% | W23: =IF(W10=0,0,W22/W10) -> 0.0% | X23: =IF(X10=0,0,X22/X10) -> 0.0% | Y23: =IF(SUM(V10:X10)=0,0,SUM(V22:X22)/SUM(V10:X10)) -> 0.0%
A24: =Labels!C380 -> Total
A25: =" "&Labels!B98 -> Gross Margin | B25: =SUM(B19,B22) -> $0 | C25: =SUM(C19,C22) -> $0 | D25: =SUM(D19,D22) -> $110,000 | E25: =SUM(B25:D25) -> $110,000 | F25: =SUM(F19,F22) -> $110,000 | G25: =SUM(G19,G22) -> $0 | H25: =SUM(H19,H22) -> $80,000 | I25: =SUM(F25:H25) -> $190,000 | J25: =SUM(J19,J22) -> $51,739 | K25: =SUM(K19,K22) -> $37,504 | L25: =SUM(L19,L22) -> $0 | M25: =SUM(J25:L25) -> $89,243 | N25: =SUM(N19,N22) -> $0 | O25: =SUM(O19,O22) -> $0 | P25: =SUM(P19,P22) -> $0 | Q25: =SUM(N25:P25) -> $0 | R25: =SUM(R19,R22) -> $0 | S25: =SUM(S19,S22) -> $0 | T25: =SUM(T19,T22) -> $0 | U25: =SUM(R25:T25) -> $0 | V25: =SUM(V19,V22) -> $0 | W25: =SUM(W19,W22) -> $0 | X25: =SUM(X19,X22) -> $0 | Y25: =SUM(V25:X25) -> $0
A26: =" "&Labels!B100 -> Gross Margin % | B26: =IF(B11=0,0,B25/B11) -> 0.0% | C26: =IF(C11=0,0,C25/C11) -> 0.0% | D26: =IF(D11=0,0,D25/D11) -> 97.6% | E26: =IF(SUM(B11:D11)=0,0,SUM(B25:D25)/SUM(B11:D11)) -> 97.6% | F26: =IF(F11=0,0,F25/F11) -> 97.6% | G26: =IF(G11=0,0,G25/G11) -> 0.0% | H26: =IF(H11=0,0,H25/H11) -> 97.6% | I26: =IF(SUM(F11:H11)=0,0,SUM(F25:H25)/SUM(F11:H11)) -> 97.6% | J26: =IF(J11=0,0,J25/J11) -> 63.1% | K26: =IF(K11=0,0,K25/K11) -> 45.7% | L26: =IF(L11=0,0,L25/L11) -> 0.0% | M26: =IF(SUM(J11:L11)=0,0,SUM(J25:L25)/SUM(J11:L11)) -> 54.4% | N26: =IF(N11=0,0,N25/N11) -> 0.0% | O26: =IF(O11=0,0,O25/O11) -> 0.0% | P26: =IF(P11=0,0,P25/P11) -> 0.0% | Q26: =IF(SUM(N11:P11)=0,0,SUM(N25:P25)/SUM(N11:P11)) -> 0.0% | R26: =IF(R11=0,0,R25/R11) -> 0.0% | S26: =IF(S11=0,0,S25/S11) -> 0.0% | T26: =IF(T11=0,0,T25/T11) -> 0.0% | U26: =IF(SUM(R11:T11)=0,0,SUM(R25:T25)/SUM(R11:T11)) -> 0.0% | V26: =IF(V11=0,0,V25/V11) -> 0.0% | W26: =IF(W11=0,0,W25/W11) -> 0.0% | X26: =IF(X11=0,0,X25/X11) -> 0.0% | Y26: =IF(SUM(V11:X11)=0,0,SUM(V25:X25)/SUM(V11:X11)) -> 0.0%
A28: ="Billed Hours" -> Billed Hours
A29: =" " -> 
B30: ='(FnCalls 1)'!F41 -> Jan 2010 | C30: ='(FnCalls 1)'!F42 -> Feb 2010 | D30: ='(FnCalls 1)'!F43 -> Mar 2010 | E30: ='(FnCalls 1)'!G41 -> Q1 2010 | F30: ='(FnCalls 1)'!F44 -> Apr 2010 | G30: ='(FnCalls 1)'!F45 -> May 2010 | H30: ='(FnCalls 1)'!F46 -> Jun 2010 | I30: ='(FnCalls 1)'!G44 -> Q2 2010 | J30: ='(FnCalls 1)'!F47 -> Jul 2010 | K30: ='(FnCalls 1)'!F48 -> Aug 2010 | L30: ='(FnCalls 1)'!F49 -> Sep 2010 | M30: ='(FnCalls 1)'!G47 -> Q3 2010 | N30: ='(FnCalls 1)'!F50 -> Oct 2010 | O30: ='(FnCalls 1)'!F51 -> Nov 2010 | P30: ='(FnCalls 1)'!F52 -> Dec 2010 | Q30: ='(FnCalls 1)'!G50 -> Q4 2010 | R30: ='(FnCalls 1)'!F53 -> Jan 2011 | S30: ='(FnCalls 1)'!F54 -> Feb 2011 | T30: ='(FnCalls 1)'!F55 -> Mar 2011 | U30: ='(FnCalls 1)'!G53 -> Q1 2011 | V30: ='(FnCalls 1)'!F56 -> Apr 2011 | W30: ='(FnCalls 1)'!F57 -> May 2011 | X30: ='(FnCalls 1)'!F58 -> Jun 2011 | Y30: ='(FnCalls 1)'!G56 -> Q2 2011
A31: =Labels!B182 -> Prof Staff Hours Billed
A32: =" "&Labels!B381 -> Practice 1 | B32: =SUM(B296:B297) -> 0.0 | C32: =SUM(C296:C297) -> 0.0 | D32: =SUM(D296:D297) -> 550.0 | E32: =SUM(B32:D32) -> 550.0 | F32: =SUM(F296:F297) -> 550.0 | G32: =SUM(G296:G297) -> 0.0 | H32: =SUM(H296:H297) -> 400.0 | I32: =SUM(F32:H32) -> 950.0 | J32: =SUM(J296:J297) -> 400.0 | K32: =SUM(K296:K297) -> 400.0 | L32: =SUM(L296:L297) -> 0.0 | M32: =SUM(J32:L32) -> 800.0 | N32: =SUM(N296:N297) -> 0.0 | O32: =SUM(O296:O297) -> 0.0 | P32: =SUM(P296:P297) -> 0.0 | Q32: =SUM(N32:P32) -> 0.0 | R32: =SUM(R296:R297) -> 0.0 | S32: =SUM(S296:S297) -> 0.0 | T32: =SUM(T296:T297) -> 0.0 | U32: =SUM(R32:T32) -> 0.0 | V32: =SUM(V296:V297) -> 0.0 | W32: =SUM(W296:W297) -> 0.0 | X32: =SUM(X296:X297) -> 0.0 | Y32: =SUM(V32:X32) -> 0.0
A33: =" "&Labels!B382 -> Practice 2 | B33: =SUM(B300:B301) -> 0.0 | C33: =SUM(C300:C301) -> 0.0 | D33: =SUM(D300:D301) -> 0.0 | E33: =SUM(B33:D33) -> 0.0 | F33: =SUM(F300:F301) -> 0.0 | G33: =SUM(G300:G301) -> 0.0 | H33: =SUM(H300:H301) -> 0.0 | I33: =SUM(F33:H33) -> 0.0 | J33: =SUM(J300:J301) -> 0.0 | K33: =SUM(K300:K301) -> 0.0 | L33: =SUM(L300:L301) -> 0.0 | M33: =SUM(J33:L33) -> 0.0 | N33: =SUM(N300:N301) -> 0.0 | O33: =SUM(O300:O301) -> 0.0 | P33: =SUM(P300:P301) -> 0.0 | Q33: =SUM(N33:P33) -> 0.0 | R33: =SUM(R300:R301) -> 0.0 | S33: =SUM(S300:S301) -> 0.0 | T33: =SUM(T300:T301) -> 0.0 | U33: =SUM(R33:T33) -> 0.0 | V33: =SUM(V300:V301) -> 0.0 | W33: =SUM(W300:W301) -> 0.0 | X33: =SUM(X300:X301) -> 0.0 | Y33: =SUM(V33:X33) -> 0.0
A34: =" "&Labels!C380 -> Total | B34: =SUM(B32:B33) -> 0.0 | C34: =SUM(C32:C33) -> 0.0 | D34: =SUM(D32:D33) -> 550.0 | E34: =SUM(B34:D34) -> 550.0 | F34: =SUM(F32:F33) -> 550.0 | G34: =SUM(G32:G33) -> 0.0 | H34: =SUM(H32:H33) -> 400.0 | I34: =SUM(F34:H34) -> 950.0 | J34: =SUM(J32:J33) -> 400.0 | K34: =SUM(K32:K33) -> 400.0 | L34: =SUM(L32:L33) -> 0.0 | M34: =SUM(J34:L34) -> 800.0 | N34: =SUM(N32:N33) -> 0.0 | O34: =SUM(O32:O33) -> 0.0 | P34: =SUM(P32:P33) -> 0.0 | Q34: =SUM(N34:P34) -> 0.0 | R34: =SUM(R32:R33) -> 0.0 | S34: =SUM(S32:S33) -> 0.0 | T34: =SUM(T32:T33) -> 0.0 | U34: =SUM(R34:T34) -> 0.0 | V34: =SUM(V32:V33) -> 0.0 | W34: =SUM(W32:W33) -> 0.0 | X34: =SUM(X32:X33) -> 0.0 | Y34: =SUM(V34:X34) -> 0.0
A36: =Labels!B187 -> Billed Hours Growth
A37: =" "&Labels!B381 -> Practice 1 | C37: =IF(B32=0,0,C32/B32-1) -> 0.0% | D37: 0.0% | E37: =IF(0=0,0,SUM(B32:D32)/0-1) -> 0.0% | F37: =IF(D32=0,0,F32/D32-1) -> 0.0% | G37: =IF(F32=0,0,G32/F32-1) -> -100.0% | H37: 0.0% | I37: =IF(SUM(B32:D32)=0,0,SUM(F32:H32)/SUM(B32:D32)-1) -> 72.7% | J37: =IF(H32=0,0,J32/H32-1) -> 0.0% | K37: =IF(J32=0,0,K32/J32-1) -> 0.0% | L37: -100.0% | M37: =IF(SUM(F32:H32)=0,0,SUM(J32:L32)/SUM(F32:H32)-1) -> -15.8% | N37: =IF(L32=0,0,N32/L32-1) -> 0.0% | O37: =IF(N32=0,0,O32/N32-1) -> 0.0% | P37: 0.0% | Q37: =IF(SUM(J32:L32)=0,0,SUM(N32:P32)/SUM(J32:L32)-1) -> -100.0% | R37: =IF(P32=0,0,R32/P32-1) -> 0.0% | S37: =IF(R32=0,0,S32/R32-1) -> 0.0% | T37: 0.0% | U37: =IF(SUM(N32:P32)=0,0,SUM(R32:T32)/SUM(N32:P32)-1) -> 0.0% | V37: =IF(T32=0,0,V32/T32-1) -> 0.0% | W37: =IF(V32=0,0,W32/V32-1) -> 0.0% | X37: 0.0% | Y37: =IF(SUM(R32:T32)=0,0,SUM(V32:X32)/SUM(R32:T32)-1) -> 0.0%
A38: =" "&Labels!B382 -> Practice 2 | C38: 0.0% | D38: 0.0% | E38: =IF(0=0,0,SUM(B33:D33)/0-1) -> 0.0% | F38: =IF(D33=0,0,F33/D33-1) -> 0.0% | G38: 0.0% | H38: 0.0% | I38: =IF(SUM(B33:D33)=0,0,SUM(F33:H33)/SUM(B33:D33)-1) -> 0.0% | J38: =IF(H33=0,0,J33/H33-1) -> 0.0% | K38: 0.0% | L38: 0.0% | M38: =IF(SUM(F33:H33)=0,0,SUM(J33:L33)/SUM(F33:H33)-1) -> 0.0% | N38: =IF(L33=0,0,N33/L33-1) -> 0.0% | O38: 0.0% | P38: 0.0% | Q38: =IF(SUM(J33:L33)=0,0,SUM(N33:P33)/SUM(J33:L33)-1) -> 0.0% | R38: =IF(P33=0,0,R33/P33-1) -> 0.0% | S38: 0.0% | T38: 0.0% | U38: =IF(SUM(N33:P33)=0,0,SUM(R33:T33)/SUM(N33:P33)-1) -> 0.0% | V38: =IF(T33=0,0,V33/T33-1) -> 0.0% | W38: 0.0% | X38: 0.0% | Y38: =IF(SUM(R33:T33)=0,0,SUM(V33:X33)/SUM(R33:T33)-1) -> 0.0%
A39: =" "&Labels!C380 -> Total | C39: 0.0% | D39: 0.0% | E39: =IF(0=0,0,SUM(B34:D34)/0-1) -> 0.0% | F39: =IF(D34=0,0,F34/D34-1) -> 0.0% | G39: -100.0% | H39: 0.0% | I39: =IF(SUM(B34:D34)=0,0,SUM(F34:H34)/SUM(B34:D34)-1) -> 72.7% | J39: =IF(H34=0,0,J34/H34-1) -> 0.0% | K39: 0.0% | L39: -100.0% | M39: =IF(SUM(F34:H34)=0,0,SUM(J34:L34)/SUM(F34:H34)-1) -> -15.8% | N39: =IF(L34=0,0,N34/L34-1) -> 0.0% | O39: 0.0% | P39: 0.0% | Q39: =IF(SUM(J34:L34)=0,0,SUM(N34:P34)/SUM(J34:L34)-1) -> -100.0% | R39: =IF(P34=0,0,R34/P34-1) -> 0.0% | S39: 0.0% | T39: 0.0% | U39: =IF(SUM(N34:P34)=0,0,SUM(R34:T34)/SUM(N34:P34)-1) -> 0.0% | V39: =IF(T34=0,0,V34/T34-1) -> 0.0% | W39: 0.0% | X39: 0.0% | Y39: =IF(SUM(R34:T34)=0,0,SUM(V34:X34)/SUM(R34:T34)-1) -> 0.0%
A43: ="Practice Areas and Channels" -> Practice Areas and Channels
A44: =" " -> 
B45: ='(FnCalls 1)'!F41 -> Jan 2010 | C45: ='(FnCalls 1)'!F42 -> Feb 2010 | D45: ='(FnCalls 1)'!F43 -> Mar 2010 | E45: ='(FnCalls 1)'!G41 -> Q1 2010 | F45: ='(FnCalls 1)'!F44 -> Apr 2010 | G45: ='(FnCalls 1)'!F45 -> May 2010 | H45: ='(FnCalls 1)'!F46 -> Jun 2010 | I45: ='(FnCalls 1)'!G44 -> Q2 2010 | J45: ='(FnCalls 1)'!F47 -> Jul 2010 | K45: ='(FnCalls 1)'!F48 -> Aug 2010 | L45: ='(FnCalls 1)'!F49 -> Sep 2010 | M45: ='(FnCalls 1)'!G47 -> Q3 2010 | N45: ='(FnCalls 1)'!F50 -> Oct 2010 | O45: ='(FnCalls 1)'!F51 -> Nov 2010 | P45: ='(FnCalls 1)'!F52 -> Dec 2010 | Q45: ='(FnCalls 1)'!G50 -> Q4 2010 | R45: ='(FnCalls 1)'!F53 -> Jan 2011 | S45: ='(FnCalls 1)'!F54 -> Feb 2011 | T45: ='(FnCalls 1)'!F55 -> Mar 2011 | U45: ='(FnCalls 1)'!G53 -> Q1 2011 | V45: ='(FnCalls 1)'!F56 -> Apr 2011 | W45: ='(FnCalls 1)'!F57 -> May 2011 | X45: ='(FnCalls 1)'!F58 -> Jun 2011 | Y45: ='(FnCalls 1)'!G56 -> Q2 2011
A46: =Labels!B226 -> Revenue
A47: =" "&Labels!B381 -> Practice 1
A48: =" "&Labels!B317 -> Channels 1 | B48: =SUM(Sales!B109,Sales!B113) -> $0 | C48: =SUM(Sales!C109,Sales!C113) -> $0 | D48: =SUM(Sales!D109,Sales!D113) -> $57,750 | E48: =SUM(B48:D48) -> $57,750 | F48: =SUM(Sales!F109,Sales!F113) -> $57,750 | G48: =SUM(Sales!G109,Sales!G113) -> $0 | H48: =SUM(Sales!H109,Sales!H113) -> $42,000 | I48: =SUM(F48:H48) -> $99,750 | J48: =SUM(Sales!J109,Sales!J113) -> $42,000 | K48: =SUM(Sales!K109,Sales!K113) -> $42,000 | L48: =SUM(Sales!L109,Sales!L113) -> $0 | M48: =SUM(J48:L48) -> $84,000 | N48: =SUM(Sales!N109,Sales!N113) -> $0 | O48: =SUM(Sales!O109,Sales!O113) -> $0 | P48: =SUM(Sales!P109,Sales!P113) -> $0 | Q48: =SUM(N48:P48) -> $0 | R48: =SUM(Sales!R109,Sales!R113) -> $0 | S48: =SUM(Sales!S109,Sales!S113) -> $0 | T48: =SUM(Sales!T109,Sales!T113) -> $0 | U48: =SUM(R48:T48) -> $0 | V48: =SUM(Sales!V109,Sales!V113) -> $0 | W48: =SUM(Sales!W109,Sales!W113) -> $0 | X48: =SUM(Sales!X109,Sales!X113) -> $0 | Y48: =SUM(V48:X48) -> $0
A49: =" "&Labels!B318 -> Channels 2 | B49: =SUM(Sales!B110,Sales!B114) -> $0 | C49: =SUM(Sales!C110,Sales!C114) -> $0 | D49: =SUM(Sales!D110,Sales!D114) -> $55,000 | E49: =SUM(B49:D49) -> $55,000 | F49: =SUM(Sales!F110,Sales!F114) -> $55,000 | G49: =SUM(Sales!G110,Sales!G114) -> $0 | H49: =SUM(Sales!H110,Sales!H114) -> $40,000 | I49: =SUM(F49:H49) -> $95,000 | J49: =SUM(Sales!J110,Sales!J114) -> $40,000 | K49: =SUM(Sales!K110,Sales!K114) -> $40,000 | L49: =SUM(Sales!L110,Sales!L114) -> $0 | M49: =SUM(J49:L49) -> $80,000 | N49: =SUM(Sales!N110,Sales!N114) -> $0 | O49: =SUM(Sales!O110,Sales!O114) -> $0 | P49: =SUM(Sales!P110,Sales!P114) -> $0 | Q49: =SUM(N49:P49) -> $0 | R49: =SUM(Sales!R110,Sales!R114) -> $0 | S49: =SUM(Sales!S110,Sales!S114) -> $0 | T49: =SUM(Sales!T110,Sales!T114) -> $0 | U49: =SUM(R49:T49) -> $0 | V49: =SUM(Sales!V110,Sales!V114) -> $0 | W49: =SUM(Sales!W110,Sales!W114) -> $0 | X49: =SUM(Sales!X110,Sales!X114) -> $0 | Y49: =SUM(V49:X49) -> $0
A50: =" "&Labels!C316 -> Total | B50: =SUM(B179:B180) -> $0 | C50: =SUM(C179:C180) -> $0 | D50: =SUM(D179:D180) -> $112,750 | E50: =SUM(B50:D50) -> $112,750 | F50: =SUM(F179:F180) -> $112,750 | G50: =SUM(G179:G180) -> $0 | H50: =SUM(H179:H180) -> $82,000 | I50: =SUM(F50:H50) -> $194,750 | J50: =SUM(J179:J180) -> $82,000 | K50: =SUM(K179:K180) -> $82,000 | L50: =SUM(L179:L180) -> $0 | M50: =SUM(J50:L50) -> $164,000 | N50: =SUM(N179:N180) -> $0 | O50: =SUM(O179:O180) -> $0 | P50: =SUM(P179:P180) -> $0 | Q50: =SUM(N50:P50) -> $0 | R50: =SUM(R179:R180) -> $0 | S50: =SUM(S179:S180) -> $0 | T50: =SUM(T179:T180) -> $0 | U50: =SUM(R50:T50) -> $0 | V50: =SUM(V179:V180) -> $0 | W50: =SUM(W179:W180) -> $0 | X50: =SUM(X179:X180) -> $0 | Y50: =SUM(V50:X50) -> $0
A51: =" "&Labels!B382 -> Practice 2
A52: =" "&Labels!B317 -> Channels 1 | B52: =SUM(Sales!B122,Sales!B126) -> $0 | C52: =SUM(Sales!C122,Sales!C126) -> $0 | D52: =SUM(Sales!D122,Sales!D126) -> $0 | E52: =SUM(B52:D52) -> $0 | F52: =SUM(Sales!F122,Sales!F126) -> $0 | G52: =SUM(Sales!G122,Sales!G126) -> $0 | H52: =SUM(Sales!H122,Sales!H126) -> $0 | I52: =SUM(F52:H52) -> $0 | J52: =SUM(Sales!J122,Sales!J126) -> $0 | K52: =SUM(Sales!K122,Sales!K126) -> $0 | L52: =SUM(Sales!L122,Sales!L126) -> $0 | M52: =SUM(J52:L52) -> $0 | N52: =SUM(Sales!N122,Sales!N126) -> $0 | O52: =SUM(Sales!O122,Sales!O126) -> $0 | P52: =SUM(Sales!P122,Sales!P126) -> $0 | Q52: =SUM(N52:P52) -> $0 | R52: =SUM(Sales!R122,Sales!R126) -> $0 | S52: =SUM(Sales!S122,Sales!S126) -> $0 | T52: =SUM(Sales!T122,Sales!T126) -> $0 | U52: =SUM(R52:T52) -> $0 | V52: =SUM(Sales!V122,Sales!V126) -> $0 | W52: =SUM(Sales!W122,Sales!W126) -> $0 | X52: =SUM(Sales!X122,Sales!X126) -> $0 | Y52: =SUM(V52:X52) -> $0
A53: =" "&Labels!B318 -> Channels 2 | B53: =SUM(Sales!B123,Sales!B127) -> $0 | C53: =SUM(Sales!C123,Sales!C127) -> $0 | D53: =SUM(Sales!D123,Sales!D127) -> $0 | E53: $0 | F53: =SUM(Sales!F123,Sales!F127) -> $0 | G53: =SUM(Sales!G123,Sales!G127) -> $0 | H53: =SUM(Sales!H123,Sales!H127) -> $0 | I53: $0 | J53: =SUM(Sales!J123,Sales!J127) -> $0 | K53: =SUM(Sales!K123,Sales!K127) -> $0 | L53: =SUM(Sales!L123,Sales!L127) -> $0 | M53: $0 | N53: =SUM(Sales!N123,Sales!N127) -> $0 | O53: =SUM(Sales!O123,Sales!O127) -> $0 | P53: =SUM(Sales!P123,Sales!P127) -> $0 | Q53: $0 | R53: =SUM(Sales!R123,Sales!R127) -> $0 | S53: =SUM(Sales!S123,Sales!S127) -> $0 | T53: =SUM(Sales!T123,Sales!T127) -> $0 | U53: $0 | V53: =SUM(Sales!V123,Sales!V127) -> $0 | W53: =SUM(Sales!W123,Sales!W127) -> $0 | X53: =SUM(Sales!X123,Sales!X127) -> $0 | Y53: $0
A54: =" "&Labels!C316 -> Total | B54: =SUM(B183:B184) -> $0 | C54: =SUM(C183:C184) -> $0 | D54: =SUM(D183:D184) -> $0 | E54: $0 | F54: =SUM(F183:F184) -> $0 | G54: =SUM(G183:G184) -> $0 | H54: =SUM(H183:H184) -> $0 | I54: $0 | J54: =SUM(J183:J184) -> $0 | K54: =SUM(K183:K184) -> $0 | L54: =SUM(L183:L184) -> $0 | M54: $0 | N54: =SUM(N183:N184) -> $0 | O54: =SUM(O183:O184) -> $0 | P54: =SUM(P183:P184) -> $0 | Q54: $0 | R54: =SUM(R183:R184) -> $0 | S54: =SUM(S183:S184) -> $0 | T54: =SUM(T183:T184) -> $0 | U54: $0 | V54: =SUM(V183:V184) -> $0 | W54: =SUM(W183:W184) -> $0 | X54: =SUM(X183:X184) -> $0 | Y54: $0
A55: =" "&Labels!C380 -> Total | B55: =SUM(B50,B54) -> $0 | C55: =SUM(C50,C54) -> $0 | D55: =SUM(D50,D54) -> $112,750 | E55: $112,750 | F55: =SUM(F50,F54) -> $112,750 | G55: =SUM(G50,G54) -> $0 | H55: =SUM(H50,H54) -> $82,000 | I55: $194,750 | J55: =SUM(J50,J54) -> $82,000 | K55: =SUM(K50,K54) -> $82,000 | L55: =SUM(L50,L54) -> $0 | M55: $164,000 | N55: =SUM(N50,N54) -> $0 | O55: =SUM(O50,O54) -> $0 | P55: =SUM(P50,P54) -> $0 | Q55: $0 | R55: =SUM(R50,R54) -> $0 | S55: =SUM(S50,S54) -> $0 | T55: =SUM(T50,T54) -> $0 | U55: $0 | V55: =SUM(V50,V54) -> $0 | W55: =SUM(W50,W54) -> $0 | X55: =SUM(X50,X54) -> $0 | Y55: $0
A56: =" "&Labels!B317 -> Channels 1 | B56: =SUM(B48,B52) -> $0 | C56: $0 | D56: $57,750 | E56: $57,750 | F56: =SUM(F48,F52) -> $57,750 | G56: $0 | H56: $42,000 | I56: $99,750 | J56: =SUM(J48,J52) -> $42,000 | K56: $42,000 | L56: $0 | M56: $84,000 | N56: =SUM(N48,N52) -> $0 | O56: $0 | P56: $0 | Q56: $0 | R56: =SUM(R48,R52) -> $0 | S56: $0 | T56: $0 | U56: $0 | V56: =SUM(V48,V52) -> $0 | W56: $0 | X56: $0 | Y56: $0
A57: =" "&Labels!B318 -> Channels 2 | B57: $0 | C57: $0 | D57: $55,000 | E57: $55,000 | F57: $55,000 | G57: $0 | H57: $40,000 | I57: $95,000 | J57: $40,000 | K57: $40,000 | L57: $0 | M57: $80,000 | N57: $0 | O57: $0 | P57: $0 | Q57: $0 | R57: $0 | S57: $0 | T57: $0 | U57: $0 | V57: $0 | W57: $0 | X57: $0 | Y57: $0
A58: =" "&Labels!C316 -> Total | B58: $0 | C58: $0 | D58: $112,750 | E58: =SUM(B55:D55) -> $112,750 | F58: $112,750 | G58: $0 | H58: $82,000 | I58: =SUM(F55:H55) -> $194,750 | J58: $82,000 | K58: $82,000 | L58: $0 | M58: =SUM(J55:L55) -> $164,000 | N58: $0 | O58: $0 | P58: $0 | Q58: =SUM(N55:P55) -> $0 | R58: $0 | S58: $0 | T58: $0 | U58: =SUM(R55:T55) -> $0 | V58: $0 | W58: $0 | X58: $0 | Y58: =SUM(V55:X55) -> $0
A60: =Labels!B42 -> Cost of Services
A61: =" "&Labels!B381 -> Practice 1
A62: =" "&Labels!B317 -> Channels 1
A63: =" "&Labels!B325 -> Direct Labor | B63: ='GM CostSvcs'!B21 -> $0 | C63: ='GM CostSvcs'!C21 -> $0 | D63: ='GM CostSvcs'!D21 -> $0 | E63: =SUM(B63:D63) -> $0 | F63: ='GM CostSvcs'!F21 -> $0 | G63: ='GM CostSvcs'!G21 -> $0 | H63: ='GM CostSvcs'!H21 -> $0 | I63: =SUM(F63:H63) -> $0 | J63: ='GM CostSvcs'!J21 -> $28,261 | K63: ='GM CostSvcs'!K21 -> $28,331 | L63: ='GM CostSvcs'!L21 -> $0 | M63: =SUM(J63:L63) -> $56,591 | N63: ='GM CostSvcs'!N21 -> $0 | O63: ='GM CostSvcs'!O21 -> $0 | P63: ='GM CostSvcs'!P21 -> $0 | Q63: =SUM(N63:P63) -> $0 | R63: ='GM CostSvcs'!R21 -> $0 | S63: ='GM CostSvcs'!S21 -> $0 | T63: ='GM CostSvcs'!T21 -> $0 | U63: =SUM(R63:T63) -> $0 | V63: ='GM CostSvcs'!V21 -> $0 | W63: ='GM CostSvcs'!W21 -> $0 | X63: ='GM CostSvcs'!X21 -> $0 | Y63: =SUM(V63:X63) -> $0
A64: =" "&Labels!B326 -> Travel & Entertain | B64: ='GM CostSvcs'!B62 -> $0 | C64: ='GM CostSvcs'!C62 -> $0 | D64: ='GM CostSvcs'!D62 -> $2,750 | E64: =SUM(B64:D64) -> $2,750 | F64: ='GM CostSvcs'!F62 -> $2,750 | G64: ='GM CostSvcs'!G62 -> $0 | H64: ='GM CostSvcs'!H62 -> $2,000 | I64: =SUM(F64:H64) -> $4,750 | J64: ='GM CostSvcs'!J62 -> $2,000 | K64: ='GM CostSvcs'!K62 -> $2,000 | L64: ='GM CostSvcs'!L62 -> $0 | M64: =SUM(J64:L64) -> $4,000 | N64: ='GM CostSvcs'!N62 -> $0 | O64: ='GM CostSvcs'!O62 -> $0 | P64: ='GM CostSvcs'!P62 -> $0 | Q64: =SUM(N64:P64) -> $0 | R64: ='GM CostSvcs'!R62 -> $0 | S64: ='GM CostSvcs'!S62 -> $0 | T64: ='GM CostSvcs'!T62 -> $0 | U64: =SUM(R64:T64) -> $0 | V64: ='GM CostSvcs'!V62 -> $0 | W64: ='GM CostSvcs'!W62 -> $0 | X64: ='GM CostSvcs'!X62 -> $0 | Y64: =SUM(V64:X64) -> $0
A65: =" "&Labels!B327 -> Direct Supplies | B65: ='GM CostSvcs'!B124 -> $0 | C65: ='GM CostSvcs'!C124 -> $0 | D65: ='GM CostSvcs'!D124 -> $0 | E65: =SUM(B65:D65) -> $0 | F65: ='GM CostSvcs'!F124 -> $0 | G65: ='GM CostSvcs'!G124 -> $0 | H65: ='GM CostSvcs'!H124 -> $0 | I65: =SUM(F65:H65) -> $0 | J65: ='GM CostSvcs'!J124 -> $0 | K65: ='GM CostSvcs'!K124 -> $0 | L65: ='GM CostSvcs'!L124 -> $0 | M65: =SUM(J65:L65) -> $0 | N65: ='GM CostSvcs'!N124 -> $0 | O65: ='GM CostSvcs'!O124 -> $0 | P65: ='GM CostSvcs'!P124 -> $0 | Q65: =SUM(N65:P65) -> $0 | R65: ='GM CostSvcs'!R124 -> $0 | S65: ='GM CostSvcs'!S124 -> $0 | T65: ='GM CostSvcs'!T124 -> $0 | U65: =SUM(R65:T65) -> $0 | V65: ='GM CostSvcs'!V124 -> $0 | W65: ='GM CostSvcs'!W124 -> $0 | X65: ='GM CostSvcs'!X124 -> $0 | Y65: =SUM(V65:X65) -> $0
A66: =" "&Labels!C324 -> Total | B66: =SUM(B63:B65) -> $0 | C66: =SUM(C63:C65) -> $0 | D66: =SUM(D63:D65) -> $2,750 | E66: =SUM(B66:D66) -> $2,750 | F66: =SUM(F63:F65) -> $2,750 | G66: =SUM(G63:G65) -> $0 | H66: =SUM(H63:H65) -> $2,000 | I66: =SUM(F66:H66) -> $4,750 | J66: =SUM(J63:J65) -> $30,261 | K66: =SUM(K63:K65) -> $30,331 | L66: =SUM(L63:L65) -> $0 | M66: =SUM(J66:L66) -> $60,591 | N66: =SUM(N63:N65) -> $0 | O66: =SUM(O63:O65) -> $0 | P66: =SUM(P63:P65) -> $0 | Q66: =SUM(N66:P66) -> $0 | R66: =SUM(R63:R65) -> $0 | S66: =SUM(S63:S65) -> $0 | T66: =SUM(T63:T65) -> $0 | U66: =SUM(R66:T66) -> $0 | V66: =SUM(V63:V65) -> $0 | W66: =SUM(W63:W65) -> $0 | X66: =SUM(X63:X65) -> $0 | Y66: =SUM(V66:X66) -> $0
A67: =" "&Labels!B318 -> Channels 2
A68: =" "&Labels!B325 -> Direct Labor | B68: ='GM CostSvcs'!B22 -> $0 | C68: ='GM CostSvcs'!C22 -> $0 | D68: ='GM CostSvcs'!D22 -> $0 | E68: =SUM(B68:D68) -> $0 | F68: ='GM CostSvcs'!F22 -> $0 | G68: ='GM CostSvcs'!G22 -> $0 | H68: ='GM CostSvcs'!H22 -> $0 | I68: =SUM(F68:H68) -> $0 | J68: ='GM CostSvcs'!J22 -> $0 | K68: ='GM CostSvcs'!K22 -> $0 | L68: ='GM CostSvcs'!L22 -> $0 | M68: =SUM(J68:L68) -> $0 | N68: ='GM CostSvcs'!N22 -> $0 | O68: ='GM CostSvcs'!O22 -> $0 | P68: ='GM CostSvcs'!P22 -> $0 | Q68: =SUM(N68:P68) -> $0 | R68: ='GM CostSvcs'!R22 -> $0 | S68: ='GM CostSvcs'!S22 -> $0 | T68: ='GM CostSvcs'!T22 -> $0 | U68: =SUM(R68:T68) -> $0 | V68: ='GM CostSvcs'!V22 -> $0 | W68: ='GM CostSvcs'!W22 -> $0 | X68: ='GM CostSvcs'!X22 -> $0 | Y68: =SUM(V68:X68) -> $0
A69: =" "&Labels!B326 -> Travel & Entertain | B69: ='GM CostSvcs'!B63 -> $0 | C69: ='GM CostSvcs'!C63 -> $0 | D69: ='GM CostSvcs'!D63 -> $0 | E69: $0 | F69: ='GM CostSvcs'!F63 -> $0 | G69: ='GM CostSvcs'!G63 -> $0 | H69: ='GM CostSvcs'!H63 -> $0 | I69: $0 | J69: ='GM CostSvcs'!J63 -> $0 | K69: ='GM CostSvcs'!K63 -> $0 | L69: ='GM CostSvcs'!L63 -> $0 | M69: $0 | N69: ='GM CostSvcs'!N63 -> $0 | O69: ='GM CostSvcs'!O63 -> $0 | P69: ='GM CostSvcs'!P63 -> $0 | Q69: $0 | R69: ='GM CostSvcs'!R63 -> $0 | S69: ='GM CostSvcs'!S63 -> $0 | T69: ='GM CostSvcs'!T63 -> $0 | U69: $0 | V69: ='GM CostSvcs'!V63 -> $0 | W69: ='GM CostSvcs'!W63 -> $0 | X69: ='GM CostSvcs'!X63 -> $0 | Y69: $0
A70: =" "&Labels!B327 -> Direct Supplies | B70: ='GM CostSvcs'!B128 -> $0 | C70: ='GM CostSvcs'!C128 -> $0 | D70: ='GM CostSvcs'!D128 -> $0 | E70: $0 | F70: ='GM CostSvcs'!F128 -> $0 | G70: ='GM CostSvcs'!G128 -> $0 | H70: ='GM CostSvcs'!H128 -> $0 | I70: $0 | J70: ='GM CostSvcs'!J128 -> $0 | K70: ='GM CostSvcs'!K128 -> $0 | L70: ='GM CostSvcs'!L128 -> $0 | M70: $0 | N70: ='GM CostSvcs'!N128 -> $0 | O70: ='GM CostSvcs'!O128 -> $0 | P70: ='GM CostSvcs'!P128 -> $0 | Q70: $0 | R70: ='GM CostSvcs'!R128 -> $0 | S70: ='GM CostSvcs'!S128 -> $0 | T70: ='GM CostSvcs'!T128 -> $0 | U70: $0 | V70: ='GM CostSvcs'!V128 -> $0 | W70: ='GM CostSvcs'!W128 -> $0 | X70: ='GM CostSvcs'!X128 -> $0 | Y70: $0
A71: =" "&Labels!C324 -> Total | B71: =SUM(B68:B70) -> $0 | C71: =SUM(C68:C70) -> $0 | D71: =SUM(D68:D70) -> $0 | E71: $0 | F71: =SUM(F68:F70) -> $0 | G71: =SUM(G68:G70) -> $0 | H71: =SUM(H68:H70) -> $0 | I71: $0 | J71: =SUM(J68:J70) -> $0 | K71: =SUM(K68:K70) -> $0 | L71: =SUM(L68:L70) -> $0 | M71: $0 | N71: =SUM(N68:N70) -> $0 | O71: =SUM(O68:O70) -> $0 | P71: =SUM(P68:P70) -> $0 | Q71: $0 | R71: =SUM(R68:R70) -> $0 | S71: =SUM(S68:S70) -> $0 | T71: =SUM(T68:T70) -> $0 | U71: $0 | V71: =SUM(V68:V70) -> $0 | W71: =SUM(W68:W70) -> $0 | X71: =SUM(X68:X70) -> $0 | Y71: $0
A72: =" "&Labels!C316 -> Total | B72: =SUM(B66,B71) -> $0 | C72: =SUM(C66,C71) -> $0 | D72: =SUM(D66,D71) -> $2,750 | E72: $2,750 | F72: =SUM(F66,F71) -> $2,750 | G72: =SUM(G66,G71) -> $0 | H72: =SUM(H66,H71) -> $2,000 | I72: $4,750 | J72: =SUM(J66,J71) -> $30,261 | K72: =SUM(K66,K71) -> $30,331 | L72: =SUM(L66,L71) -> $0 | M72: $60,591 | N72: =SUM(N66,N71) -> $0 | O72: =SUM(O66,O71) -> $0 | P72: =SUM(P66,P71) -> $0 | Q72: $0 | R72: =SUM(R66,R71) -> $0 | S72: =SUM(S66,S71) -> $0 | T72: =SUM(T66,T71) -> $0 | U72: $0 | V72: =SUM(V66,V71) -> $0 | W72: =SUM(W66,W71) -> $0 | X72: =SUM(X66,X71) -> $0 | Y72: $0
A73: =" "&Labels!B325 -> Direct Labor | B73: =SUM(B63,B68) -> $0 | C73: $0 | D73: $0 | E73: $0 | F73: =SUM(F63,F68) -> $0 | G73: $0 | H73: $0 | I73: $0 | J73: =SUM(J63,J68) -> $28,261 | K73: $28,331 | L73: $0 | M73: $56,591 | N73: =SUM(N63,N68) -> $0 | O73: $0 | P73: $0 | Q73: $0 | R73: =SUM(R63,R68) -> $0 | S73: $0 | T73: $0 | U73: $0 | V73: =SUM(V63,V68) -> $0 | W73: $0 | X73: $0 | Y73: $0
A74: =" "&Labels!B326 -> Travel & Entertain | B74: $0 | C74: $0 | D74: $2,750 | E74: $2,750 | F74: $2,750 | G74: $0 | H74: $2,000 | I74: $4,750 | J74: $2,000 | K74: $2,000 | L74: $0 | M74: $4,000 | N74: $0 | O74: $0 | P74: $0 | Q74: $0 | R74: $0 | S74: $0 | T74: $0 | U74: $0 | V74: $0 | W74: $0 | X74: $0 | Y74: $0
A75: =" "&Labels!B327 -> Direct Supplies | B75: $0 | C75: $0 | D75: $0 | E75: $0 | F75: $0 | G75: $0 | H75: $0 | I75: $0 | J75: $0 | K75: $0 | L75: $0 | M75: $0 | N75: $0 | O75: $0 | P75: $0 | Q75: $0 | R75: $0 | S75: $0 | T75: $0 | U75: $0 | V75: $0 | W75: $0 | X75: $0 | Y75: $0
A76: =" "&Labels!C324 -> Total | B76: $0 | C76: $0 | D76: $2,750 | E76: =SUM(B72:D72) -> $2,750 | F76: $2,750 | G76: $0 | H76: $2,000 | I76: =SUM(F72:H72) -> $4,750 | J76: $30,261 | K76: $30,331 | L76: $0 | M76: =SUM(J72:L72) -> $60,591 | N76: $0 | O76: $0 | P76: $0 | Q76: =SUM(N72:P72) -> $0 | R76: $0 | S76: $0 | T76: $0 | U76: =SUM(R72:T72) -> $0 | V76: $0 | W76: $0 | X76: $0 | Y76: =SUM(V72:X72) -> $0
A77: =" "&Labels!B382 -> Practice 2
A78: =" "&Labels!B317 -> Channels 1
A79: =" "&Labels!B325 -> Direct Labor | B79: ='GM CostSvcs'!B34 -> $0 | C79: ='GM CostSvcs'!C34 -> $0 | D79: ='GM CostSvcs'!D34 -> $0 | E79: =SUM(B79:D79) -> $0 | F79: ='GM CostSvcs'!F34 -> $0 | G79: ='GM CostSvcs'!G34 -> $0 | H79: ='GM CostSvcs'!H34 -> $0 | I79: =SUM(F79:H79) -> $0 | J79: ='GM CostSvcs'!J34 -> $0 | K79: ='GM CostSvcs'!K34 -> $0 | L79: ='GM CostSvcs'!L34 -> $0 | M79: =SUM(J79:L79) -> $0 | N79: ='GM CostSvcs'!N34 -> $0 | O79: ='GM CostSvcs'!O34 -> $0 | P79: ='GM CostSvcs'!P34 -> $0 | Q79: =SUM(N79:P79) -> $0 | R79: ='GM CostSvcs'!R34 -> $0 | S79: ='GM CostSvcs'!S34 -> $0 | T79: ='GM CostSvcs'!T34 -> $0 | U79: =SUM(R79:T79) -> $0 | V79: ='GM CostSvcs'!V34 -> $0 | W79: ='GM CostSvcs'!W34 -> $0 | X79: ='GM CostSvcs'!X34 -> $0 | Y79: =SUM(V79:X79) -> $0
A80: =" "&Labels!B326 -> Travel & Entertain | B80: ='GM CostSvcs'!B75 -> $0 | C80: ='GM CostSvcs'!C75 -> $0 | D80: ='GM CostSvcs'!D75 -> $0 | E80: =SUM(B80:D80) -> $0 | F80: ='GM CostSvcs'!F75 -> $0 | G80: ='GM CostSvcs'!G75 -> $0 | H80: ='GM CostSvcs'!H75 -> $0 | I80: =SUM(F80:H80) -> $0 | J80: ='GM CostSvcs'!J75 -> $0 | K80: ='GM CostSvcs'!K75 -> $0 | L80: ='GM CostSvcs'!L75 -> $0 | M80: =SUM(J80:L80) -> $0 | N80: ='GM CostSvcs'!N75 -> $0 | O80: ='GM CostSvcs'!O75 -> $0 | P80: ='GM CostSvcs'!P75 -> $0 | Q80: =SUM(N80:P80) -> $0 | R80: ='GM CostSvcs'!R75 -> $0 | S80: ='GM CostSvcs'!S75 -> $0 | T80: ='GM CostSvcs'!T75 -> $0 | U80: =SUM(R80:T80) -> $0 | V80: ='GM CostSvcs'!V75 -> $0 | W80: ='GM CostSvcs'!W75 -> $0 | X80: ='GM CostSvcs'!X75 -> $0 | Y80: =SUM(V80:X80) -> $0
A81: =" "&Labels!B327 -> Direct Supplies | B81: ='GM CostSvcs'!B164 -> $0 | C81: ='GM CostSvcs'!C164 -> $0 | D81: ='GM CostSvcs'!D164 -> $0 | E81: =SUM(B81:D81) -> $0 | F81: ='GM CostSvcs'!F164 -> $0 | G81: ='GM CostSvcs'!G164 -> $0 | H81: ='GM CostSvcs'!H164 -> $0 | I81: =SUM(F81:H81) -> $0 | J81: ='GM CostSvcs'!J164 -> $0 | K81: ='GM CostSvcs'!K164 -> $0 | L81: ='GM CostSvcs'!L164 -> $0 | M81: =SUM(J81:L81) -> $0 | N81: ='GM CostSvcs'!N164 -> $0 | O81: ='GM CostSvcs'!O164 -> $0 | P81: ='GM CostSvcs'!P164 -> $0 | Q81: =SUM(N81:P81) -> $0 | R81: ='GM CostSvcs'!R164 -> $0 | S81: ='GM CostSvcs'!S164 -> $0 | T81: ='GM CostSvcs'!T164 -> $0 | U81: =SUM(R81:T81) -> $0 | V81: ='GM CostSvcs'!V164 -> $0 | W81: ='GM CostSvcs'!W164 -> $0 | X81: ='GM CostSvcs'!X164 -> $0 | Y81: =SUM(V81:X81) -> $0
A82: =" "&Labels!C324 -> Total | B82: =SUM(B79:B81) -> $0 | C82: =SUM(C79:C81) -> $0 | D82: =SUM(D79:D81) -> $0 | E82: =SUM(B82:D82) -> $0 | F82: =SUM(F79:F81) -> $0 | G82: =SUM(G79:G81) -> $0 | H82: =SUM(H79:H81) -> $0 | I82: =SUM(F82:H82) -> $0 | J82: =SUM(J79:J81) -> $0 | K82: =SUM(K79:K81) -> $0 | L82: =SUM(L79:L81) -> $0 | M82: =SUM(J82:L82) -> $0 | N82: =SUM(N79:N81) -> $0 | O82: =SUM(O79:O81) -> $0 | P82: =SUM(P79:P81) -> $0 | Q82: =SUM(N82:P82) -> $0 | R82: =SUM(R79:R81) -> $0 | S82: =SUM(S79:S81) -> $0 | T82: =SUM(T79:T81) -> $0 | U82: =SUM(R82:T82) -> $0 | V82: =SUM(V79:V81) -> $0 | W82: =SUM(W79:W81) -> $0 | X82: =SUM(X79:X81) -> $0 | Y82: =SUM(V82:X82) -> $0
A83: =" "&Labels!B318 -> Channels 2
A84: =" "&Labels!B325 -> Direct Labor | B84: ='GM CostSvcs'!B35 -> $0 | C84: ='GM CostSvcs'!C35 -> $0 | D84: ='GM CostSvcs'!D35 -> $0 | E84: =SUM(B84:D84) -> $0 | F84: ='GM CostSvcs'!F35 -> $0 | G84: ='GM CostSvcs'!G35 -> $0 | H84: ='GM CostSvcs'!H35 -> $0 | I84: =SUM(F84:H84) -> $0 | J84: ='GM CostSvcs'!J35 -> $0 | K84: ='GM CostSvcs'!K35 -> $0 | L84: ='GM CostSvcs'!L35 -> $0 | M84: =SUM(J84:L84) -> $0 | N84: ='GM CostSvcs'!N35 -> $0 | O84: ='GM CostSvcs'!O35 -> $0 | P84: ='GM CostSvcs'!P35 -> $0 | Q84: =SUM(N84:P84) -> $0 | R84: ='GM CostSvcs'!R35 -> $0 | S84: ='GM CostSvcs'!S35 -> $0 | T84: ='GM CostSvcs'!T35 -> $0 | U84: =SUM(R84:T84) -> $0 | V84: ='GM CostSvcs'!V35 -> $0 | W84: ='GM CostSvcs'!W35 -> $0 | X84: ='GM CostSvcs'!X35 -> $0 | Y84: =SUM(V84:X84) -> $0
A85: =" "&Labels!B326 -> Travel & Entertain | B85: ='GM CostSvcs'!B76 -> $0 | C85: ='GM CostSvcs'!C76 -> $0 | D85: ='GM CostSvcs'!D76 -> $0 | E85: $0 | F85: ='GM CostSvcs'!F76 -> $0 | G85: ='GM CostSvcs'!G76 -> $0 | H85: ='GM CostSvcs'!H76 -> $0 | I85: $0 | J85: ='GM CostSvcs'!J76 -> $0 | K85: ='GM CostSvcs'!K76 -> $0 | L85: ='GM CostSvcs'!L76 -> $0 | M85: $0 | N85: ='GM CostSvcs'!N76 -> $0 | O85: ='GM CostSvcs'!O76 -> $0 | P85: ='GM CostSvcs'!P76 -> $0 | Q85: $0 | R85: ='GM CostSvcs'!R76 -> $0 | S85: ='GM CostSvcs'!S76 -> $0 | T85: ='GM CostSvcs'!T76 -> $0 | U85: $0 | V85: ='GM CostSvcs'!V76 -> $0 | W85: ='GM CostSvcs'!W76 -> $0 | X85: ='GM CostSvcs'!X76 -> $0 | Y85: $0
A86: =" "&Labels!B327 -> Direct Supplies | B86: ='GM CostSvcs'!B168 -> $0 | C86: ='GM CostSvcs'!C168 -> $0 | D86: ='GM CostSvcs'!D168 -> $0 | E86: $0 | F86: ='GM CostSvcs'!F168 -> $0 | G86: ='GM CostSvcs'!G168 -> $0 | H86: ='GM CostSvcs'!H168 -> $0 | I86: $0 | J86: ='GM CostSvcs'!J168 -> $0 | K86: ='GM CostSvcs'!K168 -> $0 | L86: ='GM CostSvcs'!L168 -> $0 | M86: $0 | N86: ='GM CostSvcs'!N168 -> $0 | O86: ='GM CostSvcs'!O168 -> $0 | P86: ='GM CostSvcs'!P168 -> $0 | Q86: $0 | R86: ='GM CostSvcs'!R168 -> $0 | S86: ='GM CostSvcs'!S168 -> $0 | T86: ='GM CostSvcs'!T168 -> $0 | U86: $0 | V86: ='GM CostSvcs'!V168 -> $0 | W86: ='GM CostSvcs'!W168 -> $0 | X86: ='GM CostSvcs'!X168 -> $0 | Y86: $0
A87: =" "&Labels!C324 -> Total | B87: =SUM(B84:B86) -> $0 | C87: =SUM(C84:C86) -> $0 | D87: =SUM(D84:D86) -> $0 | E87: $0 | F87: =SUM(F84:F86) -> $0 | G87: =SUM(G84:G86) -> $0 | H87: =SUM(H84:H86) -> $0 | I87: $0 | J87: =SUM(J84:J86) -> $0 | K87: =SUM(K84:K86) -> $0 | L87: =SUM(L84:L86) -> $0 | M87: $0 | N87: =SUM(N84:N86) -> $0 | O87: =SUM(O84:O86) -> $0 | P87: =SUM(P84:P86) -> $0 | Q87: $0 | R87: =SUM(R84:R86) -> $0 | S87: =SUM(S84:S86) -> $0 | T87: =SUM(T84:T86) -> $0 | U87: $0 | V87: =SUM(V84:V86) -> $0 | W87: =SUM(W84:W86) -> $0 | X87: =SUM(X84:X86) -> $0 | Y87: $0
A88: =" "&Labels!C316 -> Total | B88: =SUM(B82,B87) -> $0 | C88: =SUM(C82,C87) -> $0 | D88: =SUM(D82,D87) -> $0 | E88: $0 | F88: =SUM(F82,F87) -> $0 | G88: =SUM(G82,G87) -> $0 | H88: =SUM(H82,H87) -> $0 | I88: $0 | J88: =SUM(J82,J87) -> $0 | K88: =SUM(K82,K87) -> $0 | L88: =SUM(L82,L87) -> $0 | M88: $0 | N88: =SUM(N82,N87) -> $0 | O88: =SUM(O82,O87) -> $0 | P88: =SUM(P82,P87) -> $0 | Q88: $0 | R88: =SUM(R82,R87) -> $0 | S88: =SUM(S82,S87) -> $0 | T88: =SUM(T82,T87) -> $0 | U88: $0 | V88: =SUM(V82,V87) -> $0 | W88: =SUM(W82,W87) -> $0 | X88: =SUM(X82,X87) -> $0 | Y88: $0
A89: =" "&Labels!B325 -> Direct Labor | B89: =SUM(B79,B84) -> $0 | C89: $0 | D89: $0 | E89: $0 | F89: =SUM(F79,F84) -> $0 | G89: $0 | H89: $0 | I89: $0 | J89: =SUM(J79,J84) -> $0 | K89: $0 | L89: $0 | M89: $0 | N89: =SUM(N79,N84) -> $0 | O89: $0 | P89: $0 | Q89: $0 | R89: =SUM(R79,R84) -> $0 | S89: $0 | T89: $0 | U89: $0 | V89: =SUM(V79,V84) -> $0 | W89: $0 | X89: $0 | Y89: $0
A90: =" "&Labels!B326 -> Travel & Entertain | B90: $0 | C90: $0 | D90: $0 | E90: $0 | F90: $0 | G90: $0 | H90: $0 | I90: $0 | J90: $0 | K90: $0 | L90: $0 | M90: $0 | N90: $0 | O90: $0 | P90: $0 | Q90: $0 | R90: $0 | S90: $0 | T90: $0 | U90: $0 | V90: $0 | W90: $0 | X90: $0 | Y90: $0
A91: =" "&Labels!B327 -> Direct Supplies | B91: $0 | C91: $0 | D91: $0 | E91: $0 | F91: $0 | G91: $0 | H91: $0 | I91: $0 | J91: $0 | K91: $0 | L91: $0 | M91: $0 | N91: $0 | O91: $0 | P91: $0 | Q91: $0 | R91: $0 | S91: $0 | T91: $0 | U91: $0 | V91: $0 | W91: $0 | X91: $0 | Y91: $0
A92: =" "&Labels!C324 -> Total | B92: $0 | C92: $0 | D92: $0 | E92: =SUM(B88:D88) -> $0 | F92: $0 | G92: $0 | H92: $0 | I92: =SUM(F88:H88) -> $0 | J92: $0 | K92: $0 | L92: $0 | M92: =SUM(J88:L88) -> $0 | N92: $0 | O92: $0 | P92: $0 | Q92: =SUM(N88:P88) -> $0 | R92: $0 | S92: $0 | T92: $0 | U92: =SUM(R88:T88) -> $0 | V92: $0 | W92: $0 | X92: $0 | Y92: =SUM(V88:X88) -> $0
A93: =" "&Labels!C380 -> Total | B93: =SUM(B72,B88) -> $0 | C93: =SUM(C72,C88) -> $0 | D93: =SUM(D72,D88) -> $2,750 | E93: =SUM(B93:D93) -> $2,750 | F93: =SUM(F72,F88) -> $2,750 | G93: =SUM(G72,G88) -> $0 | H93: =SUM(H72,H88) -> $2,000 | I93: =SUM(F93:H93) -> $4,750 | J93: =SUM(J72,J88) -> $30,261 | K93: =SUM(K72,K88) -> $30,331 | L93: =SUM(L72,L88) -> $0 | M93: =SUM(J93:L93) -> $60,591 | N93: =SUM(N72,N88) -> $0 | O93: =SUM(O72,O88) -> $0 | P93: =SUM(P72,P88) -> $0 | Q93: =SUM(N93:P93) -> $0 | R93: =SUM(R72,R88) -> $0 | S93: =SUM(S72,S88) -> $0 | T93: =SUM(T72,T88) -> $0 | U93: =SUM(R93:T93) -> $0 | V93: =SUM(V72,V88) -> $0 | W93: =SUM(W72,W88) -> $0 | X93: =SUM(X72,X88) -> $0 | Y93: =SUM(V93:X93) -> $0
A94: =" "&Labels!B317 -> Channels 1
A95: =" "&Labels!B325 -> Direct Labor | B95: =SUM(B63,B79) -> $0 | C95: $0 | D95: $0 | E95: =SUM(B95:D95) -> $0 | F95: =SUM(F63,F79) -> $0 | G95: $0 | H95: $0 | I95: =SUM(F95:H95) -> $0 | J95: =SUM(J63,J79) -> $28,261 | K95: $28,331 | L95: $0 | M95: =SUM(J95:L95) -> $56,591 | N95: =SUM(N63,N79) -> $0 | O95: $0 | P95: $0 | Q95: =SUM(N95:P95) -> $0 | R95: =SUM(R63,R79) -> $0 | S95: $0 | T95: $0 | U95: =SUM(R95:T95) -> $0 | V95: =SUM(V63,V79) -> $0 | W95: $0 | X95: $0 | Y95: =SUM(V95:X95) -> $0
A96: =" "&Labels!B326 -> Travel & Entertain | B96: $0 | C96: $0 | D96: $2,750 | E96: =SUM(B96:D96) -> $2,750 | F96: $2,750 | G96: $0 | H96: $2,000 | I96: =SUM(F96:H96) -> $4,750 | J96: $2,000 | K96: $2,000 | L96: $0 | M96: =SUM(J96:L96) -> $4,000 | N96: $0 | O96: $0 | P96: $0 | Q96: =SUM(N96:P96) -> $0 | R96: $0 | S96: $0 | T96: $0 | U96: =SUM(R96:T96) -> $0 | V96: $0 | W96: $0 | X96: $0 | Y96: =SUM(V96:X96) -> $0
A97: =" "&Labels!B327 -> Direct Supplies | B97: $0 | C97: $0 | D97: $0 | E97: =SUM(B97:D97) -> $0 | F97: $0 | G97: $0 | H97: $0 | I97: =SUM(F97:H97) -> $0 | J97: $0 | K97: $0 | L97: $0 | M97: =SUM(J97:L97) -> $0 | N97: $0 | O97: $0 | P97: $0 | Q97: =SUM(N97:P97) -> $0 | R97: $0 | S97: $0 | T97: $0 | U97: =SUM(R97:T97) -> $0 | V97: $0 | W97: $0 | X97: $0 | Y97: =SUM(V97:X97) -> $0
A98: =" "&Labels!C324 -> Total | B98: $0 | C98: $0 | D98: $2,750 | E98: =SUM(B98:D98) -> $2,750 | F98: $2,750 | G98: $0 | H98: $2,000 | I98: =SUM(F98:H98) -> $4,750 | J98: $30,261 | K98: $30,331 | L98: $0 | M98: =SUM(J98:L98) -> $60,591 | N98: $0 | O98: $0 | P98: $0 | Q98: =SUM(N98:P98) -> $0 | R98: $0 | S98: $0 | T98: $0 | U98: =SUM(R98:T98) -> $0 | V98: $0 | W98: $0 | X98: $0 | Y98: =SUM(V98:X98) -> $0
A99: =" "&Labels!B318 -> Channels 2
A100: =" "&Labels!B325 -> Direct Labor | B100: =SUM(B68,B84) -> $0 | C100: $0 | D100: $0 | E100: =SUM(B100:D100) -> $0 | F100: =SUM(F68,F84) -> $0 | G100: $0 | H100: $0 | I100: =SUM(F100:H100) -> $0 | J100: =SUM(J68,J84) -> $0 | K100: $0 | L100: $0 | M100: =SUM(J100:L100) -> $0 | N100: =SUM(N68,N84) -> $0 | O100: $0 | P100: $0 | Q100: =SUM(N100:P100) -> $0 | R100: =SUM(R68,R84) -> $0 | S100: $0 | T100: $0 | U100: =SUM(R100:T100) -> $0 | V100: =SUM(V68,V84) -> $0 | W100: $0 | X100: $0 | Y100: =SUM(V100:X100) -> $0
A101: =" "&Labels!B326 -> Travel & Entertain | B101: $0 | C101: $0 | D101: $0 | E101: =SUM(B101:D101) -> $0 | F101: $0 | G101: $0 | H101: $0 | I101: =SUM(F101:H101) -> $0 | J101: $0 | K101: $0 | L101: $0 | M101: =SUM(J101:L101) -> $0 | N101: $0 | O101: $0 | P101: $0 | Q101: =SUM(N101:P101) -> $0 | R101: $0 | S101: $0 | T101: $0 | U101: =SUM(R101:T101) -> $0 | V101: $0 | W101: $0 | X101: $0 | Y101: =SUM(V101:X101) -> $0
A102: =" "&Labels!B327 -> Direct Supplies | B102: $0 | C102: $0 | D102: $0 | E102: =SUM(B102:D102) -> $0 | F102: $0 | G102: $0 | H102: $0 | I102: =SUM(F102:H102) -> $0 | J102: $0 | K102: $0 | L102: $0 | M102: =SUM(J102:L102) -> $0 | N102: $0 | O102: $0 | P102: $0 | Q102: =SUM(N102:P102) -> $0 | R102: $0 | S102: $0 | T102: $0 | U102: =SUM(R102:T102) -> $0 | V102: $0 | W102: $0 | X102: $0 | Y102: =SUM(V102:X102) -> $0
A103: =" "&Labels!C324 -> Total | B103: $0 | C103: $0 | D103: $0 | E103: =SUM(B103:D103) -> $0 | F103: $0 | G103: $0 | H103: $0 | I103: =SUM(F103:H103) -> $0 | J103: $0 | K103: $0 | L103: $0 | M103: =SUM(J103:L103) -> $0 | N103: $0 | O103: $0 | P103: $0 | Q103: =SUM(N103:P103) -> $0 | R103: $0 | S103: $0 | T103: $0 | U103: =SUM(R103:T103) -> $0 | V103: $0 | W103: $0 | X103: $0 | Y103: =SUM(V103:X103) -> $0
A104: =" "&Labels!C316 -> Total | B104: $0 | C104: $0 | D104: $2,750 | E104: =SUM(B93:D93) -> $2,750 | F104: $2,750 | G104: $0 | H104: $2,000 | I104: =SUM(F93:H93) -> $4,750 | J104: $30,261 | K104: $30,331 | L104: $0 | M104: =SUM(J93:L93) -> $60,591 | N104: $0 | O104: $0 | P104: $0 | Q104: =SUM(N93:P93) -> $0 | R104: $0 | S104: $0 | T104: $0 | U104: =SUM(R93:T93) -> $0 | V104: $0 | W104: $0 | X104: $0 | Y104: =SUM(V93:X93) -> $0
A105: =" "&Labels!B325 -> Direct Labor | B105: $0 | C105: $0 | D105: $0 | E105: =SUM(B105:D105) -> $0 | F105: $0 | G105: $0 | H105: $0 | I105: =SUM(F105:H105) -> $0 | J105: $28,261 | K105: $28,331 | L105: $0 | M105: =SUM(J105:L105) -> $56,591 | N105: $0 | O105: $0 | P105: $0 | Q105: =SUM(N105:P105) -> $0 | R105: $0 | S105: $0 | T105: $0 | U105: =SUM(R105:T105) -> $0 | V105: $0 | W105: $0 | X105: $0 | Y105: =SUM(V105:X105) -> $0
A106: =" "&Labels!B326 -> Travel & Entertain | B106: $0 | C106: $0 | D106: $2,750 | E106: =SUM(B106:D106) -> $2,750 | F106: $2,750 | G106: $0 | H106: $2,000 | I106: =SUM(F106:H106) -> $4,750 | J106: $2,000 | K106: $2,000 | L106: $0 | M106: =SUM(J106:L106) -> $4,000 | N106: $0 | O106: $0 | P106: $0 | Q106: =SUM(N106:P106) -> $0 | R106: $0 | S106: $0 | T106: $0 | U106: =SUM(R106:T106) -> $0 | V106: $0 | W106: $0 | X106: $0 | Y106: =SUM(V106:X106) -> $0
A107: =" "&Labels!B327 -> Direct Supplies | B107: $0 | C107: $0 | D107: $0 | E107: =SUM(B107:D107) -> $0 | F107: $0 | G107: $0 | H107: $0 | I107: =SUM(F107:H107) -> $0 | J107: $0 | K107: $0 | L107: $0 | M107: =SUM(J107:L107) -> $0 | N107: $0 | O107: $0 | P107: $0 | Q107: =SUM(N107:P107) -> $0 | R107: $0 | S107: $0 | T107: $0 | U107: =SUM(R107:T107) -> $0 | V107: $0 | W107: $0 | X107: $0 | Y107: =SUM(V107:X107) -> $0
A108: =" "&Labels!C324 -> Total | B108: =SUM(B72,B88) -> $0 | C108: =SUM(C72,C88) -> $0 | D108: =SUM(D72,D88) -> $2,750 | E108: =SUM(B93:D93) -> $2,750 | F108: =SUM(F72,F88) -> $2,750 | G108: =SUM(G72,G88) -> $0 | H108: =SUM(H72,H88) -> $2,000 | I108: =SUM(F93:H93) -> $4,750 | J108: =SUM(J72,J88) -> $30,261 | K108: =SUM(K72,K88) -> $30,331 | L108: =SUM(L72,L88) -> $0 | M108: =SUM(J93:L93) -> $60,591 | N108: =SUM(N72,N88) -> $0 | O108: =SUM(O72,O88) -> $0 | P108: =SUM(P72,P88) -> $0 | Q108: =SUM(N93:P93) -> $0 | R108: =SUM(R72,R88) -> $0 | S108: =SUM(S72,S88) -> $0 | T108: =SUM(T72,T88) -> $0 | U108: =SUM(R93:T93) -> $0 | V108: =SUM(V72,V88) -> $0 | W108: =SUM(W72,W88) -> $0 | X108: =SUM(X72,X88) -> $0 | Y108: =SUM(V93:X93) -> $0
A110: =Labels!B381 -> Practice 1
A111: =" "&Labels!B317 -> Channels 1
A112: =" "&Labels!B98 -> Gross Margin | B112: =SUM('GM CostSvcs'!B219,'GM CostSvcs'!B229) -> $0 | C112: =SUM('GM CostSvcs'!C219,'GM CostSvcs'!C229) -> $0 | D112: =SUM('GM CostSvcs'!D219,'GM CostSvcs'!D229) -> $55,000 | E112: =SUM(B112:D112) -> $55,000 | F112: =SUM('GM CostSvcs'!F219,'GM CostSvcs'!F229) -> $55,000 | G112: =SUM('GM CostSvcs'!G219,'GM CostSvcs'!G229) -> $0 | H112: =SUM('GM CostSvcs'!H219,'GM CostSvcs'!H229) -> $40,000 | I112: =SUM(F112:H112) -> $95,000 | J112: =SUM('GM CostSvcs'!J219,'GM CostSvcs'!J229) -> $11,739 | K112: =SUM('GM CostSvcs'!K219,'GM CostSvcs'!K229) -> $4,587 | L112: =SUM('GM CostSvcs'!L219,'GM CostSvcs'!L229) -> $0 | M112: =SUM(J112:L112) -> $16,326 | N112: =SUM('GM CostSvcs'!N219,'GM CostSvcs'!N229) -> $0 | O112: =SUM('GM CostSvcs'!O219,'GM CostSvcs'!O229) -> $0 | P112: =SUM('GM CostSvcs'!P219,'GM CostSvcs'!P229) -> $0 | Q112: =SUM(N112:P112) -> $0 | R112: =SUM('GM CostSvcs'!R219,'GM CostSvcs'!R229) -> $0 | S112: =SUM('GM CostSvcs'!S219,'GM CostSvcs'!S229) -> $0 | T112: =SUM('GM CostSvcs'!T219,'GM CostSvcs'!T229) -> $0 | U112: =SUM(R112:T112) -> $0 | V112: =SUM('GM CostSvcs'!V219,'GM CostSvcs'!V229) -> $0 | W112: =SUM('GM CostSvcs'!W219,'GM CostSvcs'!W229) -> $0 | X112: =SUM('GM CostSvcs'!X219,'GM CostSvcs'!X229) -> $0 | Y112: =SUM(V112:X112) -> $0
A113: =" "&Labels!B100 -> Gross Margin % | B113: =IF(B48=0,0,B112/B48) -> 0.0% | C113: =IF(C48=0,0,C112/C48) -> 0.0% | D113: =IF(D48=0,0,D112/D48) -> 95.2% | E113: =IF(SUM(B48:D48)=0,0,SUM(B112:D112)/SUM(B48:D48)) -> 95.2% | F113: =IF(F48=0,0,F112/F48) -> 95.2% | G113: =IF(G48=0,0,G112/G48) -> 0.0% | H113: =IF(H48=0,0,H112/H48) -> 95.2% | I113: =IF(SUM(F48:H48)=0,0,SUM(F112:H112)/SUM(F48:H48)) -> 95.2% | J113: =IF(J48=0,0,J112/J48) -> 28.0% | K113: =IF(K48=0,0,K112/K48) -> 10.9% | L113: =IF(L48=0,0,L112/L48) -> 0.0% | M113: =IF(SUM(J48:L48)=0,0,SUM(J112:L112)/SUM(J48:L48)) -> 19.4% | N113: =IF(N48=0,0,N112/N48) -> 0.0% | O113: =IF(O48=0,0,O112/O48) -> 0.0% | P113: =IF(P48=0,0,P112/P48) -> 0.0% | Q113: =IF(SUM(N48:P48)=0,0,SUM(N112:P112)/SUM(N48:P48)) -> 0.0% | R113: =IF(R48=0,0,R112/R48) -> 0.0% | S113: =IF(S48=0,0,S112/S48) -> 0.0% | T113: =IF(T48=0,0,T112/T48) -> 0.0% | U113: =IF(SUM(R48:T48)=0,0,SUM(R112:T112)/SUM(R48:T48)) -> 0.0% | V113: =IF(V48=0,0,V112/V48) -> 0.0% | W113: =IF(W48=0,0,W112/W48) -> 0.0% | X113: =IF(X48=0,0,X112/X48) -> 0.0% | Y113: =IF(SUM(V48:X48)=0,0,SUM(V112:X112)/SUM(V48:X48)) -> 0.0%
A114: =" "&Labels!B318 -> Channels 2
A115: =" "&Labels!B98 -> Gross Margin | B115: =SUM('GM CostSvcs'!B222,'GM CostSvcs'!B232) -> $0 | C115: =SUM('GM CostSvcs'!C222,'GM CostSvcs'!C232) -> $0 | D115: =SUM('GM CostSvcs'!D222,'GM CostSvcs'!D232) -> $55,000 | E115: =SUM(B115:D115) -> $55,000 | F115: =SUM('GM CostSvcs'!F222,'GM CostSvcs'!F232) -> $55,000 | G115: =SUM('GM CostSvcs'!G222,'GM CostSvcs'!G232) -> $0 | H115: =SUM('GM CostSvcs'!H222,'GM CostSvcs'!H232) -> $40,000 | I115: =SUM(F115:H115) -> $95,000 | J115: =SUM('GM CostSvcs'!J222,'GM CostSvcs'!J232) -> $40,000 | K115: =SUM('GM CostSvcs'!K222,'GM CostSvcs'!K232) -> $32,917 | L115: =SUM('GM CostSvcs'!L222,'GM CostSvcs'!L232) -> $0 | M115: =SUM(J115:L115) -> $72,917 | N115: =SUM('GM CostSvcs'!N222,'GM CostSvcs'!N232) -> $0 | O115: =SUM('GM CostSvcs'!O222,'GM CostSvcs'!O232) -> $0 | P115: =SUM('GM CostSvcs'!P222,'GM CostSvcs'!P232) -> $0 | Q115: =SUM(N115:P115) -> $0 | R115: =SUM('GM CostSvcs'!R222,'GM CostSvcs'!R232) -> $0 | S115: =SUM('GM CostSvcs'!S222,'GM CostSvcs'!S232) -> $0 | T115: =SUM('GM CostSvcs'!T222,'GM CostSvcs'!T232) -> $0 | U115: =SUM(R115:T115) -> $0 | V115: =SUM('GM CostSvcs'!V222,'GM CostSvcs'!V232) -> $0 | W115: =SUM('GM CostSvcs'!W222,'GM CostSvcs'!W232) -> $0 | X115: =SUM('GM CostSvcs'!X222,'GM CostSvcs'!X232) -> $0 | Y115: =SUM(V115:X115) -> $0
A116: =" "&Labels!B100 -> Gross Margin % | B116: =IF(B49=0,0,B115/B49) -> 0.0% | C116: =IF(C49=0,0,C115/C49) -> 0.0% | D116: =IF(D49=0,0,D115/D49) -> 100.0% | E116: =IF(SUM(B49:D49)=0,0,SUM(B115:D115)/SUM(B49:D49)) -> 100.0% | F116: =IF(F49=0,0,F115/F49) -> 100.0% | G116: =IF(G49=0,0,G115/G49) -> 0.0% | H116: =IF(H49=0,0,H115/H49) -> 100.0% | I116: =IF(SUM(F49:H49)=0,0,SUM(F115:H115)/SUM(F49:H49)) -> 100.0% | J116: =IF(J49=0,0,J115/J49) -> 100.0% | K116: =IF(K49=0,0,K115/K49) -> 82.3% | L116: =IF(L49=0,0,L115/L49) -> 0.0% | M116: =IF(SUM(J49:L49)=0,0,SUM(J115:L115)/SUM(J49:L49)) -> 91.1% | N116: =IF(N49=0,0,N115/N49) -> 0.0% | O116: =IF(O49=0,0,O115/O49) -> 0.0% | P116: =IF(P49=0,0,P115/P49) -> 0.0% | Q116: =IF(SUM(N49:P49)=0,0,SUM(N115:P115)/SUM(N49:P49)) -> 0.0% | R116: =IF(R49=0,0,R115/R49) -> 0.0% | S116: =IF(S49=0,0,S115/S49) -> 0.0% | T116: =IF(T49=0,0,T115/T49) -> 0.0% | U116: =IF(SUM(R49:T49)=0,0,SUM(R115:T115)/SUM(R49:T49)) -> 0.0% | V116: =IF(V49=0,0,V115/V49) -> 0.0% | W116: =IF(W49=0,0,W115/W49) -> 0.0% | X116: =IF(X49=0,0,X115/X49) -> 0.0% | Y116: =IF(SUM(V49:X49)=0,0,SUM(V115:X115)/SUM(V49:X49)) -> 0.0%
A117: =" "&Labels!C316 -> Total
A118: =" "&Labels!B98 -> Gross Margin | B118: =SUM(B262,B265) -> $0 | C118: =SUM(C262,C265) -> $0 | D118: =SUM(D262,D265) -> $110,000 | E118: =SUM(B118:D118) -> $110,000 | F118: =SUM(F262,F265) -> $110,000 | G118: =SUM(G262,G265) -> $0 | H118: =SUM(H262,H265) -> $80,000 | I118: =SUM(F118:H118) -> $190,000 | J118: =SUM(J262,J265) -> $51,739 | K118: =SUM(K262,K265) -> $37,504 | L118: =SUM(L262,L265) -> $0 | M118: =SUM(J118:L118) -> $89,243 | N118: =SUM(N262,N265) -> $0 | O118: =SUM(O262,O265) -> $0 | P118: =SUM(P262,P265) -> $0 | Q118: =SUM(N118:P118) -> $0 | R118: =SUM(R262,R265) -> $0 | S118: =SUM(S262,S265) -> $0 | T118: =SUM(T262,T265) -> $0 | U118: =SUM(R118:T118) -> $0 | V118: =SUM(V262,V265) -> $0 | W118: =SUM(W262,W265) -> $0 | X118: =SUM(X262,X265) -> $0 | Y118: =SUM(V118:X118) -> $0
A119: =" "&Labels!B100 -> Gross Margin % | B119: =IF(B9=0,0,B118/B9) -> 0.0% | C119: =IF(C9=0,0,C118/C9) -> 0.0% | D119: =IF(D9=0,0,D118/D9) -> 97.6% | E119: =IF(SUM(B9:D9)=0,0,SUM(B118:D118)/SUM(B9:D9)) -> 97.6% | F119: =IF(F9=0,0,F118/F9) -> 97.6% | G119: =IF(G9=0,0,G118/G9) -> 0.0% | H119: =IF(H9=0,0,H118/H9) -> 97.6% | I119: =IF(SUM(F9:H9)=0,0,SUM(F118:H118)/SUM(F9:H9)) -> 97.6% | J119: =IF(J9=0,0,J118/J9) -> 63.1% | K119: =IF(K9=0,0,K118/K9) -> 45.7% | L119: =IF(L9=0,0,L118/L9) -> 0.0% | M119: =IF(SUM(J9:L9)=0,0,SUM(J118:L118)/SUM(J9:L9)) -> 54.4% | N119: =IF(N9=0,0,N118/N9) -> 0.0% | O119: =IF(O9=0,0,O118/O9) -> 0.0% | P119: =IF(P9=0,0,P118/P9) -> 0.0% | Q119: =IF(SUM(N9:P9)=0,0,SUM(N118:P118)/SUM(N9:P9)) -> 0.0% | R119: =IF(R9=0,0,R118/R9) -> 0.0% | S119: =IF(S9=0,0,S118/S9) -> 0.0% | T119: =IF(T9=0,0,T118/T9) -> 0.0% | U119: =IF(SUM(R9:T9)=0,0,SUM(R118:T118)/SUM(R9:T9)) -> 0.0% | V119: =IF(V9=0,0,V118/V9) -> 0.0% | W119: =IF(W9=0,0,W118/W9) -> 0.0% | X119: =IF(X9=0,0,X118/X9) -> 0.0% | Y119: =IF(SUM(V9:X9)=0,0,SUM(V118:X118)/SUM(V9:X9)) -> 0.0%
A120: =Labels!B382 -> Practice 2
A121: =" "&Labels!B317 -> Channels 1
A122: =" "&Labels!B98 -> Gross Margin | B122: =SUM('GM CostSvcs'!B250,'GM CostSvcs'!B260) -> $0 | C122: =SUM('GM CostSvcs'!C250,'GM CostSvcs'!C260) -> $0 | D122: =SUM('GM CostSvcs'!D250,'GM CostSvcs'!D260) -> $0 | E122: =SUM(B122:D122) -> $0 | F122: =SUM('GM CostSvcs'!F250,'GM CostSvcs'!F260) -> $0 | G122: =SUM('GM CostSvcs'!G250,'GM CostSvcs'!G260) -> $0 | H122: =SUM('GM CostSvcs'!H250,'GM CostSvcs'!H260) -> $0 | I122: =SUM(F122:H122) -> $0 | J122: =SUM('GM CostSvcs'!J250,'GM CostSvcs'!J260) -> $0 | K122: =SUM('GM CostSvcs'!K250,'GM CostSvcs'!K260) -> $0 | L122: =SUM('GM CostSvcs'!L250,'GM CostSvcs'!L260) -> $0 | M122: =SUM(J122:L122) -> $0 | N122: =SUM('GM CostSvcs'!N250,'GM CostSvcs'!N260) -> $0 | O122: =SUM('GM CostSvcs'!O250,'GM CostSvcs'!O260) -> $0 | P122: =SUM('GM CostSvcs'!P250,'GM CostSvcs'!P260) -> $0 | Q122: =SUM(N122:P122) -> $0 | R122: =SUM('GM CostSvcs'!R250,'GM CostSvcs'!R260) -> $0 | S122: =SUM('GM CostSvcs'!S250,'GM CostSvcs'!S260) -> $0 | T122: =SUM('GM CostSvcs'!T250,'GM CostSvcs'!T260) -> $0 | U122: =SUM(R122:T122) -> $0 | V122: =SUM('GM CostSvcs'!V250,'GM CostSvcs'!V260) -> $0 | W122: =SUM('GM CostSvcs'!W250,'GM CostSvcs'!W260) -> $0 | X122: =SUM('GM CostSvcs'!X250,'GM CostSvcs'!X260) -> $0 | Y122: =SUM(V122:X122) -> $0
A123: =" "&Labels!B100 -> Gross Margin % | B123: =IF(B52=0,0,B122/B52) -> 0.0% | C123: =IF(C52=0,0,C122/C52) -> 0.0% | D123: =IF(D52=0,0,D122/D52) -> 0.0% | E123: =IF(SUM(B52:D52)=0,0,SUM(B122:D122)/SUM(B52:D52)) -> 0.0% | F123: =IF(F52=0,0,F122/F52) -> 0.0% | G123: =IF(G52=0,0,G122/G52) -> 0.0% | H123: =IF(H52=0,0,H122/H52) -> 0.0% | I123: =IF(SUM(F52:H52)=0,0,SUM(F122:H122)/SUM(F52:H52)) -> 0.0% | J123: =IF(J52=0,0,J122/J52) -> 0.0% | K123: =IF(K52=0,0,K122/K52) -> 0.0% | L123: =IF(L52=0,0,L122/L52) -> 0.0% | M123: =IF(SUM(J52:L52)=0,0,SUM(J122:L122)/SUM(J52:L52)) -> 0.0% | N123: =IF(N52=0,0,N122/N52) -> 0.0% | O123: =IF(O52=0,0,O122/O52) -> 0.0% | P123: =IF(P52=0,0,P122/P52) -> 0.0% | Q123: =IF(SUM(N52:P52)=0,0,SUM(N122:P122)/SUM(N52:P52)) -> 0.0% | R123: =IF(R52=0,0,R122/R52) -> 0.0% | S123: =IF(S52=0,0,S122/S52) -> 0.0% | T123: =IF(T52=0,0,T122/T52) -> 0.0% | U123: =IF(SUM(R52:T52)=0,0,SUM(R122:T122)/SUM(R52:T52)) -> 0.0% | V123: =IF(V52=0,0,V122/V52) -> 0.0% | W123: =IF(W52=0,0,W122/W52) -> 0.0% | X123: =IF(X52=0,0,X122/X52) -> 0.0% | Y123: =IF(SUM(V52:X52)=0,0,SUM(V122:X122)/SUM(V52:X52)) -> 0.0%
A124: =" "&Labels!B318 -> Channels 2
A125: =" "&Labels!B98 -> Gross Margin | B125: =SUM('GM CostSvcs'!B253,'GM CostSvcs'!B263) -> $0 | C125: =SUM('GM CostSvcs'!C253,'GM CostSvcs'!C263) -> $0 | D125: =SUM('GM CostSvcs'!D253,'GM CostSvcs'!D263) -> $0 | E125: =SUM(B125:D125) -> $0 | F125: =SUM('GM CostSvcs'!F253,'GM CostSvcs'!F263) -> $0 | G125: =SUM('GM CostSvcs'!G253,'GM CostSvcs'!G263) -> $0 | H125: =SUM('GM CostSvcs'!H253,'GM CostSvcs'!H263) -> $0 | I125: =SUM(F125:H125) -> $0 | J125: =SUM('GM CostSvcs'!J253,'GM CostSvcs'!J263) -> $0 | K125: =SUM('GM CostSvcs'!K253,'GM CostSvcs'!K263) -> $0 | L125: =SUM('GM CostSvcs'!L253,'GM CostSvcs'!L263) -> $0 | M125: =SUM(J125:L125) -> $0 | N125: =SUM('GM CostSvcs'!N253,'GM CostSvcs'!N263) -> $0 | O125: =SUM('GM CostSvcs'!O253,'GM CostSvcs'!O263) -> $0 | P125: =SUM('GM CostSvcs'!P253,'GM CostSvcs'!P263) -> $0 | Q125: =SUM(N125:P125) -> $0 | R125: =SUM('GM CostSvcs'!R253,'GM CostSvcs'!R263) -> $0 | S125: =SUM('GM CostSvcs'!S253,'GM CostSvcs'!S263) -> $0 | T125: =SUM('GM CostSvcs'!T253,'GM CostSvcs'!T263) -> $0 | U125: =SUM(R125:T125) -> $0 | V125: =SUM('GM CostSvcs'!V253,'GM CostSvcs'!V263) -> $0 | W125: =SUM('GM CostSvcs'!W253,'GM CostSvcs'!W263) -> $0 | X125: =SUM('GM CostSvcs'!X253,'GM CostSvcs'!X263) -> $0 | Y125: =SUM(V125:X125) -> $0
A126: =" "&Labels!B100 -> Gross Margin % | B126: =IF(B53=0,0,B125/B53) -> 0.0% | C126: =IF(C53=0,0,C125/C53) -> 0.0% | D126: =IF(D53=0,0,D125/D53) -> 0.0% | E126: =IF(SUM(B53:D53)=0,0,SUM(B125:D125)/SUM(B53:D53)) -> 0.0% | F126: =IF(F53=0,0,F125/F53) -> 0.0% | G126: =IF(G53=0,0,G125/G53) -> 0.0% | H126: =IF(H53=0,0,H125/H53) -> 0.0% | I126: =IF(SUM(F53:H53)=0,0,SUM(F125:H125)/SUM(F53:H53)) -> 0.0% | J126: =IF(J53=0,0,J125/J53) -> 0.0% | K126: =IF(K53=0,0,K125/K53) -> 0.0% | L126: =IF(L53=0,0,L125/L53) -> 0.0% | M126: =IF(SUM(J53:L53)=0,0,SUM(J125:L125)/SUM(J53:L53)) -> 0.0% | N126: =IF(N53=0,0,N125/N53) -> 0.0% | O126: =IF(O53=0,0,O125/O53) -> 0.0% | P126: =IF(P53=0,0,P125/P53) -> 0.0% | Q126: =IF(SUM(N53:P53)=0,0,SUM(N125:P125)/SUM(N53:P53)) -> 0.0% | R126: =IF(R53=0,0,R125/R53) -> 0.0% | S126: =IF(S53=0,0,S125/S53) -> 0.0% | T126: =IF(T53=0,0,T125/T53) -> 0.0% | U126: =IF(SUM(R53:T53)=0,0,SUM(R125:T125)/SUM(R53:T53)) -> 0.0% | V126: =IF(V53=0,0,V125/V53) -> 0.0% | W126: =IF(W53=0,0,W125/W53) -> 0.0% | X126: =IF(X53=0,0,X125/X53) -> 0.0% | Y126: =IF(SUM(V53:X53)=0,0,SUM(V125:X125)/SUM(V53:X53)) -> 0.0%
A127: =" "&Labels!C316 -> Total
A128: =" "&Labels!B98 -> Gross Margin | B128: =SUM(B272,B275) -> $0 | C128: =SUM(C272,C275) -> $0 | D128: =SUM(D272,D275) -> $0 | E128: =SUM(B128:D128) -> $0 | F128: =SUM(F272,F275) -> $0 | G128: =SUM(G272,G275) -> $0 | H128: =SUM(H272,H275) -> $0 | I128: =SUM(F128:H128) -> $0 | J128: =SUM(J272,J275) -> $0 | K128: =SUM(K272,K275) -> $0 | L128: =SUM(L272,L275) -> $0 | M128: =SUM(J128:L128) -> $0 | N128: =SUM(N272,N275) -> $0 | O128: =SUM(O272,O275) -> $0 | P128: =SUM(P272,P275) -> $0 | Q128: =SUM(N128:P128) -> $0 | R128: =SUM(R272,R275) -> $0 | S128: =SUM(S272,S275) -> $0 | T128: =SUM(T272,T275) -> $0 | U128: =SUM(R128:T128) -> $0 | V128: =SUM(V272,V275) -> $0 | W128: =SUM(W272,W275) -> $0 | X128: =SUM(X272,X275) -> $0 | Y128: =SUM(V128:X128) -> $0
A129: =" "&Labels!B100 -> Gross Margin % | B129: =IF(B10=0,0,B128/B10) -> 0.0% | C129: =IF(C10=0,0,C128/C10) -> 0.0% | D129: =IF(D10=0,0,D128/D10) -> 0.0% | E129: =IF(SUM(B10:D10)=0,0,SUM(B128:D128)/SUM(B10:D10)) -> 0.0% | F129: =IF(F10=0,0,F128/F10) -> 0.0% | G129: =IF(G10=0,0,G128/G10) -> 0.0% | H129: =IF(H10=0,0,H128/H10) -> 0.0% | I129: =IF(SUM(F10:H10)=0,0,SUM(F128:H128)/SUM(F10:H10)) -> 0.0% | J129: =IF(J10=0,0,J128/J10) -> 0.0% | K129: =IF(K10=0,0,K128/K10) -> 0.0% | L129: =IF(L10=0,0,L128/L10) -> 0.0% | M129: =IF(SUM(J10:L10)=0,0,SUM(J128:L128)/SUM(J10:L10)) -> 0.0% | N129: =IF(N10=0,0,N128/N10) -> 0.0% | O129: =IF(O10=0,0,O128/O10) -> 0.0% | P129: =IF(P10=0,0,P128/P10) -> 0.0% | Q129: =IF(SUM(N10:P10)=0,0,SUM(N128:P128)/SUM(N10:P10)) -> 0.0% | R129: =IF(R10=0,0,R128/R10) -> 0.0% | S129: =IF(S10=0,0,S128/S10) -> 0.0% | T129: =IF(T10=0,0,T128/T10) -> 0.0% | U129: =IF(SUM(R10:T10)=0,0,SUM(R128:T128)/SUM(R10:T10)) -> 0.0% | V129: =IF(V10=0,0,V128/V10) -> 0.0% | W129: =IF(W10=0,0,W128/W10) -> 0.0% | X129: =IF(X10=0,0,X128/X10) -> 0.0% | Y129: =IF(SUM(V10:X10)=0,0,SUM(V128:X128)/SUM(V10:X10)) -> 0.0%
A130: =Labels!C380 -> Total
A131: =" "&Labels!B317 -> Channels 1
A132: =" "&Labels!B98 -> Gross Margin | B132: =SUM(B112,B122) -> $0 | C132: =SUM(C112,C122) -> $0 | D132: =SUM(D112,D122) -> $55,000 | E132: =SUM(B132:D132) -> $55,000 | F132: =SUM(F112,F122) -> $55,000 | G132: =SUM(G112,G122) -> $0 | H132: =SUM(H112,H122) -> $40,000 | I132: =SUM(F132:H132) -> $95,000 | J132: =SUM(J112,J122) -> $11,739 | K132: =SUM(K112,K122) -> $4,587 | L132: =SUM(L112,L122) -> $0 | M132: =SUM(J132:L132) -> $16,326 | N132: =SUM(N112,N122) -> $0 | O132: =SUM(O112,O122) -> $0 | P132: =SUM(P112,P122) -> $0 | Q132: =SUM(N132:P132) -> $0 | R132: =SUM(R112,R122) -> $0 | S132: =SUM(S112,S122) -> $0 | T132: =SUM(T112,T122) -> $0 | U132: =SUM(R132:T132) -> $0 | V132: =SUM(V112,V122) -> $0 | W132: =SUM(W112,W122) -> $0 | X132: =SUM(X112,X122) -> $0 | Y132: =SUM(V132:X132) -> $0
A133: =" "&Labels!B100 -> Gross Margin % | B133: =IF(B56=0,0,B132/B56) -> 0.0% | C133: =IF(C56=0,0,C132/C56) -> 0.0% | D133: =IF(D56=0,0,D132/D56) -> 95.2% | E133: =IF(SUM(B56:D56)=0,0,SUM(B132:D132)/SUM(B56:D56)) -> 95.2% | F133: =IF(F56=0,0,F132/F56) -> 95.2% | G133: =IF(G56=0,0,G132/G56) -> 0.0% | H133: =IF(H56=0,0,H132/H56) -> 95.2% | I133: =IF(SUM(F56:H56)=0,0,SUM(F132:H132)/SUM(F56:H56)) -> 95.2% | J133: =IF(J56=0,0,J132/J56) -> 28.0% | K133: =IF(K56=0,0,K132/K56) -> 10.9% | L133: =IF(L56=0,0,L132/L56) -> 0.0% | M133: =IF(SUM(J56:L56)=0,0,SUM(J132:L132)/SUM(J56:L56)) -> 19.4% | N133: =IF(N56=0,0,N132/N56) -> 0.0% | O133: =IF(O56=0,0,O132/O56) -> 0.0% | P133: =IF(P56=0,0,P132/P56) -> 0.0% | Q133: =IF(SUM(N56:P56)=0,0,SUM(N132:P132)/SUM(N56:P56)) -> 0.0% | R133: =IF(R56=0,0,R132/R56) -> 0.0% | S133: =IF(S56=0,0,S132/S56) -> 0.0% | T133: =IF(T56=0,0,T132/T56) -> 0.0% | U133: =IF(SUM(R56:T56)=0,0,SUM(R132:T132)/SUM(R56:T56)) -> 0.0% | V133: =IF(V56=0,0,V132/V56) -> 0.0% | W133: =IF(W56=0,0,W132/W56) -> 0.0% | X133: =IF(X56=0,0,X132/X56) -> 0.0% | Y133: =IF(SUM(V56:X56)=0,0,SUM(V132:X132)/SUM(V56:X56)) -> 0.0%
A134: =" "&Labels!B318 -> Channels 2
A135: =" "&Labels!B98 -> Gross Margin | B135: =SUM(B115,B125) -> $0 | C135: =SUM(C115,C125) -> $0 | D135: =SUM(D115,D125) -> $55,000 | E135: =SUM(B135:D135) -> $55,000 | F135: =SUM(F115,F125) -> $55,000 | G135: =SUM(G115,G125) -> $0 | H135: =SUM(H115,H125) -> $40,000 | I135: =SUM(F135:H135) -> $95,000 | J135: =SUM(J115,J125) -> $40,000 | K135: =SUM(K115,K125) -> $32,917 | L135: =SUM(L115,L125) -> $0 | M135: =SUM(J135:L135) -> $72,917 | N135: =SUM(N115,N125) -> $0 | O135: =SUM(O115,O125) -> $0 | P135: =SUM(P115,P125) -> $0 | Q135: =SUM(N135:P135) -> $0 | R135: =SUM(R115,R125) -> $0 | S135: =SUM(S115,S125) -> $0 | T135: =SUM(T115,T125) -> $0 | U135: =SUM(R135:T135) -> $0 | V135: =SUM(V115,V125) -> $0 | W135: =SUM(W115,W125) -> $0 | X135: =SUM(X115,X125) -> $0 | Y135: =SUM(V135:X135) -> $0
A136: =" "&Labels!B100 -> Gross Margin % | B136: =IF(B57=0,0,B135/B57) -> 0.0% | C136: =IF(C57=0,0,C135/C57) -> 0.0% | D136: =IF(D57=0,0,D135/D57) -> 100.0% | E136: =IF(SUM(B57:D57)=0,0,SUM(B135:D135)/SUM(B57:D57)) -> 100.0% | F136: =IF(F57=0,0,F135/F57) -> 100.0% | G136: =IF(G57=0,0,G135/G57) -> 0.0% | H136: =IF(H57=0,0,H135/H57) -> 100.0% | I136: =IF(SUM(F57:H57)=0,0,SUM(F135:H135)/SUM(F57:H57)) -> 100.0% | J136: =IF(J57=0,0,J135/J57) -> 100.0% | K136: =IF(K57=0,0,K135/K57) -> 82.3% | L136: =IF(L57=0,0,L135/L57) -> 0.0% | M136: =IF(SUM(J57:L57)=0,0,SUM(J135:L135)/SUM(J57:L57)) -> 91.1% | N136: =IF(N57=0,0,N135/N57) -> 0.0% | O136: =IF(O57=0,0,O135/O57) -> 0.0% | P136: =IF(P57=0,0,P135/P57) -> 0.0% | Q136: =IF(SUM(N57:P57)=0,0,SUM(N135:P135)/SUM(N57:P57)) -> 0.0% | R136: =IF(R57=0,0,R135/R57) -> 0.0% | S136: =IF(S57=0,0,S135/S57) -> 0.0% | T136: =IF(T57=0,0,T135/T57) -> 0.0% | U136: =IF(SUM(R57:T57)=0,0,SUM(R135:T135)/SUM(R57:T57)) -> 0.0% | V136: =IF(V57=0,0,V135/V57) -> 0.0% | W136: =IF(W57=0,0,W135/W57) -> 0.0% | X136: =IF(X57=0,0,X135/X57) -> 0.0% | Y136: =IF(SUM(V57:X57)=0,0,SUM(V135:X135)/SUM(V57:X57)) -> 0.0%
A137: =" "&Labels!C316 -> Total
A138: =" "&Labels!B98 -> Gross Margin | B138: =SUM(B118,B128) -> $0 | C138: =SUM(C118,C128) -> $0 | D138: =SUM(D118,D128) -> $110,000 | E138: =SUM(B138:D138) -> $110,000 | F138: =SUM(F118,F128) -> $110,000 | G138: =SUM(G118,G128) -> $0 | H138: =SUM(H118,H128) -> $80,000 | I138: =SUM(F138:H138) -> $190,000 | J138: =SUM(J118,J128) -> $51,739 | K138: =SUM(K118,K128) -> $37,504 | L138: =SUM(L118,L128) -> $0 | M138: =SUM(J138:L138) -> $89,243 | N138: =SUM(N118,N128) -> $0 | O138: =SUM(O118,O128) -> $0 | P138: =SUM(P118,P128) -> $0 | Q138: =SUM(N138:P138) -> $0 | R138: =SUM(R118,R128) -> $0 | S138: =SUM(S118,S128) -> $0 | T138: =SUM(T118,T128) -> $0 | U138: =SUM(R138:T138) -> $0 | V138: =SUM(V118,V128) -> $0 | W138: =SUM(W118,W128) -> $0 | X138: =SUM(X118,X128) -> $0 | Y138: =SUM(V138:X138) -> $0
A139: =" "&Labels!B100 -> Gross Margin % | B139: =IF(B11=0,0,B138/B11) -> 0.0% | C139: =IF(C11=0,0,C138/C11) -> 0.0% | D139: =IF(D11=0,0,D138/D11) -> 97.6% | E139: =IF(SUM(B11:D11)=0,0,SUM(B138:D138)/SUM(B11:D11)) -> 97.6% | F139: =IF(F11=0,0,F138/F11) -> 97.6% | G139: =IF(G11=0,0,G138/G11) -> 0.0% | H139: =IF(H11=0,0,H138/H11) -> 97.6% | I139: =IF(SUM(F11:H11)=0,0,SUM(F138:H138)/SUM(F11:H11)) -> 97.6% | J139: =IF(J11=0,0,J138/J11) -> 63.1% | K139: =IF(K11=0,0,K138/K11) -> 45.7% | L139: =IF(L11=0,0,L138/L11) -> 0.0% | M139: =IF(SUM(J11:L11)=0,0,SUM(J138:L138)/SUM(J11:L11)) -> 54.4% | N139: =IF(N11=0,0,N138/N11) -> 0.0% | O139: =IF(O11=0,0,O138/O11) -> 0.0% | P139: =IF(P11=0,0,P138/P11) -> 0.0% | Q139: =IF(SUM(N11:P11)=0,0,SUM(N138:P138)/SUM(N11:P11)) -> 0.0% | R139: =IF(R11=0,0,R138/R11) -> 0.0% | S139: =IF(S11=0,0,S138/S11) -> 0.0% | T139: =IF(T11=0,0,T138/T11) -> 0.0% | U139: =IF(SUM(R11:T11)=0,0,SUM(R138:T138)/SUM(R11:T11)) -> 0.0% | V139: =IF(V11=0,0,V138/V11) -> 0.0% | W139: =IF(W11=0,0,W138/W11) -> 0.0% | X139: =IF(X11=0,0,X138/X11) -> 0.0% | Y139: =IF(SUM(V11:X11)=0,0,SUM(V138:X138)/SUM(V11:X11)) -> 0.0%
A141: ="Billed Hours" -> Billed Hours
A142: =" " -> 
B143: ='(FnCalls 1)'!F41 -> Jan 2010 | C143: ='(FnCalls 1)'!F42 -> Feb 2010 | D143: ='(FnCalls 1)'!F43 -> Mar 2010 | E143: ='(FnCalls 1)'!G41 -> Q1 2010 | F143: ='(FnCalls 1)'!F44 -> Apr 2010 | G143: ='(FnCalls 1)'!F45 -> May 2010 | H143: ='(FnCalls 1)'!F46 -> Jun 2010 | I143: ='(FnCalls 1)'!G44 -> Q2 2010 | J143: ='(FnCalls 1)'!F47 -> Jul 2010 | K143: ='(FnCalls 1)'!F48 -> Aug 2010 | L143: ='(FnCalls 1)'!F49 -> Sep 2010 | M143: ='(FnCalls 1)'!G47 -> Q3 2010 | N143: ='(FnCalls 1)'!F50 -> Oct 2010 | O143: ='(FnCalls 1)'!F51 -> Nov 2010 | P143: ='(FnCalls 1)'!F52 -> Dec 2010 | Q143: ='(FnCalls 1)'!G50 -> Q4 2010 | R143: ='(FnCalls 1)'!F53 -> Jan 2011 | S143: ='(FnCalls 1)'!F54 -> Feb 2011 | T143: ='(FnCalls 1)'!F55 -> Mar 2011 | U143: ='(FnCalls 1)'!G53 -> Q1 2011 | V143: ='(FnCalls 1)'!F56 -> Apr 2011 | W143: ='(FnCalls 1)'!F57 -> May 2011 | X143: ='(FnCalls 1)'!F58 -> Jun 2011 | Y143: ='(FnCalls 1)'!G56 -> Q2 2011
A144: =Labels!B182 -> Prof Staff Hours Billed
A145: =" "&Labels!B381 -> Practice 1
A146: =" "&Labels!B317 -> Channels 1 | B146: =SUM(Sales!B184,Sales!B188) -> 0.0 | C146: =SUM(Sales!C184,Sales!C188) -> 0.0 | D146: =SUM(Sales!D184,Sales!D188) -> 275.0 | E146: =SUM(B146:D146) -> 275.0 | F146: =SUM(Sales!F184,Sales!F188) -> 275.0 | G146: =SUM(Sales!G184,Sales!G188) -> 0.0 | H146: =SUM(Sales!H184,Sales!H188) -> 200.0 | I146: =SUM(F146:H146) -> 475.0 | J146: =SUM(Sales!J184,Sales!J188) -> 200.0 | K146: =SUM(Sales!K184,Sales!K188) -> 200.0 | L146: =SUM(Sales!L184,Sales!L188) -> 0.0 | M146: =SUM(J146:L146) -> 400.0 | N146: =SUM(Sales!N184,Sales!N188) -> 0.0 | O146: =SUM(Sales!O184,Sales!O188) -> 0.0 | P146: =SUM(Sales!P184,Sales!P188) -> 0.0 | Q146: =SUM(N146:P146) -> 0.0 | R146: =SUM(Sales!R184,Sales!R188) -> 0.0 | S146: =SUM(Sales!S184,Sales!S188) -> 0.0 | T146: =SUM(Sales!T184,Sales!T188) -> 0.0 | U146: =SUM(R146:T146) -> 0.0 | V146: =SUM(Sales!V184,Sales!V188) -> 0.0 | W146: =SUM(Sales!W184,Sales!W188) -> 0.0 | X146: =SUM(Sales!X184,Sales!X188) -> 0.0 | Y146: =SUM(V146:X146) -> 0.0
A147: =" "&Labels!B318 -> Channels 2 | B147: =SUM(Sales!B185,Sales!B189) -> 0.0 | C147: =SUM(Sales!C185,Sales!C189) -> 0.0 | D147: =SUM(Sales!D185,Sales!D189) -> 275.0 | E147: =SUM(B147:D147) -> 275.0 | F147: =SUM(Sales!F185,Sales!F189) -> 275.0 | G147: =SUM(Sales!G185,Sales!G189) -> 0.0 | H147: =SUM(Sales!H185,Sales!H189) -> 200.0 | I147: =SUM(F147:H147) -> 475.0 | J147: =SUM(Sales!J185,Sales!J189) -> 200.0 | K147: =SUM(Sales!K185,Sales!K189) -> 200.0 | L147: =SUM(Sales!L185,Sales!L189) -> 0.0 | M147: =SUM(J147:L147) -> 400.0 | N147: =SUM(Sales!N185,Sales!N189) -> 0.0 | O147: =SUM(Sales!O185,Sales!O189) -> 0.0 | P147: =SUM(Sales!P185,Sales!P189) -> 0.0 | Q147: =SUM(N147:P147) -> 0.0 | R147: =SUM(Sales!R185,Sales!R189) -> 0.0 | S147: =SUM(Sales!S185,Sales!S189) -> 0.0 | T147: =SUM(Sales!T185,Sales!T189) -> 0.0 | U147: =SUM(R147:T147) -> 0.0 | V147: =SUM(Sales!V185,Sales!V189) -> 0.0 | W147: =SUM(Sales!W185,Sales!W189) -> 0.0 | X147: =SUM(Sales!X185,Sales!X189) -> 0.0 | Y147: =SUM(V147:X147) -> 0.0
A148: =" "&Labels!C316 -> Total | B148: =SUM(B296:B297) -> 0.0 | C148: =SUM(C296:C297) -> 0.0 | D148: =SUM(D296:D297) -> 550.0 | E148: =SUM(B148:D148) -> 550.0 | F148: =SUM(F296:F297) -> 550.0 | G148: =SUM(G296:G297) -> 0.0 | H148: =SUM(H296:H297) -> 400.0 | I148: =SUM(F148:H148) -> 950.0 | J148: =SUM(J296:J297) -> 400.0 | K148: =SUM(K296:K297) -> 400.0 | L148: =SUM(L296:L297) -> 0.0 | M148: =SUM(J148:L148) -> 800.0 | N148: =SUM(N296:N297) -> 0.0 | O148: =SUM(O296:O297) -> 0.0 | P148: =SUM(P296:P297) -> 0.0 | Q148: =SUM(N148:P148) -> 0.0 | R148: =SUM(R296:R297) -> 0.0 | S148: =SUM(S296:S297) -> 0.0 | T148: =SUM(T296:T297) -> 0.0 | U148: =SUM(R148:T148) -> 0.0 | V148: =SUM(V296:V297) -> 0.0 | W148: =SUM(W296:W297) -> 0.0 | X148: =SUM(X296:X297) -> 0.0 | Y148: =SUM(V148:X148) -> 0.0
A149: =" "&Labels!B382 -> Practice 2
A150: =" "&Labels!B317 -> Channels 1 | B150: =SUM(Sales!B197,Sales!B201) -> 0.0 | C150: =SUM(Sales!C197,Sales!C201) -> 0.0 | D150: =SUM(Sales!D197,Sales!D201) -> 0.0 | E150: =SUM(B150:D150) -> 0.0 | F150: =SUM(Sales!F197,Sales!F201) -> 0.0 | G150: =SUM(Sales!G197,Sales!G201) -> 0.0 | H150: =SUM(Sales!H197,Sales!H201) -> 0.0 | I150: =SUM(F150:H150) -> 0.0 | J150: =SUM(Sales!J197,Sales!J201) -> 0.0 | K150: =SUM(Sales!K197,Sales!K201) -> 0.0 | L150: =SUM(Sales!L197,Sales!L201) -> 0.0 | M150: =SUM(J150:L150) -> 0.0 | N150: =SUM(Sales!N197,Sales!N201) -> 0.0 | O150: =SUM(Sales!O197,Sales!O201) -> 0.0 | P150: =SUM(Sales!P197,Sales!P201) -> 0.0 | Q150: =SUM(N150:P150) -> 0.0 | R150: =SUM(Sales!R197,Sales!R201) -> 0.0 | S150: =SUM(Sales!S197,Sales!S201) -> 0.0 | T150: =SUM(Sales!T197,Sales!T201) -> 0.0 | U150: =SUM(R150:T150) -> 0.0 | V150: =SUM(Sales!V197,Sales!V201) -> 0.0 | W150: =SUM(Sales!W197,Sales!W201) -> 0.0 | X150: =SUM(Sales!X197,Sales!X201) -> 0.0 | Y150: =SUM(V150:X150) -> 0.0
A151: =" "&Labels!B318 -> Channels 2 | B151: =SUM(Sales!B198,Sales!B202) -> 0.0 | C151: =SUM(Sales!C198,Sales!C202) -> 0.0 | D151: =SUM(Sales!D198,Sales!D202) -> 0.0 | E151: 0.0 | F151: =SUM(Sales!F198,Sales!F202) -> 0.0 | G151: =SUM(Sales!G198,Sales!G202) -> 0.0 | H151: =SUM(Sales!H198,Sales!H202) -> 0.0 | I151: 0.0 | J151: =SUM(Sales!J198,Sales!J202) -> 0.0 | K151: =SUM(Sales!K198,Sales!K202) -> 0.0 | L151: =SUM(Sales!L198,Sales!L202) -> 0.0 | M151: 0.0 | N151: =SUM(Sales!N198,Sales!N202) -> 0.0 | O151: =SUM(Sales!O198,Sales!O202) -> 0.0 | P151: =SUM(Sales!P198,Sales!P202) -> 0.0 | Q151: 0.0 | R151: =SUM(Sales!R198,Sales!R202) -> 0.0 | S151: =SUM(Sales!S198,Sales!S202) -> 0.0 | T151: =SUM(Sales!T198,Sales!T202) -> 0.0 | U151: 0.0 | V151: =SUM(Sales!V198,Sales!V202) -> 0.0 | W151: =SUM(Sales!W198,Sales!W202) -> 0.0 | X151: =SUM(Sales!X198,Sales!X202) -> 0.0 | Y151: 0.0
A152: =" "&Labels!C316 -> Total | B152: =SUM(B300:B301) -> 0.0 | C152: =SUM(C300:C301) -> 0.0 | D152: =SUM(D300:D301) -> 0.0 | E152: 0.0 | F152: =SUM(F300:F301) -> 0.0 | G152: =SUM(G300:G301) -> 0.0 | H152: =SUM(H300:H301) -> 0.0 | I152: 0.0 | J152: =SUM(J300:J301) -> 0.0 | K152: =SUM(K300:K301) -> 0.0 | L152: =SUM(L300:L301) -> 0.0 | M152: 0.0 | N152: =SUM(N300:N301) -> 0.0 | O152: =SUM(O300:O301) -> 0.0 | P152: =SUM(P300:P301) -> 0.0 | Q152: 0.0 | R152: =SUM(R300:R301) -> 0.0 | S152: =SUM(S300:S301) -> 0.0 | T152: =SUM(T300:T301) -> 0.0 | U152: 0.0 | V152: =SUM(V300:V301) -> 0.0 | W152: =SUM(W300:W301) -> 0.0 | X152: =SUM(X300:X301) -> 0.0 | Y152: 0.0
A153: =" "&Labels!C380 -> Total | B153: =SUM(B148,B152) -> 0.0 | C153: =SUM(C148,C152) -> 0.0 | D153: =SUM(D148,D152) -> 550.0 | E153: 550.0 | F153: =SUM(F148,F152) -> 550.0 | G153: =SUM(G148,G152) -> 0.0 | H153: =SUM(H148,H152) -> 400.0 | I153: 950.0 | J153: =SUM(J148,J152) -> 400.0 | K153: =SUM(K148,K152) -> 400.0 | L153: =SUM(L148,L152) -> 0.0 | M153: 800.0 | N153: =SUM(N148,N152) -> 0.0 | O153: =SUM(O148,O152) -> 0.0 | P153: =SUM(P148,P152) -> 0.0 | Q153: 0.0 | R153: =SUM(R148,R152) -> 0.0 | S153: =SUM(S148,S152) -> 0.0 | T153: =SUM(T148,T152) -> 0.0 | U153: 0.0 | V153: =SUM(V148,V152) -> 0.0 | W153: =SUM(W148,W152) -> 0.0 | X153: =SUM(X148,X152) -> 0.0 | Y153: 0.0
A154: =" "&Labels!B317 -> Channels 1 | B154: =SUM(B146,B150) -> 0.0 | C154: 0.0 | D154: 275.0 | E154: 275.0 | F154: =SUM(F146,F150) -> 275.0 | G154: 0.0 | H154: 200.0 | I154: 475.0 | J154: =SUM(J146,J150) -> 200.0 | K154: 200.0 | L154: 0.0 | M154: 400.0 | N154: =SUM(N146,N150) -> 0.0 | O154: 0.0 | P154: 0.0 | Q154: 0.0 | R154: =SUM(R146,R150) -> 0.0 | S154: 0.0 | T154: 0.0 | U154: 0.0 | V154: =SUM(V146,V150) -> 0.0 | W154: 0.0 | X154: 0.0 | Y154: 0.0
A155: =" "&Labels!B318 -> Channels 2 | B155: 0.0 | C155: 0.0 | D155: 275.0 | E155: 275.0 | F155: 275.0 | G155: 0.0 | H155: 200.0 | I155: 475.0 | J155: 200.0 | K155: 200.0 | L155: 0.0 | M155: 400.0 | N155: 0.0 | O155: 0.0 | P155: 0.0 | Q155: 0.0 | R155: 0.0 | S155: 0.0 | T155: 0.0 | U155: 0.0 | V155: 0.0 | W155: 0.0 | X155: 0.0 | Y155: 0.0
A156: =" "&Labels!C316 -> Total | B156: 0.0 | C156: 0.0 | D156: 550.0 | E156: =SUM(B153:D153) -> 550.0 | F156: 550.0 | G156: 0.0 | H156: 400.0 | I156: =SUM(F153:H153) -> 950.0 | J156: 400.0 | K156: 400.0 | L156: 0.0 | M156: =SUM(J153:L153) -> 800.0 | N156: 0.0 | O156: 0.0 | P156: 0.0 | Q156: =SUM(N153:P153) -> 0.0 | R156: 0.0 | S156: 0.0 | T156: 0.0 | U156: =SUM(R153:T153) -> 0.0 | V156: 0.0 | W156: 0.0 | X156: 0.0 | Y156: =SUM(V153:X153) -> 0.0
A158: =Labels!B187 -> Billed Hours Growth
A159: =" "&Labels!B381 -> Practice 1
A160: =" "&Labels!B317 -> Channels 1 | C160: =IF(B146=0,0,C146/B146-1) -> 0.0% | D160: 0.0% | E160: =IF(0=0,0,SUM(B146:D146)/0-1) -> 0.0% | F160: =IF(D146=0,0,F146/D146-1) -> 0.0% | G160: =IF(F146=0,0,G146/F146-1) -> -100.0% | H160: 0.0% | I160: =IF(SUM(B146:D146)=0,0,SUM(F146:H146)/SUM(B146:D146)-1) -> 72.7% | J160: =IF(H146=0,0,J146/H146-1) -> 0.0% | K160: =IF(J146=0,0,K146/J146-1) -> 0.0% | L160: -100.0% | M160: =IF(SUM(F146:H146)=0,0,SUM(J146:L146)/SUM(F146:H146)-1) -> -15.8% | N160: =IF(L146=0,0,N146/L146-1) -> 0.0% | O160: =IF(N146=0,0,O146/N146-1) -> 0.0% | P160: 0.0% | Q160: =IF(SUM(J146:L146)=0,0,SUM(N146:P146)/SUM(J146:L146)-1) -> -100.0% | R160: =IF(P146=0,0,R146/P146-1) -> 0.0% | S160: =IF(R146=0,0,S146/R146-1) -> 0.0% | T160: 0.0% | U160: =IF(SUM(N146:P146)=0,0,SUM(R146:T146)/SUM(N146:P146)-1) -> 0.0% | V160: =IF(T146=0,0,V146/T146-1) -> 0.0% | W160: =IF(V146=0,0,W146/V146-1) -> 0.0% | X160: 0.0% | Y160: =IF(SUM(R146:T146)=0,0,SUM(V146:X146)/SUM(R146:T146)-1) -> 0.0%
A161: =" "&Labels!B318 -> Channels 2 | C161: 0.0% | D161: 0.0% | E161: =IF(0=0,0,SUM(B147:D147)/0-1) -> 0.0% | F161: =IF(D147=0,0,F147/D147-1) -> 0.0% | G161: -100.0% | H161: 0.0% | I161: =IF(SUM(B147:D147)=0,0,SUM(F147:H147)/SUM(B147:D147)-1) -> 72.7% | J161: =IF(H147=0,0,J147/H147-1) -> 0.0% | K161: 0.0% | L161: -100.0% | M161: =IF(SUM(F147:H147)=0,0,SUM(J147:L147)/SUM(F147:H147)-1) -> -15.8% | N161: =IF(L147=0,0,N147/L147-1) -> 0.0% | O161: 0.0% | P161: 0.0% | Q161: =IF(SUM(J147:L147)=0,0,SUM(N147:P147)/SUM(J147:L147)-1) -> -100.0% | R161: =IF(P147=0,0,R147/P147-1) -> 0.0% | S161: 0.0% | T161: 0.0% | U161: =IF(SUM(N147:P147)=0,0,SUM(R147:T147)/SUM(N147:P147)-1) -> 0.0% | V161: =IF(T147=0,0,V147/T147-1) -> 0.0% | W161: 0.0% | X161: 0.0% | Y161: =IF(SUM(R147:T147)=0,0,SUM(V147:X147)/SUM(R147:T147)-1) -> 0.0%
A162: =" "&Labels!C316 -> Total | C162: 0.0% | D162: 0.0% | E162: =IF(0=0,0,SUM(B148:D148)/0-1) -> 0.0% | F162: =IF(D148=0,0,F148/D148-1) -> 0.0% | G162: -100.0% | H162: 0.0% | I162: =IF(SUM(B148:D148)=0,0,SUM(F148:H148)/SUM(B148:D148)-1) -> 72.7% | J162: =IF(H148=0,0,J148/H148-1) -> 0.0% | K162: 0.0% | L162: -100.0% | M162: =IF(SUM(F148:H148)=0,0,SUM(J148:L148)/SUM(F148:H148)-1) -> -15.8% | N162: =IF(L148=0,0,N148/L148-1) -> 0.0% | O162: 0.0% | P162: 0.0% | Q162: =IF(SUM(J148:L148)=0,0,SUM(N148:P148)/SUM(J148:L148)-1) -> -100.0% | R162: =IF(P148=0,0,R148/P148-1) -> 0.0% | S162: 0.0% | T162: 0.0% | U162: =IF(SUM(N148:P148)=0,0,SUM(R148:T148)/SUM(N148:P148)-1) -> 0.0% | V162: =IF(T148=0,0,V148/T148-1) -> 0.0% | W162: 0.0% | X162: 0.0% | Y162: =IF(SUM(R148:T148)=0,0,SUM(V148:X148)/SUM(R148:T148)-1) -> 0.0%
A163: =" "&Labels!B382 -> Practice 2
A164: =" "&Labels!B317 -> Channels 1 | C164: =IF(B150=0,0,C150/B150-1) -> 0.0% | D164: 0.0% | E164: =IF(0=0,0,SUM(B150:D150)/0-1) -> 0.0% | F164: =IF(D150=0,0,F150/D150-1) -> 0.0% | G164: =IF(F150=0,0,G150/F150-1) -> 0.0% | H164: 0.0% | I164: =IF(SUM(B150:D150)=0,0,SUM(F150:H150)/SUM(B150:D150)-1) -> 0.0% | J164: =IF(H150=0,0,J150/H150-1) -> 0.0% | K164: =IF(J150=0,0,K150/J150-1) -> 0.0% | L164: 0.0% | M164: =IF(SUM(F150:H150)=0,0,SUM(J150:L150)/SUM(F150:H150)-1) -> 0.0% | N164: =IF(L150=0,0,N150/L150-1) -> 0.0% | O164: =IF(N150=0,0,O150/N150-1) -> 0.0% | P164: 0.0% | Q164: =IF(SUM(J150:L150)=0,0,SUM(N150:P150)/SUM(J150:L150)-1) -> 0.0% | R164: =IF(P150=0,0,R150/P150-1) -> 0.0% | S164: =IF(R150=0,0,S150/R150-1) -> 0.0% | T164: 0.0% | U164: =IF(SUM(N150:P150)=0,0,SUM(R150:T150)/SUM(N150:P150)-1) -> 0.0% | V164: =IF(T150=0,0,V150/T150-1) -> 0.0% | W164: =IF(V150=0,0,W150/V150-1) -> 0.0% | X164: 0.0% | Y164: =IF(SUM(R150:T150)=0,0,SUM(V150:X150)/SUM(R150:T150)-1) -> 0.0%
A165: =" "&Labels!B318 -> Channels 2 | C165: 0.0% | D165: 0.0% | E165: 0.0% | F165: 0.0% | G165: 0.0% | H165: 0.0% | I165: 0.0% | J165: 0.0% | K165: 0.0% | L165: 0.0% | M165: 0.0% | N165: 0.0% | O165: 0.0% | P165: 0.0% | Q165: 0.0% | R165: 0.0% | S165: 0.0% | T165: 0.0% | U165: 0.0% | V165: 0.0% | W165: 0.0% | X165: 0.0% | Y165: 0.0%
A166: =" "&Labels!C316 -> Total | C166: 0.0% | D166: 0.0% | E166: 0.0% | F166: 0.0% | G166: 0.0% | H166: 0.0% | I166: 0.0% | J166: 0.0% | K166: 0.0% | L166: 0.0% | M166: 0.0% | N166: 0.0% | O166: 0.0% | P166: 0.0% | Q166: 0.0% | R166: 0.0% | S166: 0.0% | T166: 0.0% | U166: 0.0% | V166: 0.0% | W166: 0.0% | X166: 0.0% | Y166: 0.0%
A167: =" "&Labels!C380 -> Total | C167: 0.0% | D167: 0.0% | E167: 0.0% | F167: 0.0% | G167: -100.0% | H167: 0.0% | I167: 72.7% | J167: 0.0% | K167: 0.0% | L167: -100.0% | M167: -15.8% | N167: 0.0% | O167: 0.0% | P167: 0.0% | Q167: -100.0% | R167: 0.0% | S167: 0.0% | T167: 0.0% | U167: 0.0% | V167: 0.0% | W167: 0.0% | X167: 0.0% | Y167: 0.0%
A168: =" "&Labels!B317 -> Channels 1 | C168: 0.0% | D168: 0.0% | E168: 0.0% | F168: 0.0% | G168: -100.0% | H168: 0.0% | I168: 72.7% | J168: 0.0% | K168: 0.0% | L168: -100.0% | M168: -15.8% | N168: 0.0% | O168: 0.0% | P168: 0.0% | Q168: -100.0% | R168: 0.0% | S168: 0.0% | T168: 0.0% | U168: 0.0% | V168: 0.0% | W168: 0.0% | X168: 0.0% | Y168: 0.0%
A169: =" "&Labels!B318 -> Channels 2 | C169: 0.0% | D169: 0.0% | E169: 0.0% | F169: 0.0% | G169: -100.0% | H169: 0.0% | I169: 72.7% | J169: 0.0% | K169: 0.0% | L169: -100.0% | M169: -15.8% | N169: 0.0% | O169: 0.0% | P169: 0.0% | Q169: -100.0% | R169: 0.0% | S169: 0.0% | T169: 0.0% | U169: 0.0% | V169: 0.0% | W169: 0.0% | X169: 0.0% | Y169: 0.0%
A170: =" "&Labels!C316 -> Total | C170: =IF(B153=0,0,C153/B153-1) -> 0.0% | D170: =IF(C153=0,0,D153/C153-1) -> 0.0% | E170: =IF(0=0,0,SUM(B153:D153)/0-1) -> 0.0% | F170: =IF(D153=0,0,F153/D153-1) -> 0.0% | G170: =IF(F153=0,0,G153/F153-1) -> -100.0% | H170: =IF(G153=0,0,H153/G153-1) -> 0.0% | I170: =IF(SUM(B153:D153)=0,0,SUM(F153:H153)/SUM(B153:D153)-1) -> 72.7% | J170: =IF(H153=0,0,J153/H153-1) -> 0.0% | K170: =IF(J153=0,0,K153/J153-1) -> 0.0% | L170: =IF(K153=0,0,L153/K153-1) -> -100.0% | M170: =IF(SUM(F153:H153)=0,0,SUM(J153:L153)/SUM(F153:H153)-1) -> -15.8% | N170: =IF(L153=0,0,N153/L153-1) -> 0.0% | O170: =IF(N153=0,0,O153/N153-1) -> 0.0% | P170: =IF(O153=0,0,P153/O153-1) -> 0.0% | Q170: =IF(SUM(J153:L153)=0,0,SUM(N153:P153)/SUM(J153:L153)-1) -> -100.0% | R170: =IF(P153=0,0,R153/P153-1) -> 0.0% | S170: =IF(R153=0,0,S153/R153-1) -> 0.0% | T170: =IF(S153=0,0,T153/S153-1) -> 0.0% | U170: =IF(SUM(N153:P153)=0,0,SUM(R153:T153)/SUM(N153:P153)-1) -> 0.0% | V170: =IF(T153=0,0,V153/T153-1) -> 0.0% | W170: =IF(V153=0,0,W153/V153-1) -> 0.0% | X170: =IF(W153=0,0,X153/W153-1) -> 0.0% | Y170: =IF(SUM(R153:T153)=0,0,SUM(V153:X153)/SUM(R153:T153)-1) -> 0.0%
A174: ="Professional Staff Detail" -> Professional Staff Detail
A175: ="" -> 
B176: ='(FnCalls 1)'!F41 -> Jan 2010 | C176: ='(FnCalls 1)'!F42 -> Feb 2010 | D176: ='(FnCalls 1)'!F43 -> Mar 2010 | E176: ='(FnCalls 1)'!G41 -> Q1 2010 | F176: ='(FnCalls 1)'!F44 -> Apr 2010 | G176: ='(FnCalls 1)'!F45 -> May 2010 | H176: ='(FnCalls 1)'!F46 -> Jun 2010 | I176: ='(FnCalls 1)'!G44 -> Q2 2010 | J176: ='(FnCalls 1)'!F47 -> Jul 2010 | K176: ='(FnCalls 1)'!F48 -> Aug 2010 | L176: ='(FnCalls 1)'!F49 -> Sep 2010 | M176: ='(FnCalls 1)'!G47 -> Q3 2010 | N176: ='(FnCalls 1)'!F50 -> Oct 2010 | O176: ='(FnCalls 1)'!F51 -> Nov 2010 | P176: ='(FnCalls 1)'!F52 -> Dec 2010 | Q176: ='(FnCalls 1)'!G50 -> Q4 2010 | R176: ='(FnCalls 1)'!F53 -> Jan 2011 | S176: ='(FnCalls 1)'!F54 -> Feb 2011 | T176: ='(FnCalls 1)'!F55 -> Mar 2011 | U176: ='(FnCalls 1)'!G53 -> Q1 2011 | V176: ='(FnCalls 1)'!F56 -> Apr 2011 | W176: ='(FnCalls 1)'!F57 -> May 2011 | X176: ='(FnCalls 1)'!F58 -> Jun 2011 | Y176: ='(FnCalls 1)'!G56 -> Q2 2011
A177: =Labels!B226 -> Revenue
A178: =" "&Labels!B381 -> Practice 1
A179: =" "&Labels!B385 -> Prof Level 1 | B179: =SUM(Sales!B109:B110) -> $0 | C179: =SUM(Sales!C109:C110) -> $0 | D179: =SUM(Sales!D109:D110) -> $56,375 | E179: =SUM(B179:D179) -> $56,375 | F179: =SUM(Sales!F109:F110) -> $56,375 | G179: =SUM(Sales!G109:G110) -> $0 | H179: =SUM(Sales!H109:H110) -> $41,000 | I179: =SUM(F179:H179) -> $97,375 | J179: =SUM(Sales!J109:J110) -> $41,000 | K179: =SUM(Sales!K109:K110) -> $41,000 | L179: =SUM(Sales!L109:L110) -> $0 | M179: =SUM(J179:L179) -> $82,000 | N179: =SUM(Sales!N109:N110) -> $0 | O179: =SUM(Sales!O109:O110) -> $0 | P179: =SUM(Sales!P109:P110) -> $0 | Q179: =SUM(N179:P179) -> $0 | R179: =SUM(Sales!R109:R110) -> $0 | S179: =SUM(Sales!S109:S110) -> $0 | T179: =SUM(Sales!T109:T110) -> $0 | U179: =SUM(R179:T179) -> $0 | V179: =SUM(Sales!V109:V110) -> $0 | W179: =SUM(Sales!W109:W110) -> $0 | X179: =SUM(Sales!X109:X110) -> $0 | Y179: =SUM(V179:X179) -> $0
A180: =" "&Labels!B386 -> Prof Level 2 | B180: =SUM(Sales!B113:B114) -> $0 | C180: =SUM(Sales!C113:C114) -> $0 | D180: =SUM(Sales!D113:D114) -> $56,375 | E180: =SUM(B180:D180) -> $56,375 | F180: =SUM(Sales!F113:F114) -> $56,375 | G180: =SUM(Sales!G113:G114) -> $0 | H180: =SUM(Sales!H113:H114) -> $41,000 | I180: =SUM(F180:H180) -> $97,375 | J180: =SUM(Sales!J113:J114) -> $41,000 | K180: =SUM(Sales!K113:K114) -> $41,000 | L180: =SUM(Sales!L113:L114) -> $0 | M180: =SUM(J180:L180) -> $82,000 | N180: =SUM(Sales!N113:N114) -> $0 | O180: =SUM(Sales!O113:O114) -> $0 | P180: =SUM(Sales!P113:P114) -> $0 | Q180: =SUM(N180:P180) -> $0 | R180: =SUM(Sales!R113:R114) -> $0 | S180: =SUM(Sales!S113:S114) -> $0 | T180: =SUM(Sales!T113:T114) -> $0 | U180: =SUM(R180:T180) -> $0 | V180: =SUM(Sales!V113:V114) -> $0 | W180: =SUM(Sales!W113:W114) -> $0 | X180: =SUM(Sales!X113:X114) -> $0 | Y180: =SUM(V180:X180) -> $0
A181: =" "&Labels!C384 -> Total | B181: =SUM(B48:B49) -> $0 | C181: =SUM(C48:C49) -> $0 | D181: =SUM(D48:D49) -> $112,750 | E181: =SUM(B181:D181) -> $112,750 | F181: =SUM(F48:F49) -> $112,750 | G181: =SUM(G48:G49) -> $0 | H181: =SUM(H48:H49) -> $82,000 | I181: =SUM(F181:H181) -> $194,750 | J181: =SUM(J48:J49) -> $82,000 | K181: =SUM(K48:K49) -> $82,000 | L181: =SUM(L48:L49) -> $0 | M181: =SUM(J181:L181) -> $164,000 | N181: =SUM(N48:N49) -> $0 | O181: =SUM(O48:O49) -> $0 | P181: =SUM(P48:P49) -> $0 | Q181: =SUM(N181:P181) -> $0 | R181: =SUM(R48:R49) -> $0 | S181: =SUM(S48:S49) -> $0 | T181: =SUM(T48:T49) -> $0 | U181: =SUM(R181:T181) -> $0 | V181: =SUM(V48:V49) -> $0 | W181: =SUM(W48:W49) -> $0 | X181: =SUM(X48:X49) -> $0 | Y181: =SUM(V181:X181) -> $0
A182: =" "&Labels!B382 -> Practice 2
A183: =" "&Labels!B385 -> Prof Level 1 | B183: =SUM(Sales!B122:B123) -> $0 | C183: =SUM(Sales!C122:C123) -> $0 | D183: =SUM(Sales!D122:D123) -> $0 | E183: =SUM(B183:D183) -> $0 | F183: =SUM(Sales!F122:F123) -> $0 | G183: =SUM(Sales!G122:G123) -> $0 | H183: =SUM(Sales!H122:H123) -> $0 | I183: =SUM(F183:H183) -> $0 | J183: =SUM(Sales!J122:J123) -> $0 | K183: =SUM(Sales!K122:K123) -> $0 | L183: =SUM(Sales!L122:L123) -> $0 | M183: =SUM(J183:L183) -> $0 | N183: =SUM(Sales!N122:N123) -> $0 | O183: =SUM(Sales!O122:O123) -> $0 | P183: =SUM(Sales!P122:P123) -> $0 | Q183: =SUM(N183:P183) -> $0 | R183: =SUM(Sales!R122:R123) -> $0 | S183: =SUM(Sales!S122:S123) -> $0 | T183: =SUM(Sales!T122:T123) -> $0 | U183: =SUM(R183:T183) -> $0 | V183: =SUM(Sales!V122:V123) -> $0 | W183: =SUM(Sales!W122:W123) -> $0 | X183: =SUM(Sales!X122:X123) -> $0 | Y183: =SUM(V183:X183) -> $0
A184: =" "&Labels!B386 -> Prof Level 2 | B184: =SUM(Sales!B126:B127) -> $0 | C184: =SUM(Sales!C126:C127) -> $0 | D184: =SUM(Sales!D126:D127) -> $0 | E184: $0 | F184: =SUM(Sales!F126:F127) -> $0 | G184: =SUM(Sales!G126:G127) -> $0 | H184: =SUM(Sales!H126:H127) -> $0 | I184: $0 | J184: =SUM(Sales!J126:J127) -> $0 | K184: =SUM(Sales!K126:K127) -> $0 | L184: =SUM(Sales!L126:L127) -> $0 | M184: $0 | N184: =SUM(Sales!N126:N127) -> $0 | O184: =SUM(Sales!O126:O127) -> $0 | P184: =SUM(Sales!P126:P127) -> $0 | Q184: $0 | R184: =SUM(Sales!R126:R127) -> $0 | S184: =SUM(Sales!S126:S127) -> $0 | T184: =SUM(Sales!T126:T127) -> $0 | U184: $0 | V184: =SUM(Sales!V126:V127) -> $0 | W184: =SUM(Sales!W126:W127) -> $0 | X184: =SUM(Sales!X126:X127) -> $0 | Y184: $0
A185: =" "&Labels!C384 -> Total | B185: =SUM(B52:B53) -> $0 | C185: =SUM(C52:C53) -> $0 | D185: =SUM(D52:D53) -> $0 | E185: $0 | F185: =SUM(F52:F53) -> $0 | G185: =SUM(G52:G53) -> $0 | H185: =SUM(H52:H53) -> $0 | I185: $0 | J185: =SUM(J52:J53) -> $0 | K185: =SUM(K52:K53) -> $0 | L185: =SUM(L52:L53) -> $0 | M185: $0 | N185: =SUM(N52:N53) -> $0 | O185: =SUM(O52:O53) -> $0 | P185: =SUM(P52:P53) -> $0 | Q185: $0 | R185: =SUM(R52:R53) -> $0 | S185: =SUM(S52:S53) -> $0 | T185: =SUM(T52:T53) -> $0 | U185: $0 | V185: =SUM(V52:V53) -> $0 | W185: =SUM(W52:W53) -> $0 | X185: =SUM(X52:X53) -> $0 | Y185: $0
A186: =" "&Labels!C380 -> Total | B186: =SUM(B181,B185) -> $0 | C186: =SUM(C181,C185) -> $0 | D186: =SUM(D181,D185) -> $112,750 | E186: $112,750 | F186: =SUM(F181,F185) -> $112,750 | G186: =SUM(G181,G185) -> $0 | H186: =SUM(H181,H185) -> $82,000 | I186: $194,750 | J186: =SUM(J181,J185) -> $82,000 | K186: =SUM(K181,K185) -> $82,000 | L186: =SUM(L181,L185) -> $0 | M186: $164,000 | N186: =SUM(N181,N185) -> $0 | O186: =SUM(O181,O185) -> $0 | P186: =SUM(P181,P185) -> $0 | Q186: $0 | R186: =SUM(R181,R185) -> $0 | S186: =SUM(S181,S185) -> $0 | T186: =SUM(T181,T185) -> $0 | U186: $0 | V186: =SUM(V181,V185) -> $0 | W186: =SUM(W181,W185) -> $0 | X186: =SUM(X181,X185) -> $0 | Y186: $0
A187: =" "&Labels!B385 -> Prof Level 1 | B187: =SUM(B179,B183) -> $0 | C187: $0 | D187: $56,375 | E187: $56,375 | F187: =SUM(F179,F183) -> $56,375 | G187: $0 | H187: $41,000 | I187: $97,375 | J187: =SUM(J179,J183) -> $41,000 | K187: $41,000 | L187: $0 | M187: $82,000 | N187: =SUM(N179,N183) -> $0 | O187: $0 | P187: $0 | Q187: $0 | R187: =SUM(R179,R183) -> $0 | S187: $0 | T187: $0 | U187: $0 | V187: =SUM(V179,V183) -> $0 | W187: $0 | X187: $0 | Y187: $0
A188: =" "&Labels!B386 -> Prof Level 2 | B188: $0 | C188: $0 | D188: $56,375 | E188: $56,375 | F188: $56,375 | G188: $0 | H188: $41,000 | I188: $97,375 | J188: $41,000 | K188: $41,000 | L188: $0 | M188: $82,000 | N188: $0 | O188: $0 | P188: $0 | Q188: $0 | R188: $0 | S188: $0 | T188: $0 | U188: $0 | V188: $0 | W188: $0 | X188: $0 | Y188: $0
A189: =" "&Labels!C384 -> Total | B189: $0 | C189: $0 | D189: $112,750 | E189: =SUM(B186:D186) -> $112,750 | F189: $112,750 | G189: $0 | H189: $82,000 | I189: =SUM(F186:H186) -> $194,750 | J189: $82,000 | K189: $82,000 | L189: $0 | M189: =SUM(J186:L186) -> $164,000 | N189: $0 | O189: $0 | P189: $0 | Q189: =SUM(N186:P186) -> $0 | R189: $0 | S189: $0 | T189: $0 | U189: =SUM(R186:T186) -> $0 | V189: $0 | W189: $0 | X189: $0 | Y189: =SUM(V186:X186) -> $0
A191: =Labels!B44 -> Cost of Services - Staff
A192: =" "&Labels!B381 -> Practice 1
A193: =" "&Labels!B385 -> Prof Level 1 | B193: =SUM('GM CostSvcs'!B13:B14) -> $0.00 | C193: =SUM('GM CostSvcs'!C13:C14) -> $0.00 | D193: =SUM('GM CostSvcs'!D13:D14) -> $0.00 | E193: =SUM(B193:D193) -> $0.00 | F193: =SUM('GM CostSvcs'!F13:F14) -> $0.00 | G193: =SUM('GM CostSvcs'!G13:G14) -> $0.00 | H193: =SUM('GM CostSvcs'!H13:H14) -> $0.00 | I193: =SUM(F193:H193) -> $0.00 | J193: =SUM('GM CostSvcs'!J13:J14) -> $14,130.45 | K193: =SUM('GM CostSvcs'!K13:K14) -> $14,165.30 | L193: =SUM('GM CostSvcs'!L13:L14) -> $0.00 | M193: =SUM(J193:L193) -> $28,295.74 | N193: =SUM('GM CostSvcs'!N13:N14) -> $0.00 | O193: =SUM('GM CostSvcs'!O13:O14) -> $0.00 | P193: =SUM('GM CostSvcs'!P13:P14) -> $0.00 | Q193: =SUM(N193:P193) -> $0.00 | R193: =SUM('GM CostSvcs'!R13:R14) -> $0.00 | S193: =SUM('GM CostSvcs'!S13:S14) -> $0.00 | T193: =SUM('GM CostSvcs'!T13:T14) -> $0.00 | U193: =SUM(R193:T193) -> $0.00 | V193: =SUM('GM CostSvcs'!V13:V14) -> $0.00 | W193: =SUM('GM CostSvcs'!W13:W14) -> $0.00 | X193: =SUM('GM CostSvcs'!X13:X14) -> $0.00 | Y193: =SUM(V193:X193) -> $0.00
A194: =" "&Labels!B386 -> Prof Level 2 | B194: =SUM('GM CostSvcs'!B17:B18) -> $0.00 | C194: =SUM('GM CostSvcs'!C17:C18) -> $0.00 | D194: =SUM('GM CostSvcs'!D17:D18) -> $0.00 | E194: =SUM(B194:D194) -> $0.00 | F194: =SUM('GM CostSvcs'!F17:F18) -> $0.00 | G194: =SUM('GM CostSvcs'!G17:G18) -> $0.00 | H194: =SUM('GM CostSvcs'!H17:H18) -> $0.00 | I194: =SUM(F194:H194) -> $0.00 | J194: =SUM('GM CostSvcs'!J17:J18) -> $14,130.45 | K194: =SUM('GM CostSvcs'!K17:K18) -> $14,165.30 | L194: =SUM('GM CostSvcs'!L17:L18) -> $0.00 | M194: =SUM(J194:L194) -> $28,295.74 | N194: =SUM('GM CostSvcs'!N17:N18) -> $0.00 | O194: =SUM('GM CostSvcs'!O17:O18) -> $0.00 | P194: =SUM('GM CostSvcs'!P17:P18) -> $0.00 | Q194: =SUM(N194:P194) -> $0.00 | R194: =SUM('GM CostSvcs'!R17:R18) -> $0.00 | S194: =SUM('GM CostSvcs'!S17:S18) -> $0.00 | T194: =SUM('GM CostSvcs'!T17:T18) -> $0.00 | U194: =SUM(R194:T194) -> $0.00 | V194: =SUM('GM CostSvcs'!V17:V18) -> $0.00 | W194: =SUM('GM CostSvcs'!W17:W18) -> $0.00 | X194: =SUM('GM CostSvcs'!X17:X18) -> $0.00 | Y194: =SUM(V194:X194) -> $0.00
A195: =" "&Labels!C384 -> Total | B195: =SUM(B193:B194) -> $0.00 | C195: =SUM(C193:C194) -> $0.00 | D195: =SUM(D193:D194) -> $0.00 | E195: =SUM(B195:D195) -> $0.00 | F195: =SUM(F193:F194) -> $0.00 | G195: =SUM(G193:G194) -> $0.00 | H195: =SUM(H193:H194) -> $0.00 | I195: =SUM(F195:H195) -> $0.00 | J195: =SUM(J193:J194) -> $28,260.89 | K195: =SUM(K193:K194) -> $28,330.59 | L195: =SUM(L193:L194) -> $0.00 | M195: =SUM(J195:L195) -> $56,591.48 | N195: =SUM(N193:N194) -> $0.00 | O195: =SUM(O193:O194) -> $0.00 | P195: =SUM(P193:P194) -> $0.00 | Q195: =SUM(N195:P195) -> $0.00 | R195: =SUM(R193:R194) -> $0.00 | S195: =SUM(S193:S194) -> $0.00 | T195: =SUM(T193:T194) -> $0.00 | U195: =SUM(R195:T195) -> $0.00 | V195: =SUM(V193:V194) -> $0.00 | W195: =SUM(W193:W194) -> $0.00 | X195: =SUM(X193:X194) -> $0.00 | Y195: =SUM(V195:X195) -> $0.00
A196: =" "&Labels!B382 -> Practice 2
A197: =" "&Labels!B385 -> Prof Level 1 | B197: =SUM('GM CostSvcs'!B26:B27) -> $0.00 | C197: =SUM('GM CostSvcs'!C26:C27) -> $0.00 | D197: =SUM('GM CostSvcs'!D26:D27) -> $0.00 | E197: =SUM(B197:D197) -> $0.00 | F197: =SUM('GM CostSvcs'!F26:F27) -> $0.00 | G197: =SUM('GM CostSvcs'!G26:G27) -> $0.00 | H197: =SUM('GM CostSvcs'!H26:H27) -> $0.00 | I197: =SUM(F197:H197) -> $0.00 | J197: =SUM('GM CostSvcs'!J26:J27) -> $0.00 | K197: =SUM('GM CostSvcs'!K26:K27) -> $0.00 | L197: =SUM('GM CostSvcs'!L26:L27) -> $0.00 | M197: =SUM(J197:L197) -> $0.00 | N197: =SUM('GM CostSvcs'!N26:N27) -> $0.00 | O197: =SUM('GM CostSvcs'!O26:O27) -> $0.00 | P197: =SUM('GM CostSvcs'!P26:P27) -> $0.00 | Q197: =SUM(N197:P197) -> $0.00 | R197: =SUM('GM CostSvcs'!R26:R27) -> $0.00 | S197: =SUM('GM CostSvcs'!S26:S27) -> $0.00 | T197: =SUM('GM CostSvcs'!T26:T27) -> $0.00 | U197: =SUM(R197:T197) -> $0.00 | V197: =SUM('GM CostSvcs'!V26:V27) -> $0.00 | W197: =SUM('GM CostSvcs'!W26:W27) -> $0.00 | X197: =SUM('GM CostSvcs'!X26:X27) -> $0.00 | Y197: =SUM(V197:X197) -> $0.00
A198: =" "&Labels!B386 -> Prof Level 2 | B198: =SUM('GM CostSvcs'!B30:B31) -> $0.00 | C198: =SUM('GM CostSvcs'!C30:C31) -> $0.00 | D198: =SUM('GM CostSvcs'!D30:D31) -> $0.00 | E198: $0.00 | F198: =SUM('GM CostSvcs'!F30:F31) -> $0.00 | G198: =SUM('GM CostSvcs'!G30:G31) -> $0.00 | H198: =SUM('GM CostSvcs'!H30:H31) -> $0.00 | I198: $0.00 | J198: =SUM('GM CostSvcs'!J30:J31) -> $0.00 | K198: =SUM('GM CostSvcs'!K30:K31) -> $0.00 | L198: =SUM('GM CostSvcs'!L30:L31) -> $0.00 | M198: $0.00 | N198: =SUM('GM CostSvcs'!N30:N31) -> $0.00 | O198: =SUM('GM CostSvcs'!O30:O31) -> $0.00 | P198: =SUM('GM CostSvcs'!P30:P31) -> $0.00 | Q198: $0.00 | R198: =SUM('GM CostSvcs'!R30:R31) -> $0.00 | S198: =SUM('GM CostSvcs'!S30:S31) -> $0.00 | T198: =SUM('GM CostSvcs'!T30:T31) -> $0.00 | U198: $0.00 | V198: =SUM('GM CostSvcs'!V30:V31) -> $0.00 | W198: =SUM('GM CostSvcs'!W30:W31) -> $0.00 | X198: =SUM('GM CostSvcs'!X30:X31) -> $0.00 | Y198: $0.00
A199: =" "&Labels!C384 -> Total | B199: =SUM(B197:B198) -> $0.00 | C199: =SUM(C197:C198) -> $0.00 | D199: =SUM(D197:D198) -> $0.00 | E199: $0.00 | F199: =SUM(F197:F198) -> $0.00 | G199: =SUM(G197:G198) -> $0.00 | H199: =SUM(H197:H198) -> $0.00 | I199: $0.00 | J199: =SUM(J197:J198) -> $0.00 | K199: =SUM(K197:K198) -> $0.00 | L199: =SUM(L197:L198) -> $0.00 | M199: $0.00 | N199: =SUM(N197:N198) -> $0.00 | O199: =SUM(O197:O198) -> $0.00 | P199: =SUM(P197:P198) -> $0.00 | Q199: $0.00 | R199: =SUM(R197:R198) -> $0.00 | S199: =SUM(S197:S198) -> $0.00 | T199: =SUM(T197:T198) -> $0.00 | U199: $0.00 | V199: =SUM(V197:V198) -> $0.00 | W199: =SUM(W197:W198) -> $0.00 | X199: =SUM(X197:X198) -> $0.00 | Y199: $0.00
A200: =" "&Labels!C380 -> Total | B200: =SUM(B195,B199) -> $0.00 | C200: =SUM(C195,C199) -> $0.00 | D200: =SUM(D195,D199) -> $0.00 | E200: $0.00 | F200: =SUM(F195,F199) -> $0.00 | G200: =SUM(G195,G199) -> $0.00 | H200: =SUM(H195,H199) -> $0.00 | I200: $0.00 | J200: =SUM(J195,J199) -> $28,260.89 | K200: =SUM(K195,K199) -> $28,330.59 | L200: =SUM(L195,L199) -> $0.00 | M200: $56,591.48 | N200: =SUM(N195,N199) -> $0.00 | O200: =SUM(O195,O199) -> $0.00 | P200: =SUM(P195,P199) -> $0.00 | Q200: $0.00 | R200: =SUM(R195,R199) -> $0.00 | S200: =SUM(S195,S199) -> $0.00 | T200: =SUM(T195,T199) -> $0.00 | U200: $0.00 | V200: =SUM(V195,V199) -> $0.00 | W200: =SUM(W195,W199) -> $0.00 | X200: =SUM(X195,X199) -> $0.00 | Y200: $0.00
A201: =" "&Labels!B385 -> Prof Level 1 | B201: =SUM(B193,B197) -> $0.00 | C201: $0.00 | D201: $0.00 | E201: $0.00 | F201: =SUM(F193,F197) -> $0.00 | G201: $0.00 | H201: $0.00 | I201: $0.00 | J201: =SUM(J193,J197) -> $14,130.45 | K201: $14,165.30 | L201: $0.00 | M201: $28,295.74 | N201: =SUM(N193,N197) -> $0.00 | O201: $0.00 | P201: $0.00 | Q201: $0.00 | R201: =SUM(R193,R197) -> $0.00 | S201: $0.00 | T201: $0.00 | U201: $0.00 | V201: =SUM(V193,V197) -> $0.00 | W201: $0.00 | X201: $0.00 | Y201: $0.00
A202: =" "&Labels!B386 -> Prof Level 2 | B202: $0.00 | C202: $0.00 | D202: $0.00 | E202: $0.00 | F202: $0.00 | G202: $0.00 | H202: $0.00 | I202: $0.00 | J202: $14,130.45 | K202: $14,165.30 | L202: $0.00 | M202: $28,295.74 | N202: $0.00 | O202: $0.00 | P202: $0.00 | Q202: $0.00 | R202: $0.00 | S202: $0.00 | T202: $0.00 | U202: $0.00 | V202: $0.00 | W202: $0.00 | X202: $0.00 | Y202: $0.00
A203: =" "&Labels!C384 -> Total | B203: $0.00 | C203: $0.00 | D203: $0.00 | E203: =SUM(B200:D200) -> $0.00 | F203: $0.00 | G203: $0.00 | H203: $0.00 | I203: =SUM(F200:H200) -> $0.00 | J203: $28,260.89 | K203: $28,330.59 | L203: $0.00 | M203: =SUM(J200:L200) -> $56,591.48 | N203: $0.00 | O203: $0.00 | P203: $0.00 | Q203: =SUM(N200:P200) -> $0.00 | R203: $0.00 | S203: $0.00 | T203: $0.00 | U203: =SUM(R200:T200) -> $0.00 | V203: $0.00 | W203: $0.00 | X203: $0.00 | Y203: =SUM(V200:X200) -> $0.00
A205: =Labels!B49 -> Travel & Entertainment
A206: =" "&Labels!B381 -> Practice 1
A207: =" "&Labels!B385 -> Prof Level 1 | B207: =SUM('GM CostSvcs'!B54:B55) -> $0 | C207: =SUM('GM CostSvcs'!C54:C55) -> $0 | D207: =SUM('GM CostSvcs'!D54:D55) -> $1,375 | E207: =SUM(B207:D207) -> $1,375 | F207: =SUM('GM CostSvcs'!F54:F55) -> $1,375 | G207: =SUM('GM CostSvcs'!G54:G55) -> $0 | H207: =SUM('GM CostSvcs'!H54:H55) -> $1,000 | I207: =SUM(F207:H207) -> $2,375 | J207: =SUM('GM CostSvcs'!J54:J55) -> $1,000 | K207: =SUM('GM CostSvcs'!K54:K55) -> $1,000 | L207: =SUM('GM CostSvcs'!L54:L55) -> $0 | M207: =SUM(J207:L207) -> $2,000 | N207: =SUM('GM CostSvcs'!N54:N55) -> $0 | O207: =SUM('GM CostSvcs'!O54:O55) -> $0 | P207: =SUM('GM CostSvcs'!P54:P55) -> $0 | Q207: =SUM(N207:P207) -> $0 | R207: =SUM('GM CostSvcs'!R54:R55) -> $0 | S207: =SUM('GM CostSvcs'!S54:S55) -> $0 | T207: =SUM('GM CostSvcs'!T54:T55) -> $0 | U207: =SUM(R207:T207) -> $0 | V207: =SUM('GM CostSvcs'!V54:V55) -> $0 | W207: =SUM('GM CostSvcs'!W54:W55) -> $0 | X207: =SUM('GM CostSvcs'!X54:X55) -> $0 | Y207: =SUM(V207:X207) -> $0
A208: =" "&Labels!B386 -> Prof Level 2 | B208: =SUM('GM CostSvcs'!B58:B59) -> $0 | C208: =SUM('GM CostSvcs'!C58:C59) -> $0 | D208: =SUM('GM CostSvcs'!D58:D59) -> $1,375 | E208: =SUM(B208:D208) -> $1,375 | F208: =SUM('GM CostSvcs'!F58:F59) -> $1,375 | G208: =SUM('GM CostSvcs'!G58:G59) -> $0 | H208: =SUM('GM CostSvcs'!H58:H59) -> $1,000 | I208: =SUM(F208:H208) -> $2,375 | J208: =SUM('GM CostSvcs'!J58:J59) -> $1,000 | K208: =SUM('GM CostSvcs'!K58:K59) -> $1,000 | L208: =SUM('GM CostSvcs'!L58:L59) -> $0 | M208: =SUM(J208:L208) -> $2,000 | N208: =SUM('GM CostSvcs'!N58:N59) -> $0 | O208: =SUM('GM CostSvcs'!O58:O59) -> $0 | P208: =SUM('GM CostSvcs'!P58:P59) -> $0 | Q208: =SUM(N208:P208) -> $0 | R208: =SUM('GM CostSvcs'!R58:R59) -> $0 | S208: =SUM('GM CostSvcs'!S58:S59) -> $0 | T208: =SUM('GM CostSvcs'!T58:T59) -> $0 | U208: =SUM(R208:T208) -> $0 | V208: =SUM('GM CostSvcs'!V58:V59) -> $0 | W208: =SUM('GM CostSvcs'!W58:W59) -> $0 | X208: =SUM('GM CostSvcs'!X58:X59) -> $0 | Y208: =SUM(V208:X208) -> $0
A209: =" "&Labels!C384 -> Total | B209: =SUM(B207:B208) -> $0 | C209: =SUM(C207:C208) -> $0 | D209: =SUM(D207:D208) -> $2,750 | E209: =SUM(B209:D209) -> $2,750 | F209: =SUM(F207:F208) -> $2,750 | G209: =SUM(G207:G208) -> $0 | H209: =SUM(H207:H208) -> $2,000 | I209: =SUM(F209:H209) -> $4,750 | J209: =SUM(J207:J208) -> $2,000 | K209: =SUM(K207:K208) -> $2,000 | L209: =SUM(L207:L208) -> $0 | M209: =SUM(J209:L209) -> $4,000 | N209: =SUM(N207:N208) -> $0 | O209: =SUM(O207:O208) -> $0 | P209: =SUM(P207:P208) -> $0 | Q209: =SUM(N209:P209) -> $0 | R209: =SUM(R207:R208) -> $0 | S209: =SUM(S207:S208) -> $0 | T209: =SUM(T207:T208) -> $0 | U209: =SUM(R209:T209) -> $0 | V209: =SUM(V207:V208) -> $0 | W209: =SUM(W207:W208) -> $0 | X209: =SUM(X207:X208) -> $0 | Y209: =SUM(V209:X209) -> $0
A210: =" "&Labels!B382 -> Practice 2
A211: =" "&Labels!B385 -> Prof Level 1 | B211: =SUM('GM CostSvcs'!B67:B68) -> $0 | C211: =SUM('GM CostSvcs'!C67:C68) -> $0 | D211: =SUM('GM CostSvcs'!D67:D68) -> $0 | E211: =SUM(B211:D211) -> $0 | F211: =SUM('GM CostSvcs'!F67:F68) -> $0 | G211: =SUM('GM CostSvcs'!G67:G68) -> $0 | H211: =SUM('GM CostSvcs'!H67:H68) -> $0 | I211: =SUM(F211:H211) -> $0 | J211: =SUM('GM CostSvcs'!J67:J68) -> $0 | K211: =SUM('GM CostSvcs'!K67:K68) -> $0 | L211: =SUM('GM CostSvcs'!L67:L68) -> $0 | M211: =SUM(J211:L211) -> $0 | N211: =SUM('GM CostSvcs'!N67:N68) -> $0 | O211: =SUM('GM CostSvcs'!O67:O68) -> $0 | P211: =SUM('GM CostSvcs'!P67:P68) -> $0 | Q211: =SUM(N211:P211) -> $0 | R211: =SUM('GM CostSvcs'!R67:R68) -> $0 | S211: =SUM('GM CostSvcs'!S67:S68) -> $0 | T211: =SUM('GM CostSvcs'!T67:T68) -> $0 | U211: =SUM(R211:T211) -> $0 | V211: =SUM('GM CostSvcs'!V67:V68) -> $0 | W211: =SUM('GM CostSvcs'!W67:W68) -> $0 | X211: =SUM('GM CostSvcs'!X67:X68) -> $0 | Y211: =SUM(V211:X211) -> $0
A212: =" "&Labels!B386 -> Prof Level 2 | B212: =SUM('GM CostSvcs'!B71:B72) -> $0 | C212: =SUM('GM CostSvcs'!C71:C72) -> $0 | D212: =SUM('GM CostSvcs'!D71:D72) -> $0 | E212: $0 | F212: =SUM('GM CostSvcs'!F71:F72) -> $0 | G212: =SUM('GM CostSvcs'!G71:G72) -> $0 | H212: =SUM('GM CostSvcs'!H71:H72) -> $0 | I212: $0 | J212: =SUM('GM CostSvcs'!J71:J72) -> $0 | K212: =SUM('GM CostSvcs'!K71:K72) -> $0 | L212: =SUM('GM CostSvcs'!L71:L72) -> $0 | M212: $0 | N212: =SUM('GM CostSvcs'!N71:N72) -> $0 | O212: =SUM('GM CostSvcs'!O71:O72) -> $0 | P212: =SUM('GM CostSvcs'!P71:P72) -> $0 | Q212: $0 | R212: =SUM('GM CostSvcs'!R71:R72) -> $0 | S212: =SUM('GM CostSvcs'!S71:S72) -> $0 | T212: =SUM('GM CostSvcs'!T71:T72) -> $0 | U212: $0 | V212: =SUM('GM CostSvcs'!V71:V72) -> $0 | W212: =SUM('GM CostSvcs'!W71:W72) -> $0 | X212: =SUM('GM CostSvcs'!X71:X72) -> $0 | Y212: $0
A213: =" "&Labels!C384 -> Total | B213: =SUM(B211:B212) -> $0 | C213: =SUM(C211:C212) -> $0 | D213: =SUM(D211:D212) -> $0 | E213: $0 | F213: =SUM(F211:F212) -> $0 | G213: =SUM(G211:G212) -> $0 | H213: =SUM(H211:H212) -> $0 | I213: $0 | J213: =SUM(J211:J212) -> $0 | K213: =SUM(K211:K212) -> $0 | L213: =SUM(L211:L212) -> $0 | M213: $0 | N213: =SUM(N211:N212) -> $0 | O213: =SUM(O211:O212) -> $0 | P213: =SUM(P211:P212) -> $0 | Q213: $0 | R213: =SUM(R211:R212) -> $0 | S213: =SUM(S211:S212) -> $0 | T213: =SUM(T211:T212) -> $0 | U213: $0 | V213: =SUM(V211:V212) -> $0 | W213: =SUM(W211:W212) -> $0 | X213: =SUM(X211:X212) -> $0 | Y213: $0
A214: =" "&Labels!C380 -> Total | B214: =SUM(B209,B213) -> $0 | C214: =SUM(C209,C213) -> $0 | D214: =SUM(D209,D213) -> $2,750 | E214: $2,750 | F214: =SUM(F209,F213) -> $2,750 | G214: =SUM(G209,G213) -> $0 | H214: =SUM(H209,H213) -> $2,000 | I214: $4,750 | J214: =SUM(J209,J213) -> $2,000 | K214: =SUM(K209,K213) -> $2,000 | L214: =SUM(L209,L213) -> $0 | M214: $4,000 | N214: =SUM(N209,N213) -> $0 | O214: =SUM(O209,O213) -> $0 | P214: =SUM(P209,P213) -> $0 | Q214: $0 | R214: =SUM(R209,R213) -> $0 | S214: =SUM(S209,S213) -> $0 | T214: =SUM(T209,T213) -> $0 | U214: $0 | V214: =SUM(V209,V213) -> $0 | W214: =SUM(W209,W213) -> $0 | X214: =SUM(X209,X213) -> $0 | Y214: $0
A215: =" "&Labels!B385 -> Prof Level 1 | B215: =SUM(B207,B211) -> $0 | C215: $0 | D215: $1,375 | E215: $1,375 | F215: =SUM(F207,F211) -> $1,375 | G215: $0 | H215: $1,000 | I215: $2,375 | J215: =SUM(J207,J211) -> $1,000 | K215: $1,000 | L215: $0 | M215: $2,000 | N215: =SUM(N207,N211) -> $0 | O215: $0 | P215: $0 | Q215: $0 | R215: =SUM(R207,R211) -> $0 | S215: $0 | T215: $0 | U215: $0 | V215: =SUM(V207,V211) -> $0 | W215: $0 | X215: $0 | Y215: $0
A216: =" "&Labels!B386 -> Prof Level 2 | B216: $0 | C216: $0 | D216: $1,375 | E216: $1,375 | F216: $1,375 | G216: $0 | H216: $1,000 | I216: $2,375 | J216: $1,000 | K216: $1,000 | L216: $0 | M216: $2,000 | N216: $0 | O216: $0 | P216: $0 | Q216: $0 | R216: $0 | S216: $0 | T216: $0 | U216: $0 | V216: $0 | W216: $0 | X216: $0 | Y216: $0
... 235 more rows

Sheet Channels
A1: =Inputs!F7 -> 
A2: =TEXT('(FnCalls 1)'!A41,"m/d/yyyy")&" to "&TEXT('(FnCalls 1)'!A59-1,"m/d/yyyy") -> 1/1/2010 to 6/30/2011
A3: ="Channels" -> Channels
A4: =" " -> 
A5: ="Summary" -> Summary
A6: =" " -> 
B7: ='(FnCalls 1)'!F41 -> Jan 2010 | C7: ='(FnCalls 1)'!F42 -> Feb 2010 | D7: ='(FnCalls 1)'!F43 -> Mar 2010 | E7: ='(FnCalls 1)'!G41 -> Q1 2010 | F7: ='(FnCalls 1)'!F44 -> Apr 2010 | G7: ='(FnCalls 1)'!F45 -> May 2010 | H7: ='(FnCalls 1)'!F46 -> Jun 2010 | I7: ='(FnCalls 1)'!G44 -> Q2 2010 | J7: ='(FnCalls 1)'!F47 -> Jul 2010 | K7: ='(FnCalls 1)'!F48 -> Aug 2010 | L7: ='(FnCalls 1)'!F49 -> Sep 2010 | M7: ='(FnCalls 1)'!G47 -> Q3 2010 | N7: ='(FnCalls 1)'!F50 -> Oct 2010 | O7: ='(FnCalls 1)'!F51 -> Nov 2010 | P7: ='(FnCalls 1)'!F52 -> Dec 2010 | Q7: ='(FnCalls 1)'!G50 -> Q4 2010 | R7: ='(FnCalls 1)'!F53 -> Jan 2011 | S7: ='(FnCalls 1)'!F54 -> Feb 2011 | T7: ='(FnCalls 1)'!F55 -> Mar 2011 | U7: ='(FnCalls 1)'!G53 -> Q1 2011 | V7: ='(FnCalls 1)'!F56 -> Apr 2011 | W7: ='(FnCalls 1)'!F57 -> May 2011 | X7: ='(FnCalls 1)'!F58 -> Jun 2011 | Y7: ='(FnCalls 1)'!G56 -> Q2 2011
A8: =Labels!B228 -> Revenue
A9: =" "&Labels!B317 -> Channels 1 | B9: =SUM(B48:B49) -> $0 | C9: =SUM(C48:C49) -> $0 | D9: =SUM(D48:D49) -> $57,750 | E9: =SUM(B9:D9) -> $57,750 | F9: =SUM(F48:F49) -> $57,750 | G9: =SUM(G48:G49) -> $0 | H9: =SUM(H48:H49) -> $42,000 | I9: =SUM(F9:H9) -> $99,750 | J9: =SUM(J48:J49) -> $42,000 | K9: =SUM(K48:K49) -> $42,000 | L9: =SUM(L48:L49) -> $0 | M9: =SUM(J9:L9) -> $84,000 | N9: =SUM(N48:N49) -> $0 | O9: =SUM(O48:O49) -> $0 | P9: =SUM(P48:P49) -> $0 | Q9: =SUM(N9:P9) -> $0 | R9: =SUM(R48:R49) -> $0 | S9: =SUM(S48:S49) -> $0 | T9: =SUM(T48:T49) -> $0 | U9: =SUM(R9:T9) -> $0 | V9: =SUM(V48:V49) -> $0 | W9: =SUM(W48:W49) -> $0 | X9: =SUM(X48:X49) -> $0 | Y9: =SUM(V9:X9) -> $0
A10: =" "&Labels!B318 -> Channels 2 | B10: =SUM(B52:B53) -> $0 | C10: =SUM(C52:C53) -> $0 | D10: =SUM(D52:D53) -> $55,000 | E10: =SUM(B10:D10) -> $55,000 | F10: =SUM(F52:F53) -> $55,000 | G10: =SUM(G52:G53) -> $0 | H10: =SUM(H52:H53) -> $40,000 | I10: =SUM(F10:H10) -> $95,000 | J10: =SUM(J52:J53) -> $40,000 | K10: =SUM(K52:K53) -> $40,000 | L10: =SUM(L52:L53) -> $0 | M10: =SUM(J10:L10) -> $80,000 | N10: =SUM(N52:N53) -> $0 | O10: =SUM(O52:O53) -> $0 | P10: =SUM(P52:P53) -> $0 | Q10: =SUM(N10:P10) -> $0 | R10: =SUM(R52:R53) -> $0 | S10: =SUM(S52:S53) -> $0 | T10: =SUM(T52:T53) -> $0 | U10: =SUM(R10:T10) -> $0 | V10: =SUM(V52:V53) -> $0 | W10: =SUM(W52:W53) -> $0 | X10: =SUM(X52:X53) -> $0 | Y10: =SUM(V10:X10) -> $0
A11: =" "&Labels!C316 -> Total | B11: =SUM(B9:B10) -> $0 | C11: =SUM(C9:C10) -> $0 | D11: =SUM(D9:D10) -> $112,750 | E11: =SUM(B11:D11) -> $112,750 | F11: =SUM(F9:F10) -> $112,750 | G11: =SUM(G9:G10) -> $0 | H11: =SUM(H9:H10) -> $82,000 | I11: =SUM(F11:H11) -> $194,750 | J11: =SUM(J9:J10) -> $82,000 | K11: =SUM(K9:K10) -> $82,000 | L11: =SUM(L9:L10) -> $0 | M11: =SUM(J11:L11) -> $164,000 | N11: =SUM(N9:N10) -> $0 | O11: =SUM(O9:O10) -> $0 | P11: =SUM(P9:P10) -> $0 | Q11: =SUM(N11:P11) -> $0 | R11: =SUM(R9:R10) -> $0 | S11: =SUM(S9:S10) -> $0 | T11: =SUM(T9:T10) -> $0 | U11: =SUM(R11:T11) -> $0 | V11: =SUM(V9:V10) -> $0 | W11: =SUM(W9:W10) -> $0 | X11: =SUM(X9:X10) -> $0 | Y11: =SUM(V11:X11) -> $0
A13: =Labels!B43 -> Cost of Services
A14: =" "&Labels!B317 -> Channels 1 | B14: =SUM(B66,B71) -> $0 | C14: =SUM(C66,C71) -> $0 | D14: =SUM(D66,D71) -> $2,750 | E14: =SUM(B14:D14) -> $2,750 | F14: =SUM(F66,F71) -> $2,750 | G14: =SUM(G66,G71) -> $0 | H14: =SUM(H66,H71) -> $2,000 | I14: =SUM(F14:H14) -> $4,750 | J14: =SUM(J66,J71) -> $30,261 | K14: =SUM(K66,K71) -> $30,331 | L14: =SUM(L66,L71) -> $0 | M14: =SUM(J14:L14) -> $60,591 | N14: =SUM(N66,N71) -> $0 | O14: =SUM(O66,O71) -> $0 | P14: =SUM(P66,P71) -> $0 | Q14: =SUM(N14:P14) -> $0 | R14: =SUM(R66,R71) -> $0 | S14: =SUM(S66,S71) -> $0 | T14: =SUM(T66,T71) -> $0 | U14: =SUM(R14:T14) -> $0 | V14: =SUM(V66,V71) -> $0 | W14: =SUM(W66,W71) -> $0 | X14: =SUM(X66,X71) -> $0 | Y14: =SUM(V14:X14) -> $0
A15: =" "&Labels!B318 -> Channels 2 | B15: =SUM(B82,B87) -> $0 | C15: =SUM(C82,C87) -> $0 | D15: =SUM(D82,D87) -> $0 | E15: =SUM(B15:D15) -> $0 | F15: =SUM(F82,F87) -> $0 | G15: =SUM(G82,G87) -> $0 | H15: =SUM(H82,H87) -> $0 | I15: =SUM(F15:H15) -> $0 | J15: =SUM(J82,J87) -> $0 | K15: =SUM(K82,K87) -> $0 | L15: =SUM(L82,L87) -> $0 | M15: =SUM(J15:L15) -> $0 | N15: =SUM(N82,N87) -> $0 | O15: =SUM(O82,O87) -> $0 | P15: =SUM(P82,P87) -> $0 | Q15: =SUM(N15:P15) -> $0 | R15: =SUM(R82,R87) -> $0 | S15: =SUM(S82,S87) -> $0 | T15: =SUM(T82,T87) -> $0 | U15: =SUM(R15:T15) -> $0 | V15: =SUM(V82,V87) -> $0 | W15: =SUM(W82,W87) -> $0 | X15: =SUM(X82,X87) -> $0 | Y15: =SUM(V15:X15) -> $0
A16: =" "&Labels!C316 -> Total | B16: =SUM(B14:B15) -> $0 | C16: =SUM(C14:C15) -> $0 | D16: =SUM(D14:D15) -> $2,750 | E16: =SUM(B16:D16) -> $2,750 | F16: =SUM(F14:F15) -> $2,750 | G16: =SUM(G14:G15) -> $0 | H16: =SUM(H14:H15) -> $2,000 | I16: =SUM(F16:H16) -> $4,750 | J16: =SUM(J14:J15) -> $30,261 | K16: =SUM(K14:K15) -> $30,331 | L16: =SUM(L14:L15) -> $0 | M16: =SUM(J16:L16) -> $60,591 | N16: =SUM(N14:N15) -> $0 | O16: =SUM(O14:O15) -> $0 | P16: =SUM(P14:P15) -> $0 | Q16: =SUM(N16:P16) -> $0 | R16: =SUM(R14:R15) -> $0 | S16: =SUM(S14:S15) -> $0 | T16: =SUM(T14:T15) -> $0 | U16: =SUM(R16:T16) -> $0 | V16: =SUM(V14:V15) -> $0 | W16: =SUM(W14:W15) -> $0 | X16: =SUM(X14:X15) -> $0 | Y16: =SUM(V16:X16) -> $0
A18: =Labels!B317 -> Channels 1
A19: =" "&Labels!B99 -> Gross Margin | B19: =SUM(B112,B115) -> $0 | C19: =SUM(C112,C115) -> $0 | D19: =SUM(D112,D115) -> $55,000 | E19: =SUM(B19:D19) -> $55,000 | F19: =SUM(F112,F115) -> $55,000 | G19: =SUM(G112,G115) -> $0 | H19: =SUM(H112,H115) -> $40,000 | I19: =SUM(F19:H19) -> $95,000 | J19: =SUM(J112,J115) -> $11,739 | K19: =SUM(K112,K115) -> $4,587 | L19: =SUM(L112,L115) -> $0 | M19: =SUM(J19:L19) -> $16,326 | N19: =SUM(N112,N115) -> $0 | O19: =SUM(O112,O115) -> $0 | P19: =SUM(P112,P115) -> $0 | Q19: =SUM(N19:P19) -> $0 | R19: =SUM(R112,R115) -> $0 | S19: =SUM(S112,S115) -> $0 | T19: =SUM(T112,T115) -> $0 | U19: =SUM(R19:T19) -> $0 | V19: =SUM(V112,V115) -> $0 | W19: =SUM(W112,W115) -> $0 | X19: =SUM(X112,X115) -> $0 | Y19: =SUM(V19:X19) -> $0
A20: =" "&Labels!B101 -> Gross Margin % | B20: =IF(Practices!B56=0,0,Practices!B132/Practices!B56) -> 0.0% | C20: =IF(Practices!C56=0,0,Practices!C132/Practices!C56) -> 0.0% | D20: =IF(Practices!D56=0,0,Practices!D132/Practices!D56) -> 95.2% | E20: =IF(SUM(Practices!B56:D56)=0,0,SUM(Practices!B132:D132)/SUM(Practices!B56:D56)) -> 95.2% | F20: =IF(Practices!F56=0,0,Practices!F132/Practices!F56) -> 95.2% | G20: =IF(Practices!G56=0,0,Practices!G132/Practices!G56) -> 0.0% | H20: =IF(Practices!H56=0,0,Practices!H132/Practices!H56) -> 95.2% | I20: =IF(SUM(Practices!F56:H56)=0,0,SUM(Practices!F132:H132)/SUM(Practices!F56:H56)) -> 95.2% | J20: =IF(Practices!J56=0,0,Practices!J132/Practices!J56) -> 28.0% | K20: =IF(Practices!K56=0,0,Practices!K132/Practices!K56) -> 10.9% | L20: =IF(Practices!L56=0,0,Practices!L132/Practices!L56) -> 0.0% | M20: =IF(SUM(Practices!J56:L56)=0,0,SUM(Practices!J132:L132)/SUM(Practices!J56:L56)) -> 19.4% | N20: =IF(Practices!N56=0,0,Practices!N132/Practices!N56) -> 0.0% | O20: =IF(Practices!O56=0,0,Practices!O132/Practices!O56) -> 0.0% | P20: =IF(Practices!P56=0,0,Practices!P132/Practices!P56) -> 0.0% | Q20: =IF(SUM(Practices!N56:P56)=0,0,SUM(Practices!N132:P132)/SUM(Practices!N56:P56)) -> 0.0% | R20: =IF(Practices!R56=0,0,Practices!R132/Practices!R56) -> 0.0% | S20: =IF(Practices!S56=0,0,Practices!S132/Practices!S56) -> 0.0% | T20: =IF(Practices!T56=0,0,Practices!T132/Practices!T56) -> 0.0% | U20: =IF(SUM(Practices!R56:T56)=0,0,SUM(Practices!R132:T132)/SUM(Practices!R56:T56)) -> 0.0% | V20: =IF(Practices!V56=0,0,Practices!V132/Practices!V56) -> 0.0% | W20: =IF(Practices!W56=0,0,Practices!W132/Practices!W56) -> 0.0% | X20: =IF(Practices!X56=0,0,Practices!X132/Practices!X56) -> 0.0% | Y20: =IF(SUM(Practices!V56:X56)=0,0,SUM(Practices!V132:X132)/SUM(Practices!V56:X56)) -> 0.0%
A21: =Labels!B318 -> Channels 2
A22: =" "&Labels!B99 -> Gross Margin | B22: =SUM(B122,B125) -> $0 | C22: =SUM(C122,C125) -> $0 | D22: =SUM(D122,D125) -> $55,000 | E22: =SUM(B22:D22) -> $55,000 | F22: =SUM(F122,F125) -> $55,000 | G22: =SUM(G122,G125) -> $0 | H22: =SUM(H122,H125) -> $40,000 | I22: =SUM(F22:H22) -> $95,000 | J22: =SUM(J122,J125) -> $40,000 | K22: =SUM(K122,K125) -> $32,917 | L22: =SUM(L122,L125) -> $0 | M22: =SUM(J22:L22) -> $72,917 | N22: =SUM(N122,N125) -> $0 | O22: =SUM(O122,O125) -> $0 | P22: =SUM(P122,P125) -> $0 | Q22: =SUM(N22:P22) -> $0 | R22: =SUM(R122,R125) -> $0 | S22: =SUM(S122,S125) -> $0 | T22: =SUM(T122,T125) -> $0 | U22: =SUM(R22:T22) -> $0 | V22: =SUM(V122,V125) -> $0 | W22: =SUM(W122,W125) -> $0 | X22: =SUM(X122,X125) -> $0 | Y22: =SUM(V22:X22) -> $0
A23: =" "&Labels!B101 -> Gross Margin % | B23: =IF(Practices!B57=0,0,Practices!B135/Practices!B57) -> 0.0% | C23: =IF(Practices!C57=0,0,Practices!C135/Practices!C57) -> 0.0% | D23: =IF(Practices!D57=0,0,Practices!D135/Practices!D57) -> 100.0% | E23: =IF(SUM(Practices!B57:D57)=0,0,SUM(Practices!B135:D135)/SUM(Practices!B57:D57)) -> 100.0% | F23: =IF(Practices!F57=0,0,Practices!F135/Practices!F57) -> 100.0% | G23: =IF(Practices!G57=0,0,Practices!G135/Practices!G57) -> 0.0% | H23: =IF(Practices!H57=0,0,Practices!H135/Practices!H57) -> 100.0% | I23: =IF(SUM(Practices!F57:H57)=0,0,SUM(Practices!F135:H135)/SUM(Practices!F57:H57)) -> 100.0% | J23: =IF(Practices!J57=0,0,Practices!J135/Practices!J57) -> 100.0% | K23: =IF(Practices!K57=0,0,Practices!K135/Practices!K57) -> 82.3% | L23: =IF(Practices!L57=0,0,Practices!L135/Practices!L57) -> 0.0% | M23: =IF(SUM(Practices!J57:L57)=0,0,SUM(Practices!J135:L135)/SUM(Practices!J57:L57)) -> 91.1% | N23: =IF(Practices!N57=0,0,Practices!N135/Practices!N57) -> 0.0% | O23: =IF(Practices!O57=0,0,Practices!O135/Practices!O57) -> 0.0% | P23: =IF(Practices!P57=0,0,Practices!P135/Practices!P57) -> 0.0% | Q23: =IF(SUM(Practices!N57:P57)=0,0,SUM(Practices!N135:P135)/SUM(Practices!N57:P57)) -> 0.0% | R23: =IF(Practices!R57=0,0,Practices!R135/Practices!R57) -> 0.0% | S23: =IF(Practices!S57=0,0,Practices!S135/Practices!S57) -> 0.0% | T23: =IF(Practices!T57=0,0,Practices!T135/Practices!T57) -> 0.0% | U23: =IF(SUM(Practices!R57:T57)=0,0,SUM(Practices!R135:T135)/SUM(Practices!R57:T57)) -> 0.0% | V23: =IF(Practices!V57=0,0,Practices!V135/Practices!V57) -> 0.0% | W23: =IF(Practices!W57=0,0,Practices!W135/Practices!W57) -> 0.0% | X23: =IF(Practices!X57=0,0,Practices!X135/Practices!X57) -> 0.0% | Y23: =IF(SUM(Practices!V57:X57)=0,0,SUM(Practices!V135:X135)/SUM(Practices!V57:X57)) -> 0.0%
A24: =Labels!C316 -> Total
A25: =" "&Labels!B99 -> Gross Margin | B25: =SUM(B19,B22) -> $0 | C25: =SUM(C19,C22) -> $0 | D25: =SUM(D19,D22) -> $110,000 | E25: =SUM(B25:D25) -> $110,000 | F25: =SUM(F19,F22) -> $110,000 | G25: =SUM(G19,G22) -> $0 | H25: =SUM(H19,H22) -> $80,000 | I25: =SUM(F25:H25) -> $190,000 | J25: =SUM(J19,J22) -> $51,739 | K25: =SUM(K19,K22) -> $37,504 | L25: =SUM(L19,L22) -> $0 | M25: =SUM(J25:L25) -> $89,243 | N25: =SUM(N19,N22) -> $0 | O25: =SUM(O19,O22) -> $0 | P25: =SUM(P19,P22) -> $0 | Q25: =SUM(N25:P25) -> $0 | R25: =SUM(R19,R22) -> $0 | S25: =SUM(S19,S22) -> $0 | T25: =SUM(T19,T22) -> $0 | U25: =SUM(R25:T25) -> $0 | V25: =SUM(V19,V22) -> $0 | W25: =SUM(W19,W22) -> $0 | X25: =SUM(X19,X22) -> $0 | Y25: =SUM(V25:X25) -> $0
A26: =" "&Labels!B101 -> Gross Margin % | B26: =IF(IncStmt!B6=0,0,IncStmt!B16/IncStmt!B6) -> 0.0% | C26: =IF(IncStmt!C6=0,0,IncStmt!C16/IncStmt!C6) -> 0.0% | D26: =IF(IncStmt!D6=0,0,IncStmt!D16/IncStmt!D6) -> 97.6% | E26: =IF(SUM(IncStmt!B6:D6)=0,0,SUM(IncStmt!B16:D16)/SUM(IncStmt!B6:D6)) -> 97.6% | F26: =IF(IncStmt!F6=0,0,IncStmt!F16/IncStmt!F6) -> 97.6% | G26: =IF(IncStmt!G6=0,0,IncStmt!G16/IncStmt!G6) -> 0.0% | H26: =IF(IncStmt!H6=0,0,IncStmt!H16/IncStmt!H6) -> 97.6% | I26: =IF(SUM(IncStmt!F6:H6)=0,0,SUM(IncStmt!F16:H16)/SUM(IncStmt!F6:H6)) -> 97.6% | J26: =IF(IncStmt!J6=0,0,IncStmt!J16/IncStmt!J6) -> 63.1% | K26: =IF(IncStmt!K6=0,0,IncStmt!K16/IncStmt!K6) -> 45.7% | L26: =IF(IncStmt!L6=0,0,IncStmt!L16/IncStmt!L6) -> 0.0% | M26: =IF(SUM(IncStmt!J6:L6)=0,0,SUM(IncStmt!J16:L16)/SUM(IncStmt!J6:L6)) -> 54.4% | N26: =IF(IncStmt!N6=0,0,IncStmt!N16/IncStmt!N6) -> 0.0% | O26: =IF(IncStmt!O6=0,0,IncStmt!O16/IncStmt!O6) -> 0.0% | P26: =IF(IncStmt!P6=0,0,IncStmt!P16/IncStmt!P6) -> 0.0% | Q26: =IF(SUM(IncStmt!N6:P6)=0,0,SUM(IncStmt!N16:P16)/SUM(IncStmt!N6:P6)) -> 0.0% | R26: =IF(IncStmt!R6=0,0,IncStmt!R16/IncStmt!R6) -> 0.0% | S26: =IF(IncStmt!S6=0,0,IncStmt!S16/IncStmt!S6) -> 0.0% | T26: =IF(IncStmt!T6=0,0,IncStmt!T16/IncStmt!T6) -> 0.0% | U26: =IF(SUM(IncStmt!R6:T6)=0,0,SUM(IncStmt!R16:T16)/SUM(IncStmt!R6:T6)) -> 0.0% | V26: =IF(IncStmt!V6=0,0,IncStmt!V16/IncStmt!V6) -> 0.0% | W26: =IF(IncStmt!W6=0,0,IncStmt!W16/IncStmt!W6) -> 0.0% | X26: =IF(IncStmt!X6=0,0,IncStmt!X16/IncStmt!X6) -> 0.0% | Y26: =IF(SUM(IncStmt!V6:X6)=0,0,SUM(IncStmt!V16:X16)/SUM(IncStmt!V6:X6)) -> 0.0%
A28: ="Billed Hours" -> Billed Hours
A29: =" " -> 
B30: ='(FnCalls 1)'!F41 -> Jan 2010 | C30: ='(FnCalls 1)'!F42 -> Feb 2010 | D30: ='(FnCalls 1)'!F43 -> Mar 2010 | E30: ='(FnCalls 1)'!G41 -> Q1 2010 | F30: ='(FnCalls 1)'!F44 -> Apr 2010 | G30: ='(FnCalls 1)'!F45 -> May 2010 | H30: ='(FnCalls 1)'!F46 -> Jun 2010 | I30: ='(FnCalls 1)'!G44 -> Q2 2010 | J30: ='(FnCalls 1)'!F47 -> Jul 2010 | K30: ='(FnCalls 1)'!F48 -> Aug 2010 | L30: ='(FnCalls 1)'!F49 -> Sep 2010 | M30: ='(FnCalls 1)'!G47 -> Q3 2010 | N30: ='(FnCalls 1)'!F50 -> Oct 2010 | O30: ='(FnCalls 1)'!F51 -> Nov 2010 | P30: ='(FnCalls 1)'!F52 -> Dec 2010 | Q30: ='(FnCalls 1)'!G50 -> Q4 2010 | R30: ='(FnCalls 1)'!F53 -> Jan 2011 | S30: ='(FnCalls 1)'!F54 -> Feb 2011 | T30: ='(FnCalls 1)'!F55 -> Mar 2011 | U30: ='(FnCalls 1)'!G53 -> Q1 2011 | V30: ='(FnCalls 1)'!F56 -> Apr 2011 | W30: ='(FnCalls 1)'!F57 -> May 2011 | X30: ='(FnCalls 1)'!F58 -> Jun 2011 | Y30: ='(FnCalls 1)'!G56 -> Q2 2011
A31: =Labels!B183 -> Prof Staff Hours Billed
A32: =" "&Labels!B317 -> Channels 1 | B32: =SUM(B146,B150) -> 0.0 | C32: 0.0 | D32: 275.0 | E32: =SUM(B32:D32) -> 275.0 | F32: =SUM(F146,F150) -> 275.0 | G32: 0.0 | H32: 200.0 | I32: =SUM(F32:H32) -> 475.0 | J32: =SUM(J146,J150) -> 200.0 | K32: 200.0 | L32: 0.0 | M32: =SUM(J32:L32) -> 400.0 | N32: =SUM(N146,N150) -> 0.0 | O32: 0.0 | P32: 0.0 | Q32: =SUM(N32:P32) -> 0.0 | R32: =SUM(R146,R150) -> 0.0 | S32: 0.0 | T32: 0.0 | U32: =SUM(R32:T32) -> 0.0 | V32: =SUM(V146,V150) -> 0.0 | W32: 0.0 | X32: 0.0 | Y32: =SUM(V32:X32) -> 0.0
A33: =" "&Labels!B318 -> Channels 2 | B33: 0.0 | C33: 0.0 | D33: 275.0 | E33: =SUM(B33:D33) -> 275.0 | F33: 275.0 | G33: 0.0 | H33: 200.0 | I33: =SUM(F33:H33) -> 475.0 | J33: 200.0 | K33: 200.0 | L33: 0.0 | M33: =SUM(J33:L33) -> 400.0 | N33: 0.0 | O33: 0.0 | P33: 0.0 | Q33: =SUM(N33:P33) -> 0.0 | R33: 0.0 | S33: 0.0 | T33: 0.0 | U33: =SUM(R33:T33) -> 0.0 | V33: 0.0 | W33: 0.0 | X33: 0.0 | Y33: =SUM(V33:X33) -> 0.0
A34: =" "&Labels!C316 -> Total | B34: =SUM(B32:B33) -> 0.0 | C34: =SUM(C32:C33) -> 0.0 | D34: =SUM(D32:D33) -> 550.0 | E34: =SUM(B34:D34) -> 550.0 | F34: =SUM(F32:F33) -> 550.0 | G34: =SUM(G32:G33) -> 0.0 | H34: =SUM(H32:H33) -> 400.0 | I34: =SUM(F34:H34) -> 950.0 | J34: =SUM(J32:J33) -> 400.0 | K34: =SUM(K32:K33) -> 400.0 | L34: =SUM(L32:L33) -> 0.0 | M34: =SUM(J34:L34) -> 800.0 | N34: =SUM(N32:N33) -> 0.0 | O34: =SUM(O32:O33) -> 0.0 | P34: =SUM(P32:P33) -> 0.0 | Q34: =SUM(N34:P34) -> 0.0 | R34: =SUM(R32:R33) -> 0.0 | S34: =SUM(S32:S33) -> 0.0 | T34: =SUM(T32:T33) -> 0.0 | U34: =SUM(R34:T34) -> 0.0 | V34: =SUM(V32:V33) -> 0.0 | W34: =SUM(W32:W33) -> 0.0 | X34: =SUM(X32:X33) -> 0.0 | Y34: =SUM(V34:X34) -> 0.0
A36: =Labels!B186 -> Billed Hours Growth
A37: =" "&Labels!B317 -> Channels 1 | C37: =IF(Practices!B154=0," ",Practices!C154/Practices!B154-1) ->  | D37: =IF(Practices!C154=0," ",Practices!D154/Practices!C154-1) ->  | E37: =IF(0=0," ",SUM(Practices!B154:D154)/0-1) ->  | F37: =IF(Practices!D154=0," ",Practices!F154/Practices!D154-1) -> 0.0% | G37: =IF(Practices!F154=0," ",Practices!G154/Practices!F154-1) -> -100.0% | H37: =IF(Practices!G154=0," ",Practices!H154/Practices!G154-1) ->  | I37: =IF(SUM(Practices!B154:D154)=0," ",SUM(Practices!F154:H154)/SUM(Practices!B154:D154)-1) -> 72.7% | J37: =IF(Practices!H154=0," ",Practices!J154/Practices!H154-1) -> 0.0% | K37: =IF(Practices!J154=0," ",Practices!K154/Practices!J154-1) -> 0.0% | L37: =IF(Practices!K154=0," ",Practices!L154/Practices!K154-1) -> -100.0% | M37: =IF(SUM(Practices!F154:H154)=0," ",SUM(Practices!J154:L154)/SUM(Practices!F154:H154)-1) -> -15.8% | N37: =IF(Practices!L154=0," ",Practices!N154/Practices!L154-1) ->  | O37: =IF(Practices!N154=0," ",Practices!O154/Practices!N154-1) ->  | P37: =IF(Practices!O154=0," ",Practices!P154/Practices!O154-1) ->  | Q37: =IF(SUM(Practices!J154:L154)=0," ",SUM(Practices!N154:P154)/SUM(Practices!J154:L154)-1) -> -100.0% | R37: =IF(Practices!P154=0," ",Practices!R154/Practices!P154-1) ->  | S37: =IF(Practices!R154=0," ",Practices!S154/Practices!R154-1) ->  | T37: =IF(Practices!S154=0," ",Practices!T154/Practices!S154-1) ->  | U37: =IF(SUM(Practices!N154:P154)=0," ",SUM(Practices!R154:T154)/SUM(Practices!N154:P154)-1) ->  | V37: =IF(Practices!T154=0," ",Practices!V154/Practices!T154-1) ->  | W37: =IF(Practices!V154=0," ",Practices!W154/Practices!V154-1) ->  | X37: =IF(Practices!W154=0," ",Practices!X154/Practices!W154-1) ->  | Y37: =IF(SUM(Practices!R154:T154)=0," ",SUM(Practices!V154:X154)/SUM(Practices!R154:T154)-1) -> 
A38: =" "&Labels!B318 -> Channels 2 | C38: =IF(Practices!B155=0," ",Practices!C155/Practices!B155-1) ->  | D38: =IF(Practices!C155=0," ",Practices!D155/Practices!C155-1) ->  | E38: =IF(0=0," ",SUM(Practices!B155:D155)/0-1) ->  | F38: =IF(Practices!D155=0," ",Practices!F155/Practices!D155-1) -> 0.0% | G38: =IF(Practices!F155=0," ",Practices!G155/Practices!F155-1) -> -100.0% | H38: =IF(Practices!G155=0," ",Practices!H155/Practices!G155-1) ->  | I38: =IF(SUM(Practices!B155:D155)=0," ",SUM(Practices!F155:H155)/SUM(Practices!B155:D155)-1) -> 72.7% | J38: =IF(Practices!H155=0," ",Practices!J155/Practices!H155-1) -> 0.0% | K38: =IF(Practices!J155=0," ",Practices!K155/Practices!J155-1) -> 0.0% | L38: =IF(Practices!K155=0," ",Practices!L155/Practices!K155-1) -> -100.0% | M38: =IF(SUM(Practices!F155:H155)=0," ",SUM(Practices!J155:L155)/SUM(Practices!F155:H155)-1) -> -15.8% | N38: =IF(Practices!L155=0," ",Practices!N155/Practices!L155-1) ->  | O38: =IF(Practices!N155=0," ",Practices!O155/Practices!N155-1) ->  | P38: =IF(Practices!O155=0," ",Practices!P155/Practices!O155-1) ->  | Q38: =IF(SUM(Practices!J155:L155)=0," ",SUM(Practices!N155:P155)/SUM(Practices!J155:L155)-1) -> -100.0% | R38: =IF(Practices!P155=0," ",Practices!R155/Practices!P155-1) ->  | S38: =IF(Practices!R155=0," ",Practices!S155/Practices!R155-1) ->  | T38: =IF(Practices!S155=0," ",Practices!T155/Practices!S155-1) ->  | U38: =IF(SUM(Practices!N155:P155)=0," ",SUM(Practices!R155:T155)/SUM(Practices!N155:P155)-1) ->  | V38: =IF(Practices!T155=0," ",Practices!V155/Practices!T155-1) ->  | W38: =IF(Practices!V155=0," ",Practices!W155/Practices!V155-1) ->  | X38: =IF(Practices!W155=0," ",Practices!X155/Practices!W155-1) ->  | Y38: =IF(SUM(Practices!R155:T155)=0," ",SUM(Practices!V155:X155)/SUM(Practices!R155:T155)-1) -> 
A39: =" "&Labels!C316 -> Total | C39: =IF(Practices!B34=0," ",Practices!C34/Practices!B34-1) ->  | D39: =IF(Practices!C34=0," ",Practices!D34/Practices!C34-1) ->  | E39: =IF(0=0," ",SUM(Practices!B34:D34)/0-1) ->  | F39: =IF(Practices!D34=0," ",Practices!F34/Practices!D34-1) -> 0.0% | G39: =IF(Practices!F34=0," ",Practices!G34/Practices!F34-1) -> -100.0% | H39: =IF(Practices!G34=0," ",Practices!H34/Practices!G34-1) ->  | I39: =IF(SUM(Practices!B34:D34)=0," ",SUM(Practices!F34:H34)/SUM(Practices!B34:D34)-1) -> 72.7% | J39: =IF(Practices!H34=0," ",Practices!J34/Practices!H34-1) -> 0.0% | K39: =IF(Practices!J34=0," ",Practices!K34/Practices!J34-1) -> 0.0% | L39: =IF(Practices!K34=0," ",Practices!L34/Practices!K34-1) -> -100.0% | M39: =IF(SUM(Practices!F34:H34)=0," ",SUM(Practices!J34:L34)/SUM(Practices!F34:H34)-1) -> -15.8% | N39: =IF(Practices!L34=0," ",Practices!N34/Practices!L34-1) ->  | O39: =IF(Practices!N34=0," ",Practices!O34/Practices!N34-1) ->  | P39: =IF(Practices!O34=0," ",Practices!P34/Practices!O34-1) ->  | Q39: =IF(SUM(Practices!J34:L34)=0," ",SUM(Practices!N34:P34)/SUM(Practices!J34:L34)-1) -> -100.0% | R39: =IF(Practices!P34=0," ",Practices!R34/Practices!P34-1) ->  | S39: =IF(Practices!R34=0," ",Practices!S34/Practices!R34-1) ->  | T39: =IF(Practices!S34=0," ",Practices!T34/Practices!S34-1) ->  | U39: =IF(SUM(Practices!N34:P34)=0," ",SUM(Practices!R34:T34)/SUM(Practices!N34:P34)-1) ->  | V39: =IF(Practices!T34=0," ",Practices!V34/Practices!T34-1) ->  | W39: =IF(Practices!V34=0," ",Practices!W34/Practices!V34-1) ->  | X39: =IF(Practices!W34=0," ",Practices!X34/Practices!W34-1) ->  | Y39: =IF(SUM(Practices!R34:T34)=0," ",SUM(Practices!V34:X34)/SUM(Practices!R34:T34)-1) -> 
A43: ="Channels and Practice Areas" -> Channels and Practice Areas
A44: =" " -> 
B45: ='(FnCalls 1)'!F41 -> Jan 2010 | C45: ='(FnCalls 1)'!F42 -> Feb 2010 | D45: ='(FnCalls 1)'!F43 -> Mar 2010 | E45: ='(FnCalls 1)'!G41 -> Q1 2010 | F45: ='(FnCalls 1)'!F44 -> Apr 2010 | G45: ='(FnCalls 1)'!F45 -> May 2010 | H45: ='(FnCalls 1)'!F46 -> Jun 2010 | I45: ='(FnCalls 1)'!G44 -> Q2 2010 | J45: ='(FnCalls 1)'!F47 -> Jul 2010 | K45: ='(FnCalls 1)'!F48 -> Aug 2010 | L45: ='(FnCalls 1)'!F49 -> Sep 2010 | M45: ='(FnCalls 1)'!G47 -> Q3 2010 | N45: ='(FnCalls 1)'!F50 -> Oct 2010 | O45: ='(FnCalls 1)'!F51 -> Nov 2010 | P45: ='(FnCalls 1)'!F52 -> Dec 2010 | Q45: ='(FnCalls 1)'!G50 -> Q4 2010 | R45: ='(FnCalls 1)'!F53 -> Jan 2011 | S45: ='(FnCalls 1)'!F54 -> Feb 2011 | T45: ='(FnCalls 1)'!F55 -> Mar 2011 | U45: ='(FnCalls 1)'!G53 -> Q1 2011 | V45: ='(FnCalls 1)'!F56 -> Apr 2011 | W45: ='(FnCalls 1)'!F57 -> May 2011 | X45: ='(FnCalls 1)'!F58 -> Jun 2011 | Y45: ='(FnCalls 1)'!G56 -> Q2 2011
A46: =Labels!B228 -> Revenue
A47: =" "&Labels!B317 -> Channels 1
A48: =" "&Labels!B381 -> Practice 1 | B48: =SUM(B180:B181) -> $0 | C48: =SUM(C180:C181) -> $0 | D48: =SUM(D180:D181) -> $57,750 | E48: =SUM(B48:D48) -> $57,750 | F48: =SUM(F180:F181) -> $57,750 | G48: =SUM(G180:G181) -> $0 | H48: =SUM(H180:H181) -> $42,000 | I48: =SUM(F48:H48) -> $99,750 | J48: =SUM(J180:J181) -> $42,000 | K48: =SUM(K180:K181) -> $42,000 | L48: =SUM(L180:L181) -> $0 | M48: =SUM(J48:L48) -> $84,000 | N48: =SUM(N180:N181) -> $0 | O48: =SUM(O180:O181) -> $0 | P48: =SUM(P180:P181) -> $0 | Q48: =SUM(N48:P48) -> $0 | R48: =SUM(R180:R181) -> $0 | S48: =SUM(S180:S181) -> $0 | T48: =SUM(T180:T181) -> $0 | U48: =SUM(R48:T48) -> $0 | V48: =SUM(V180:V181) -> $0 | W48: =SUM(W180:W181) -> $0 | X48: =SUM(X180:X181) -> $0 | Y48: =SUM(V48:X48) -> $0
A49: =" "&Labels!B382 -> Practice 2 | B49: =SUM(B184:B185) -> $0 | C49: =SUM(C184:C185) -> $0 | D49: =SUM(D184:D185) -> $0 | E49: =SUM(B49:D49) -> $0 | F49: =SUM(F184:F185) -> $0 | G49: =SUM(G184:G185) -> $0 | H49: =SUM(H184:H185) -> $0 | I49: =SUM(F49:H49) -> $0 | J49: =SUM(J184:J185) -> $0 | K49: =SUM(K184:K185) -> $0 | L49: =SUM(L184:L185) -> $0 | M49: =SUM(J49:L49) -> $0 | N49: =SUM(N184:N185) -> $0 | O49: =SUM(O184:O185) -> $0 | P49: =SUM(P184:P185) -> $0 | Q49: =SUM(N49:P49) -> $0 | R49: =SUM(R184:R185) -> $0 | S49: =SUM(S184:S185) -> $0 | T49: =SUM(T184:T185) -> $0 | U49: =SUM(R49:T49) -> $0 | V49: =SUM(V184:V185) -> $0 | W49: =SUM(W184:W185) -> $0 | X49: =SUM(X184:X185) -> $0 | Y49: =SUM(V49:X49) -> $0
A50: =" "&Labels!C380 -> Total | B50: =SUM(B48:B49) -> $0 | C50: =SUM(C48:C49) -> $0 | D50: =SUM(D48:D49) -> $57,750 | E50: =SUM(B50:D50) -> $57,750 | F50: =SUM(F48:F49) -> $57,750 | G50: =SUM(G48:G49) -> $0 | H50: =SUM(H48:H49) -> $42,000 | I50: =SUM(F50:H50) -> $99,750 | J50: =SUM(J48:J49) -> $42,000 | K50: =SUM(K48:K49) -> $42,000 | L50: =SUM(L48:L49) -> $0 | M50: =SUM(J50:L50) -> $84,000 | N50: =SUM(N48:N49) -> $0 | O50: =SUM(O48:O49) -> $0 | P50: =SUM(P48:P49) -> $0 | Q50: =SUM(N50:P50) -> $0 | R50: =SUM(R48:R49) -> $0 | S50: =SUM(S48:S49) -> $0 | T50: =SUM(T48:T49) -> $0 | U50: =SUM(R50:T50) -> $0 | V50: =SUM(V48:V49) -> $0 | W50: =SUM(W48:W49) -> $0 | X50: =SUM(X48:X49) -> $0 | Y50: =SUM(V50:X50) -> $0
A51: =" "&Labels!B318 -> Channels 2
A52: =" "&Labels!B381 -> Practice 1 | B52: =SUM(B193:B194) -> $0 | C52: =SUM(C193:C194) -> $0 | D52: =SUM(D193:D194) -> $55,000 | E52: =SUM(B52:D52) -> $55,000 | F52: =SUM(F193:F194) -> $55,000 | G52: =SUM(G193:G194) -> $0 | H52: =SUM(H193:H194) -> $40,000 | I52: =SUM(F52:H52) -> $95,000 | J52: =SUM(J193:J194) -> $40,000 | K52: =SUM(K193:K194) -> $40,000 | L52: =SUM(L193:L194) -> $0 | M52: =SUM(J52:L52) -> $80,000 | N52: =SUM(N193:N194) -> $0 | O52: =SUM(O193:O194) -> $0 | P52: =SUM(P193:P194) -> $0 | Q52: =SUM(N52:P52) -> $0 | R52: =SUM(R193:R194) -> $0 | S52: =SUM(S193:S194) -> $0 | T52: =SUM(T193:T194) -> $0 | U52: =SUM(R52:T52) -> $0 | V52: =SUM(V193:V194) -> $0 | W52: =SUM(W193:W194) -> $0 | X52: =SUM(X193:X194) -> $0 | Y52: =SUM(V52:X52) -> $0
A53: =" "&Labels!B382 -> Practice 2 | B53: =SUM(B197:B198) -> $0 | C53: =SUM(C197:C198) -> $0 | D53: =SUM(D197:D198) -> $0 | E53: $0 | F53: =SUM(F197:F198) -> $0 | G53: =SUM(G197:G198) -> $0 | H53: =SUM(H197:H198) -> $0 | I53: $0 | J53: =SUM(J197:J198) -> $0 | K53: =SUM(K197:K198) -> $0 | L53: =SUM(L197:L198) -> $0 | M53: $0 | N53: =SUM(N197:N198) -> $0 | O53: =SUM(O197:O198) -> $0 | P53: =SUM(P197:P198) -> $0 | Q53: $0 | R53: =SUM(R197:R198) -> $0 | S53: =SUM(S197:S198) -> $0 | T53: =SUM(T197:T198) -> $0 | U53: $0 | V53: =SUM(V197:V198) -> $0 | W53: =SUM(W197:W198) -> $0 | X53: =SUM(X197:X198) -> $0 | Y53: $0
A54: =" "&Labels!C380 -> Total | B54: =SUM(B52:B53) -> $0 | C54: =SUM(C52:C53) -> $0 | D54: =SUM(D52:D53) -> $55,000 | E54: $55,000 | F54: =SUM(F52:F53) -> $55,000 | G54: =SUM(G52:G53) -> $0 | H54: =SUM(H52:H53) -> $40,000 | I54: $95,000 | J54: =SUM(J52:J53) -> $40,000 | K54: =SUM(K52:K53) -> $40,000 | L54: =SUM(L52:L53) -> $0 | M54: $80,000 | N54: =SUM(N52:N53) -> $0 | O54: =SUM(O52:O53) -> $0 | P54: =SUM(P52:P53) -> $0 | Q54: $0 | R54: =SUM(R52:R53) -> $0 | S54: =SUM(S52:S53) -> $0 | T54: =SUM(T52:T53) -> $0 | U54: $0 | V54: =SUM(V52:V53) -> $0 | W54: =SUM(W52:W53) -> $0 | X54: =SUM(X52:X53) -> $0 | Y54: $0
A55: =" "&Labels!C316 -> Total | B55: =SUM(B50,B54) -> $0 | C55: =SUM(C50,C54) -> $0 | D55: =SUM(D50,D54) -> $112,750 | E55: $112,750 | F55: =SUM(F50,F54) -> $112,750 | G55: =SUM(G50,G54) -> $0 | H55: =SUM(H50,H54) -> $82,000 | I55: $194,750 | J55: =SUM(J50,J54) -> $82,000 | K55: =SUM(K50,K54) -> $82,000 | L55: =SUM(L50,L54) -> $0 | M55: $164,000 | N55: =SUM(N50,N54) -> $0 | O55: =SUM(O50,O54) -> $0 | P55: =SUM(P50,P54) -> $0 | Q55: $0 | R55: =SUM(R50,R54) -> $0 | S55: =SUM(S50,S54) -> $0 | T55: =SUM(T50,T54) -> $0 | U55: $0 | V55: =SUM(V50,V54) -> $0 | W55: =SUM(W50,W54) -> $0 | X55: =SUM(X50,X54) -> $0 | Y55: $0
A56: =" "&Labels!B381 -> Practice 1 | B56: =SUM(B48,B52) -> $0 | C56: $0 | D56: $112,750 | E56: $112,750 | F56: =SUM(F48,F52) -> $112,750 | G56: $0 | H56: $82,000 | I56: $194,750 | J56: =SUM(J48,J52) -> $82,000 | K56: $82,000 | L56: $0 | M56: $164,000 | N56: =SUM(N48,N52) -> $0 | O56: $0 | P56: $0 | Q56: $0 | R56: =SUM(R48,R52) -> $0 | S56: $0 | T56: $0 | U56: $0 | V56: =SUM(V48,V52) -> $0 | W56: $0 | X56: $0 | Y56: $0
A57: =" "&Labels!B382 -> Practice 2 | B57: $0 | C57: $0 | D57: $0 | E57: $0 | F57: $0 | G57: $0 | H57: $0 | I57: $0 | J57: $0 | K57: $0 | L57: $0 | M57: $0 | N57: $0 | O57: $0 | P57: $0 | Q57: $0 | R57: $0 | S57: $0 | T57: $0 | U57: $0 | V57: $0 | W57: $0 | X57: $0 | Y57: $0
A58: =" "&Labels!C380 -> Total | B58: $0 | C58: $0 | D58: $112,750 | E58: =SUM(B55:D55) -> $112,750 | F58: $112,750 | G58: $0 | H58: $82,000 | I58: =SUM(F55:H55) -> $194,750 | J58: $82,000 | K58: $82,000 | L58: $0 | M58: =SUM(J55:L55) -> $164,000 | N58: $0 | O58: $0 | P58: $0 | Q58: =SUM(N55:P55) -> $0 | R58: $0 | S58: $0 | T58: $0 | U58: =SUM(R55:T55) -> $0 | V58: $0 | W58: $0 | X58: $0 | Y58: =SUM(V55:X55) -> $0
A60: =Labels!B43 -> Cost of Services
A61: =" "&Labels!B317 -> Channels 1
A62: =" "&Labels!B381 -> Practice 1
A63: =" "&Labels!B325 -> Direct Labor | B63: ='GM CostSvcs'!B21 -> $0 | C63: ='GM CostSvcs'!C21 -> $0 | D63: ='GM CostSvcs'!D21 -> $0 | E63: =SUM(B63:D63) -> $0 | F63: ='GM CostSvcs'!F21 -> $0 | G63: ='GM CostSvcs'!G21 -> $0 | H63: ='GM CostSvcs'!H21 -> $0 | I63: =SUM(F63:H63) -> $0 | J63: ='GM CostSvcs'!J21 -> $28,261 | K63: ='GM CostSvcs'!K21 -> $28,331 | L63: ='GM CostSvcs'!L21 -> $0 | M63: =SUM(J63:L63) -> $56,591 | N63: ='GM CostSvcs'!N21 -> $0 | O63: ='GM CostSvcs'!O21 -> $0 | P63: ='GM CostSvcs'!P21 -> $0 | Q63: =SUM(N63:P63) -> $0 | R63: ='GM CostSvcs'!R21 -> $0 | S63: ='GM CostSvcs'!S21 -> $0 | T63: ='GM CostSvcs'!T21 -> $0 | U63: =SUM(R63:T63) -> $0 | V63: ='GM CostSvcs'!V21 -> $0 | W63: ='GM CostSvcs'!W21 -> $0 | X63: ='GM CostSvcs'!X21 -> $0 | Y63: =SUM(V63:X63) -> $0
A64: =" "&Labels!B326 -> Travel & Entertain | B64: =B264 -> $0 | C64: =C264 -> $0 | D64: =D264 -> $2,750 | E64: =SUM(B64:D64) -> $2,750 | F64: =F264 -> $2,750 | G64: =G264 -> $0 | H64: =H264 -> $2,000 | I64: =SUM(F64:H64) -> $4,750 | J64: =J264 -> $2,000 | K64: =K264 -> $2,000 | L64: =L264 -> $0 | M64: =SUM(J64:L64) -> $4,000 | N64: =N264 -> $0 | O64: =O264 -> $0 | P64: =P264 -> $0 | Q64: =SUM(N64:P64) -> $0 | R64: =R264 -> $0 | S64: =S264 -> $0 | T64: =T264 -> $0 | U64: =SUM(R64:T64) -> $0 | V64: =V264 -> $0 | W64: =W264 -> $0 | X64: =X264 -> $0 | Y64: =SUM(V64:X64) -> $0
A65: =" "&Labels!B327 -> Direct Supplies | B65: ='GM CostSvcs'!B124 -> $0 | C65: ='GM CostSvcs'!C124 -> $0 | D65: ='GM CostSvcs'!D124 -> $0 | E65: =SUM(B65:D65) -> $0 | F65: ='GM CostSvcs'!F124 -> $0 | G65: ='GM CostSvcs'!G124 -> $0 | H65: ='GM CostSvcs'!H124 -> $0 | I65: =SUM(F65:H65) -> $0 | J65: ='GM CostSvcs'!J124 -> $0 | K65: ='GM CostSvcs'!K124 -> $0 | L65: ='GM CostSvcs'!L124 -> $0 | M65: =SUM(J65:L65) -> $0 | N65: ='GM CostSvcs'!N124 -> $0 | O65: ='GM CostSvcs'!O124 -> $0 | P65: ='GM CostSvcs'!P124 -> $0 | Q65: =SUM(N65:P65) -> $0 | R65: ='GM CostSvcs'!R124 -> $0 | S65: ='GM CostSvcs'!S124 -> $0 | T65: ='GM CostSvcs'!T124 -> $0 | U65: =SUM(R65:T65) -> $0 | V65: ='GM CostSvcs'!V124 -> $0 | W65: ='GM CostSvcs'!W124 -> $0 | X65: ='GM CostSvcs'!X124 -> $0 | Y65: =SUM(V65:X65) -> $0
A66: =" "&Labels!C324 -> Total | B66: =SUM(B63:B65) -> $0 | C66: =SUM(C63:C65) -> $0 | D66: =SUM(D63:D65) -> $2,750 | E66: =SUM(B66:D66) -> $2,750 | F66: =SUM(F63:F65) -> $2,750 | G66: =SUM(G63:G65) -> $0 | H66: =SUM(H63:H65) -> $2,000 | I66: =SUM(F66:H66) -> $4,750 | J66: =SUM(J63:J65) -> $30,261 | K66: =SUM(K63:K65) -> $30,331 | L66: =SUM(L63:L65) -> $0 | M66: =SUM(J66:L66) -> $60,591 | N66: =SUM(N63:N65) -> $0 | O66: =SUM(O63:O65) -> $0 | P66: =SUM(P63:P65) -> $0 | Q66: =SUM(N66:P66) -> $0 | R66: =SUM(R63:R65) -> $0 | S66: =SUM(S63:S65) -> $0 | T66: =SUM(T63:T65) -> $0 | U66: =SUM(R66:T66) -> $0 | V66: =SUM(V63:V65) -> $0 | W66: =SUM(W63:W65) -> $0 | X66: =SUM(X63:X65) -> $0 | Y66: =SUM(V66:X66) -> $0
A67: =" "&Labels!B382 -> Practice 2
A68: =" "&Labels!B325 -> Direct Labor | B68: ='GM CostSvcs'!B34 -> $0 | C68: ='GM CostSvcs'!C34 -> $0 | D68: ='GM CostSvcs'!D34 -> $0 | E68: =SUM(B68:D68) -> $0 | F68: ='GM CostSvcs'!F34 -> $0 | G68: ='GM CostSvcs'!G34 -> $0 | H68: ='GM CostSvcs'!H34 -> $0 | I68: =SUM(F68:H68) -> $0 | J68: ='GM CostSvcs'!J34 -> $0 | K68: ='GM CostSvcs'!K34 -> $0 | L68: ='GM CostSvcs'!L34 -> $0 | M68: =SUM(J68:L68) -> $0 | N68: ='GM CostSvcs'!N34 -> $0 | O68: ='GM CostSvcs'!O34 -> $0 | P68: ='GM CostSvcs'!P34 -> $0 | Q68: =SUM(N68:P68) -> $0 | R68: ='GM CostSvcs'!R34 -> $0 | S68: ='GM CostSvcs'!S34 -> $0 | T68: ='GM CostSvcs'!T34 -> $0 | U68: =SUM(R68:T68) -> $0 | V68: ='GM CostSvcs'!V34 -> $0 | W68: ='GM CostSvcs'!W34 -> $0 | X68: ='GM CostSvcs'!X34 -> $0 | Y68: =SUM(V68:X68) -> $0
A69: =" "&Labels!B326 -> Travel & Entertain | B69: =B268 -> $0 | C69: =C268 -> $0 | D69: =D268 -> $0 | E69: $0 | F69: =F268 -> $0 | G69: =G268 -> $0 | H69: =H268 -> $0 | I69: $0 | J69: =J268 -> $0 | K69: =K268 -> $0 | L69: =L268 -> $0 | M69: $0 | N69: =N268 -> $0 | O69: =O268 -> $0 | P69: =P268 -> $0 | Q69: $0 | R69: =R268 -> $0 | S69: =S268 -> $0 | T69: =T268 -> $0 | U69: $0 | V69: =V268 -> $0 | W69: =W268 -> $0 | X69: =X268 -> $0 | Y69: $0
A70: =" "&Labels!B327 -> Direct Supplies | B70: ='GM CostSvcs'!B164 -> $0 | C70: ='GM CostSvcs'!C164 -> $0 | D70: ='GM CostSvcs'!D164 -> $0 | E70: $0 | F70: ='GM CostSvcs'!F164 -> $0 | G70: ='GM CostSvcs'!G164 -> $0 | H70: ='GM CostSvcs'!H164 -> $0 | I70: $0 | J70: ='GM CostSvcs'!J164 -> $0 | K70: ='GM CostSvcs'!K164 -> $0 | L70: ='GM CostSvcs'!L164 -> $0 | M70: $0 | N70: ='GM CostSvcs'!N164 -> $0 | O70: ='GM CostSvcs'!O164 -> $0 | P70: ='GM CostSvcs'!P164 -> $0 | Q70: $0 | R70: ='GM CostSvcs'!R164 -> $0 | S70: ='GM CostSvcs'!S164 -> $0 | T70: ='GM CostSvcs'!T164 -> $0 | U70: $0 | V70: ='GM CostSvcs'!V164 -> $0 | W70: ='GM CostSvcs'!W164 -> $0 | X70: ='GM CostSvcs'!X164 -> $0 | Y70: $0
A71: =" "&Labels!C324 -> Total | B71: =SUM(B68:B70) -> $0 | C71: =SUM(C68:C70) -> $0 | D71: =SUM(D68:D70) -> $0 | E71: $0 | F71: =SUM(F68:F70) -> $0 | G71: =SUM(G68:G70) -> $0 | H71: =SUM(H68:H70) -> $0 | I71: $0 | J71: =SUM(J68:J70) -> $0 | K71: =SUM(K68:K70) -> $0 | L71: =SUM(L68:L70) -> $0 | M71: $0 | N71: =SUM(N68:N70) -> $0 | O71: =SUM(O68:O70) -> $0 | P71: =SUM(P68:P70) -> $0 | Q71: $0 | R71: =SUM(R68:R70) -> $0 | S71: =SUM(S68:S70) -> $0 | T71: =SUM(T68:T70) -> $0 | U71: $0 | V71: =SUM(V68:V70) -> $0 | W71: =SUM(W68:W70) -> $0 | X71: =SUM(X68:X70) -> $0 | Y71: $0
A72: =" "&Labels!C380 -> Total | B72: =SUM(B66,B71) -> $0 | C72: =SUM(C66,C71) -> $0 | D72: =SUM(D66,D71) -> $2,750 | E72: $2,750 | F72: =SUM(F66,F71) -> $2,750 | G72: =SUM(G66,G71) -> $0 | H72: =SUM(H66,H71) -> $2,000 | I72: $4,750 | J72: =SUM(J66,J71) -> $30,261 | K72: =SUM(K66,K71) -> $30,331 | L72: =SUM(L66,L71) -> $0 | M72: $60,591 | N72: =SUM(N66,N71) -> $0 | O72: =SUM(O66,O71) -> $0 | P72: =SUM(P66,P71) -> $0 | Q72: $0 | R72: =SUM(R66,R71) -> $0 | S72: =SUM(S66,S71) -> $0 | T72: =SUM(T66,T71) -> $0 | U72: $0 | V72: =SUM(V66,V71) -> $0 | W72: =SUM(W66,W71) -> $0 | X72: =SUM(X66,X71) -> $0 | Y72: $0
A73: =" "&Labels!B325 -> Direct Labor | B73: =SUM(B63,B68) -> $0 | C73: $0 | D73: $0 | E73: $0 | F73: =SUM(F63,F68) -> $0 | G73: $0 | H73: $0 | I73: $0 | J73: =SUM(J63,J68) -> $28,261 | K73: $28,331 | L73: $0 | M73: $56,591 | N73: =SUM(N63,N68) -> $0 | O73: $0 | P73: $0 | Q73: $0 | R73: =SUM(R63,R68) -> $0 | S73: $0 | T73: $0 | U73: $0 | V73: =SUM(V63,V68) -> $0 | W73: $0 | X73: $0 | Y73: $0
A74: =" "&Labels!B326 -> Travel & Entertain | B74: $0 | C74: $0 | D74: $2,750 | E74: $2,750 | F74: $2,750 | G74: $0 | H74: $2,000 | I74: $4,750 | J74: $2,000 | K74: $2,000 | L74: $0 | M74: $4,000 | N74: $0 | O74: $0 | P74: $0 | Q74: $0 | R74: $0 | S74: $0 | T74: $0 | U74: $0 | V74: $0 | W74: $0 | X74: $0 | Y74: $0
A75: =" "&Labels!B327 -> Direct Supplies | B75: $0 | C75: $0 | D75: $0 | E75: $0 | F75: $0 | G75: $0 | H75: $0 | I75: $0 | J75: $0 | K75: $0 | L75: $0 | M75: $0 | N75: $0 | O75: $0 | P75: $0 | Q75: $0 | R75: $0 | S75: $0 | T75: $0 | U75: $0 | V75: $0 | W75: $0 | X75: $0 | Y75: $0
A76: =" "&Labels!C324 -> Total | B76: $0 | C76: $0 | D76: $2,750 | E76: =SUM(B72:D72) -> $2,750 | F76: $2,750 | G76: $0 | H76: $2,000 | I76: =SUM(F72:H72) -> $4,750 | J76: $30,261 | K76: $30,331 | L76: $0 | M76: =SUM(J72:L72) -> $60,591 | N76: $0 | O76: $0 | P76: $0 | Q76: =SUM(N72:P72) -> $0 | R76: $0 | S76: $0 | T76: $0 | U76: =SUM(R72:T72) -> $0 | V76: $0 | W76: $0 | X76: $0 | Y76: =SUM(V72:X72) -> $0
A77: =" "&Labels!B318 -> Channels 2
A78: =" "&Labels!B381 -> Practice 1
A79: =" "&Labels!B325 -> Direct Labor | B79: ='GM CostSvcs'!B22 -> $0 | C79: ='GM CostSvcs'!C22 -> $0 | D79: ='GM CostSvcs'!D22 -> $0 | E79: =SUM(B79:D79) -> $0 | F79: ='GM CostSvcs'!F22 -> $0 | G79: ='GM CostSvcs'!G22 -> $0 | H79: ='GM CostSvcs'!H22 -> $0 | I79: =SUM(F79:H79) -> $0 | J79: ='GM CostSvcs'!J22 -> $0 | K79: ='GM CostSvcs'!K22 -> $0 | L79: ='GM CostSvcs'!L22 -> $0 | M79: =SUM(J79:L79) -> $0 | N79: ='GM CostSvcs'!N22 -> $0 | O79: ='GM CostSvcs'!O22 -> $0 | P79: ='GM CostSvcs'!P22 -> $0 | Q79: =SUM(N79:P79) -> $0 | R79: ='GM CostSvcs'!R22 -> $0 | S79: ='GM CostSvcs'!S22 -> $0 | T79: ='GM CostSvcs'!T22 -> $0 | U79: =SUM(R79:T79) -> $0 | V79: ='GM CostSvcs'!V22 -> $0 | W79: ='GM CostSvcs'!W22 -> $0 | X79: ='GM CostSvcs'!X22 -> $0 | Y79: =SUM(V79:X79) -> $0
A80: =" "&Labels!B326 -> Travel & Entertain | B80: =B277 -> $0 | C80: =C277 -> $0 | D80: =D277 -> $0 | E80: =SUM(B80:D80) -> $0 | F80: =F277 -> $0 | G80: =G277 -> $0 | H80: =H277 -> $0 | I80: =SUM(F80:H80) -> $0 | J80: =J277 -> $0 | K80: =K277 -> $0 | L80: =L277 -> $0 | M80: =SUM(J80:L80) -> $0 | N80: =N277 -> $0 | O80: =O277 -> $0 | P80: =P277 -> $0 | Q80: =SUM(N80:P80) -> $0 | R80: =R277 -> $0 | S80: =S277 -> $0 | T80: =T277 -> $0 | U80: =SUM(R80:T80) -> $0 | V80: =V277 -> $0 | W80: =W277 -> $0 | X80: =X277 -> $0 | Y80: =SUM(V80:X80) -> $0
A81: =" "&Labels!B327 -> Direct Supplies | B81: ='GM CostSvcs'!B128 -> $0 | C81: ='GM CostSvcs'!C128 -> $0 | D81: ='GM CostSvcs'!D128 -> $0 | E81: =SUM(B81:D81) -> $0 | F81: ='GM CostSvcs'!F128 -> $0 | G81: ='GM CostSvcs'!G128 -> $0 | H81: ='GM CostSvcs'!H128 -> $0 | I81: =SUM(F81:H81) -> $0 | J81: ='GM CostSvcs'!J128 -> $0 | K81: ='GM CostSvcs'!K128 -> $0 | L81: ='GM CostSvcs'!L128 -> $0 | M81: =SUM(J81:L81) -> $0 | N81: ='GM CostSvcs'!N128 -> $0 | O81: ='GM CostSvcs'!O128 -> $0 | P81: ='GM CostSvcs'!P128 -> $0 | Q81: =SUM(N81:P81) -> $0 | R81: ='GM CostSvcs'!R128 -> $0 | S81: ='GM CostSvcs'!S128 -> $0 | T81: ='GM CostSvcs'!T128 -> $0 | U81: =SUM(R81:T81) -> $0 | V81: ='GM CostSvcs'!V128 -> $0 | W81: ='GM CostSvcs'!W128 -> $0 | X81: ='GM CostSvcs'!X128 -> $0 | Y81: =SUM(V81:X81) -> $0
A82: =" "&Labels!C324 -> Total | B82: =SUM(B79:B81) -> $0 | C82: =SUM(C79:C81) -> $0 | D82: =SUM(D79:D81) -> $0 | E82: =SUM(B82:D82) -> $0 | F82: =SUM(F79:F81) -> $0 | G82: =SUM(G79:G81) -> $0 | H82: =SUM(H79:H81) -> $0 | I82: =SUM(F82:H82) -> $0 | J82: =SUM(J79:J81) -> $0 | K82: =SUM(K79:K81) -> $0 | L82: =SUM(L79:L81) -> $0 | M82: =SUM(J82:L82) -> $0 | N82: =SUM(N79:N81) -> $0 | O82: =SUM(O79:O81) -> $0 | P82: =SUM(P79:P81) -> $0 | Q82: =SUM(N82:P82) -> $0 | R82: =SUM(R79:R81) -> $0 | S82: =SUM(S79:S81) -> $0 | T82: =SUM(T79:T81) -> $0 | U82: =SUM(R82:T82) -> $0 | V82: =SUM(V79:V81) -> $0 | W82: =SUM(W79:W81) -> $0 | X82: =SUM(X79:X81) -> $0 | Y82: =SUM(V82:X82) -> $0
A83: =" "&Labels!B382 -> Practice 2
A84: =" "&Labels!B325 -> Direct Labor | B84: ='GM CostSvcs'!B35 -> $0 | C84: ='GM CostSvcs'!C35 -> $0 | D84: ='GM CostSvcs'!D35 -> $0 | E84: =SUM(B84:D84) -> $0 | F84: ='GM CostSvcs'!F35 -> $0 | G84: ='GM CostSvcs'!G35 -> $0 | H84: ='GM CostSvcs'!H35 -> $0 | I84: =SUM(F84:H84) -> $0 | J84: ='GM CostSvcs'!J35 -> $0 | K84: ='GM CostSvcs'!K35 -> $0 | L84: ='GM CostSvcs'!L35 -> $0 | M84: =SUM(J84:L84) -> $0 | N84: ='GM CostSvcs'!N35 -> $0 | O84: ='GM CostSvcs'!O35 -> $0 | P84: ='GM CostSvcs'!P35 -> $0 | Q84: =SUM(N84:P84) -> $0 | R84: ='GM CostSvcs'!R35 -> $0 | S84: ='GM CostSvcs'!S35 -> $0 | T84: ='GM CostSvcs'!T35 -> $0 | U84: =SUM(R84:T84) -> $0 | V84: ='GM CostSvcs'!V35 -> $0 | W84: ='GM CostSvcs'!W35 -> $0 | X84: ='GM CostSvcs'!X35 -> $0 | Y84: =SUM(V84:X84) -> $0
A85: =" "&Labels!B326 -> Travel & Entertain | B85: =B281 -> $0 | C85: =C281 -> $0 | D85: =D281 -> $0 | E85: $0 | F85: =F281 -> $0 | G85: =G281 -> $0 | H85: =H281 -> $0 | I85: $0 | J85: =J281 -> $0 | K85: =K281 -> $0 | L85: =L281 -> $0 | M85: $0 | N85: =N281 -> $0 | O85: =O281 -> $0 | P85: =P281 -> $0 | Q85: $0 | R85: =R281 -> $0 | S85: =S281 -> $0 | T85: =T281 -> $0 | U85: $0 | V85: =V281 -> $0 | W85: =W281 -> $0 | X85: =X281 -> $0 | Y85: $0
A86: =" "&Labels!B327 -> Direct Supplies | B86: ='GM CostSvcs'!B168 -> $0 | C86: ='GM CostSvcs'!C168 -> $0 | D86: ='GM CostSvcs'!D168 -> $0 | E86: $0 | F86: ='GM CostSvcs'!F168 -> $0 | G86: ='GM CostSvcs'!G168 -> $0 | H86: ='GM CostSvcs'!H168 -> $0 | I86: $0 | J86: ='GM CostSvcs'!J168 -> $0 | K86: ='GM CostSvcs'!K168 -> $0 | L86: ='GM CostSvcs'!L168 -> $0 | M86: $0 | N86: ='GM CostSvcs'!N168 -> $0 | O86: ='GM CostSvcs'!O168 -> $0 | P86: ='GM CostSvcs'!P168 -> $0 | Q86: $0 | R86: ='GM CostSvcs'!R168 -> $0 | S86: ='GM CostSvcs'!S168 -> $0 | T86: ='GM CostSvcs'!T168 -> $0 | U86: $0 | V86: ='GM CostSvcs'!V168 -> $0 | W86: ='GM CostSvcs'!W168 -> $0 | X86: ='GM CostSvcs'!X168 -> $0 | Y86: $0
A87: =" "&Labels!C324 -> Total | B87: =SUM(B84:B86) -> $0 | C87: =SUM(C84:C86) -> $0 | D87: =SUM(D84:D86) -> $0 | E87: $0 | F87: =SUM(F84:F86) -> $0 | G87: =SUM(G84:G86) -> $0 | H87: =SUM(H84:H86) -> $0 | I87: $0 | J87: =SUM(J84:J86) -> $0 | K87: =SUM(K84:K86) -> $0 | L87: =SUM(L84:L86) -> $0 | M87: $0 | N87: =SUM(N84:N86) -> $0 | O87: =SUM(O84:O86) -> $0 | P87: =SUM(P84:P86) -> $0 | Q87: $0 | R87: =SUM(R84:R86) -> $0 | S87: =SUM(S84:S86) -> $0 | T87: =SUM(T84:T86) -> $0 | U87: $0 | V87: =SUM(V84:V86) -> $0 | W87: =SUM(W84:W86) -> $0 | X87: =SUM(X84:X86) -> $0 | Y87: $0
A88: =" "&Labels!C380 -> Total | B88: =SUM(B82,B87) -> $0 | C88: =SUM(C82,C87) -> $0 | D88: =SUM(D82,D87) -> $0 | E88: $0 | F88: =SUM(F82,F87) -> $0 | G88: =SUM(G82,G87) -> $0 | H88: =SUM(H82,H87) -> $0 | I88: $0 | J88: =SUM(J82,J87) -> $0 | K88: =SUM(K82,K87) -> $0 | L88: =SUM(L82,L87) -> $0 | M88: $0 | N88: =SUM(N82,N87) -> $0 | O88: =SUM(O82,O87) -> $0 | P88: =SUM(P82,P87) -> $0 | Q88: $0 | R88: =SUM(R82,R87) -> $0 | S88: =SUM(S82,S87) -> $0 | T88: =SUM(T82,T87) -> $0 | U88: $0 | V88: =SUM(V82,V87) -> $0 | W88: =SUM(W82,W87) -> $0 | X88: =SUM(X82,X87) -> $0 | Y88: $0
A89: =" "&Labels!B325 -> Direct Labor | B89: =SUM(B79,B84) -> $0 | C89: $0 | D89: $0 | E89: $0 | F89: =SUM(F79,F84) -> $0 | G89: $0 | H89: $0 | I89: $0 | J89: =SUM(J79,J84) -> $0 | K89: $0 | L89: $0 | M89: $0 | N89: =SUM(N79,N84) -> $0 | O89: $0 | P89: $0 | Q89: $0 | R89: =SUM(R79,R84) -> $0 | S89: $0 | T89: $0 | U89: $0 | V89: =SUM(V79,V84) -> $0 | W89: $0 | X89: $0 | Y89: $0
A90: =" "&Labels!B326 -> Travel & Entertain | B90: $0 | C90: $0 | D90: $0 | E90: $0 | F90: $0 | G90: $0 | H90: $0 | I90: $0 | J90: $0 | K90: $0 | L90: $0 | M90: $0 | N90: $0 | O90: $0 | P90: $0 | Q90: $0 | R90: $0 | S90: $0 | T90: $0 | U90: $0 | V90: $0 | W90: $0 | X90: $0 | Y90: $0
A91: =" "&Labels!B327 -> Direct Supplies | B91: $0 | C91: $0 | D91: $0 | E91: $0 | F91: $0 | G91: $0 | H91: $0 | I91: $0 | J91: $0 | K91: $0 | L91: $0 | M91: $0 | N91: $0 | O91: $0 | P91: $0 | Q91: $0 | R91: $0 | S91: $0 | T91: $0 | U91: $0 | V91: $0 | W91: $0 | X91: $0 | Y91: $0
A92: =" "&Labels!C324 -> Total | B92: $0 | C92: $0 | D92: $0 | E92: =SUM(B88:D88) -> $0 | F92: $0 | G92: $0 | H92: $0 | I92: =SUM(F88:H88) -> $0 | J92: $0 | K92: $0 | L92: $0 | M92: =SUM(J88:L88) -> $0 | N92: $0 | O92: $0 | P92: $0 | Q92: =SUM(N88:P88) -> $0 | R92: $0 | S92: $0 | T92: $0 | U92: =SUM(R88:T88) -> $0 | V92: $0 | W92: $0 | X92: $0 | Y92: =SUM(V88:X88) -> $0
A93: =" "&Labels!C316 -> Total | B93: =SUM(B72,B88) -> $0 | C93: =SUM(C72,C88) -> $0 | D93: =SUM(D72,D88) -> $2,750 | E93: =SUM(B93:D93) -> $2,750 | F93: =SUM(F72,F88) -> $2,750 | G93: =SUM(G72,G88) -> $0 | H93: =SUM(H72,H88) -> $2,000 | I93: =SUM(F93:H93) -> $4,750 | J93: =SUM(J72,J88) -> $30,261 | K93: =SUM(K72,K88) -> $30,331 | L93: =SUM(L72,L88) -> $0 | M93: =SUM(J93:L93) -> $60,591 | N93: =SUM(N72,N88) -> $0 | O93: =SUM(O72,O88) -> $0 | P93: =SUM(P72,P88) -> $0 | Q93: =SUM(N93:P93) -> $0 | R93: =SUM(R72,R88) -> $0 | S93: =SUM(S72,S88) -> $0 | T93: =SUM(T72,T88) -> $0 | U93: =SUM(R93:T93) -> $0 | V93: =SUM(V72,V88) -> $0 | W93: =SUM(W72,W88) -> $0 | X93: =SUM(X72,X88) -> $0 | Y93: =SUM(V93:X93) -> $0
A94: =" "&Labels!B381 -> Practice 1
A95: =" "&Labels!B325 -> Direct Labor | B95: =SUM(B63,B79) -> $0 | C95: $0 | D95: $0 | E95: =SUM(B95:D95) -> $0 | F95: =SUM(F63,F79) -> $0 | G95: $0 | H95: $0 | I95: =SUM(F95:H95) -> $0 | J95: =SUM(J63,J79) -> $28,261 | K95: $28,331 | L95: $0 | M95: =SUM(J95:L95) -> $56,591 | N95: =SUM(N63,N79) -> $0 | O95: $0 | P95: $0 | Q95: =SUM(N95:P95) -> $0 | R95: =SUM(R63,R79) -> $0 | S95: $0 | T95: $0 | U95: =SUM(R95:T95) -> $0 | V95: =SUM(V63,V79) -> $0 | W95: $0 | X95: $0 | Y95: =SUM(V95:X95) -> $0
A96: =" "&Labels!B326 -> Travel & Entertain | B96: $0 | C96: $0 | D96: $2,750 | E96: =SUM(B96:D96) -> $2,750 | F96: $2,750 | G96: $0 | H96: $2,000 | I96: =SUM(F96:H96) -> $4,750 | J96: $2,000 | K96: $2,000 | L96: $0 | M96: =SUM(J96:L96) -> $4,000 | N96: $0 | O96: $0 | P96: $0 | Q96: =SUM(N96:P96) -> $0 | R96: $0 | S96: $0 | T96: $0 | U96: =SUM(R96:T96) -> $0 | V96: $0 | W96: $0 | X96: $0 | Y96: =SUM(V96:X96) -> $0
A97: =" "&Labels!B327 -> Direct Supplies | B97: $0 | C97: $0 | D97: $0 | E97: =SUM(B97:D97) -> $0 | F97: $0 | G97: $0 | H97: $0 | I97: =SUM(F97:H97) -> $0 | J97: $0 | K97: $0 | L97: $0 | M97: =SUM(J97:L97) -> $0 | N97: $0 | O97: $0 | P97: $0 | Q97: =SUM(N97:P97) -> $0 | R97: $0 | S97: $0 | T97: $0 | U97: =SUM(R97:T97) -> $0 | V97: $0 | W97: $0 | X97: $0 | Y97: =SUM(V97:X97) -> $0
A98: =" "&Labels!C324 -> Total | B98: $0 | C98: $0 | D98: $2,750 | E98: =SUM(B98:D98) -> $2,750 | F98: $2,750 | G98: $0 | H98: $2,000 | I98: =SUM(F98:H98) -> $4,750 | J98: $30,261 | K98: $30,331 | L98: $0 | M98: =SUM(J98:L98) -> $60,591 | N98: $0 | O98: $0 | P98: $0 | Q98: =SUM(N98:P98) -> $0 | R98: $0 | S98: $0 | T98: $0 | U98: =SUM(R98:T98) -> $0 | V98: $0 | W98: $0 | X98: $0 | Y98: =SUM(V98:X98) -> $0
A99: =" "&Labels!B382 -> Practice 2
A100: =" "&Labels!B325 -> Direct Labor | B100: =SUM(B68,B84) -> $0 | C100: $0 | D100: $0 | E100: =SUM(B100:D100) -> $0 | F100: =SUM(F68,F84) -> $0 | G100: $0 | H100: $0 | I100: =SUM(F100:H100) -> $0 | J100: =SUM(J68,J84) -> $0 | K100: $0 | L100: $0 | M100: =SUM(J100:L100) -> $0 | N100: =SUM(N68,N84) -> $0 | O100: $0 | P100: $0 | Q100: =SUM(N100:P100) -> $0 | R100: =SUM(R68,R84) -> $0 | S100: $0 | T100: $0 | U100: =SUM(R100:T100) -> $0 | V100: =SUM(V68,V84) -> $0 | W100: $0 | X100: $0 | Y100: =SUM(V100:X100) -> $0
A101: =" "&Labels!B326 -> Travel & Entertain | B101: $0 | C101: $0 | D101: $0 | E101: =SUM(B101:D101) -> $0 | F101: $0 | G101: $0 | H101: $0 | I101: =SUM(F101:H101) -> $0 | J101: $0 | K101: $0 | L101: $0 | M101: =SUM(J101:L101) -> $0 | N101: $0 | O101: $0 | P101: $0 | Q101: =SUM(N101:P101) -> $0 | R101: $0 | S101: $0 | T101: $0 | U101: =SUM(R101:T101) -> $0 | V101: $0 | W101: $0 | X101: $0 | Y101: =SUM(V101:X101) -> $0
A102: =" "&Labels!B327 -> Direct Supplies | B102: $0 | C102: $0 | D102: $0 | E102: =SUM(B102:D102) -> $0 | F102: $0 | G102: $0 | H102: $0 | I102: =SUM(F102:H102) -> $0 | J102: $0 | K102: $0 | L102: $0 | M102: =SUM(J102:L102) -> $0 | N102: $0 | O102: $0 | P102: $0 | Q102: =SUM(N102:P102) -> $0 | R102: $0 | S102: $0 | T102: $0 | U102: =SUM(R102:T102) -> $0 | V102: $0 | W102: $0 | X102: $0 | Y102: =SUM(V102:X102) -> $0
A103: =" "&Labels!C324 -> Total | B103: $0 | C103: $0 | D103: $0 | E103: =SUM(B103:D103) -> $0 | F103: $0 | G103: $0 | H103: $0 | I103: =SUM(F103:H103) -> $0 | J103: $0 | K103: $0 | L103: $0 | M103: =SUM(J103:L103) -> $0 | N103: $0 | O103: $0 | P103: $0 | Q103: =SUM(N103:P103) -> $0 | R103: $0 | S103: $0 | T103: $0 | U103: =SUM(R103:T103) -> $0 | V103: $0 | W103: $0 | X103: $0 | Y103: =SUM(V103:X103) -> $0
A104: =" "&Labels!C380 -> Total | B104: $0 | C104: $0 | D104: $2,750 | E104: =SUM(B93:D93) -> $2,750 | F104: $2,750 | G104: $0 | H104: $2,000 | I104: =SUM(F93:H93) -> $4,750 | J104: $30,261 | K104: $30,331 | L104: $0 | M104: =SUM(J93:L93) -> $60,591 | N104: $0 | O104: $0 | P104: $0 | Q104: =SUM(N93:P93) -> $0 | R104: $0 | S104: $0 | T104: $0 | U104: =SUM(R93:T93) -> $0 | V104: $0 | W104: $0 | X104: $0 | Y104: =SUM(V93:X93) -> $0
A105: =" "&Labels!B325 -> Direct Labor | B105: $0 | C105: $0 | D105: $0 | E105: =SUM(B105:D105) -> $0 | F105: $0 | G105: $0 | H105: $0 | I105: =SUM(F105:H105) -> $0 | J105: $28,261 | K105: $28,331 | L105: $0 | M105: =SUM(J105:L105) -> $56,591 | N105: $0 | O105: $0 | P105: $0 | Q105: =SUM(N105:P105) -> $0 | R105: $0 | S105: $0 | T105: $0 | U105: =SUM(R105:T105) -> $0 | V105: $0 | W105: $0 | X105: $0 | Y105: =SUM(V105:X105) -> $0
A106: =" "&Labels!B326 -> Travel & Entertain | B106: $0 | C106: $0 | D106: $2,750 | E106: =SUM(B106:D106) -> $2,750 | F106: $2,750 | G106: $0 | H106: $2,000 | I106: =SUM(F106:H106) -> $4,750 | J106: $2,000 | K106: $2,000 | L106: $0 | M106: =SUM(J106:L106) -> $4,000 | N106: $0 | O106: $0 | P106: $0 | Q106: =SUM(N106:P106) -> $0 | R106: $0 | S106: $0 | T106: $0 | U106: =SUM(R106:T106) -> $0 | V106: $0 | W106: $0 | X106: $0 | Y106: =SUM(V106:X106) -> $0
A107: =" "&Labels!B327 -> Direct Supplies | B107: $0 | C107: $0 | D107: $0 | E107: =SUM(B107:D107) -> $0 | F107: $0 | G107: $0 | H107: $0 | I107: =SUM(F107:H107) -> $0 | J107: $0 | K107: $0 | L107: $0 | M107: =SUM(J107:L107) -> $0 | N107: $0 | O107: $0 | P107: $0 | Q107: =SUM(N107:P107) -> $0 | R107: $0 | S107: $0 | T107: $0 | U107: =SUM(R107:T107) -> $0 | V107: $0 | W107: $0 | X107: $0 | Y107: =SUM(V107:X107) -> $0
A108: =" "&Labels!C324 -> Total | B108: =SUM(B72,B88) -> $0 | C108: =SUM(C72,C88) -> $0 | D108: =SUM(D72,D88) -> $2,750 | E108: =SUM(B93:D93) -> $2,750 | F108: =SUM(F72,F88) -> $2,750 | G108: =SUM(G72,G88) -> $0 | H108: =SUM(H72,H88) -> $2,000 | I108: =SUM(F93:H93) -> $4,750 | J108: =SUM(J72,J88) -> $30,261 | K108: =SUM(K72,K88) -> $30,331 | L108: =SUM(L72,L88) -> $0 | M108: =SUM(J93:L93) -> $60,591 | N108: =SUM(N72,N88) -> $0 | O108: =SUM(O72,O88) -> $0 | P108: =SUM(P72,P88) -> $0 | Q108: =SUM(N93:P93) -> $0 | R108: =SUM(R72,R88) -> $0 | S108: =SUM(S72,S88) -> $0 | T108: =SUM(T72,T88) -> $0 | U108: =SUM(R93:T93) -> $0 | V108: =SUM(V72,V88) -> $0 | W108: =SUM(W72,W88) -> $0 | X108: =SUM(X72,X88) -> $0 | Y108: =SUM(V93:X93) -> $0
A110: =Labels!B317 -> Channels 1
A111: =" "&Labels!B381 -> Practice 1
A112: =" "&Labels!B99 -> Gross Margin | B112: =SUM(B425,B428) -> $0 | C112: =SUM(C425,C428) -> $0 | D112: =SUM(D425,D428) -> $55,000 | E112: =SUM(B112:D112) -> $55,000 | F112: =SUM(F425,F428) -> $55,000 | G112: =SUM(G425,G428) -> $0 | H112: =SUM(H425,H428) -> $40,000 | I112: =SUM(F112:H112) -> $95,000 | J112: =SUM(J425,J428) -> $11,739 | K112: =SUM(K425,K428) -> $4,587 | L112: =SUM(L425,L428) -> $0 | M112: =SUM(J112:L112) -> $16,326 | N112: =SUM(N425,N428) -> $0 | O112: =SUM(O425,O428) -> $0 | P112: =SUM(P425,P428) -> $0 | Q112: =SUM(N112:P112) -> $0 | R112: =SUM(R425,R428) -> $0 | S112: =SUM(S425,S428) -> $0 | T112: =SUM(T425,T428) -> $0 | U112: =SUM(R112:T112) -> $0 | V112: =SUM(V425,V428) -> $0 | W112: =SUM(W425,W428) -> $0 | X112: =SUM(X425,X428) -> $0 | Y112: =SUM(V112:X112) -> $0
A113: =" "&Labels!B101 -> Gross Margin % | B113: =IF(Practices!B48=0,0,Practices!B112/Practices!B48) -> 0.0% | C113: =IF(Practices!C48=0,0,Practices!C112/Practices!C48) -> 0.0% | D113: =IF(Practices!D48=0,0,Practices!D112/Practices!D48) -> 95.2% | E113: =IF(SUM(Practices!B48:D48)=0,0,SUM(Practices!B112:D112)/SUM(Practices!B48:D48)) -> 95.2% | F113: =IF(Practices!F48=0,0,Practices!F112/Practices!F48) -> 95.2% | G113: =IF(Practices!G48=0,0,Practices!G112/Practices!G48) -> 0.0% | H113: =IF(Practices!H48=0,0,Practices!H112/Practices!H48) -> 95.2% | I113: =IF(SUM(Practices!F48:H48)=0,0,SUM(Practices!F112:H112)/SUM(Practices!F48:H48)) -> 95.2% | J113: =IF(Practices!J48=0,0,Practices!J112/Practices!J48) -> 28.0% | K113: =IF(Practices!K48=0,0,Practices!K112/Practices!K48) -> 10.9% | L113: =IF(Practices!L48=0,0,Practices!L112/Practices!L48) -> 0.0% | M113: =IF(SUM(Practices!J48:L48)=0,0,SUM(Practices!J112:L112)/SUM(Practices!J48:L48)) -> 19.4% | N113: =IF(Practices!N48=0,0,Practices!N112/Practices!N48) -> 0.0% | O113: =IF(Practices!O48=0,0,Practices!O112/Practices!O48) -> 0.0% | P113: =IF(Practices!P48=0,0,Practices!P112/Practices!P48) -> 0.0% | Q113: =IF(SUM(Practices!N48:P48)=0,0,SUM(Practices!N112:P112)/SUM(Practices!N48:P48)) -> 0.0% | R113: =IF(Practices!R48=0,0,Practices!R112/Practices!R48) -> 0.0% | S113: =IF(Practices!S48=0,0,Practices!S112/Practices!S48) -> 0.0% | T113: =IF(Practices!T48=0,0,Practices!T112/Practices!T48) -> 0.0% | U113: =IF(SUM(Practices!R48:T48)=0,0,SUM(Practices!R112:T112)/SUM(Practices!R48:T48)) -> 0.0% | V113: =IF(Practices!V48=0,0,Practices!V112/Practices!V48) -> 0.0% | W113: =IF(Practices!W48=0,0,Practices!W112/Practices!W48) -> 0.0% | X113: =IF(Practices!X48=0,0,Practices!X112/Practices!X48) -> 0.0% | Y113: =IF(SUM(Practices!V48:X48)=0,0,SUM(Practices!V112:X112)/SUM(Practices!V48:X48)) -> 0.0%
A114: =" "&Labels!B382 -> Practice 2
A115: =" "&Labels!B99 -> Gross Margin | B115: =SUM(B435,B438) -> $0 | C115: =SUM(C435,C438) -> $0 | D115: =SUM(D435,D438) -> $0 | E115: =SUM(B115:D115) -> $0 | F115: =SUM(F435,F438) -> $0 | G115: =SUM(G435,G438) -> $0 | H115: =SUM(H435,H438) -> $0 | I115: =SUM(F115:H115) -> $0 | J115: =SUM(J435,J438) -> $0 | K115: =SUM(K435,K438) -> $0 | L115: =SUM(L435,L438) -> $0 | M115: =SUM(J115:L115) -> $0 | N115: =SUM(N435,N438) -> $0 | O115: =SUM(O435,O438) -> $0 | P115: =SUM(P435,P438) -> $0 | Q115: =SUM(N115:P115) -> $0 | R115: =SUM(R435,R438) -> $0 | S115: =SUM(S435,S438) -> $0 | T115: =SUM(T435,T438) -> $0 | U115: =SUM(R115:T115) -> $0 | V115: =SUM(V435,V438) -> $0 | W115: =SUM(W435,W438) -> $0 | X115: =SUM(X435,X438) -> $0 | Y115: =SUM(V115:X115) -> $0
